Workbook

Sheet A-1
A1: TABLE A-1. Summary of California commercial troll salmon fishing effort in days fished and landings in numbers of fish by catch area.
A2: Year or Avg. | B2: Crescent City | C2: Eureka | D2: Fort Bragg | E2: San Francisco | F2: Monterey | G2: Oregon | H2: Season
A3: DAYS FISHED
A4: 1986-1990 | B4: ='A-2'!I307 -> 545 | C4: ='A-2'!I325 -> 1,629 | D4: ='A-2'!I343 -> 16,392 | E4: ='A-2'!I363 -> 25,555 | F4: ='A-2'!I381 -> 14,391 | G4: =AVERAGE('A-2'!T12:T16) -> 12 | H4: ='A-2'!I399 -> 58,511
A5: 1991-1995 | B5: ='A-2'!I308 -> - | C5: ='A-2'!I326 -> 600 | D5: ='A-2'!I344 -> 1,775 | E5: ='A-2'!I364 -> 13,340 | F5: ='A-2'!I382 -> 10,820 | G5: =AVERAGE('A-2'!T17:T21) -> 0 | H5: ='A-2'!I400 -> 25,700
A6: 1996-2000 | B6: ='A-2'!I309 -> 15 | C6: ='A-2'!I327 -> 202 | D6: ='A-2'!I345 -> 796 | E6: ='A-2'!I365 -> 9,546 | F6: ='A-2'!I383 -> 7,740 | G6: =AVERAGE('A-2'!T22:T26) -> 0 | H6: ='A-2'!I401 -> 18,299
A7: 2001-2005 | B7: ='A-2'!I310 -> 119 | C7: ='A-2'!I328 -> 261 | D7: ='A-2'!I346 -> 3,255 | E7: ='A-2'!I366 -> 8,878 | F7: ='A-2'!I384 -> 4,674 | G7: 87 | H7: ='A-2'!I402 -> 17,187
A8: 2006-2010 | B8: ='A-2'!I311 -> 87 | C8: ='A-2'!I329 -> 270 | D8: ='A-2'!I347 -> 1,107 | E8: ='A-2'!I367 -> 4,156 | F8: ='A-2'!I385 -> 1,587 | G8: - | H8: ='A-2'!I403 -> 6,968
A9: 2011 | B9: ='A-2'!I37 -> 20 | C9: ='A-2'!I83 -> 181 | D9: ='A-2'!I129 -> 2,143 | E9: ='A-2'!I175 -> 2,907 | F9: ='A-2'!I221 -> 1,722 | G9: - | H9: ='A-2'!I404 -> 6,973
A10: 2012 | B10: ='A-2'!I38 -> 45 | C10: ='A-2'!I84 -> 260 | D10: ='A-2'!I130 -> 2,221 | E10: ='A-2'!I176 -> 7,505 | F10: ='A-2'!I222 -> 4,491 | G10: - | H10: ='A-2'!I405 -> 14,522
A11: 2013 | B11: ='A-2'!I39 -> 98 | C11: ='A-2'!I85 -> 563 | D11: ='A-2'!I131 -> 5,341 | E11: ='A-2'!I177 -> 8,327 | F11: ='A-2'!I223 -> 2,964 | G11: - | H11: ='A-2'!I406 -> 17,293
A12: 2014 | B12: ='A-2'!I40 -> 7 | C12: ='A-2'!I86 -> 92 | D12: ='A-2'!I132 -> 4,261 | E12: ='A-2'!I178 -> 8,441 | F12: ='A-2'!I224 -> 1,593 | G12: - | H12: ='A-2'!I407 -> 14,394
A13: 2015 | B13: ='A-2'!I41 -> 10 | C13: ='A-2'!I87 -> 22 | D13: ='A-2'!I133 -> 4,971 | E13: ='A-2'!I179 -> 5,466 | F13: ='A-2'!I225 -> 2,542 | G13: - | H13: ='A-2'!I408 -> 13,011
A14: 2016 | B14: ='A-2'!I42 -> 7 | C14: ='A-2'!I88 -> 52 | D14: ='A-2'!I134 -> 1,486 | E14: ='A-2'!I180 -> 4,093 | F14: ='A-2'!I226 -> 1,560 | G14: - | H14: ='A-2'!I409 -> 7,198
A15: 2017 | B15: ='A-2'!I43 -> - | C15: ='A-2'!I89 -> - | D15: ='A-2'!I135 -> 267 | E15: ='A-2'!I181 -> 4,374 | F15: ='A-2'!I227 -> 2,084 | G15: - | H15: ='A-2'!I410 -> 6,725
A16: 2018 | B16: ='A-2'!I44 -> 238 | C16: ='A-2'!I90 -> 461 | D16: ='A-2'!I136 -> 819 | E16: ='A-2'!I182 -> 4,747 | F16: ='A-2'!I228 -> 1,312 | G16: - | H16: ='A-2'!I411 -> 7,577
A17: 2019 | B17: ='A-2'!I45 -> 153 | C17: ='A-2'!I91 -> 151 | D17: ='A-2'!I137 -> 1,040 | E17: ='A-2'!I183 -> 8,236 | F17: ='A-2'!I229 -> 6,210 | G17: - | H17: ='A-2'!I412 -> 15,790
A18: 2020 | B18: ='A-2'!I46 -> - | C18: ='A-2'!I92 -> - | D18: ='A-2'!I138 -> 219 | E18: ='A-2'!I184 -> 9,451 | F18: ='A-2'!I230 -> 2,616 | G18: - | H18: ='A-2'!I413 -> 12,286
A19: 2021a/ | B19: ='A-2'!I47 -> - | C19: ='A-2'!I93 -> - | D19: ='A-2'!I139 -> 1,576 | E19: ='A-2'!I185 -> 5,080 | F19: ='A-2'!I231 -> 3,261 | G19: - | H19: ='A-2'!I414 -> 9,917
A21: CHINOOK LANDINGS
A22: 1986-1990 | B22: ='A-3'!I315 -> 13,997 | C22: ='A-3'!I333 -> 32,329 | D22: ='A-3'!I354 -> 252,416 | E22: ='A-3'!I372 -> 351,115 | F22: ='A-3'!I393 -> 144,846 | G22: =AVERAGE('A-3'!AB15:AB19) -> 1,064 | H22: ='A-3'!I411 -> 794,703
A23: 1991-1995 | B23: ='A-3'!I316 -> - | C23: ='A-3'!I334 -> 4,700 | D23: ='A-3'!I355 -> 17,354 | E23: ='A-3'!I373 -> 200,588 | F23: ='A-3'!I394 -> 126,517 | G23: 0 | H23: ='A-3'!I412 -> 341,928
A24: 1996-2000 | B24: ='A-3'!I317 -> 126 | C24: ='A-3'!I335 -> 3,379 | D24: ='A-3'!I356 -> 12,529 | E24: ='A-3'!I374 -> 195,662 | F24: ='A-3'!I395 -> 156,305 | G24: 0 | H24: ='A-3'!I413 -> 368,001
A25: 2001-2005 | B25: 1,412 | C25: ='A-3'!I336 -> 5,298 | D25: ='A-3'!I357 -> 96,466 | E25: ='A-3'!I375 -> 210,228 | F25: ='A-3'!I396 -> 64,827 | G25: 9,484 | H25: ='A-3'!I414 -> 383,921
A26: 2006-2010 | B26: ='A-3'!I319 -> 2,367 | C26: ='A-3'!I337 -> 6,395 | D26: ='A-3'!I358 -> 13,168 | E26: ='A-3'!I376 -> 41,349 | F26: ='A-3'!I397 -> 8,881 | G26: - | H26: ='A-3'!I415 -> 66,319
A27: 2011 | B27: ='A-3'!I40 -> 417 | C27: ='A-3'!I88 -> 1,974 | D27: ='A-3'!I136 -> 39,311 | E27: ='A-3'!I184 -> 21,912 | F27: ='A-3'!I232 -> 6,414 | G27: - | H27: =SUM(B27:G27) -> 70,028
A28: 2012 | B28: ='A-3'!I41 -> 400 | C28: ='A-3'!I89 -> 4,831 | D28: ='A-3'!I137 -> 38,282 | E28: ='A-3'!I185 -> 119,100 | F28: ='A-3'!I233 -> 52,972 | G28: - | H28: 215,585
A29: 2013 | B29: ='A-3'!I42 -> 1,225 | C29: ='A-3'!I90 -> 8,953 | D29: ='A-3'!I138 -> 116,158 | E29: ='A-3'!I186 -> 143,654 | F29: ='A-3'!I234 -> 27,637 | G29: - | H29: 297,627
A30: 2014 | B30: ='A-3'!I43 -> 21 | C30: ='A-3'!I91 -> 599 | D30: ='A-3'!I139 -> 76,931 | E30: ='A-3'!I187 -> 82,424 | F30: ='A-3'!I235 -> 8,308 | G30: - | H30: 168,283
A31: 2015 | B31: ='A-3'!I44 -> 36 | C31: ='A-3'!I92 -> 10 | D31: ='A-3'!I140 -> 60,052 | E31: ='A-3'!I188 -> 35,696 | F31: ='A-3'!I236 -> 14,713 | G31: - | H31: 110,507
A32: 2016 | B32: ='A-3'!I45 -> 6 | C32: ='A-3'!I93 -> 190 | D32: ='A-3'!I141 -> 15,380 | E32: ='A-3'!I189 -> 26,363 | F32: ='A-3'!I237 -> 13,246 | G32: - | H32: 55,185
A33: 2017 | B33: ='A-3'!I46 -> - | C33: ='A-3'!I94 -> - | D33: ='A-3'!I142 -> 1,935 | E33: ='A-3'!I190 -> 27,912 | F33: ='A-3'!I238 -> 12,479 | G33: - | H33: 42,326
A34: 2018 | B34: ='A-3'!I47 -> 4,412 | C34: ='A-3'!I95 -> 4,599 | D34: ='A-3'!I143 -> 10,551 | E34: ='A-3'!I191 -> 39,429 | F34: ='A-3'!I239 -> 19,425 | G34: - | H34: 78,416
A35: 2019 | B35: ='A-3'!I48 -> 4,235 | C35: ='A-3'!I96 -> 1,622 | D35: ='A-3'!I144 -> 9,281 | E35: ='A-3'!I192 -> 158,392 | F35: ='A-3'!I240 -> 97,959 | G35: - | H35: =SUM(B35:G35) -> 271,489
A36: 2020 | B36: ='A-3'!I49 -> - | C36: ='A-3'!I97 -> - | D36: ='A-3'!I145 -> 1,849 | E36: ='A-3'!I193 -> 145,741 | F36: ='A-3'!I241 -> 30,210 | G36: - | H36: 177,800
A37: 2021a/ | B37: ='A-3'!I50 -> - | C37: ='A-3'!I98 -> - | D37: ='A-3'!I146 -> 43,722 | E37: ='A-3'!I194 -> 104,893 | F37: ='A-3'!I242 -> 52,804 | G37: - | H37: 201,419
A39: COHO LANDINGS
A40: 1986-1990 | B40: ='A-3'!R315 -> 3,795 | C40: ='A-3'!R333 -> 5,998 | D40: ='A-3'!R354 -> 26,000 | E40: ='A-3'!R372 -> 9,377 | F40: ='A-3'!R393 -> 1,611 | G40: =AVERAGE('A-3'!AL15:AL19) -> 39 | H40: =SUM(B40:G40) -> 46,819
A41: 1991-1995 | B41: ='A-3'!R316 -> - | C41: ='A-3'!R334 -> 3,100 | D41: ='A-3'!R355 -> 4,500 | E41: ='A-3'!R373 -> 26,900 | F41: ='A-3'!R394 -> 11,775 | G41: - | H41: =SUM(B41:G41) -> 46,275
A42: 1996-2000 | B42: ='A-3'!R317 -> - | C42: ='A-3'!R335 -> - | D42: ='A-3'!R356 -> - | E42: ='A-3'!R374 -> - | F42: - | G42: - | H42: -
A43: 2001-2005 | B43: ='A-3'!R30 -> - | C43: ='A-3'!R78 -> - | D43: ='A-3'!R126 -> - | E43: ='A-3'!R174 -> - | F43: ='A-3'!R222 -> - | G43: - | H43: ='A-3'!R270 -> -
A44: 2006-2010 | B44: ='A-3'!R319 -> - | C44: ='A-3'!R337 -> - | D44: ='A-3'!R358 -> - | E44: ='A-3'!R376 -> - | F44: - | G44: - | H44: ='A-3'!R271 -> -
A45: 2011 | B45: ='A-3'!R40 -> - | C45: ='A-3'!R88 -> - | D45: ='A-3'!R136 -> - | E45: ='A-3'!R184 -> - | F45: ='A-3'!R232 -> - | G45: - | H45: ='A-3'!R280 -> -
A46: 2012 | B46: ='A-3'!R41 -> - | C46: ='A-3'!R89 -> - | D46: ='A-3'!R137 -> - | E46: ='A-3'!R185 -> - | F46: ='A-3'!R233 -> - | G46: - | H46: ='A-3'!R281 -> -
A47: 2013 | B47: ='A-3'!R42 -> - | C47: ='A-3'!R90 -> - | D47: ='A-3'!R138 -> - | E47: ='A-3'!R186 -> - | F47: ='A-3'!R234 -> - | G47: - | H47: ='A-3'!R282 -> -
A48: 2014 | B48: ='A-3'!R43 -> - | C48: ='A-3'!R91 -> - | D48: ='A-3'!R139 -> - | E48: ='A-3'!R187 -> - | F48: ='A-3'!R235 -> - | G48: - | H48: ='A-3'!R283 -> -
A49: 2015 | B49: ='A-3'!R44 -> - | C49: ='A-3'!R92 -> - | D49: ='A-3'!R140 -> - | E49: ='A-3'!R188 -> - | F49: ='A-3'!R236 -> - | G49: - | H49: ='A-3'!R284 -> -
A50: 2016 | B50: ='A-3'!R45 -> - | C50: ='A-3'!R93 -> - | D50: ='A-3'!R141 -> - | E50: ='A-3'!R189 -> - | F50: ='A-3'!R237 -> - | G50: - | H50: ='A-3'!R285 -> -
A51: 2017 | B51: ='A-3'!R46 -> - | C51: ='A-3'!R94 -> - | D51: ='A-3'!R142 -> - | E51: ='A-3'!R190 -> - | F51: ='A-3'!R238 -> - | G51: - | H51: ='A-3'!R286 -> -
A52: 2018 | B52: ='A-3'!R47 -> - | C52: ='A-3'!R95 -> - | D52: ='A-3'!R143 -> - | E52: ='A-3'!R191 -> - | F52: ='A-3'!R239 -> - | G52: - | H52: ='A-3'!R287 -> -
A53: 2019 | B53: ='A-3'!R48 -> - | C53: ='A-3'!R96 -> - | D53: ='A-3'!R144 -> - | E53: ='A-3'!R192 -> - | F53: ='A-3'!R240 -> - | G53: - | H53: ='A-3'!R288 -> -
A54: 2020 | B54: ='A-3'!R49 -> - | C54: ='A-3'!R97 -> - | D54: ='A-3'!R145 -> - | E54: ='A-3'!R193 -> - | F54: ='A-3'!R241 -> - | G54: - | H54: ='A-3'!R289 -> -
A55: 2021 | B55: ='A-3'!R50 -> - | C55: ='A-3'!R98 -> - | D55: ='A-3'!R146 -> - | E55: ='A-3'!R194 -> - | F55: ='A-3'!R242 -> - | G55: - | H55: ='A-3'!R290 -> -
A56: a/ Preliminary.

Sheet A-2
A1: TABLE A-2. California commercial troll salmon fishing effort in days fished by catch area and month. | L1: OREGON AREA EFFORT
A2: Year or Avg. | B2: Apr. | C2: May | D2: June | E2: July | F2: Aug. | G2: Sept. | H2: Oct. | I2: Season | L2: _ | M2: _ | N2: _ | O2: _ | P2: _ | Q2: _ | R2: _ | S2: _ | T2: _
A3: Crescent Citya/ | L3: YEAR | M3: APR | N3: MAY | O3: JUN | P3: JUL | Q3: AUG | R3: SEP | S3: OCT | T3: TOTAL
A4: 1978 | B4: 111 | C4: 1,799 | D4: 5,895 | E4: 3,074 | F4: 1,452 | G4: 336 | H4: - | I4: =SUM(B4:H4) -> 12,667 | L4: 1978 | M4: 0 | N4: 0 | O4: 0 | P4: 0 | Q4: 0 | R4: 0 | S4: 0 | T4: =SUM(M4:S4) -> 0
A5: 1979 | B5: 0 | C5: 2,216 | D5: 2,626 | E5: 13,870 | F5: 11,565 | G5: 386 | H5: - | I5: 30,663 | L5: 1979 | M5: 0 | N5: 0 | O5: 0 | P5: 0 | Q5: 0 | R5: 0 | S5: 0 | T5: 0
A6: 1980 | B6: - | C6: 2,114 | D6: - | E6: 1,911 | F6: 2,059 | G6: 1,545 | H6: - | I6: 7,629 | L6: 1980 | M6: 0 | N6: 0 | O6: 0 | P6: 0 | Q6: 0 | R6: 0 | S6: 0 | T6: 0
A7: 1981 | B7: - | C7: 3,019 | D7: 755 | E7: 2,270 | F7: 3,397 | G7: 1,472 | H7: - | I7: 10,913 | L7: 1981 | M7: 0 | N7: 0 | O7: 0 | P7: 0 | Q7: 0 | R7: 0 | S7: 0 | T7: 0
A8: 1982 | B8: - | C8: 1,379 | D8: 916 | E8: 3,452 | F8: 4,834 | G8: 1,118 | H8: - | I8: 11,699 | L8: 1982 | M8: 0 | N8: 0 | O8: 0 | P8: 0 | Q8: 0 | R8: 0 | S8: 0 | T8: 0
A9: 1983 | B9: - | C9: 488 | D9: 2,105 | E9: 1,302 | F9: 759 | G9: - | H9: - | I9: 4,654 | L9: 1983 | M9: 0 | N9: 0 | O9: 0 | P9: 0 | Q9: 0 | R9: 0 | S9: 0 | T9: 0
A10: 1984 | B10: - | C10: 565 | D10: 69 | E10: 765 | F10: 1,047 | G10: - | H10: - | I10: 2,446 | L10: 1984 | M10: 0 | N10: 0 | O10: 0 | P10: 0 | Q10: 0 | R10: 0 | S10: 0 | T10: 0
A11: 1985 | B11: - | C11: - | D11: - | E11: - | F11: - | G11: - | H11: - | I11: - | L11: 1985 | M11: - | N11: - | O11: - | P11: - | Q11: - | R11: - | S11: - | T11: 0
A12: 1986 | B12: - | C12: 5 | D12: 214 | E12: 417 | F12: 410 | G12: 14 | H12: - | I12: =SUM(B12:H12) -> 1,060 | L12: 1986 | M12: 0 | N12: 5 | O12: 0 | P12: 0 | Q12: 0 | R12: 0 | S12: 0 | T12: 5
A13: 1987 | B13: - | C13: 9 | D13: 693 | E13: 22 | F13: - | G13: 18 | H13: - | I13: =SUM(B13:H13) -> 741 | L13: 1987 | M13: 0 | N13: 9 | O13: 0 | P13: 22 | Q13: 0 | R13: 0 | S13: 0 | T13: 31
A14: 1988 | B14: - | C14: 12 | D14: 243 | E14: - | F14: - | G14: 17 | H14: - | I14: =SUM(B14:H14) -> 272 | L14: 1988 | M14: 0 | N14: 12 | O14: 0 | P14: 0 | Q14: 0 | R14: 0 | S14: 0 | T14: 12
A15: 1989 | B15: - | C15: 10 | D15: 291 | E15: - | F15: 68 | G15: 0 | H15: 0 | I15: =SUM(B15:H15) -> 369 | L15: 1989 | M15: 0 | N15: 10 | O15: 0 | P15: 0 | Q15: 0 | R15: 0 | S15: 0 | T15: 10
A16: 1990 | B16: - | C16: - | D16: - | E16: - | F16: 280 | G16: 0 | H16: 0 | I16: =SUM(B16:H16) -> 280 | L16: 1990 | M16: 0 | N16: 0 | O16: 0 | P16: 0 | Q16: 0 | R16: 0 | S16: 0 | T16: 0
A17: 1991 | B17: - | C17: - | D17: - | E17: - | F17: - | G17: - | H17: - | I17: - | L17: 1991 | M17: - | N17: - | O17: - | P17: - | Q17: - | R17: - | S17: - | T17: 0
A18: 1992 | B18: - | C18: - | D18: - | E18: - | F18: - | G18: - | H18: - | I18: - | L18: 1992 | M18: - | N18: - | O18: - | P18: - | Q18: - | R18: - | S18: - | T18: 0
A19: 1993 | B19: - | C19: - | D19: - | E19: - | F19: - | G19: - | H19: - | I19: - | L19: 1993 | M19: - | N19: - | O19: - | P19: - | Q19: - | R19: - | S19: - | T19: 0
A20: 1994 | B20: - | C20: - | D20: - | E20: - | F20: - | G20: - | H20: - | I20: - | L20: 1994 | M20: - | N20: - | O20: - | P20: - | Q20: - | R20: - | S20: - | T20: 0
A21: 1995 | B21: - | C21: - | D21: - | E21: - | F21: - | G21: - | H21: - | I21: - | L21: 1995 | M21: - | N21: - | O21: - | P21: - | Q21: - | R21: - | S21: - | T21: 0
A22: 1996 | B22: - | C22: - | D22: - | E22: - | F22: 10 | G22: 11 | H22: - | I22: =SUM(B22:H22) -> 21 | L22: 1996 | M22: 0 | N22: 0 | O22: 0 | P22: 0 | Q22: 0 | R22: 0 | S22: 0 | T22: 0
A23: 1997 | B23: - | C23: - | D23: - | E23: - | F23: - | G23: 0 | H23: - | I23: 0 | L23: 1997 | M23: 0 | N23: 0 | O23: 0 | P23: 0 | Q23: 0 | R23: 0 | S23: 0 | T23: 0
A24: 1998 | B24: - | C24: - | D24: - | E24: - | F24: - | G24: 0 | H24: - | I24: 0 | L24: 1998 | M24: 0 | N24: 0 | O24: 0 | P24: 0 | Q24: 0 | R24: 0 | S24: 0 | T24: 0
A25: 1999 | B25: - | C25: - | D25: - | E25: - | F25: - | G25: 29 | H25: - | I25: 29 | L25: 1999 | M25: 0 | N25: 0 | O25: 0 | P25: 0 | Q25: 0 | R25: 0 | S25: 0 | T25: 0
A26: 2000 | B26: - | C26: - | D26: - | E26: - | F26: - | G26: 23 | H26: - | I26: 23 | L26: 2000 | M26: 0 | N26: 0 | O26: 0 | P26: 0 | Q26: 0 | R26: 0 | S26: 0 | T26: 0
A27: 2001 | B27: - | C27: - | D27: - | E27: - | F27: - | G27: 18 | H27: - | I27: 18 | L27: 2001 | M27: 0 | N27: 0 | O27: 0 | P27: 0 | Q27: 0 | R27: 0 | S27: 0 | T27: 0
A28: 2002 | B28: - | C28: - | D28: - | E28: - | F28: 27 | G28: 146 | H28: 6 | I28: 179 | J28: b/ | L28: 2002 | M28: 0 | N28: 0 | O28: 0 | P28: 0 | Q28: 0 | R28: 2 | S28: 6 | T28: 8
A29: 2003 | B29: 14 | C29: 2 | D29: 4 | E29: - | F29: - | G29: 50 | H29: 6 | I29: 76 | J29: b/ | L29: 2003 | M29: 14 | N29: 2 | O29: 4 | P29: 0 | Q29: 0 | R29: 0 | S29: 6 | T29: 26
A30: 2004 | B30: 22 | C30: - | D30: 2 | E30: 36 | F30: 167 | G30: 35 | H30: - | I30: 262 | J30: b/ | L30: 2004 | M30: 22 | N30: 0 | O30: 2 | P30: 36 | Q30: 167 | R30: 0 | S30: 0 | T30: 227
A31: 2005 | B31: - | C31: - | D31: - | E31: - | F31: - | G31: 58 | H31: - | I31: 58
A32: 2006 | B32: - | C32: - | D32: - | E32: - | F32: - | G32: - | H32: - | I32: -
A33: 2007 | B33: - | C33: - | D33: - | E33: - | F33: - | G33: 87 | H33: - | I33: =SUM(B33:H33) -> 87
A34: 2008 | B34: - | C34: - | D34: - | E34: - | F34: - | G34: - | H34: - | I34: -
A35: 2009 | B35: - | C35: - | D35: - | E35: - | F35: - | G35: - | H35: - | I35: -
A36: 2010 | B36: - | C36: - | D36: - | E36: - | F36: - | G36: - | H36: - | I36: -
A37: 2011 | B37: - | C37: - | D37: - | E37: 4 | F37: 16 | G37: - | H37: - | I37: =SUM(B37:H37) -> 20
A38: 2012 | B38: - | C38: - | D38: - | E38: - | F38: - | G38: 45 | H38: - | I38: 45
A39: 2013 | B39: - | C39: 8 | D39: 31 | E39: 46 | F39: 10 | G39: 3 | H39: - | I39: 98
A40: 2014 | B40: - | C40: - | D40: - | E40: - | F40: - | G40: 7 | H40: - | I40: 7
A41: 2015 | B41: - | C41: - | D41: - | E41: - | F41: - | G41: 10 | H41: - | I41: 10
A42: 2016 | B42: - | C42: - | D42: - | E42: - | F42: - | G42: 7 | H42: - | I42: 7
A43: 2017 | B43: - | C43: - | D43: - | E43: - | F43: - | G43: - | H43: - | I43: -
A44: 2018 | B44: - | C44: 20 | D44: 108 | E44: 42 | F44: 68 | G44: - | H44: - | I44: 238
A45: 2019 | B45: - | C45: - | D45: 13 | E45: 50 | F45: 90 | G45: - | H45: - | I45: =SUM(B45:H45) -> 153
A46: 2020 | B46: - | C46: - | D46: - | E46: - | F46: - | G46: - | H46: - | I46: -
A47: 2021c/ | B47: - | C47: - | D47: - | E47: - | F47: - | G47: - | H47: - | I47: -
A49: Eureka
A50: 1978 | B50: 528 | C50: 6,073 | D50: 10,476 | E50: 3,866 | F50: 784 | G50: 285 | H50: - | I50: =SUM(B50:H50) -> 22,012
A51: 1979 | B51: 0 | C51: 4,277 | D51: 3,827 | E51: 5,627 | F51: 3,469 | G51: 1,302 | H51: - | I51: 18,502
A52: 1980 | B52: - | C52: 6,703 | D52: - | E52: 2,757 | F52: 2,717 | G52: 2,646 | H52: - | I52: 14,823
A53: 1981 | B53: - | C53: 3,870 | D53: 647 | E53: 2,686 | F53: 2,748 | G53: 622 | H53: - | I53: 10,573
A54: 1982 | B54: - | C54: 2,727 | D54: 972 | E54: 4,578 | F54: 2,614 | G54: 1,020 | H54: - | I54: 11,911
A55: 1983 | B55: - | C55: 868 | D55: 2,633 | E55: 2,353 | F55: 1,322 | G55: - | H55: - | I55: 7,176
A56: 1984 | B56: - | C56: 651 | D56: 49 | E56: 813 | F56: 1,038 | G56: - | H56: - | I56: 2,551
A57: 1985 | B57: - | C57: - | D57: - | E57: - | F57: - | G57: - | H57: - | I57: -
A58: 1986 | B58: - | C58: - | D58: 648 | E58: 518 | F58: 1,095 | G58: 333 | H58: - | I58: =SUM(B58:H58) -> 2,593
A59: 1987 | B59: - | C59: - | D59: 1,536 | E59: - | F59: - | G59: 495 | H59: - | I59: 2,031
A60: 1988 | B60: - | C60: - | D60: 777 | E60: - | F60: - | G60: 763 | H60: - | I60: 1,540
A61: 1989 | B61: - | C61: - | D61: 567 | E61: - | F61: 111 | G61: 450 | H61: 118 | I61: 1,246
A62: 1990 | B62: - | C62: - | D62: - | E62: - | F62: 434 | G62: 292 | H62: 10 | I62: 736
A63: 1991 | B63: - | C63: - | D63: - | E63: - | F63: - | G63: 500 | H63: 100 | I63: 600
A64: 1992 | B64: - | C64: - | D64: - | E64: - | F64: - | G64: - | H64: - | I64: -
A65: 1993 | B65: - | C65: - | D65: - | E65: - | F65: - | G65: - | H65: - | I65: -
A66: 1994 | B66: - | C66: - | D66: - | E66: - | F66: - | G66: - | H66: - | I66: -
A67: 1995 | B67: - | C67: - | D67: - | E67: - | F67: - | G67: - | H67: - | I67: -
A68: 1996 | B68: - | C68: - | D68: - | E68: - | F68: 128 | G68: 287 | H68: - | I68: =SUM(B68:H68) -> 415
A69: 1997 | B69: - | C69: - | D69: - | E69: - | F69: - | G69: 106 | H69: - | I69: 106
A70: 1998 | B70: - | C70: - | D70: - | E70: - | F70: - | G70: 164 | H70: - | I70: 164
A71: 1999 | B71: - | C71: - | D71: - | E71: - | F71: - | G71: 207 | H71: - | I71: 207
A72: 2000 | B72: - | C72: - | D72: - | E72: - | F72: - | G72: 119 | H72: - | I72: 119
A73: 2001 | B73: - | C73: - | D73: - | E73: - | F73: - | G73: 297 | H73: - | I73: 297
A74: 2002 | B74: - | C74: - | D74: - | E74: - | F74: 94 | G74: 332 | H74: - | I74: 426
A75: 2003 | B75: - | C75: - | D75: - | E75: - | F75: - | G75: 55 | H75: - | I75: 55
A76: 2004 | B76: - | C76: - | D76: - | E76: - | F76: - | G76: 262 | H76: - | I76: 262
A77: 2005 | B77: - | C77: - | D77: - | E77: - | F77: - | G77: 266 | H77: - | I77: 266
A78: 2006 | B78: - | C78: - | D78: - | E78: - | F78: - | G78: - | H78: - | I78: -
A79: 2007 | B79: - | C79: - | D79: - | E79: - | F79: - | G79: 270 | H79: - | I79: =SUM(B79:H79) -> 270
A80: 2008 | B80: - | C80: - | D80: - | E80: - | F80: - | G80: - | H80: - | I80: -
A81: 2009 | B81: - | C81: - | D81: - | E81: - | F81: - | G81: - | H81: - | I81: -
A82: 2010 | B82: - | C82: - | D82: - | E82: - | F82: - | G82: - | H82: - | I82: -
A83: 2011 | B83: - | C83: - | D83: - | E83: 148 | F83: 33 | G83: - | H83: - | I83: =SUM(B83:H83) -> 181
A84: 2012 | B84: - | C84: - | D84: - | E84: - | F84: - | G84: 260 | H84: - | I84: 260
A85: 2013 | B85: - | C85: 174 | D85: 129 | E85: 111 | F85: 103 | G85: 46 | H85: - | I85: 563
A86: 2014 | B86: - | C86: - | D86: - | E86: - | F86: - | G86: 92 | H86: - | I86: 92
A87: 2015 | B87: - | C87: - | D87: - | E87: - | F87: - | G87: 22 | H87: - | I87: 22
A88: 2016 | B88: - | C88: - | D88: - | E88: - | F88: - | G88: 52 | H88: - | I88: 52
A89: 2017 | B89: - | C89: - | D89: - | E89: - | F89: - | G89: - | H89: - | I89: - | J89: -
A90: 2018 | B90: - | C90: 110 | D90: 116 | E90: 121 | F90: 114 | G90: - | H90: - | I90: 461 | J90: -
A91: 2019 | B91: - | C91: - | D91: 74 | E91: 19 | F91: 58 | G91: - | H91: - | I91: =SUM(B91:H91) -> 151 | J91: -
A92: 2020 | B92: - | C92: - | D92: - | E92: - | F92: - | G92: - | H92: - | I92: - | J92: -
A93: 2021c/ | B93: - | C93: - | D93: - | E93: - | F93: - | G93: - | H93: - | I93: - | J93: -
A95: Fort Bragg
A96: 1978 | B96: 52 | C96: 1,941 | D96: 7,196 | E96: 6,904 | F96: 2,728 | G96: 1,073 | H96: - | I96: =SUM(B96:H96) -> 19,894
A97: 1979 | B97: 5 | C97: 2,086 | D97: 2,159 | E97: 11,318 | F97: 6,244 | G97: 3,069 | H97: - | I97: 24,881
A98: 1980 | B98: - | C98: 2,829 | D98: - | E98: 11,740 | F98: 4,073 | G98: 2,412 | H98: - | I98: 21,054
A99: 1981 | B99: - | C99: 2,958 | D99: 2,620 | E99: 4,004 | F99: 2,755 | G99: 1,716 | H99: - | I99: 14,053
A100: 1982 | B100: - | C100: 2,371 | D100: 2,348 | E100: 11,256 | F100: 3,764 | G100: 1,713 | H100: - | I100: 21,452
A101: 1983 | B101: - | C101: 868 | D101: 2,793 | E101: 2,299 | F101: 1,612 | G101: 62 | H101: - | I101: 7,634
A102: 1984 | B102: - | C102: 574 | D102: 744 | E102: 3,798 | F102: 666 | G102: 2,098 | H102: - | I102: 7,880
A103: 1985 | B103: - | C103: 3,647 | D103: 2,274 | E103: 6,277 | F103: 3,315 | G103: 2,047 | H103: - | I103: 17,560
A104: 1986 | B104: - | C104: 3,447 | D104: 3,397 | E104: 4,358 | F104: 3,084 | G104: 230 | H104: - | I104: 14,516
A105: 1987 | B105: - | C105: 3,837 | D105: 4,896 | E105: 6,844 | F105: 4,087 | G105: 641 | H105: - | I105: 20,305
A106: 1988 | B106: - | C106: 4,648 | D106: 4,871 | E106: 7,125 | F106: 5,509 | G106: 1,849 | H106: - | I106: 24,002
A107: 1989 | B107: - | C107: 1,077 | D107: 2,697 | E107: 4,396 | F107: 4,868 | G107: 1,072 | H107: - | I107: 14,110
A108: 1990 | B108: - | C108: 867 | D108: 3,575 | E108: 3,034 | F108: 1,460 | G108: 91 | H108: - | I108: 9,027
A109: 1991 | B109: - | C109: - | D109: - | E109: - | F109: 3,500 | G109: 300 | H109: - | I109: 3,800
A110: 1992 | B110: - | C110: - | D110: - | E110: - | F110: - | G110: - | H110: - | I110: -
A111: 1993 | B111: - | C111: 100 | D111: - | E111: - | F111: - | G111: 1,500 | H111: - | I111: =SUM(B111:H111) -> 1,600
A112: 1994 | B112: - | C112: - | D112: - | E112: - | F112: - | G112: 800 | H112: - | I112: 800
A113: 1995 | B113: - | C113: - | D113: - | E113: - | F113: - | G113: 900 | H113: - | I113: 900
A114: 1996 | B114: - | C114: - | D114: - | E114: - | F114: 1,300 | G114: 800 | H114: - | I114: 2,100
A115: 1997 | B115: - | C115: - | D115: - | E115: - | F115: - | G115: 300 | H115: - | I115: 300
A116: 1998 | B116: - | C116: - | D116: - | E116: - | F116: - | G116: 300 | H116: - | I116: 300
A117: 1999 | B117: - | C117: - | D117: - | E117: - | F117: - | G117: 200 | H117: - | I117: 200
A118: 2000 | B118: - | C118: - | D118: - | E118: - | F118: - | G118: 1,079 | H118: - | I118: 1,079
A119: 2001 | B119: - | C119: 206 | D119: - | E119: - | F119: - | G119: 610 | H119: - | I119: 816
A120: 2002 | B120: - | C120: - | D120: - | E120: 216 | F120: 1,327 | G120: 581 | H120: - | I120: 2,124
A121: 2003 | B121: - | C121: 1,022 | D121: - | E121: 1,497 | F121: 2,355 | G121: 1,422 | H121: - | I121: 6,296
A122: 2004 | B122: - | C122: - | D122: - | E122: 2,426 | F122: 2,095 | G122: 1,063 | H122: - | I122: 5,584
A123: 2005 | B123: - | C123: - | D123: - | E123: - | F123: - | G123: 1,455 | H123: - | I123: 1,455
A124: 2006 | B124: - | C124: - | D124: - | E124: - | F124: - | G124: 434 | H124: - | I124: 434
A125: 2007 | B125: 106 | C125: - | D125: - | E125: - | F125: 1,252 | G125: 42 | H125: - | I125: 1,400
A126: 2008 | B126: - | C126: - | D126: - | E126: - | F126: - | G126: - | H126: - | I126: -
A127: 2009 | B127: - | C127: - | D127: - | E127: - | F127: - | G127: - | H127: - | I127: -
A128: 2010 | B128: - | C128: - | D128: - | E128: 616 | F128: 870 | G128: - | H128: - | I128: =SUM(B128:H128) -> 1,486
A129: 2011 | B129: - | C129: - | D129: - | E129: 596 | F129: 1,386 | G129: 161 | H129: - | I129: 2,143
A130: 2012 | B130: - | C130: - | D130: - | E130: 960 | F130: 973 | G130: 288 | H130: - | I130: 2,221
A131: 2013 | B131: - | C131: 277 | D131: 1,032 | E131: 2,221 | F131: 1,251 | G131: 560 | H131: - | I131: 5,341
A132: 2014 | B132: - | C132: - | D132: 1,129 | E132: 2,208 | F132: 825 | G132: 99 | H132: - | I132: 4,261
A133: 2015 | B133: - | C133: 2,376 | D133: 987 | E133: 768 | F133: 623 | G133: 217 | H133: - | I133: =SUM(B133:H133) -> 4,971
A134: 2016 | B134: - | C134: - | D134: 663 | E134: - | F134: 618 | G134: 205 | H134: - | I134: =SUM(B134:H134) -> 1,486
A135: 2017 | B135: - | C135: - | D135: - | E135: - | F135: - | G135: 267 | H135: - | I135: =SUM(B135:H135) -> 267
A136: 2018 | B136: - | C136: - | D136: - | E136: 304 | F136: 453 | G136: 62 | H136: - | I136: =SUM(B136:H136) -> 819
A137: 2019 | B137: - | C137: - | D137: 306 | E137: 319 | F137: 415 | G137: - | H137: - | I137: =SUM(B137:H137) -> 1,040
A138: 2020 | B138: - | C138: - | D138: - | E138: - | F138: 126 | G138: 93 | H138: - | I138: =SUM(B138:H138) -> 219
A139: 2021c/ | B139: - | C139: - | D139: - | E139: - | F139: 1,338 | G139: 238 | H139: - | I139: 1,576
A141: San Francisco
A142: 1978 | B142: 686 | C142: 4,332 | D142: 6,325 | E142: 5,722 | F142: 1,949 | G142: 1,045 | H142: - | I142: =SUM(B142:H142) -> 20,059
A143: 1979 | B143: 7 | C143: 5,198 | D143: 4,158 | E143: 5,742 | F143: 2,695 | G143: 2,385 | H143: - | I143: 20,185
A144: 1980 | B144: - | C144: 7,811 | D144: - | E144: 9,952 | F144: 2,608 | G144: 2,702 | H144: - | I144: 23,073
A145: 1981 | B145: - | C145: 4,160 | D145: 1,510 | E145: 9,405 | F145: 4,226 | G145: 2,554 | H145: - | I145: 21,855
A146: 1982 | B146: =873+515 -> 1,388 | C146: 6,869 | D146: 3,563 | E146: 8,487 | F146: 8,093 | G146: 3,764 | H146: - | I146: 32,164
A147: 1983 | B147: 65 | C147: 2,744 | D147: 860 | E147: 3,758 | F147: 1,981 | G147: 1,158 | H147: - | I147: 10,566
A148: 1984 | B148: - | C148: 478 | D148: 2,494 | E148: 6,190 | F148: 6,700 | G148: 3,310 | H148: - | I148: 19,172
A149: 1985 | B149: - | C149: 5,233 | D149: 6,362 | E149: 6,257 | F149: 5,072 | G149: 4,230 | H149: - | I149: 27,154
A150: 1986 | B150: - | C150: 3,515 | D150: 4,371 | E150: 5,933 | F150: 4,012 | G150: 1,292 | H150: - | I150: 19,123
A151: 1987 | B151: - | C151: 6,671 | D151: 6,424 | E151: 5,055 | F151: 4,071 | G151: 2,285 | H151: - | I151: 24,506
A152: 1988 | B152: - | C152: 8,091 | D152: 9,746 | E152: 9,131 | F152: 5,465 | G152: 3,271 | H152: - | I152: 35,704
A153: 1989 | B153: - | C153: 7,947 | D153: 7,904 | E153: 3,968 | F153: 4,352 | G153: 2,004 | H153: - | I153: 26,175
A154: 1990 | B154: - | C154: 6,308 | D154: 7,108 | E154: 5,652 | F154: 2,727 | G154: 470 | H154: - | I154: 22,265
A155: 1991 | B155: - | C155: 5,200 | D155: 5,400 | E155: 3,300 | F155: 3,200 | G155: 1,400 | H155: - | I155: 18,500
A156: 1992 | B156: - | C156: 1,700 | D156: 600 | E156: 1,200 | F156: 3,700 | G156: 3,000 | H156: - | I156: 10,200
A157: 1993 | B157: - | C157: 4,000 | D157: 1,100 | E157: 3,100 | F157: 3,500 | G157: 900 | H157: - | I157: 12,600
A158: 1994 | B158: - | C158: 3,100 | D158: 3,200 | E158: 2,800 | F158: 2,000 | G158: 1,400 | H158: - | I158: 12,500
A159: 1995 | B159: - | C159: 3,400 | D159: 2,400 | E159: 3,100 | F159: 1,800 | G159: 2,200 | H159: - | I159: 12,900
A160: 1996 | B160: - | C160: 1,000 | D160: 2,500 | E160: 2,200 | F160: 1,300 | G160: 1,100 | H160: - | I160: 8,100
A161: 1997 | B161: - | C161: 2,700 | D161: 300 | E161: 2,800 | F161: 2,300 | G161: 1,400 | H161: - | I161: 9,500
A162: 1998 | B162: - | C162: 900 | D162: 800 | E162: 3,000 | F162: 1,700 | G162: 1,900 | H162: - | I162: 8,300
A163: 1999 | B163: 100 | C163: 1,200 | D163: 2,500 | E163: 3,600 | F163: 2,100 | G163: 1,200 | H163: - | I163: 10,700
A164: 2000 | B164: - | C164: 1,823 | D164: 2,559 | E164: 2,049 | F164: 2,179 | G164: 2,521 | H164: - | I164: 11,131
A165: 2001 | B165: - | C165: 2,000 | D165: 774 | E165: 2,694 | F165: 1,392 | G165: 1,590 | H165: 501 | I165: 8,951
A166: 2002 | B166: - | C166: 2,258 | D166: 1,630 | E166: 2,856 | F166: 1,198 | G166: 1,064 | H166: 139 | I166: 9,145
A167: 2003 | B167: - | C167: 1,046 | D167: 2,228 | E167: 1,409 | F167: 1,212 | G167: 739 | H167: 136 | I167: 6,770
A168: 2004 | B168: - | C168: 3,120 | D168: 2,942 | E168: 2,724 | F168: 1,076 | G168: 704 | H168: 290 | I168: 10,856
A169: 2005 | B169: - | C169: - | D169: - | E169: 3,533 | F169: 2,586 | G169: 2,150 | H169: 401 | I169: 8,670
A170: 2006 | B170: - | C170: - | D170: - | E170: 616 | F170: 2,549 | G170: 1,949 | H170: 374 | I170: 5,488
A171: 2007 | B171: - | C171: 1,656 | D171: - | E171: 2,954 | F171: 1,152 | G171: 806 | H171: 168 | I171: 6,736
A172: 2008 | B172: - | C172: - | D172: - | E172: - | F172: - | G172: - | H172: - | I172: -
A173: 2009 | B173: - | C173: - | D173: - | E173: - | F173: - | G173: - | H173: - | I173: -
A174: 2010 | B174: - | C174: - | D174: - | E174: 244 | F174: - | G174: - | H174: - | I174: =SUM(B174:H174) -> 244
A175: 2011 | B175: - | C175: 900 | D175: 164 | E175: 873 | F175: 394 | G175: 459 | H175: 117 | I175: 2,907
A176: 2012 | B176: - | C176: 1,723 | D176: 686 | E176: 2,199 | F176: 1,422 | G176: 1,006 | H176: 469 | I176: 7,505
A177: 2013 | B177: - | C177: 2,401 | D177: 2,062 | E177: 1,358 | F177: 1,269 | G177: 1,014 | H177: 223 | I177: 8,327
A178: 2014 | B178: - | C178: 2,187 | D178: 1,200 | E178: 761 | F178: 2,058 | G178: 1,660 | H178: 575 | I178: 8,441
A179: 2015 | B179: - | C179: 839 | D179: 745 | E179: 639 | F179: 1,250 | G179: 1,478 | H179: 515 | I179: =SUM(B179:H179) -> 5,466
A180: 2016 | B180: - | C180: 581 | D180: 148 | E180: - | F180: 1,832 | G180: 1,358 | H180: 174 | I180: =SUM(B180:H180) -> 4,093
A181: 2017 | B181: - | C181: - | D181: - | E181: - | F181: 2,610 | G181: 1,544 | H181: 220 | I181: =SUM(B181:H181) -> 4,374
A182: 2018 | B182: - | C182: - | D182: - | E182: 519 | F182: 2,298 | G182: 1,489 | H182: 441 | I182: =SUM(B182:H182) -> 4,747
A183: 2019 | B183: - | C183: 683 | D183: 2,014 | E183: 1,801 | F183: 2,379 | G183: 1,108 | H183: 251 | I183: =SUM(B183:H183) -> 8,236
A184: 2020 | B184: - | C184: 1,363 | D184: 2,515 | E184: 2,521 | F184: 1,491 | G184: 993 | H184: 568 | I184: 9,451
A185: 2021c/ | B185: - | C185: - | D185: 2,109 | E185: 570 | F185: 998 | G185: 1,086 | H185: 317 | I185: 5,080
A187: Monterey
A188: 1978 | B188: 2,047 | C188: 6,056 | D188: 7,244 | E188: 5,471 | F188: 2,060 | G188: 867 | H188: - | I188: =SUM(B188:H188) -> 23,745
A189: 1979 | B189: 0 | C189: 3,875 | D189: 1,375 | E189: 2,805 | F189: 1,443 | G189: 419 | H189: - | I189: 9,917
A190: 1980 | B190: - | C190: 5,949 | D190: - | E190: 5,468 | F190: 3,156 | G190: 1,333 | H190: - | I190: 15,906
A191: 1981 | B191: - | C191: 5,139 | D191: 752 | E191: 3,294 | F191: 1,586 | G191: 366 | H191: - | I191: 11,137
A192: 1982 | B192: 2,367 | C192: 4,403 | D192: 1,940 | E192: 4,179 | F192: 2,254 | G192: 686 | H192: - | I192: 15,829
A193: 1983 | B193: 254 | C193: 5,227 | D193: 3,242 | E193: 4,204 | F193: 454 | G193: 50 | H193: - | I193: 13,431
A194: 1984 | B194: - | C194: 3,238 | D194: 5,115 | E194: 1,365 | F194: 406 | G194: 27 | H194: - | I194: 10,151
A195: 1985 | B195: - | C195: 3,218 | D195: 2,786 | E195: 689 | F195: 121 | G195: 50 | H195: - | I195: 6,864
A196: 1986 | B196: - | C196: 7,055 | D196: 5,386 | E196: 3,574 | F196: 1,060 | G196: 286 | H196: - | I196: 17,361
A197: 1987 | B197: - | C197: 4,352 | D197: 2,461 | E197: 2,955 | F197: 1,122 | G197: 155 | H197: - | I197: 11,045
A198: 1988 | B198: - | C198: 4,247 | D198: 4,574 | E198: 3,704 | F198: 1,562 | G198: 110 | H198: - | I198: 14,197
A199: 1989 | B199: - | C199: 5,029 | D199: 4,318 | E199: 3,410 | F199: 2,355 | G199: 346 | H199: - | I199: 15,458
A200: 1990 | B200: - | C200: 5,494 | D200: 4,536 | E200: 3,194 | F200: 574 | G200: 95 | H200: - | I200: 13,893
A201: 1991 | B201: - | C201: 3,200 | D201: 5,500 | E201: 3,100 | F201: 400 | G201: 200 | H201: - | I201: 12,400
A202: 1992 | B202: - | C202: 4,900 | D202: 2,800 | E202: 1,500 | F202: 800 | G202: 100 | H202: - | I202: 10,100
A203: 1993 | B203: - | C203: 5,200 | D203: 2,900 | E203: 2,600 | F203: 900 | G203: 100 | H203: - | I203: 11,700
A204: 1994 | B204: - | C204: 3,400 | D204: 1,400 | E204: 2,600 | F204: 400 | G204: 100 | H204: - | I204: 7,900
... 184 more rows

Sheet A-3
A1: TABLE A-3. California commercial troll Chinook and coho salmon landings in numbers of fish by catch area and month. | T1: OREGON AREA CHINOOK
A2: Year or Avg. | B2: Apr. | C2: May | D2: June | E2: July | F2: Aug. | G2: Sept. | H2: Oct. | I2: Season | K2: Apr. | L2: May | M2: June | N2: July | O2: Aug. | P2: Sept. | Q2: Oct. | R2: Season | T2: _ | U2: _ | V2: _ | W2: _ | X2: _ | Y2: _ | Z2: _ | AA2: _ | AB2: _ | AD2: OREGON AREA COHO
B3: CHINOOK | K3: COHO | T3: YEAR | U3: APR | V3: MAY | W3: JUN | X3: JUL | Y3: AUG | Z3: SEP | AA3: OCT | AB3: TOTAL | AD3: _ | AE3: _ | AF3: _ | AG3: _ | AH3: _ | AI3: _ | AJ3: _ | AK3: _ | AL3: _
A4: Crescent Citya/ | AD4: YEAR | AE4: APR | AF4: MAY | AG4: JUN | AH4: JUL | AI4: AUG | AJ4: SEP | AK4: OCT | AL4: TOTAL
A5: 1976 | B5: 55 | C5: 4,129 | D5: 9,894 | E5: 2,977 | F5: 3,382 | G5: 534 | H5: - | I5: =SUM(B5:H5) -> 20,971 | K5: - | L5: 24,964 | M5: 77,293 | N5: 26,460 | O5: 3,729 | P5: 608 | Q5: - | R5: =SUM(K5:Q5) -> 133,054 | T5: 1976 | U5: 0 | V5: 0 | W5: 0 | X5: 0 | Y5: 0 | Z5: 0 | AA5: 0 | AB5: =SUM(U5:AA5) -> 0 | AD5: 1976 | AE5: 0 | AF5: 0 | AG5: 0 | AH5: 0 | AI5: 0 | AJ5: 0 | AK5: 0 | AL5: =SUM(AE5:AK5) -> 0
A6: 1977 | B6: 556 | C6: 12,608 | D6: 5,836 | E6: 8,950 | F6: 7,098 | G6: 1,237 | H6: - | I6: 36,285 | K6: - | L6: 2,729 | M6: 4,607 | N6: 8,519 | O6: 2,823 | P6: 47 | Q6: - | R6: 18,725 | T6: 1977 | U6: 0 | V6: 0 | W6: 0 | X6: 0 | Y6: 0 | Z6: 0 | AA6: 0 | AB6: 0 | AD6: 1977 | AE6: 0 | AF6: 0 | AG6: 0 | AH6: 0 | AI6: 0 | AJ6: 0 | AK6: 0 | AL6: 0
A7: 1978 | B7: 1,053 | C7: 25,472 | D7: 28,342 | E7: 2,438 | F7: 1,649 | G7: 682 | H7: - | I7: 59,636 | K7: - | L7: 14,019 | M7: 87,060 | N7: 12,163 | O7: 2,592 | P7: 490 | Q7: - | R7: 116,324 | T7: 1978 | U7: 0 | V7: 0 | W7: 0 | X7: 0 | Y7: 0 | Z7: 0 | AA7: 0 | AB7: 0 | AD7: 1978 | AE7: 0 | AF7: 0 | AG7: 0 | AH7: 0 | AI7: 0 | AJ7: 0 | AK7: 0 | AL7: 0
A8: 1979 | B8: 0 | C8: 11,464 | D8: 11,043 | E8: 32,189 | F8: 15,321 | G8: 1,766 | H8: - | I8: 71,783 | K8: - | L8: 7,610 | M8: 17,549 | N8: 46,028 | O8: 4,784 | P8: 245 | Q8: - | R8: 76,216 | T8: 1979 | U8: 0 | V8: 0 | W8: 0 | X8: 0 | Y8: 0 | Z8: 0 | AA8: 0 | AB8: 0 | AD8: 1979 | AE8: 0 | AF8: 0 | AG8: 0 | AH8: 0 | AI8: 0 | AJ8: 0 | AK8: 0 | AL8: 0
A9: 1980 | B9: - | C9: 16,919 | D9: - | E9: 4,849 | F9: 5,277 | G9: 5,577 | H9: - | I9: 32,622 | K9: - | L9: 745 | M9: - | N9: 9,025 | O9: 3,504 | P9: 3,071 | Q9: - | R9: 16,345 | T9: 1980 | U9: 0 | V9: 0 | W9: 0 | X9: 0 | Y9: 0 | Z9: 0 | AA9: 0 | AB9: 0 | AD9: 1980 | AE9: 0 | AF9: 0 | AG9: 0 | AH9: 0 | AI9: 0 | AJ9: 0 | AK9: 0 | AL9: 0
A10: 1981 | B10: - | C10: 27,868 | D10: 2,676 | E10: 6,623 | F10: 31,230 | G10: 13,424 | H10: - | I10: 81,821 | K10: - | L10: 10,827 | M10: 3,079 | N10: 5,571 | O10: 14,123 | P10: 1,790 | Q10: - | R10: 35,390 | T10: 1981 | U10: 0 | V10: 0 | W10: 0 | X10: 0 | Y10: 0 | Z10: 0 | AA10: 0 | AB10: 0 | AD10: 1981 | AE10: 0 | AF10: 0 | AG10: 0 | AH10: 0 | AI10: 0 | AJ10: 0 | AK10: 0 | AL10: 0
A11: 1982 | B11: - | C11: 9,725 | D11: 8,084 | E11: 18,780 | F11: 33,044 | G11: 3,684 | H11: - | I11: 73,317 | K11: - | L11: 69 | M11: 3,822 | N11: 14,958 | O11: 6,718 | P11: 923 | Q11: - | R11: 26,490 | T11: 1982 | U11: 0 | V11: 0 | W11: 0 | X11: 0 | Y11: 0 | Z11: 0 | AA11: 0 | AB11: 0 | AD11: 1982 | AE11: 0 | AF11: 0 | AG11: 0 | AH11: 0 | AI11: 0 | AJ11: 0 | AK11: 0 | AL11: 0
A12: 1983 | B12: - | C12: 2,619 | D12: 15,909 | E12: 4,094 | F12: 2,064 | G12: - | H12: - | I12: 24,686 | K12: - | L12: - | M12: 8,739 | N12: 5,645 | O12: 1,645 | P12: - | Q12: - | R12: 16,029 | T12: 1983 | U12: 0 | V12: 0 | W12: 0 | X12: 0 | Y12: 0 | Z12: 0 | AA12: 0 | AB12: 0 | AD12: 1983 | AE12: 0 | AF12: 0 | AG12: 0 | AH12: 0 | AI12: 0 | AJ12: 0 | AK12: 0 | AL12: 0
A13: 1984 | B13: - | C13: 2,872 | D13: 768 | E13: 5,869 | F13: 4,860 | G13: - | H13: - | I13: 14,369 | K13: - | L13: - | M13: - | N13: - | O13: 2,465 | P13: - | Q13: - | R13: 2,465 | T13: 1984 | U13: 0 | V13: 0 | W13: 0 | X13: 0 | Y13: 0 | Z13: 0 | AA13: 0 | AB13: 0 | AD13: 1984 | AE13: 0 | AF13: 0 | AG13: 0 | AH13: 0 | AI13: 0 | AJ13: 0 | AK13: 0 | AL13: 0
A14: 1985 | B14: - | C14: - | D14: - | E14: - | F14: - | G14: - | H14: - | I14: - | K14: - | L14: - | M14: - | N14: - | O14: - | P14: - | Q14: - | R14: - | T14: 1985 | U14: - | V14: - | W14: - | X14: - | Y14: - | Z14: - | AA14: - | AB14: 0 | AD14: 1985 | AE14: 0 | AF14: 0 | AG14: 0 | AH14: 0 | AI14: 0 | AJ14: 0 | AK14: 0 | AL14: 0
A15: 1986 | B15: - | C15: 208 | D15: 4,598 | E15: 2,823 | F15: 5,584 | G15: 763 | H15: - | I15: =SUM(B15:H15) -> 13,976 | K15: - | L15: - | M15: 3,535 | N15: 1,262 | O15: - | P15: - | Q15: - | R15: =SUM(K15:Q15) -> 4,798 | T15: 1986 | U15: 0 | V15: 208 | W15: 0 | X15: 0 | Y15: 0 | Z15: 0 | AA15: 0 | AB15: 208 | AD15: 1986 | AE15: 0 | AF15: 0 | AG15: 0 | AH15: 0 | AI15: 0 | AJ15: 0 | AK15: 0 | AL15: 0
A16: 1987 | B16: - | C16: 781 | D16: 29,165 | E16: 3,211 | F16: - | G16: 378 | H16: - | I16: =SUM(B16:H16) -> 33,535 | K16: - | L16: - | M16: 5,515 | N16: - | O16: - | P16: 58 | Q16: - | R16: =SUM(K16:Q16) -> 5,573 | T16: 1987 | U16: 0 | V16: 781 | W16: 0 | X16: 3211 | Y16: 0 | Z16: 0 | AA16: 0 | AB16: 3992 | AD16: 1987 | AE16: 0 | AF16: 0 | AG16: 0 | AH16: 193 | AI16: 0 | AJ16: 0 | AK16: 0 | AL16: 193
A17: 1988 | B17: - | C17: 727 | D17: 13,770 | E17: - | F17: - | G17: 1,122 | H17: - | I17: =SUM(B17:H17) -> 15,619 | K17: - | L17: - | M17: 2,776 | N17: - | O17: - | P17: 15 | Q17: - | R17: =SUM(K17:Q17) -> 2,791 | T17: 1988 | U17: 0 | V17: 727 | W17: 0 | X17: 0 | Y17: 0 | Z17: 0 | AA17: 0 | AB17: 727 | AD17: 1988 | AE17: 0 | AF17: 0 | AG17: 0 | AH17: 0 | AI17: 0 | AJ17: 0 | AK17: 0 | AL17: 0
A18: 1989 | B18: - | C18: 392 | D18: 4,447 | E18: - | F18: 631 | G18: 0 | H18: - | I18: =SUM(B18:H18) -> 5,470 | K18: - | L18: - | M18: 5,807 | N18: - | O18: 5 | P18: 0 | Q18: - | R18: =SUM(K18:Q18) -> 5,812 | T18: 1989 | U18: 0 | V18: 392 | W18: 0 | X18: 0 | Y18: 0 | Z18: 0 | AA18: 0 | AB18: 392 | AD18: 1989 | AE18: 0 | AF18: 0 | AG18: 0 | AH18: 0 | AI18: 0 | AJ18: 0 | AK18: 0 | AL18: 0
A19: 1990 | B19: - | C19: - | D19: - | E19: - | F19: 1,386 | G19: 0 | H19: - | I19: =SUM(B19:H19) -> 1,386 | K19: - | L19: - | M19: - | N19: - | O19: - | P19: 0 | Q19: 0 | R19: =SUM(K19:Q19) -> 0 | T19: 1990 | U19: 0 | V19: 0 | W19: 0 | X19: 0 | Y19: 0 | Z19: 0 | AA19: 0 | AB19: 0 | AD19: 1990 | AE19: 0 | AF19: 0 | AG19: 0 | AH19: 0 | AI19: 0 | AJ19: 0 | AK19: 0 | AL19: 0
A20: 1991 | B20: - | C20: - | D20: - | E20: - | F20: - | G20: - | H20: - | I20: - | K20: - | L20: - | M20: - | N20: - | O20: - | P20: - | Q20: - | R20: - | T20: 1991 | U20: - | V20: - | W20: - | X20: - | Y20: - | Z20: - | AA20: - | AB20: - | AD20: 1991 | AE20: - | AF20: - | AG20: - | AH20: - | AI20: - | AJ20: - | AK20: - | AL20: -
A21: 1992 | B21: - | C21: - | D21: - | E21: - | F21: - | G21: - | H21: - | I21: - | K21: - | L21: - | M21: - | N21: - | O21: - | P21: - | Q21: - | R21: - | T21: 1992 | U21: - | V21: - | W21: - | X21: - | Y21: - | Z21: - | AA21: - | AB21: - | AD21: 1992 | AE21: - | AF21: - | AG21: - | AH21: - | AI21: - | AJ21: - | AK21: - | AL21: -
A22: 1993 | B22: - | C22: - | D22: - | E22: - | F22: - | G22: - | H22: - | I22: - | K22: - | L22: - | M22: - | N22: - | O22: - | P22: - | Q22: - | R22: - | T22: 1993 | U22: - | V22: - | W22: - | X22: - | Y22: - | Z22: - | AA22: - | AB22: - | AD22: 1993 | AE22: - | AF22: - | AG22: - | AH22: - | AI22: - | AJ22: - | AK22: - | AL22: -
A23: 1994 | B23: - | C23: - | D23: - | E23: - | F23: - | G23: - | H23: - | I23: - | K23: - | L23: - | M23: - | N23: - | O23: - | P23: - | Q23: - | R23: - | T23: 1994 | U23: - | V23: - | W23: - | X23: - | Y23: - | Z23: - | AA23: - | AB23: - | AD23: 1994 | AE23: - | AF23: - | AG23: - | AH23: - | AI23: - | AJ23: - | AK23: - | AL23: -
A24: 1995 | B24: - | C24: - | D24: - | E24: - | F24: - | G24: - | H24: - | I24: - | K24: - | L24: - | M24: - | N24: - | O24: - | P24: - | Q24: - | R24: - | T24: 1995 | U24: - | V24: - | W24: - | X24: - | Y24: - | Z24: - | AA24: - | AB24: - | AD24: 1995 | AE24: - | AF24: - | AG24: - | AH24: - | AI24: - | AJ24: - | AK24: - | AL24: -
A25: 1996 | B25: - | C25: - | D25: - | E25: - | F25: 98 | G25: 156 | H25: - | I25: =SUM(B25:H25) -> 254 | K25: - | L25: - | M25: - | N25: - | O25: - | P25: - | Q25: - | R25: - | T25: 1996 | U25: 0 | V25: 0 | W25: 0 | X25: 0 | Y25: 0 | Z25: 0 | AA25: 0 | AB25: =SUM(U25:AA25) -> 0 | AD25: 1996 | AE25: - | AF25: - | AG25: - | AH25: - | AI25: - | AJ25: - | AK25: - | AL25: -
A26: 1997 | B26: - | C26: - | D26: - | E26: - | F26: - | G26: 0 | H26: - | I26: 0 | K26: - | L26: - | M26: - | N26: - | O26: - | P26: - | Q26: - | R26: - | T26: 1997 | U26: 0 | V26: 0 | W26: 0 | X26: 0 | Y26: 0 | Z26: 0 | AA26: 0 | AB26: 0 | AD26: 1997 | AE26: - | AF26: - | AG26: - | AH26: - | AI26: - | AJ26: - | AK26: - | AL26: -
A27: 1998 | B27: - | C27: - | D27: - | E27: - | F27: - | G27: 0 | H27: - | I27: 0 | K27: - | L27: - | M27: - | N27: - | O27: - | P27: - | Q27: - | R27: - | T27: 1998 | U27: 0 | V27: 0 | W27: 0 | X27: 0 | Y27: 0 | Z27: 0 | AA27: 0 | AB27: 0 | AD27: 1998 | AE27: - | AF27: - | AG27: - | AH27: - | AI27: - | AJ27: - | AK27: - | AL27: -
A28: 1999 | B28: - | C28: - | D28: - | E28: - | F28: - | G28: 125 | H28: - | I28: 125 | K28: - | L28: - | M28: - | N28: - | O28: - | P28: - | Q28: - | R28: - | T28: 1999 | U28: 0 | V28: 0 | W28: 0 | X28: 0 | Y28: 0 | Z28: 0 | AA28: 0 | AB28: 0 | AD28: 1999 | AE28: - | AF28: - | AG28: - | AH28: - | AI28: - | AJ28: - | AK28: - | AL28: -
A29: 2000 | B29: - | C29: - | D29: - | E29: - | F29: - | G29: 251 | H29: - | I29: 251 | K29: - | L29: - | M29: - | N29: - | O29: - | P29: - | Q29: - | R29: - | T29: 2000 | U29: 0 | V29: 0 | W29: 0 | X29: 0 | Y29: 0 | Z29: 0 | AA29: 0 | AB29: 0 | AD29: 2000 | AE29: - | AF29: - | AG29: - | AH29: - | AI29: - | AJ29: - | AK29: - | AL29: -
A30: 2001 | B30: - | C30: - | D30: - | E30: - | F30: - | G30: 223 | H30: - | I30: 223 | K30: - | L30: - | M30: - | N30: - | O30: - | P30: - | Q30: - | R30: - | T30: 2001 | U30: 0 | V30: 0 | W30: 0 | X30: 0 | Y30: 0 | Z30: 0 | AA30: 0 | AB30: 0 | AD30: 2001 | AE30: - | AF30: - | AG30: - | AH30: - | AI30: - | AJ30: - | AK30: - | AL30: -
A31: 2002 | B31: - | C31: - | D31: - | E31: - | F31: 681 | G31: 3,354 | H31: 424 | I31: 4,459 | J31: b/ | K31: - | L31: - | M31: - | N31: - | O31: - | P31: - | Q31: - | R31: - | T31: 2002 | U31: 0 | V31: 0 | W31: 0 | X31: 0 | Y31: 0 | Z31: 372 | AA31: 424 | AB31: 796 | AD31: 2002 | AE31: - | AF31: - | AG31: - | AH31: - | AI31: - | AJ31: - | AK31: - | AL31: -
A32: 2003 | B32: 1,654 | C32: 84 | D32: 100 | E32: - | F32: - | G32: 1,356 | H32: 162 | I32: 3,356 | J32: b/ | K32: - | L32: - | M32: - | N32: - | O32: - | P32: - | Q32: - | R32: - | T32: 2003 | U32: 1654 | V32: 84 | W32: 100 | X32: 0 | Y32: 0 | Z32: 0 | AA32: 162 | AB32: 2000 | AD32: 2003 | AE32: - | AF32: - | AG32: - | AH32: - | AI32: - | AJ32: - | AK32: - | AL32: -
A33: 2004 | B33: 718 | C33: - | D33: 6 | E33: 5,245 | F33: 19,686 | G33: 565 | H33: - | I33: 26,220 | J33: b/ | K33: - | L33: - | M33: - | N33: - | O33: - | P33: - | Q33: - | R33: - | T33: 2004 | U33: 718 | V33: 0 | W33: 6 | X33: 5245 | Y33: 19686 | Z33: 0 | AA33: 0 | AB33: 25655 | AD33: 2004 | AE33: - | AF33: - | AG33: - | AH33: - | AI33: - | AJ33: - | AK33: - | AL33: -
A34: 2005 | B34: - | C34: - | D34: - | E34: - | F34: - | G34: 1,255 | H34: - | I34: 1,255 | K34: - | L34: - | M34: - | N34: - | O34: - | P34: - | Q34: - | R34: - | AE34: - | AF34: - | AG34: - | AH34: - | AI34: - | AJ34: - | AK34: - | AL34: -
A35: 2006 | B35: - | C35: - | D35: - | E35: - | F35: - | G35: - | H35: - | I35: - | K35: - | L35: - | M35: - | N35: - | O35: - | P35: - | Q35: - | R35: - | AE35: - | AF35: - | AG35: - | AH35: - | AI35: - | AJ35: - | AK35: - | AL35: -
A36: 2007 | B36: - | C36: - | D36: - | E36: - | F36: - | G36: 2,367 | H36: - | I36: =SUM(B36:H36) -> 2,367 | K36: - | L36: - | M36: - | N36: - | O36: - | P36: - | Q36: - | R36: - | AE36: - | AF36: - | AG36: - | AH36: - | AI36: - | AJ36: - | AK36: - | AL36: -
A37: 2008 | B37: - | C37: - | D37: - | E37: - | F37: - | G37: - | H37: - | I37: - | K37: - | L37: - | M37: - | N37: - | O37: - | P37: - | Q37: - | R37: - | AE37: - | AF37: - | AG37: - | AH37: - | AI37: - | AJ37: - | AK37: - | AL37: -
A38: 2009 | B38: - | C38: - | D38: - | E38: - | F38: - | G38: - | H38: - | I38: - | K38: - | L38: - | M38: - | N38: - | O38: - | P38: - | Q38: - | R38: - | AE38: - | AF38: - | AG38: - | AH38: - | AI38: - | AJ38: - | AK38: - | AL38: -
A39: 2010 | B39: - | C39: - | D39: - | E39: - | F39: - | G39: - | H39: - | I39: - | K39: - | L39: - | M39: - | N39: - | O39: - | P39: - | Q39: - | R39: - | AE39: - | AF39: - | AG39: - | AH39: - | AI39: - | AJ39: - | AK39: - | AL39: -
A40: 2011 | B40: - | C40: - | D40: - | E40: 11 | F40: 406 | G40: - | H40: - | I40: =SUM(B40:H40) -> 417 | K40: - | L40: - | M40: - | N40: - | O40: - | P40: - | Q40: - | R40: - | AE40: - | AF40: - | AG40: - | AH40: - | AI40: - | AJ40: - | AK40: - | AL40: -
A41: 2012 | B41: - | C41: - | D41: - | E41: - | F41: - | G41: 400 | H41: - | I41: 400 | K41: - | L41: - | M41: - | N41: - | O41: - | P41: - | Q41: - | R41: - | AE41: - | AF41: - | AG41: - | AH41: - | AI41: - | AJ41: - | AK41: - | AL41: -
A42: 2013 | B42: - | C42: 85 | D42: 524 | E42: 487 | F42: 116 | G42: 13 | H42: - | I42: 1,225 | K42: - | L42: - | M42: - | N42: - | O42: - | P42: - | Q42: - | R42: - | AE42: - | AF42: - | AG42: - | AH42: - | AI42: - | AJ42: - | AK42: - | AL42: -
A43: 2014 | B43: - | C43: - | D43: - | E43: - | F43: - | G43: 21 | H43: - | I43: 21 | K43: - | L43: - | M43: - | N43: - | O43: - | P43: - | Q43: - | R43: - | AE43: - | AF43: - | AG43: - | AH43: - | AI43: - | AJ43: - | AK43: - | AL43: -
A44: 2015 | B44: - | C44: - | D44: - | E44: - | F44: - | G44: 36 | H44: - | I44: 36 | K44: - | L44: - | M44: - | N44: - | O44: - | P44: - | Q44: - | R44: - | AE44: - | AF44: - | AG44: - | AH44: - | AI44: - | AJ44: - | AK44: - | AL44: -
A45: 2016 | B45: - | C45: - | D45: - | E45: - | F45: - | G45: 6 | H45: - | I45: 6 | K45: - | L45: - | M45: - | N45: - | O45: - | P45: - | Q45: - | R45: - | AE45: - | AF45: - | AG45: - | AH45: - | AI45: - | AJ45: - | AK45: - | AL45: -
A46: 2017 | B46: - | C46: - | D46: - | E46: - | F46: - | G46: - | H46: - | I46: - | K46: - | L46: - | M46: - | N46: - | O46: - | P46: - | Q46: - | R46: - | AE46: - | AF46: - | AG46: - | AH46: - | AI46: - | AJ46: - | AK46: - | AL46: -
A47: 2018 | B47: - | C47: 241 | D47: 1,497 | E47: 775 | F47: 1,899 | G47: - | H47: - | I47: 4,412 | K47: - | L47: - | M47: - | N47: - | O47: - | P47: - | Q47: - | R47: - | AE47: - | AF47: - | AG47: - | AH47: - | AI47: - | AJ47: - | AK47: - | AL47: -
A48: 2019 | B48: - | C48: - | D48: 114 | E48: 1,311 | F48: 2,810 | G48: - | H48: - | I48: =SUM(B48:H48) -> 4,235 | K48: - | L48: - | M48: - | N48: - | O48: - | P48: - | Q48: - | R48: - | AE48: - | AF48: - | AG48: - | AH48: - | AI48: - | AJ48: - | AK48: - | AL48: -
A49: 2020 | B49: - | C49: - | D49: - | E49: - | F49: - | G49: - | H49: - | I49: - | K49: - | L49: - | M49: - | N49: - | O49: - | P49: - | Q49: - | R49: - | AE49: - | AF49: - | AG49: - | AH49: - | AI49: - | AJ49: - | AK49: - | AL49: -
A50: 2021 | B50: - | C50: - | D50: - | E50: - | F50: - | G50: - | H50: - | I50: - | K50: - | L50: - | M50: - | N50: - | O50: - | P50: - | Q50: - | R50: - | AE50: - | AF50: - | AG50: - | AH50: - | AI50: - | AJ50: - | AK50: - | AL50: -
A52: Eureka
A53: 1976 | B53: 2,608 | C53: 53,950 | D53: 40,957 | E53: 65,896 | F53: 1,040 | G53: 968 | H53: - | I53: =SUM(B53:H53) -> 165,419 | K53: - | L53: 105,217 | M53: 83,447 | N53: 9,164 | O53: 7,007 | P53: 0 | Q53: - | R53: =SUM(K53:Q53) -> 204,835
A54: 1977 | B54: 22,112 | C54: 56,224 | D54: 32,448 | E54: 40,810 | F54: 9,029 | G54: 552 | H54: - | I54: 161,175 | K54: - | L54: 7,929 | M54: 576 | N54: 4,849 | O54: 5,807 | P54: 97 | Q54: - | R54: 19,258
A55: 1978 | B55: 7,734 | C55: 88,448 | D55: 46,945 | E55: 10,305 | F55: 1,279 | G55: 457 | H55: - | I55: 155,168 | K55: 12 | L55: 34,454 | M55: 84,863 | N55: 18,829 | O55: 1,736 | P55: 387 | Q55: - | R55: 140,281
A56: 1979 | B56: 0 | C56: 101,380 | D56: 22,598 | E56: 35,614 | F56: 42,898 | G56: 15,873 | H56: - | I56: 218,363 | K56: - | L56: 6,691 | M56: 29,666 | N56: 23,507 | O56: 5,951 | P56: 138 | Q56: - | R56: 65,953
A57: 1980 | B57: - | C57: 89,492 | D57: - | E57: 20,264 | F57: 10,846 | G57: 10,681 | H57: - | I57: 131,283 | K57: - | L57: 189 | M57: - | N57: 12,070 | O57: 5,140 | P57: 2,392 | Q57: - | R57: 19,791
A58: 1981 | B58: - | C58: 49,196 | D58: 4,149 | E58: 10,845 | F58: 28,315 | G58: 7,204 | H58: - | I58: 99,709 | K58: - | L58: 6,261 | M58: 2,435 | N58: 12,313 | O58: 13,863 | P58: 986 | Q58: - | R58: 35,858
A59: 1982 | B59: - | C59: 39,618 | D59: 9,364 | E59: 24,348 | F59: 15,952 | G59: 6,372 | H59: - | I59: 95,654 | K59: - | L59: 475 | M59: 4,295 | N59: 19,027 | O59: 4,460 | P59: 315 | Q59: - | R59: 28,572
A60: 1983 | B60: - | C60: 9,292 | D60: 16,381 | E60: 5,841 | F60: 3,663 | G60: - | H60: - | I60: 35,177 | K60: - | L60: 1 | M60: 13,544 | N60: 8,044 | O60: 5,008 | P60: - | Q60: - | R60: 26,597
A61: 1984 | B61: - | C61: 6,203 | D61: 296 | E61: 4,703 | F61: 2,777 | G61: - | H61: - | I61: 13,979 | K61: - | L61: - | M61: - | N61: 699 | O61: 2,972 | P61: - | Q61: - | R61: 3,671
A62: 1985 | B62: - | C62: - | D62: - | E62: - | F62: - | G62: - | H62: - | I62: - | K62: - | L62: - | M62: - | N62: - | O62: - | P62: - | Q62: - | R62: -
A63: 1986 | B63: - | C63: - | D63: 15,813 | E63: 4,316 | F63: 13,803 | G63: 2,806 | H63: - | I63: =SUM(B63:H63) -> 36,738 | K63: - | L63: - | M63: 3,211 | N63: 823 | O63: 235 | P63: 48 | Q63: - | R63: =SUM(K63:Q63) -> 4,317
A64: 1987 | B64: - | C64: - | D64: 50,279 | E64: - | F64: - | G64: 4,458 | H64: - | I64: 54,737 | K64: - | L64: - | M64: 9,555 | N64: 193 | O64: - | P64: 1,199 | Q64: - | R64: 10,947
A65: 1988 | B65: - | C65: - | D65: 28,795 | E65: - | F65: - | G65: 17,619 | H65: - | I65: 46,414 | K65: - | L65: - | M65: 8,588 | N65: - | O65: - | P65: 1,502 | Q65: - | R65: 10,090
A66: 1989 | B66: - | C66: - | D66: 9,831 | E66: - | F66: 2,028 | G66: 4,702 | H66: 906 | I66: 17,467 | K66: - | L66: - | M66: 2,436 | N66: - | O66: 338 | P66: 371 | Q66: 245 | R66: 3,390
A67: 1990 | B67: - | C67: - | D67: - | E67: - | F67: 4,349 | G67: 1,887 | H67: 53 | I67: 6,289 | K67: - | L67: - | M67: - | N67: - | O67: 59 | P67: 1,181 | Q67: 5 | R67: 1,245
A68: 1991 | B68: - | C68: - | D68: - | E68: - | F68: - | G68: 4,300 | H68: 400 | I68: 4,700 | K68: - | L68: - | M68: - | N68: - | O68: - | P68: 3,000 | Q68: 100 | R68: 3,100
A69: 1992 | B69: - | C69: - | D69: - | E69: - | F69: - | G69: - | H69: - | I69: - | K69: - | L69: - | M69: - | N69: - | O69: - | P69: - | Q69: - | R69: -
A70: 1993 | B70: - | C70: - | D70: - | E70: - | F70: - | G70: - | H70: - | I70: - | K70: - | L70: - | M70: - | N70: - | O70: - | P70: - | Q70: - | R70: -
A71: 1994 | B71: - | C71: - | D71: - | E71: - | F71: - | G71: - | H71: - | I71: - | K71: - | L71: - | M71: - | N71: - | O71: - | P71: - | Q71: - | R71: -
A72: 1995 | B72: - | C72: - | D72: - | E72: - | F72: - | G72: - | H72: - | I72: - | K72: - | L72: - | M72: - | N72: - | O72: - | P72: - | Q72: - | R72: -
A73: 1996 | B73: - | C73: - | D73: - | E73: - | F73: 2,599 | G73: 6,222 | H73: - | I73: =SUM(B73:H73) -> 8,821 | K73: - | L73: - | M73: - | N73: - | O73: - | P73: - | Q73: - | R73: -
A74: 1997 | B74: - | C74: - | D74: - | E74: - | F74: - | G74: 1,424 | H74: - | I74: 1,424 | K74: - | L74: - | M74: - | N74: - | O74: - | P74: - | Q74: - | R74: -
A75: 1998 | B75: - | C75: - | D75: - | E75: - | F75: - | G75: 2,501 | H75: - | I75: 2,501 | K75: - | L75: - | M75: - | N75: - | O75: - | P75: - | Q75: - | R75: -
A76: 1999 | B76: - | C76: - | D76: - | E76: - | F76: - | G76: 2,375 | H76: - | I76: 2,375 | K76: - | L76: - | M76: - | N76: - | O76: - | P76: - | Q76: - | R76: -
A77: 2000 | B77: - | C77: - | D77: - | E77: - | F77: - | G77: 1,776 | H77: - | I77: 1,776 | K77: - | L77: - | M77: - | N77: - | O77: - | P77: - | Q77: - | R77: -
A78: 2001 | B78: - | C78: - | D78: - | E78: - | F78: - | G78: 5,300 | H78: - | I78: 5,300 | K78: - | L78: - | M78: - | N78: - | O78: - | P78: - | Q78: - | R78: -
A79: 2002 | B79: - | C79: - | D79: - | E79: - | F79: 1,392 | G79: 7,616 | H79: - | I79: 9,008 | K79: - | L79: - | M79: - | N79: - | O79: - | P79: - | Q79: - | R79: -
A80: 2003 | B80: - | C80: - | D80: - | E80: - | F80: - | G80: 688 | H80: - | I80: 688 | K80: - | L80: - | M80: - | N80: - | O80: - | P80: - | Q80: - | R80: -
A81: 2004 | B81: - | C81: - | D81: - | E81: - | F81: - | G81: 5,695 | H81: - | I81: 5,695 | K81: - | L81: - | M81: - | N81: - | O81: - | P81: - | Q81: - | R81: -
A82: 2005 | B82: - | C82: - | D82: - | E82: - | F82: - | G82: 5,799 | H82: - | I82: 5,799 | K82: - | L82: - | M82: - | N82: - | O82: - | P82: - | Q82: - | R82: -
A83: 2006 | B83: - | C83: - | D83: - | E83: - | F83: - | G83: - | H83: - | I83: - | K83: - | L83: - | M83: - | N83: - | O83: - | P83: - | Q83: - | R83: -
A84: 2007 | B84: - | C84: - | D84: - | E84: - | F84: - | G84: 6,395 | H84: - | I84: =SUM(B84:H84) -> 6,395 | K84: - | L84: - | M84: - | N84: - | O84: - | P84: - | Q84: - | R84: -
A85: 2008 | B85: - | C85: - | D85: - | E85: - | F85: - | G85: - | H85: - | I85: - | K85: - | L85: - | M85: - | N85: - | O85: - | P85: - | Q85: - | R85: -
A86: 2009 | B86: - | C86: - | D86: - | E86: - | F86: - | G86: - | H86: - | I86: - | K86: - | L86: - | M86: - | N86: - | O86: - | P86: - | Q86: - | R86: -
A87: 2010 | B87: - | C87: - | D87: - | E87: - | F87: - | G87: - | H87: - | I87: - | K87: - | L87: - | M87: - | N87: - | O87: - | P87: - | Q87: - | R87: -
A88: 2011 | B88: - | C88: - | D88: - | E88: 1,573 | F88: 401 | G88: - | H88: - | I88: =SUM(B88:H88) -> 1,974 | K88: - | L88: - | M88: - | N88: - | O88: - | P88: - | Q88: - | R88: -
A89: 2012 | B89: - | C89: - | D89: - | E89: - | F89: - | G89: 4,831 | H89: - | I89: 4,831 | K89: - | L89: - | M89: - | N89: - | O89: - | P89: - | Q89: - | R89: -
A90: 2013 | B90: - | C90: 2,603 | D90: 2,400 | E90: 1,887 | F90: 1,892 | G90: 171 | H90: - | I90: 8,953 | K90: - | L90: - | M90: - | N90: - | O90: - | P90: - | Q90: - | R90: -
A91: 2014 | B91: - | C91: - | D91: - | E91: - | F91: - | G91: 599 | H91: - | I91: 599 | K91: - | L91: - | M91: - | N91: - | O91: - | P91: - | Q91: - | R91: -
A92: 2015 | B92: - | C92: - | D92: - | E92: - | F92: - | G92: 10 | H92: - | I92: 10 | K92: - | L92: - | M92: - | N92: - | O92: - | P92: - | Q92: - | R92: -
A93: 2016 | B93: - | C93: - | D93: - | E93: - | F93: - | G93: 190 | H93: - | I93: 190 | K93: - | L93: - | M93: - | N93: - | O93: - | P93: - | Q93: - | R93: -
A94: 2017 | B94: - | C94: - | D94: - | E94: - | F94: - | G94: - | H94: - | I94: - | K94: - | L94: - | M94: - | N94: - | O94: - | P94: - | Q94: - | R94: -
A95: 2018 | B95: - | C95: 696 | D95: 980 | E95: 1,045 | F95: 1,878 | G95: - | H95: - | I95: 4,599 | K95: - | L95: - | M95: - | N95: - | O95: - | P95: - | Q95: - | R95: -
A96: 2019 | B96: - | C96: - | D96: 623 | E96: 164 | F96: 835 | G96: - | H96: - | I96: =SUM(B96:H96) -> 1,622 | K96: - | L96: - | M96: - | N96: - | O96: - | P96: - | Q96: - | R96: -
A97: 2020 | B97: - | C97: - | D97: - | E97: - | F97: - | G97: - | H97: - | I97: - | K97: - | L97: - | M97: - | N97: - | O97: - | P97: - | Q97: - | R97: -
A98: 2021 | B98: - | C98: - | D98: - | E98: - | F98: - | G98: - | H98: - | I98: - | K98: - | L98: - | M98: - | N98: - | O98: - | P98: - | Q98: - | R98: -
A100: Fort Bragg
A101: 1976 | B101: 1,844 | C101: 13,928 | D101: 31,835 | E101: 53,992 | F101: 9,906 | G101: 4,178 | H101: - | I101: =SUM(B101:H101) -> 115,683 | K101: - | L101: 21,399 | M101: 101,420 | N101: 29,613 | O101: 6,827 | P101: 0 | Q101: -
A102: 1977 | B102: 2,943 | C102: 28,357 | D102: 19,284 | E102: 33,689 | F102: 40,283 | G102: 14,330 | H102: - | I102: 138,886 | K102: - | L102: 943 | M102: 3,505 | N102: 841 | O102: 822 | P102: 22 | Q102: -
A103: 1978 | B103: 1,916 | C103: 30,980 | D103: 45,602 | E103: 34,587 | F103: 12,330 | G103: 6,439 | H103: - | I103: 131,854 | K103: 8 | L103: 2,700 | M103: 31,839 | N103: 13,015 | O103: 1,419 | P103: 165 | Q103: - | R103: =SUM(K103:Q103) -> 49,146
A104: 1979 | B104: 2 | C104: 30,367 | D104: 7,789 | E104: 80,180 | F104: 57,586 | G104: 26,543 | H104: - | I104: 202,467 | K104: 3 | L104: 793 | M104: 3,399 | N104: 20,822 | O104: 4,067 | P104: 182 | Q104: - | R104: 29,266
A105: 1980 | B105: - | C105: 20,268 | D105: - | E105: 82,602 | F105: 14,102 | G105: 13,471 | H105: - | I105: 130,443 | K105: - | L105: 216 | M105: - | N105: 8,211 | O105: 2,331 | P105: 584 | Q105: - | R105: 11,342
A106: 1981 | B106: - | C106: 22,485 | D106: 31,675 | E106: 36,661 | F106: 19,081 | G106: 6,722 | H106: - | I106: 116,624 | K106: - | L106: 692 | M106: 2,412 | N106: 5,674 | O106: 1,814 | P106: 236 | Q106: - | R106: 10,828
A107: 1982 | B107: - | C107: 25,005 | D107: 19,140 | E107: 100,081 | F107: 17,822 | G107: 8,001 | H107: - | I107: 170,049 | K107: - | L107: 117 | M107: 2,529 | N107: 22,198 | O107: 2,358 | P107: 335 | Q107: - | R107: 27,537
A108: 1983 | B108: - | C108: 8,238 | D108: 21,764 | E108: 18,124 | F108: 7,620 | G108: 140 | H108: - | I108: 55,886 | K108: - | L108: 2 | M108: 6,111 | N108: 4,578 | O108: 2,355 | P108: 31 | Q108: - | R108: 13,077
A109: 1984 | B109: - | C109: 4,438 | D109: 3,579 | E109: 24,292 | F109: 4,118 | G109: 13,324 | H109: - | I109: 49,751 | K109: - | L109: - | M109: 279 | N109: 10,926 | O109: 556 | P109: 314 | Q109: - | R109: 12,075
A110: 1985 | B110: - | C110: 17,269 | D110: 29,524 | E110: 65,724 | F110: 35,816 | G110: 5,647 | H110: - | I110: 153,980 | K110: - | L110: 9 | M110: 2,143 | N110: 6,203 | O110: 1,213 | P110: 53 | Q110: - | R110: 9,621
A111: 1986 | B111: - | C111: 57,019 | D111: 96,525 | E111: 90,197 | F111: 28,104 | G111: 574 | H111: - | I111: 272,418 | K111: - | L111: - | M111: 6,892 | N111: 12,355 | O111: 1,582 | P111: 8 | Q111: - | R111: 20,800
A112: 1987 | B112: - | C112: 71,544 | D112: 89,448 | E112: 127,588 | F112: 49,204 | G112: 3,432 | H112: - | I112: 341,216 | K112: - | L112: - | M112: 9,094 | N112: 16,599 | O112: - | P112: 177 | Q112: - | R112: 25,900
A113: 1988 | B113: - | C113: 91,548 | D113: 110,116 | E113: 157,350 | F113: 52,196 | G113: 13,453 | H113: - | I113: 424,663 | K113: - | L113: - | M113: 8,981 | N113: 20,132 | O113: 1,779 | P113: 55 | Q113: - | R113: 30,900
A114: 1989 | B114: - | C114: 7,445 | D114: 20,453 | E114: 64,369 | F114: 46,334 | G114: 5,628 | H114: - | I114: 144,229 | K114: - | L114: - | M114: 3,929 | N114: 13,643 | O114: 7,865 | P114: 321 | Q114: - | R114: 25,800
A115: 1990 | B115: - | C115: 6,782 | D115: 45,549 | E115: 19,802 | F115: 5,030 | G115: 2,390 | H115: - | I115: 79,553 | K115: - | L115: - | M115: 16,633 | N115: 7,339 | O115: 2,277 | P115: 389 | Q115: - | R115: 26,600
A116: 1991 | B116: - | C116: - | D116: - | E116: - | F116: 34,300 | G116: 1,300 | H116: - | I116: 35,600 | K116: - | L116: - | M116: - | N116: - | O116: 4,500 | P116: - | Q116: - | R116: 4,500
A117: 1992 | B117: - | C117: - | D117: - | E117: - | F117: - | G117: - | H117: - | I117: - | K117: - | L117: - | M117: - | N117: - | O117: - | P117: - | Q117: - | R117: -
A118: 1993 | B118: - | C118: 388 | D118: - | E118: - | F118: - | G118: 19,503 | H118: - | I118: =SUM(B118:H118) -> 19,891 | K118: - | L118: - | M118: - | N118: - | O118: - | P118: - | Q118: - | R118: -
A119: 1994 | B119: - | C119: - | D119: - | E119: - | F119: - | G119: 5,210 | H119: - | I119: 5,210 | K119: - | L119: - | M119: - | N119: - | O119: - | P119: - | Q119: - | R119: -
A120: 1995 | B120: - | C120: - | D120: - | E120: - | F120: - | G120: 8,714 | H120: - | I120: 8,714 | K120: - | L120: - | M120: - | N120: - | O120: - | P120: - | Q120: - | R120: -
A121: 1996 | B121: - | C121: - | D121: - | E121: - | F121: 14,443 | G121: 8,487 | H121: - | I121: 22,930 | K121: - | L121: - | M121: - | N121: - | O121: - | P121: - | Q121: - | R121: -
A122: 1997 | B122: - | C122: - | D122: - | E122: - | F122: - | G122: 3,776 | H122: - | I122: 3,776 | K122: - | L122: - | M122: - | N122: - | O122: - | P122: - | Q122: - | R122: -
A123: 1998 | B123: - | C123: - | D123: - | E123: - | F123: - | G123: 2,882 | H123: - | I123: 2,882 | K123: - | L123: - | M123: - | N123: - | O123: - | P123: - | Q123: - | R123: -
A124: 1999 | B124: - | C124: - | D124: - | E124: - | F124: - | G124: 2,283 | H124: - | I124: 2,283 | K124: - | L124: - | M124: - | N124: - | O124: - | P124: - | Q124: - | R124: -
A125: 2000 | B125: - | C125: - | D125: - | E125: - | F125: - | G125: 30,773 | H125: - | I125: 30,773 | K125: - | L125: - | M125: - | N125: - | O125: - | P125: - | Q125: - | R125: -
A126: 2001 | B126: - | C126: 4,297 | D126: - | E126: - | F126: - | G126: 10,696 | H126: - | I126: 14,993 | K126: - | L126: - | M126: - | N126: - | O126: - | P126: - | Q126: - | R126: -
A127: 2002 | B127: - | C127: - | D127: - | E127: 18,627 | F127: 40,788 | G127: 5,921 | H127: - | I127: 65,336 | K127: - | L127: - | M127: - | N127: - | O127: - | P127: - | Q127: - | R127: -
A128: 2003 | B128: - | C128: 31,132 | D128: - | E128: 70,542 | F128: 84,285 | G128: 62,916 | H128: - | I128: 248,875 | K128: - | L128: - | M128: - | N128: - | O128: - | P128: - | Q128: - | R128: -
A129: 2004 | B129: - | C129: - | D129: - | E129: 65,937 | F129: 30,487 | G129: 10,835 | H129: - | I129: 107,259 | K129: - | L129: - | M129: - | N129: - | O129: - | P129: - | Q129: - | R129: -
A130: 2005 | B130: - | C130: - | D130: - | E130: - | F130: - | G130: 45,869 | H130: - | I130: 45,869 | K130: - | L130: - | M130: - | N130: - | O130: - | P130: - | Q130: - | R130: -
A131: 2006 | B131: - | C131: - | D131: - | E131: - | F131: - | G131: 10,835 | H131: - | I131: 10,835 | K131: - | L131: - | M131: - | N131: - | O131: - | P131: - | Q131: - | R131: -
A132: 2007 | B132: 748 | C132: - | D132: - | E132: - | F132: 15,173 | G132: 195 | H132: - | I132: 16,116 | K132: - | L132: - | M132: - | N132: - | O132: - | P132: - | Q132: - | R132: -
A133: 2008 | B133: - | C133: - | D133: - | E133: - | F133: - | G133: - | H133: - | I133: - | K133: - | L133: - | M133: - | N133: - | O133: - | P133: - | Q133: - | R133: -
A134: 2009 | B134: - | C134: - | D134: - | E134: - | F134: - | G134: - | H134: - | I134: - | K134: - | L134: - | M134: - | N134: - | O134: - | P134: - | Q134: - | R134: -
A135: 2010 | B135: - | C135: - | D135: - | E135: 6,371 | F135: 6,182 | G135: - | H135: - | I135: =SUM(B135:H135) -> 12,553 | K135: - | L135: - | M135: - | N135: - | O135: - | P135: - | Q135: - | R135: -
A136: 2011 | B136: - | C136: - | D136: - | E136: 21,085 | F136: 17,766 | G136: 460 | H136: - | I136: 39,311 | K136: - | L136: - | M136: - | N136: - | O136: - | P136: - | Q136: - | R136: -
A137: 2012 | B137: - | C137: - | D137: - | E137: 24,324 | F137: 12,304 | G137: 1,654 | H137: - | I137: 38,282 | K137: - | L137: - | M137: - | N137: - | O137: - | P137: - | Q137: - | R137: -
A138: 2013 | B138: - | C138: 4,352 | D138: 23,785 | E138: 68,781 | F138: 14,916 | G138: 4,324 | H138: - | I138: 116,158 | K138: - | L138: - | M138: - | N138: - | O138: - | P138: - | Q138: - | R138: -
A139: 2014 | B139: - | C139: - | D139: 23,126 | E139: 45,563 | F139: 7,788 | G139: 454 | H139: - | I139: 76,931 | K139: - | L139: - | M139: - | N139: - | O139: - | P139: - | Q139: - | R139: -
A140: 2015 | B140: - | C140: 38,546 | D140: 11,317 | E140: 5,333 | F140: 3,848 | G140: 1,008 | H140: - | I140: =SUM(B140:H140) -> 60,052 | K140: - | L140: - | M140: - | N140: - | O140: - | P140: - | Q140: - | R140: -
A141: 2016 | B141: - | C141: - | D141: 9,956 | E141: - | F141: 4,515 | G141: 909 | H141: - | I141: =SUM(B141:H141) -> 15,380 | K141: - | L141: - | M141: - | N141: - | O141: - | P141: - | Q141: - | R141: -
A142: 2017 | B142: - | C142: - | D142: - | E142: - | F142: - | G142: 1,935 | H142: - | I142: =SUM(B142:H142) -> 1,935 | K142: - | L142: - | M142: - | N142: - | O142: - | P142: - | Q142: - | R142: -
A143: 2018 | B143: - | C143: - | D143: - | E143: 6,081 | F143: 4,137 | G143: 333 | H143: - | I143: =SUM(B143:H143) -> 10,551 | K143: - | L143: - | M143: - | N143: - | O143: - | P143: - | Q143: - | R143: -
A144: 2019 | B144: - | C144: - | D144: 3,581 | E144: 2,894 | F144: 2,806 | G144: - | H144: - | I144: =SUM(B144:H144) -> 9,281 | K144: - | L144: - | M144: - | N144: - | O144: - | P144: - | Q144: - | R144: -
A145: 2020 | B145: - | C145: - | D145: - | E145: - | F145: 1,617 | G145: 232 | H145: - | I145: 1,849 | K145: - | L145: - | M145: - | N145: - | O145: - | P145: - | Q145: - | R145: -
A146: 2021c/ | B146: - | C146: - | D146: - | E146: - | F146: 41,814 | G146: 1,908 | H146: - | I146: 43,722 | K146: - | L146: - | M146: - | N146: - | O146: - | P146: - | Q146: - | R146: -
A148: San Francisco
A149: 1976 | B149: 28,918 | C149: 42,226 | D149: 31,434 | E149: 17,022 | F149: 8,195 | G149: 10,436 | H149: - | I149: =SUM(B149:H149) -> 138,231 | K149: - | L149: 24,802 | M149: 44,596 | N149: 9,727 | O149: 2,980 | P149: 1,141 | Q149: - | R149: =SUM(K149:Q149) -> 83,246
A150: 1977 | B150: 41,645 | C150: 47,678 | D150: 28,007 | E150: 45,951 | F150: 13,501 | G150: 8,382 | H150: - | I150: 185,164 | K150: - | L150: 75 | M150: 334 | N150: 347 | O150: 49 | P150: 37 | Q150: - | R150: 842
A151: 1978 | B151: 10,219 | C151: 50,900 | D151: 46,294 | E151: 31,019 | F151: 11,493 | G151: 8,233 | H151: - | I151: 158,158 | K151: 6 | L151: 850 | M151: 3,898 | N151: 1,732 | O151: 212 | P151: 72 | Q151: - | R151: 6,770
A152: 1979 | B152: 36 | C152: 52,402 | D152: 42,723 | E152: 57,344 | F152: 15,096 | G152: 12,486 | H152: - | I152: 180,087 | K152: 9 | L152: 315 | M152: 3,634 | N152: 4,616 | O152: 2,289 | P152: 221 | Q152: - | R152: 11,084
A153: 1980 | B153: - | C153: 75,287 | D153: - | E153: 115,499 | F153: 12,343 | G153: 8,649 | H153: - | I153: 211,778 | K153: - | L153: 153 | M153: - | N153: 1,509 | O153: 179 | P153: 105 | Q153: - | R153: 1,946
A154: 1981 | B154: - | C154: 49,499 | D154: 15,908 | E154: 96,108 | F154: 26,918 | G154: 11,477 | H154: - | I154: 199,910 | K154: - | L154: 181 | M154: 133 | N154: 793 | O154: 470 | P154: 47 | Q154: - | R154: 1,624
A155: 1982 | B155: =22944+7701 -> 30,645 | C155: 86,013 | D155: 27,919 | E155: 74,276 | F155: 58,215 | G155: 12,394 | H155: - | I155: 289,462 | K155: 11 | L155: 876 | M155: 2,152 | N155: 3,949 | O155: 1,380 | P155: 203 | Q155: - | R155: 8,571
A156: 1983 | B156: 763 | C156: 30,087 | D156: 5,394 | E156: 25,274 | F156: 10,025 | G156: 3,476 | H156: - | I156: 75,019 | K156: 5 | L156: 183 | M156: 397 | N156: 1,935 | O156: 327 | P156: 75 | Q156: - | R156: 2,922
A157: 1984 | B157: - | C157: 2,642 | D157: 26,439 | E157: 71,452 | F157: 58,590 | G157: 8,545 | H157: - | I157: 167,668 | K157: - | L157: - | M157: 7,450 | N157: 16,690 | O157: 231 | P157: 19 | Q157: - | R157: 24,390
A158: 1985 | B158: - | C158: 54,983 | D158: 50,384 | E158: 35,644 | F158: 22,455 | G158: 12,215 | H158: - | I158: 175,681 | K158: - | L158: 6 | M158: 739 | N158: 317 | O158: 65 | P158: 7 | Q158: - | R158: 1,134
A159: 1986 | B159: - | C159: 72,877 | D159: 119,597 | E159: 79,771 | F159: 26,983 | G159: 3,074 | H159: - | I159: 302,302 | K159: - | L159: - | M159: 1,729 | N159: 3,164 | O159: 138 | P159: 72 | Q159: - | R159: 5,103
A160: 1987 | B160: - | C160: 157,648 | D160: 110,099 | E160: 49,824 | F160: 28,544 | G160: 9,500 | H160: - | I160: 355,615 | K160: - | L160: - | M160: 700 | N160: 465 | O160: - | P160: - | Q160: - | R160: 1,165
A161: 1988 | B161: - | C161: 220,664 | D161: 173,728 | E161: 175,382 | F161: 47,103 | G161: 25,816 | H161: - | I161: 642,693 | K161: - | L161: - | M161: 2,772 | N161: 3,446 | O161: 480 | P161: 35 | Q161: - | R161: 6,733
A162: 1989 | B162: - | C162: 121,304 | D162: 77,751 | E162: 25,550 | F162: 20,889 | G162: 10,323 | H162: - | I162: 255,817 | K162: - | L162: - | M162: 3,635 | N162: 2,101 | O162: 588 | P162: 126 | Q162: - | R162: 6,450
A163: 1990 | B163: - | C163: 84,317 | D163: 78,515 | E163: 25,545 | F163: 9,233 | G163: 1,537 | H163: - | I163: 199,147 | K163: - | L163: - | M163: 18,040 | N163: 7,225 | O163: 2,072 | P163: 96 | Q163: - | R163: 27,433
A164: 1991 | B164: - | C164: 58,300 | D164: 52,200 | E164: 30,500 | F164: 28,300 | G164: 5,500 | H164: - | I164: 174,800 | K164: - | L164: - | M164: 33,100 | N164: 19,700 | O164: 600 | P164: - | Q164: - | R164: 53,400
A165: 1992 | B165: - | C165: 16,800 | D165: 4,500 | E165: 10,300 | F165: 37,700 | G165: 26,500 | H165: - | I165: 95,800 | K165: - | L165: - | M165: - | N165: - | O165: 400 | P165: - | Q165: - | R165: 400
A166: 1993 | B166: - | C166: 60,823 | D166: 14,827 | E166: 35,500 | F166: 40,253 | G166: 3,596 | H166: - | I166: 154,999 | K166: - | L166: - | M166: - | N166: - | O166: - | P166: - | Q166: - | R166: -
A167: 1994 | B167: - | C167: 54,498 | D167: 69,505 | E167: 56,963 | F167: 26,272 | G167: 12,618 | H167: - | I167: 219,856 | K167: - | L167: - | M167: - | N167: - | O167: - | P167: - | Q167: - | R167: -
A168: 1995 | B168: - | C168: 157,026 | D168: 78,024 | E168: 84,257 | F168: 17,030 | G168: 21,149 | H168: - | I168: 357,486 | K168: - | L168: - | M168: - | N168: - | O168: - | P168: - | Q168: - | R168: -
A169: 1996 | B169: - | C169: 21,978 | D169: 77,988 | E169: 43,546 | F169: 11,979 | G169: 11,888 | H169: - | I169: 167,379 | K169: - | L169: - | M169: - | N169: - | O169: - | P169: - | Q169: - | R169: -
A170: 1997 | B170: - | C170: 112,347 | D170: 14,225 | E170: 84,230 | F170: 24,737 | G170: 17,945 | H170: - | I170: 253,484 | K170: - | L170: - | M170: - | N170: - | O170: - | P170: - | Q170: - | R170: -
A171: 1998 | B171: - | C171: 15,215 | D171: 18,849 | E171: 62,242 | F171: 15,307 | G171: 14,507 | H171: - | I171: 126,120 | K171: - | L171: - | M171: - | N171: - | O171: - | P171: - | Q171: - | R171: -
A172: 1999 | B172: 3,266 | C172: 16,766 | D172: 71,091 | E172: 62,629 | F172: 23,555 | G172: 3,653 | H172: - | I172: 180,960 | K172: - | L172: - | M172: - | N172: - | O172: - | P172: - | Q172: - | R172: -
A173: 2000 | B173: - | C173: 83,347 | D173: 76,141 | E173: 36,125 | F173: 25,743 | G173: 29,012 | H173: - | I173: 250,368 | K173: - | L173: - | M173: - | N173: - | O173: - | P173: - | Q173: - | R173: -
A174: 2001 | B174: - | C174: 38,710 | D174: 8,122 | E174: 60,701 | F174: 14,056 | G174: 11,386 | H174: 3,655 | I174: 136,630 | K174: - | L174: - | M174: - | N174: - | O174: - | P174: - | Q174: - | R174: -
A175: 2002 | B175: - | C175: 64,569 | D175: 68,773 | E175: 88,077 | F175: 13,584 | G175: 7,399 | H175: 470 | I175: 242,872 | K175: - | L175: - | M175: - | N175: - | O175: - | P175: - | Q175: - | R175: -
A176: 2003 | B176: - | C176: 31,148 | D176: 94,684 | E176: 39,442 | F176: 25,978 | G176: 9,742 | H176: 1,882 | I176: 202,876 | K176: - | L176: - | M176: - | N176: - | O176: - | P176: - | Q176: - | R176: -
A177: 2004 | B177: - | C177: 75,176 | D177: 127,403 | E177: 77,267 | F177: 12,843 | G177: 4,329 | H177: 1,211 | I177: 298,229 | K177: - | L177: - | M177: - | N177: - | O177: - | P177: - | Q177: - | R177: -
A178: 2005 | B178: - | C178: - | D178: - | E178: 110,823 | F178: 29,468 | G178: 27,935 | H178: 2,305 | I178: 170,531 | K178: - | L178: - | M178: - | N178: - | O178: - | P178: - | Q178: - | R178: -
A179: 2006 | B179: - | C179: - | D179: - | E179: 16,437 | F179: 18,341 | G179: 11,839 | H179: 1,072 | I179: 47,689 | K179: - | L179: - | M179: - | N179: - | O179: - | P179: - | Q179: - | R179: -
A180: 2007 | B180: - | C180: 25,396 | D180: - | E180: 39,878 | F180: 7,434 | G180: 2,194 | H180: 352 | I180: 75,254 | K180: - | L180: - | M180: - | N180: - | O180: - | P180: - | Q180: - | R180: -
A181: 2008 | B181: - | C181: - | D181: - | E181: - | F181: - | G181: - | H181: - | I181: - | K181: - | L181: - | M181: - | N181: - | O181: - | P181: - | Q181: - | R181: -
A182: 2009 | B182: - | C182: - | D182: - | E182: - | F182: - | G182: - | H182: - | I182: - | K182: - | L182: - | M182: - | N182: - | O182: - | P182: - | Q182: - | R182: -
A183: 2010 | B183: - | C183: - | D183: - | E183: 1,105 | F183: - | G183: - | H183: - | I183: =SUM(B183:H183) -> 1,105 | K183: - | L183: - | M183: - | N183: - | O183: - | P183: - | Q183: - | R183: -
A184: 2011 | B184: - | C184: 7,753 | D184: 2,830 | E184: 8,305 | F184: 1,395 | G184: 1,312 | H184: 317 | I184: 21,912 | K184: - | L184: - | M184: - | N184: - | O184: - | P184: - | Q184: - | R184: -
A185: 2012 | B185: - | C185: 34,005 | D185: 10,090 | E185: 51,592 | F185: 14,292 | G185: 5,808 | H185: 3,313 | I185: 119,100 | K185: - | L185: - | M185: - | N185: - | O185: - | P185: - | Q185: - | R185: -
A186: 2013 | B186: - | C186: 56,365 | D186: 47,837 | E186: 24,215 | F186: 7,819 | G186: 6,477 | H186: 941 | I186: 143,654 | K186: - | L186: - | M186: - | N186: - | O186: - | P186: - | Q186: - | R186: -
A187: 2014 | B187: - | C187: 30,605 | D187: 14,917 | E187: 6,994 | F187: 15,879 | G187: 11,044 | H187: 2,985 | I187: 82,424 | K187: - | L187: - | M187: - | N187: - | O187: - | P187: - | Q187: - | R187: -
A188: 2015 | B188: - | C188: 7,407 | D188: 4,762 | E188: 4,456 | F188: 7,055 | G188: 9,399 | H188: 2,617 | I188: =SUM(B188:H188) -> 35,696 | K188: - | L188: - | M188: - | N188: - | O188: - | P188: - | Q188: - | R188: -
A189: 2016 | B189: - | C189: 3,147 | D189: 446 | E189: - | F189: 13,819 | G189: 8,362 | H189: 589 | I189: =SUM(B189:H189) -> 26,363 | K189: - | L189: - | M189: - | N189: - | O189: - | P189: - | Q189: - | R189: -
A190: 2017 | B190: - | C190: - | D190: - | E190: - | F190: 18,336 | G190: 8,297 | H190: 1,279 | I190: =SUM(B190:H190) -> 27,912 | K190: - | L190: - | M190: - | N190: - | O190: - | P190: - | Q190: - | R190: -
A191: 2018 | B191: - | C191: - | D191: - | E191: 7,015 | F191: 19,790 | G191: 10,593 | H191: 2,031 | I191: =SUM(B191:H191) -> 39,429 | K191: - | L191: - | M191: - | N191: - | O191: - | P191: - | Q191: - | R191: -
A192: 2019 | B192: - | C192: 16,076 | D192: 59,859 | E192: 25,141 | F192: 50,416 | G192: 6,099 | H192: 801 | I192: =SUM(B192:H192) -> 158,392 | K192: - | L192: - | M192: - | N192: - | O192: - | P192: - | Q192: - | R192: -
A193: 2020 | B193: - | C193: 12,572 | D193: 41,698 | E193: 63,138 | F193: 17,658 | G193: 8,240 | H193: 2,435 | I193: 145,741 | K193: - | L193: - | M193: - | N193: - | O193: - | P193: - | Q193: - | R193: -
A194: 2021c/ | B194: - | C194: - | D194: 72,832 | E194: 10,988 | F194: 14,384 | G194: 5,649 | H194: 1,040 | I194: 104,893 | K194: - | L194: - | M194: - | N194: - | O194: - | P194: - | Q194: - | R194: -
A196: Monterey
A197: 1976 | B197: 23,269 | C197: 30,053 | D197: 18,239 | E197: 9,500 | F197: 14,271 | G197: 4,294 | H197: - | I197: =SUM(B197:H197) -> 99,626 | K197: - | L197: 16,775 | M197: 16,852 | N197: 7,734 | O197: 23 | P197: 0 | Q197: - | R197: =SUM(K197:Q197) -> 41,384
A198: 1977 | B198: 15,385 | C198: 24,660 | D198: 15,958 | E198: 11,148 | F198: 8,278 | G198: 3,246 | H198: - | I198: 78,675 | K198: - | L198: 14 | M198: 110 | N198: 58 | O198: 10 | P198: 0 | Q198: - | R198: 192
A199: 1978 | B199: 10,600 | C199: 36,146 | D199: 51,010 | E199: 23,440 | F199: 7,189 | G199: 4,457 | H199: - | I199: 132,842 | K199: 37 | L199: 465 | M199: 2,002 | N199: 555 | O199: 50 | P199: 133 | Q199: - | R199: 3,242
A200: 1979 | B200: 0 | C200: 24,517 | D200: 10,535 | E200: 12,325 | F200: 4,773 | G200: 1,910 | H200: - | I200: 54,060 | K200: - | L200: 395 | M200: 980 | N200: 427 | O200: 76 | P200: 8 | Q200: - | R200: 1,886
A201: 1980 | B201: - | C201: 32,317 | D201: - | E201: 34,172 | F201: 12,395 | G201: 3,640 | H201: - | I201: 82,524 | K201: - | L201: 44 | M201: - | N201: 115 | O201: 199 | P201: 29 | Q201: - | R201: 387
A202: 1981 | B202: - | C202: 53,891 | D202: 4,654 | E202: 25,010 | F202: 5,647 | G202: 793 | H202: - | I202: 89,995 | K202: - | L202: 2 | M202: 1 | N202: 24 | O202: 148 | P202: 2 | Q202: - | R202: 177
A203: 1982 | B203: 29,199 | C203: 40,888 | D203: 19,686 | E203: 29,902 | F203: 14,340 | G203: 2,663 | H203: - | I203: 136,678 | K203: 104 | L203: 267 | M203: 99 | N203: 122 | O203: 99 | P203: 24 | Q203: - | R203: 715
A204: 1983 | B204: 1,424 | C204: 43,216 | D204: 24,628 | E204: 30,282 | F204: 3,469 | G204: 196 | H204: - | I204: 103,215 | K204: 63 | L204: 179 | M204: 802 | N204: 188 | O204: 7 | P204: 30 | Q204: - | R204: 1,269
... 202 more rows

Sheet A-4
A2: TABLE A-4. California ocean recreational salmon fishing effort in angler trips by catch area and month.
A3: Year or Avg. | B3: Feb. | C3: Mar. | D3: Apr. | E3: May | F3: June | G3: July | H3: Aug. | I3: Sept. | J3: Oct. | K3: Nov. | L3: Season
A4: Crescent City
A5: 1976 | B5: -- | C5: -- | D5: 0 | E5: 32 | F5: 4,682 | G5: 13,016 | H5: 8,248 | I5: 2,768 | J5: 0 | K5: 0 | L5: =SUM(B5:K5) -> 28,746
A6: 1977 | B6: -- | C6: -- | D6: 0 | E6: 0 | F6: 2,003 | G6: 11,446 | H6: 8,284 | I6: 1,063 | J6: 0 | K6: 0 | L6: 22,796
A7: 1978 | B7: -- | C7: -- | D7: 3 | E7: 50 | F7: 6,169 | G7: 8,335 | H7: 2,711 | I7: 130 | J7: 0 | K7: 0 | L7: 17,398
A8: 1979 | B8: -- | C8: -- | D8: 0 | E8: 125 | F8: 2,077 | G8: 6,059 | H8: 2,826 | I8: 648 | J8: 0 | K8: - | L8: 11,735
A9: 1980 | B9: -- | C9: -- | D9: 0 | E9: 0 | F9: 3,462 | G9: 9,426 | H9: 4,853 | I9: 1,447 | J9: 0 | K9: - | L9: 19,188
A10: 1981 | B10: -- | C10: -- | D10: 0 | E10: 18 | F10: 3,378 | G10: 5,999 | H10: 4,665 | I10: 0 | J10: 0 | K10: 0 | L10: 14,060
A11: 1982 | B11: -- | C11: -- | D11: 0 | E11: 18 | F11: 3,138 | G11: 12,449 | H11: 8,878 | I11: 604 | J11: 0 | K11: 0 | L11: 25,087
A12: 1983 | B12: -- | C12: -- | D12: 0 | E12: 0 | F12: 4,713 | G12: 10,929 | H12: 5,299 | I12: 734 | J12: 0 | K12: 0 | L12: 21,675
A13: 1984 | B13: -- | C13: -- | D13: 0 | E13: 12 | F13: 654 | G13: 15,222 | H13: 7,740 | I13: 209 | J13: 0 | K13: 0 | L13: 23,837
A14: 1985 | B14: -- | C14: -- | D14: 0 | E14: 2,811 | F14: 7,676 | G14: 13,025 | H14: 6,520 | I14: 975 | J14: 0 | K14: 0 | L14: 31,007
A15: 1986 | B15: -- | C15: -- | D15: - | E15: 1,104 | F15: 7,257 | G15: 10,636 | H15: 6,382 | I15: 174 | J15: - | K15: - | L15: 25,553
A16: 1987 | B16: - | C16: - | D16: - | E16: 1,980 | F16: 13,756 | G16: 22,618 | H16: 10,745 | I16: 2,975 | J16: - | K16: - | L16: 52,074
A17: 1988 | B17: - | C17: - | D17: - | E17: 2,390 | F17: 13,253 | G17: 20,744 | H17: 6,648 | I17: 832 | J17: - | K17: - | L17: 43,867
A18: 1989 | B18: - | C18: - | D18: - | E18: 1,058 | F18: 7,385 | G18: 18,647 | H18: 6,183 | I18: 332 | J18: - | K18: - | L18: 33,605
A19: 1990 | B19: - | C19: - | D19: - | E19: 554 | F19: 13,783 | G19: 23,936 | H19: 3,832 | I19: 594 | J19: - | K19: - | L19: 42,699
A20: 1991 | B20: - | C20: - | D20: - | E20: 643 | F20: 8,504 | G20: 14,015 | H20: 748 | I20: 1,661 | J20: - | K20: - | L20: 25,571
A21: 1992 | B21: - | C21: - | D21: - | E21: - | F21: - | G21: 7,231 | H21: - | I21: 1,833 | J21: - | K21: - | L21: 9,064
A22: 1993 | B22: - | C22: - | D22: - | E22: 1,018 | F22: 979 | G22: 6,503 | H22: 5,836 | I22: 1,066 | J22: - | K22: - | L22: 15,402
A23: 1994 | B23: - | C23: - | D23: - | E23: 5,048 | F23: 2,181 | G23: - | H23: 1,591 | I23: 877 | J23: - | K23: - | L23: 9,697
A24: 1995 | B24: - | C24: - | D24: - | E24: 2,793 | F24: 5,668 | G24: - | H24: 1,099 | I24: 2,376 | J24: - | K24: - | L24: 11,936
A25: 1996 | B25: - | C25: - | D25: - | E25: 993 | F25: 5,054 | G25: 2,405 | H25: 2,056 | I25: 806 | J25: - | K25: - | L25: 11,314
A26: 1997 | B26: - | C26: - | D26: - | E26: 920 | F26: 1,724 | G26: 1,533 | H26: 2,242 | I26: 157 | J26: - | K26: - | L26: 6,576
A27: 1998 | B27: - | C27: - | D27: - | E27: 705 | F27: 1,527 | G27: 455 | H27: 565 | I27: 50 | J27: - | K27: - | L27: 3,302
A28: 1999 | B28: - | C28: - | D28: - | E28: 12 | F28: 1,532 | G28: 802 | H28: 3,068 | I28: 428 | J28: - | K28: - | L28: 5,842
A29: 2000 | B29: - | C29: - | D29: - | E29: 144 | F29: 1,762 | G29: 2,103 | H29: 2,988 | I29: 213 | J29: - | K29: - | L29: 7,210
A30: 2001 | B30: - | C30: - | D30: - | E30: 881 | F30: 2,141 | G30: 3,011 | H30: 2,339 | I30: 273 | J30: - | K30: - | L30: 8,645
A31: 2002 | B31: - | C31: - | D31: - | E31: 1,036 | F31: 1,131 | G31: 132 | H31: 1,333 | I31: 237 | J31: - | K31: - | L31: 3,869
A32: 2003 | B32: - | C32: - | D32: - | E32: 319 | F32: 521 | G32: 521 | H32: 493 | I32: 340 | J32: - | K32: - | L32: 2,194
A33: 2004 | B33: - | C33: - | D33: - | E33: 603 | F33: 604 | G33: 689 | H33: 843 | I33: 413 | J33: - - | K33: - | L33: 3,152
A34: 2005 | B34: - | C34: - | D34: - | E34: 131 | F34: 794 | G34: 492 | H34: 904 | I34: 181 | J34: - | K34: - | L34: 2,502
A35: 2006 | B35: - | C35: - | D35: - | E35: 325 | F35: 754 | G35: 312 | H35: - | I35: 87 | J35: - | K35: - | L35: 1,478
A36: 2007 | B36: - | C36: - | D36: - | E36: 277 | F36: 484 | G36: 1,027 | H36: 225 | I36: 69 | J36: - | K36: - | L36: =SUM(B36:K36) -> 2,082
A37: 2008 | B37: - | C37: - | D37: - | E37: - | F37: - | G37: - | H37: - | I37: - | J37: - | K37: - | L37: -
A38: 2009 | B38: - | C38: - | D38: - | E38: - | F38: - | G38: - | H38: 498 | I38: 607 | J38: - | K38: - | L38: =SUM(B38:K38) -> 1,105
A39: 2010 | B39: - | C39: - | D39: - | E39: 72 | F39: 38 | G39: 48 | H39: 33 | I39: 15 | J39: - | K39: - | L39: 206
A40: 2011 | B40: - | C40: - | D40: - | E40: 187 | F40: 104 | G40: 245 | H40: 185 | I40: 45 | J40: - | K40: - | L40: 766
A41: 2012 | B41: - | C41: - | D41: - | E41: 455 | F41: 1,018 | G41: 4,134 | H41: 1,702 | I41: 502 | J41: - | K41: - | L41: 7,811
A42: 2013 | B42: - | C42: - | D42: - | E42: 456 | F42: 2,538 | G42: 3,228 | H42: 816 | I42: 0 | J42: - | K42: - | L42: 7,038
A43: 2014 | B43: - | C43: - | D43: - | E43: 1,441 | F43: 786 | G43: 1,996 | H43: 172 | I43: 10 | J43: - | K43: - | L43: 4,405
A44: 2015 | B44: - | C44: - | D44: - | E44: 210 | F44: 89 | G44: 161 | H44: 137 | I44: 44 | J44: - | K44: - | L44: =SUM(B44:K44) -> 641
A45: 2016 | B45: - | C45: - | D45: - | E45: 59 | F45: 222 | G45: 176 | H45: 56 | I45: 50 | J45: - | K45: - | L45: =SUM(B45:K45) -> 563
A46: 2017 | B46: - | C46: - | D46: - | E46: - | F46: - | G46: - | H46: - | I46: - | J46: - | K46: - | L46: -
A47: 2018 | B47: - | C47: - | D47: - | E47: - | F47: 359 | G47: 673 | H47: 328 | I47: 3 | J47: - | K47: - | L47: =SUM(B47:K47) -> 1,363
A48: 2019 | B48: - | C48: - | D48: - | E48: 15 | F48: 137 | G48: 279 | H48: 56 | I48: 24 | J48: - | K48: - | L48: =SUM(B48:K48) -> 511
A49: 2020a | B49: - | C49: - | D49: - | E49: - | F49: -- | G49: 801 | H49: 386 | I49: - | J49: - | K49: - | L49: =SUM(B49:K49) -> 1,187
A50: 2021b/ | B50: - | C50: - | D50: - | E50: - | F50: 244 | G50: 427 | H50: 4 | I50: - | J50: - | K50: - | L50: =SUM(B50:K50) -> 675
A52: Eureka
A53: 1976 | B53: -- | C53: -- | D53: 0 | E53: 67 | F53: 9,950 | G53: 13,662 | H53: 6,276 | I53: 535 | J53: 0 | K53: 0 | L53: =SUM(B53:K53) -> 30,490
A54: 1977 | B54: -- | C54: -- | D54: 0 | E54: 1,404 | F54: 3,240 | G54: 13,538 | H54: 8,144 | I54: 378 | J54: 1 | K54: 0 | L54: 26,705
A55: 1978 | B55: -- | C55: -- | D55: 0 | E55: 0 | F55: 4,929 | G55: 11,565 | H55: 4,524 | I55: 148 | J55: 0 | K55: 0 | L55: 21,166
A56: 1979 | B56: -- | C56: -- | D56: 15 | E56: 105 | F56: 4,594 | G56: 8,346 | H56: 4,788 | I56: 100 | J56: 60 | K56: - | L56: 18,008
A57: 1980 | B57: -- | C57: -- | D57: 0 | E57: 0 | F57: 3,746 | G57: 15,762 | H57: 2,997 | I57: 589 | J57: 0 | K57: - | L57: 23,094
A58: 1981 | B58: -- | C58: -- | D58: 0 | E58: 10 | F58: 2,667 | G58: 8,591 | H58: 4,934 | I58: 77 | J58: 0 | K58: 0 | L58: 16,279
A59: 1982 | B59: -- | C59: -- | D59: 0 | E59: 0 | F59: 7,415 | G59: 10,584 | H59: 4,493 | I59: 275 | J59: 0 | K59: 0 | L59: 22,767
A60: 1983 | B60: -- | C60: -- | D60: 0 | E60: 13 | F60: 6,344 | G60: 11,019 | H60: 4,447 | I60: 966 | J60: 59 | K60: 0 | L60: 22,848
A61: 1984 | B61: -- | C61: -- | D61: 0 | E61: 4 | F61: 920 | G61: 13,153 | H61: 4,176 | I61: 512 | J61: 10 | K61: 0 | L61: 18,775
A62: 1985 | B62: -- | C62: -- | D62: 3 | E62: 6,083 | F62: 6,354 | G62: 15,275 | H62: 6,522 | I62: 635 | J62: 0 | K62: 0 | L62: 34,872
A63: 1986 | B63: -- | C63: -- | D63: - | E63: 1,115 | F63: 7,529 | G63: 12,689 | H63: 7,227 | I63: 340 | J63: - | K63: - | L63: 28,900
A64: 1987 | B64: - | C64: - | D64: - | E64: 1,666 | F64: 9,535 | G64: 23,213 | H64: 9,817 | I64: 1,903 | J64: - | K64: - | L64: 46,134
A65: 1988 | B65: - | C65: - | D65: - | E65: 1,469 | F65: 6,795 | G65: 16,993 | H65: 6,064 | I65: 1,466 | J65: - | K65: - | L65: 32,787
A66: 1989 | B66: - | C66: - | D66: - | E66: 2,420 | F66: 11,090 | G66: 21,420 | H66: 7,819 | I66: 270 | J66: - | K66: - | L66: 43,019
A67: 1990 | B67: - | C67: - | D67: - | E67: 1,569 | F67: 12,485 | G67: 19,057 | H67: 4,705 | I67: 834 | J67: 0 | K67: - | L67: 38,650
A68: 1991 | B68: - | C68: - | D68: - | E68: 327 | F68: 13,206 | G68: 12,992 | H68: 269 | I68: 632 | J68: 21 | K68: - | L68: 27,447
A69: 1992 | B69: - | C69: - | D69: - | E69: - | F69: - | G69: 5,783 | H69: - | I69: 3,319 | J69: - | K69: - | L69: 9,102
A70: 1993 | B70: - | C70: - | D70: - | E70: 1,644 | F70: 2,210 | G70: 6,129 | H70: 5,992 | I70: 2,292 | J70: - | K70: - | L70: 18,267
A71: 1994 | B71: - | C71: - | D71: - | E71: 2,553 | F71: 1,773 | G71: - | H71: 1,259 | I71: 785 | J71: - | K71: - | L71: 6,370
A72: 1995 | B72: - | C72: - | D72: - | E72: 1,397 | F72: 6,158 | G72: - | H72: 1,477 | I72: 3,725 | J72: - | K72: - | L72: 12,757
A73: 1996 | B73: - | C73: - | D73: - | E73: 2,415 | F73: 6,491 | G73: 973 | H73: 2,574 | I73: 1,558 | J73: - | K73: - | L73: 14,011
A74: 1997 | B74: - | C74: - | D74: - | E74: 2,452 | F74: 3,445 | G74: 2,113 | H74: 3,990 | I74: 375 | J74: - | K74: - | L74: 12,375
A75: 1998 | B75: - | C75: - | D75: - | E75: 1,885 | F75: 1,789 | G75: 570 | H75: 2,041 | I75: 445 | J75: - | K75: - | L75: 6,730
A76: 1999 | B76: - | C76: - | D76: - | E76: 105 | F76: 4,136 | G76: 2,126 | H76: 5,242 | I76: 376 | J76: - | K76: - | L76: 11,985
A77: 2000 | B77: - | C77: - | D77: - | E77: 840 | F77: 3,179 | G77: 3,007 | H77: 5,226 | I77: 860 | J77: - | K77: - | L77: 13,112
A78: 2001 | B78: - | C78: - | D78: - | E78: 1,994 | F78: 5,297 | G78: 3,854 | H78: 3,855 | I78: 1,048 | J78: - | K78: - | L78: 16,048
A79: 2002 | B79: - | C79: - | D79: - | E79: 2,186 | F79: 5,379 | G79: 599 | H79: 7,428 | I79: 2,082 | J79: - | K79: - | L79: 17,674
A80: 2003 | B80: - | C80: - | D80: - | E80: 2,226 | F80: 3,102 | G80: 2,915 | H80: 4,176 | I80: 1,164 | J80: - | K80: - | L80: 13,583
A81: 2004 | B81: - | C81: - | D81: - | E81: 3,995 | F81: 3,367 | G81: 4,725 | H81: 8,211 | I81: 2,147 | J81: - | K81: - | L81: 22,445
A82: 2005 | B82: - | C82: - | D82: - | E82: 1,143 | F82: 4,795 | G82: 1,160 | H82: 5,075 | I82: 2,654 | J82: - | K82: - | L82: 14,827
A83: 2006 | B83: - | C83: - | D83: - | E83: 3,951 | F83: 5,208 | G83: 2,146 | H83: - | I83: 3,668 | J83: - | K83: - | L83: 14,973
A84: 2007 | B84: - | C84: - | D84: - | E84: 1,737 | F84: 4,987 | G84: 4,914 | H84: 5,212 | I84: 1,511 | J84: - | K84: - | L84: =SUM(B84:K84) -> 18,361
A85: 2008 | B85: - | C85: - | D85: - | E85: - | F85: - | G85: - | H85: - | I85: - | J85: - | K85: - | L85: -
A86: 2009 | B86: - | C86: - | D86: - | E86: - | F86: - | G86: - | H86: 2,017 | I86: 2,237 | J86: - | K86: - | L86: =SUM(B86:K86) -> 4,254
A87: 2010 | B87: - | C87: - | D87: - | E87: 464 | F87: 638 | G87: 897 | H87: 1,841 | I87: 183 | J87: - | K87: - | L87: 4,023
A88: 2011 | B88: - | C88: - | D88: - | E88: 1,664 | F88: 2,574 | G88: 4,625 | H88: 4,597 | I88: 723 | J88: - | K88: - | L88: 14,183
A89: 2012 | B89: - | C89: - | D89: - | E89: 2,680 | F89: 6,514 | G89: 5,833 | H89: 6,671 | I89: 1,873 | J89: - | K89: - | L89: 23,571
A90: 2013 | B90: - | C90: - | D90: - | E90: 2,756 | F90: 5,976 | G90: 6,028 | H90: 7,416 | I90: 614 | J90: - | K90: - | L90: 22,790
A91: 2014 | B91: - | C91: - | D91: - | E91: 2,710 | F91: 4,157 | G91: 5,170 | H91: 3,580 | I91: 612 | J91: - | K91: - | L91: 16,229
A92: 2015 | B92: - | C92: - | D92: - | E92: 2,431 | F92: 1,166 | G92: 2,321 | H92: 2,216 | I92: 164 | J92: - | K92: - | L92: =SUM(B92:K92) -> 8,298
A93: 2016 | B93: - | C93: - | D93: - | E93: 1,579 | F93: 1,933 | G93: 2,380 | H93: 1,888 | I93: 610 | J93: - | K93: - | L93: =SUM(B93:K93) -> 8,390
A94: 2017 | B94: - | C94: - | D94: - | E94: - | F94: - | G94: - | H94: - | I94: - | J94: - | K94: - | L94: -
A95: 2018 | B95: - | C95: - | D95: - | E95: - | F95: 2,298 | G95: 2,067 | H95: 1,593 | I95: 48 | J95: - | K95: - | L95: =SUM(B95:K95) -> 6,006
A96: 2019 | B96: - | C96: - | D96: - | E96: 349 | F96: 2,601 | G96: 2,535 | H96: 1,617 | I96: 99 | J96: - | K96: - | L96: =SUM(B96:K96) -> 7,201
A97: 2020a/ | B97: - | C97: - | D97: - | E97: - | F97: -- | G97: 2,939 | H97: 847 | I97: - | J97: - | K97: - | L97: =SUM(B97:K97) -> 3,786
A98: 2021b/ | B98: - | C98: - | D98: - | E98: - | F98: 127 | G98: 1,401 | H98: 58 | I98: - | J98: - | K98: - | L98: =SUM(B98:K98) -> 1,586
A100: Fort Bragg
A101: 1976 | B101: -- | C101: -- | D101: 0 | E101: 210 | F101: 2,614 | G101: 9,773 | H101: 4,409 | I101: 22 | J101: 4 | K101: 0 | L101: =SUM(B101:K101) -> 17,032
A102: 1977 | B102: -- | C102: -- | D102: 0 | E102: 314 | F102: 812 | G102: 5,304 | H102: 7,452 | I102: 1,788 | J102: 0 | K102: 0 | L102: 15,670
A103: 1978 | B103: -- | C103: -- | D103: 2 | E103: 63 | F103: 1,928 | G103: 5,224 | H103: 2,256 | I103: 0 | J103: 0 | K103: 0 | L103: 9,473
A104: 1979 | B104: -- | C104: -- | D104: 0 | E104: 0 | F104: 1,358 | G104: 4,223 | H104: 3,387 | I104: 852 | J104: 0 | K104: - | L104: 9,820
A105: 1980 | B105: -- | C105: -- | D105: 0 | E105: 0 | F105: 1,550 | G105: 3,525 | H105: 1,010 | I105: 316 | J105: 0 | K105: - | L105: 6,401
A106: 1981 | B106: -- | C106: -- | D106: 4 | E106: 111 | F106: 1,838 | G106: 3,668 | H106: 2,416 | I106: 48 | J106: 12 | K106: 0 | L106: 8,097
A107: 1982 | B107: -- | C107: -- | D107: 0 | E107: 85 | F107: 2,633 | G107: 4,312 | H107: 3,120 | I107: 205 | J107: 0 | K107: 0 | L107: 10,355
A108: 1983 | B108: -- | C108: -- | D108: 0 | E108: 11 | F108: 1,819 | G108: 4,914 | H108: 1,556 | I108: 61 | J108: 0 | K108: 0 | L108: 8,361
A109: 1984 | B109: -- | C109: -- | D109: 2 | E109: 3 | F109: 1,138 | G109: 3,349 | H109: 1,462 | I109: 61 | J109: 0 | K109: 0 | L109: 6,015
A110: 1985 | B110: -- | C110: -- | D110: 6 | E110: 55 | F110: 3,800 | G110: 8,951 | H110: 1,817 | I110: 317 | J110: 9 | K110: 0 | L110: 14,955
A111: 1986 | B111: -- | C111: -- | D111: 10 | E111: 233 | F111: 3,874 | G111: 6,561 | H111: 2,584 | I111: 12 | J111: 0 | K111: 0 | L111: 13,274
A112: 1987 | B112: 0 | C112: 6 | D112: 79 | E112: 231 | F112: 2,904 | G112: 7,248 | H112: 2,362 | I112: 1,146 | J112: 0 | K112: 0 | L112: 13,976
A113: 1988 | B113: 0 | C113: 0 | D113: 205 | E113: 1,505 | F113: 4,543 | G113: 8,010 | H113: 2,714 | I113: 789 | J113: 0 | K113: 0 | L113: 17,766
A114: 1989 | B114: 0 | C114: 0 | D114: 106 | E114: 1,388 | F114: 5,705 | G114: 6,459 | H114: 2,830 | I114: 1,036 | J114: 21 | K114: 0 | L114: 17,545
A115: 1990 | B115: 0 | C115: 0 | D115: 1 | E115: 168 | F115: 5,389 | G115: 6,995 | H115: 1,828 | I115: 265 | J115: 0 | K115: 0 | L115: 14,646
A116: 1991 | B116: -- | C116: -- | D116: 21 | E116: 859 | F116: 6,994 | G116: 11,611 | H116: 3,024 | I116: 116 | J116: -- | K116: -- | L116: 22,625
A117: 1992 | B117: -- | C117: 49 | D117: 291 | E117: 2,191 | F117: 340 | G117: 6,271 | H117: - | I117: 1,722 | J117: 369 | K117: 12 | L117: 11,245
A118: 1993 | B118: 47 | C118: 232 | D118: 449 | E118: 1,291 | F118: 1,964 | G118: 9,428 | H118: 4,641 | I118: 1,206 | J118: 82 | K118: 0 | L118: 19,340
A119: 1994 | B119: 76 | C119: 443 | D119: 1,324 | E119: 4,173 | F119: 8,401 | G119: - | H119: 5,051 | I119: 895 | J119: 40 | K119: -- | L119: 20,403
A120: 1995 | B120: 360 | C120: 529 | D120: 1,639 | E120: 1,489 | F120: 12,988 | G120: - | H120: 8,993 | I120: 2,639 | J120: 614 | K120: -- | L120: 29,251
A121: 1996 | B121: 49 | C121: 947 | D121: 1,938 | E121: 2,857 | F121: 12,018 | G121: 2,960 | H121: 6,982 | I121: 2,794 | J121: 744 | K121: -- | L121: 31,289
A122: 1997 | B122: -- | C122: 430 | D122: 1,131 | E122: 4,003 | F122: 6,813 | G122: 3,476 | H122: 4,089 | I122: 268 | J122: -- | K122: -- | L122: 20,210
A123: 1998 | B123: -- | C123: 58 | D123: 0 | E123: 976 | F123: 2,344 | G123: 542 | H123: 3,272 | I123: 1,137 | J123: 15 | K123: -- | L123: 8,344
A124: 1999 | B124: 14 | C124: 60 | D124: 195 | E124: 382 | F124: 1,726 | G124: 2,985 | H124: 4,336 | I124: 488 | J124: -- | K124: -- | L124: 10,186
A125: 2000 | B125: -- | C125: -- | D125: 1,288 | E125: 3,125 | F125: 7,154 | G125: 5,635 | H125: 6,618 | I125: 1,698 | J125: 36 | K125: -- | L125: 25,554
A126: 2001 | B126: -- | C126: 690 | D126: 1,269 | E126: 3,402 | F126: 7,228 | G126: 9,454 | H126: 6,879 | I126: 1,754 | J126: 107 | K126: 15 | L126: 30,798
A127: 2002 | B127: 194 | C127: 897 | D127: 2,428 | E127: 4,889 | F127: 7,004 | G127: 8,494 | H127: 7,458 | I127: 435 | J127: 3 | K127: 0 | L127: 31,802
A128: 2003 | B128: 607 | C128: 1,282 | D128: 938 | E128: 2,662 | F128: 5,729 | G128: 8,252 | H128: 3,466 | I128: 768 | J128: 5 | K128: 0 | L128: 23,709
A129: 2004 | B129: 183 | C129: 999 | D129: 1,069 | E129: 2,408 | F129: 8,760 | G129: 11,560 | H129: 4,266 | I129: 1,061 | J129: 240 | K129: 27 | L129: 30,573
A130: 2005 | B130: 869 | C130: 521 | D130: 841 | E130: 1,910 | F130: 4,525 | G130: 6,666 | H130: 7,994 | I130: 964 | J130: 22 | K130: 0 | L130: 24,312
A131: 2006 | B131: 289 | C131: 298 | D131: 800 | E131: 2,327 | F131: 5,917 | G131: 6,655 | H131: 4,051 | I131: 631 | J131: 0 | K131: 0 | L131: 20,968
A132: 2007 | B132: 249 | C132: 855 | D132: 692 | E132: 2,280 | F132: 5,593 | G132: 5,271 | H132: 2,013 | I132: 146 | J132: 25 | K132: 0 | L132: =SUM(B132:K132) -> 17,124
A133: 2008 | B133: 206 | C133: 185 | D133: - | E133: - | F133: - | G133: - | H133: - | I133: - | J133: - | K133: - | L133: =SUM(B133:K133) -> 391
A134: 2009 | B134: - | C134: - | D134: - | E134: - | F134: - | G134: - | H134: - | I134: - | J134: - | K134: - | L134: -
A135: 2010 | B135: - | C135: - | D135: 1,269 | E135: 1,230 | F135: 743 | G135: 1,460 | H135: 1,625 | I135: 232 | J135: - | K135: - | L135: =SUM(B135:K135) -> 6,559
A136: 2011 | B136: - | C136: - | D136: 1,532 | E136: 1,522 | F136: 2,294 | G136: 6,234 | H136: 1,975 | I136: 650 | J136: 182 | K136: - | L136: 14,389
A137: 2012 | B137: - | C137: - | D137: 1,230 | E137: 2,088 | F137: 2,975 | G137: 4,076 | H137: 2,890 | I137: 1,069 | J137: 334 | K137: 151 | L137: 14,813
A138: 2013 | B138: - | C138: - | D138: 934 | E138: 1,666 | F138: 3,519 | G138: 7,136 | H138: 3,076 | I138: 667 | J138: 220 | K138: 47 | L138: 17,265
A139: 2014 | B139: - | C139: - | D139: 1,049 | E139: 1,371 | F139: 2,538 | G139: 9,435 | H139: 2,554 | I139: 373 | J139: 102 | K139: 48 | L139: 17,470
A140: 2015 | B140: - | C140: - | D140: 1,051 | E140: 1,321 | F140: 1,615 | G140: 5,002 | H140: 2,278 | I140: 423 | J140: 94 | K140: 5 | L140: 11,789
A141: 2016 | B141: - | C141: - | D141: 706 | E141: 934 | F141: 1,003 | G141: 4,817 | H141: 1,751 | I141: 295 | J141: 68 | K141: 0 | L141: 9,574
A142: 2017 | B142: - | C142: - | D142: 403 | E142: 1,101 | F142: - | G142: - | H142: 1,869 | I142: 1,286 | J142: 17 | K142: 0 | L142: 4,676
A143: 2018 | B143: - | C143: - | D143: - | E143: - | F143: 1,009 | G143: 5,523 | H143: 2,897 | I143: 423 | J143: 39 | K143: - | L143: 9,891
A144: 2019 | B144: - | C144: - | D144: 606 | E144: 166 | F144: 1,646 | G144: 3,171 | H144: 1,735 | I144: 228 | J144: 52 | K144: - | L144: =SUM(B144:K144) -> 7,604
A145: 2020a/ | B145: - | C145: - | D145: - | E145: -- | F145: -- | G145: 2,637 | H145: 2,062 | I145: 469 | J145: 0 | K145: 0 | L145: 5,168
A146: 2021b/ | B146: - | C146: - | D146: - | E146: - | F146: 251 | G146: 4,733 | H146: 2,249 | I146: 975 | J146: 429 | K146: - | L146: 8,637
A148: San Francisco
A149: 1976 | B149: 6,202 | C149: 4,466 | D149: 6,547 | E149: 12,895 | F149: 10,924 | G149: 13,092 | H149: 17,084 | I149: 9,870 | J149: 12,384 | K149: 3,286 | L149: =SUM(B149:K149) -> 96,750
A150: 1977 | B150: 7,350 | C150: 7,695 | D150: 11,196 | E150: 10,561 | F150: 9,150 | G150: 17,351 | H150: 15,338 | I150: 14,148 | J150: 10,415 | K150: 3,025 | L150: 106,229
A151: 1978 | B151: 17,905 | C151: 11,468 | D151: 2,075 | E151: 1,877 | F151: 4,802 | G151: 15,005 | H151: 12,985 | I151: 16,037 | J151: 8,143 | K151: 5,756 | L151: 96,053
A152: 1979 | B152: 6,459 | C152: 12,552 | D152: 7,682 | E152: 8,023 | F152: 15,397 | G152: 16,543 | H152: 18,797 | I152: 13,430 | J152: 5,420 | K152: - | L152: 104,303
A153: 1980 | B153: 2,597 | C153: 15,165 | D153: 8,726 | E153: 9,555 | F153: 11,796 | G153: 14,543 | H153: 11,789 | I153: 8,955 | J153: 2,970 | K153: - | L153: 86,096
A154: 1981 | B154: 4,711 | C154: 4,293 | D154: 7,986 | E154: 4,701 | F154: 10,264 | G154: 15,036 | H154: 12,964 | I154: 8,462 | J154: 5,401 | K154: 1,250 | L154: 75,068
A155: 1982 | B155: 6,360 | C155: 10,532 | D155: 5,400 | E155: 7,624 | F155: 9,991 | G155: 18,117 | H155: 18,523 | I155: 12,179 | J155: 9,527 | K155: 2,675 | L155: 100,928
A156: 1983 | B156: 1,943 | C156: 2,255 | D156: 4,600 | E156: 7,593 | F156: 8,312 | G156: 13,775 | H156: 9,307 | I156: 7,093 | J156: 5,308 | K156: 101 | L156: 60,287
A157: 1984 | B157: 1,719 | C157: 1,615 | D157: 3,077 | E157: 6,188 | F157: 10,916 | G157: 14,324 | H157: 14,077 | I157: 8,904 | J157: 3,427 | K157: 763 | L157: 65,010
A158: 1985 | B158: 5,852 | C158: 10,362 | D158: 9,130 | E158: 8,356 | F158: 14,410 | G158: 13,777 | H158: 15,436 | I158: 9,816 | J158: 4,221 | K158: 1,924 | L158: 93,284
A159: 1986 | B159: 1,917 | C159: 8,244 | D159: 9,063 | E159: 8,591 | F159: 13,506 | G159: 21,001 | H159: 17,890 | I159: 6,608 | J159: 3,995 | K159: 881 | L159: 91,696
A160: 1987 | B160: 4,311 | C160: 9,624 | D160: 11,293 | E160: 10,066 | F160: 10,207 | G160: 19,517 | H160: 22,227 | I160: 12,341 | J160: 7,183 | K160: 1,633 | L160: 108,402
A161: 1988 | B161: 6,511 | C161: 10,325 | D161: 12,345 | E161: 12,533 | F161: 16,433 | G161: 21,596 | H161: 15,601 | I161: 8,925 | J161: 3,781 | K161: 42 | L161: 108,092
A162: 1989 | B162: 5,960 | C162: 9,342 | D162: 14,846 | E162: 7,743 | F162: 11,495 | G162: 15,118 | H162: 14,109 | I162: 10,567 | J162: 4,002 | K162: 1,852 | L162: 95,034
A163: 1990 | B163: 5,426 | C163: 11,627 | D163: 13,743 | E163: 5,995 | F163: 11,220 | G163: 15,570 | H163: 10,099 | I163: 9,590 | J163: 4,816 | K163: 1,584 | L163: 89,670
A164: 1991 | B164: 32 | C164: 4,054 | D164: 7,107 | E164: 6,286 | F164: 11,988 | G164: 18,623 | H164: 13,926 | I164: 5,217 | J164: 2,872 | K164: 58 | L164: 70,163
A165: 1992 | B165: 833 | C165: 2,407 | D165: 2,502 | E165: 5,884 | F165: 8,595 | G165: 16,055 | H165: 11,848 | I165: 9,364 | J165: 4,292 | K165: 237 | L165: 62,017
A166: 1993 | B166: 513 | C166: 6,554 | D166: 6,080 | E166: 7,702 | F166: 7,382 | G166: 27,838 | H166: 17,615 | I166: 5,463 | J166: 3,643 | K166: - | L166: 82,790
A167: 1994 | B167: 1,284 | C167: 6,849 | D167: 7,884 | E167: 7,930 | F167: 18,765 | G167: 35,423 | H167: 21,043 | I167: 10,802 | J167: 7,494 | K167: - | L167: 117,474
A168: 1995 | B168: - | C168: 9,592 | D168: 10,487 | E168: 12,296 | F168: 17,307 | G168: 51,018 | H168: 23,677 | I168: 12,786 | J168: 4,297 | K168: - | L168: 141,460
A169: 1996 | B169: - | C169: 19,039 | D169: 13,150 | E169: 9,551 | F169: 12,696 | G169: 28,499 | H169: 13,566 | I169: 5,266 | J169: 2,397 | K169: - | L169: 104,164
A170: 1997 | B170: - | C170: 4,738 | D170: 10,927 | E170: 16,760 | F170: 13,959 | G170: 34,485 | H170: 21,240 | I170: 5,461 | J170: 3,212 | K170: 380 | L170: 111,162
A171: 1998 | B171: - | C171: 249 | D171: 6,973 | E171: 5,842 | F171: 13,644 | G171: 23,128 | H171: 20,796 | I171: 6,903 | J171: 3,465 | K171: -- | L171: 81,000
A172: 1999 | B172: - | C172: 1,430 | D172: 8,005 | E172: 3,688 | F172: 12,982 | G172: 32,018 | H172: 17,424 | I172: 8,835 | J172: 5,421 | K172: - | L172: 89,803
A173: 2000 | B173: - | C173: - | D173: 6,572 | E173: 9,720 | F173: 16,714 | G173: 19,102 | H173: 13,302 | I173: 11,421 | J173: 5,430 | K173: 1,451 | L173: 83,712
A174: 2001 | B174: - | C174: - | D174: 5,689 | E174: 8,646 | F174: 4,968 | G174: 17,387 | H174: 15,521 | I174: 10,727 | J174: 5,974 | K174: 2,578 | L174: 71,490
A175: 2002 | B175: - | C175: - | D175: 5,322 | E175: 10,758 | F175: 14,016 | G175: 28,354 | H175: 21,029 | I175: 7,104 | J175: 1,820 | K175: 381 | L175: 88,784
A176: 2003 | B176: - | C176: - | D176: 4,013 | E176: 8,559 | F176: 11,885 | G176: 22,201 | H176: 11,087 | I176: 5,945 | J176: 2,662 | K176: 264 | L176: 66,616
A177: 2004 | B177: - | C177: - | D177: 7,232 | E177: 15,145 | F177: 15,864 | G177: 32,723 | H177: 21,167 | I177: 8,372 | J177: 4,063 | K177: 1,512 | L177: 106,078
A178: 2005 | B178: - | C178: - | D178: 9,003 | E178: 10,890 | F178: 9,888 | G178: 22,712 | H178: 13,543 | I178: 11,925 | J178: 5,846 | K178: 965 | L178: 84,772
A179: 2006 | B179: - | C179: - | D179: 3,860 | E179: 11,575 | F179: 13,994 | G179: 20,739 | H179: 5,557 | I179: 3,371 | J179: 1,827 | K179: 448 | L179: 61,371
A180: 2007 | B180: - | C180: - | D180: 3,505 | E180: 6,915 | F180: 8,340 | G180: 13,775 | H180: 4,908 | I180: 2,511 | J180: 1,766 | K180: 1,394 | L180: =SUM(B180:K180) -> 43,114
A181: 2008 | B181: - | C181: - | D181: - | E181: - | F181: - | G181: - | H181: - | I181: - | J181: - | K181: - | L181: -
A182: 2009 | B182: - | C182: - | D182: - | E182: - | F182: - | G182: - | H182: - | I182: - | J182: - | K182: - | L182: -
A183: 2010 | B183: - | C183: - | D183: 3,889 | E183: 1,521 | F183: 1,693 | G183: 4,846 | H183: 5,730 | I183: 1,673 | J183: - | K183: - | L183: =SUM(B183:K183) -> 19,352
A184: 2011 | B184: - | C184: - | D184: 2,046 | E184: 2,272 | F184: 1,630 | G184: 8,505 | H184: 9,094 | I184: 7,591 | J184: 3,249 | K184: - | L184: 34,387
A185: 2012 | B185: - | C185: - | D185: 4,113 | E185: 6,663 | F185: 11,396 | G185: 15,667 | H185: 10,085 | I185: 6,421 | J185: 2,779 | K185: 418 | L185: 57,542
A186: 2013 | B186: - | C186: - | D186: 6,406 | E186: 7,823 | F186: 11,183 | G186: 22,814 | H186: 14,354 | I186: 4,572 | J186: 2,003 | K186: 379 | L186: 69,534
A187: 2014 | B187: - | C187: - | D187: 3,433 | E187: 3,406 | F187: 2,163 | G187: 11,779 | H187: 18,604 | I187: 9,589 | J187: 5,046 | K187: 675 | L187: 54,695
A188: 2015 | B188: - | C188: - | D188: 2,380 | E188: 2,708 | F188: 5,176 | G188: 9,851 | H188: 12,523 | I188: 9,838 | J188: 3,389 | K188: - | L188: =SUM(B188:K188) -> 45,865
A189: 2016 | B189: - | C189: - | D189: 2,797 | E189: 4,723 | F189: 2,797 | G189: 11,554 | H189: 11,437 | I189: 8,205 | J189: 2,298 | K189: - | L189: =SUM(B189:K189) -> 43,811
A190: 2017 | B190: - | C190: - | D190: 1,470 | E190: 1,665 | F190: 5,429 | G190: 19,131 | H190: 17,489 | I190: 7,210 | J190: 1,834 | K190: - | L190: =SUM(B190:K190) -> 54,228
A191: 2018 | B191: - | C191: - | D191: - | E191: - | F191: 8,043 | G191: 28,234 | H191: 15,575 | I191: 8,561 | J191: 5,033 | K191: - | L191: =SUM(B191:K191) -> 65,446
A192: 2019 | B192: - | C192: - | D192: 3,207 | E192: 1,612 | F192: 12,056 | G192: 15,392 | H192: 17,321 | I192: 6,697 | J192: 1,769 | K192: - | L192: =SUM(B192:K192) -> 58,054
A193: 2020a | B193: - | C193: - | D193: - | E193: -- | F193: -- | G193: 19,892 | H193: 14,050 | I193: 7,132 | J193: 4,252 | K193: 147 | L193: 45,473
A194: 2021b/ | B194: - | C194: - | D194: - | E194: - | F194: 3,016 | G194: 19,880 | H194: 13,545 | I194: 6,949 | J194: 2,001 | K194: - | L194: 45,391
A196: Monterey
A197: 1976 | B197: 1,992 | C197: 2,946 | D197: 1,369 | E197: 3,910 | F197: 978 | G197: 2,054 | H197: 452 | I197: 165 | J197: 220 | K197: 96 | L197: =SUM(B197:K197) -> 14,182
A198: 1977 | B198: 2,482 | C198: 2,034 | D198: 2,436 | E198: 1,072 | F198: 484 | G198: 686 | H198: 567 | I198: 167 | J198: 0 | K198: 0 | L198: 9,928
A199: 1978 | B199: 1,247 | C199: 1,919 | D199: 834 | E199: 309 | F199: 898 | G199: 761 | H199: 175 | I199: 253 | J199: 171 | K199: 71 | L199: 6,638
A200: 1979 | B200: 2,226 | C200: 1,844 | D200: 3,959 | E200: 551 | F200: 139 | G200: 577 | H200: 403 | I200: 115 | J200: 50 | K200: - | L200: 9,864
A201: 1980 | B201: 867 | C201: 2,252 | D201: 1,322 | E201: 304 | F201: 2,158 | G201: 1,608 | H201: 895 | I201: 107 | J201: 65 | K201: - | L201: 9,578
A202: 1981 | B202: 448 | C202: 1,661 | D202: 2,619 | E202: 458 | F202: 307 | G202: 1,465 | H202: 735 | I202: 82 | J202: 264 | K202: 410 | L202: 8,449
A203: 1982 | B203: 995 | C203: 1,839 | D203: 2,857 | E203: 2,140 | F203: 1,162 | G203: 1,458 | H203: 969 | I203: 687 | J203: 17 | K203: 0 | L203: 12,124
A204: 1983 | B204: 148 | C204: 99 | D204: 1,979 | E204: 2,783 | F204: 2,012 | G204: 1,902 | H204: 542 | I204: 17 | J204: 22 | K204: 0 | L204: 9,504
A205: 1984 | B205: 197 | C205: 551 | D205: 3,396 | E205: 3,178 | F205: 1,791 | G205: 3,619 | H205: 539 | I205: 13 | J205: 34 | K205: 9 | L205: 13,327
... 196 more rows

Sheet A-5
A1: TABLE A-5. California ocean recreational salmon landings in numbers of fish by catch area and month.
A2: Year or Avg. | B2: Feb. | C2: Mar. | D2: Apr. | E2: May | F2: June | G2: July | H2: Aug. | I2: Sept. | J2: Oct. | K2: Nov. | L2: Season | N2: Feb. | O2: Mar. | P2: Apr. | Q2: May | R2: June | S2: July | T2: Aug. | U2: Sept. | V2: Oct. | W2: Nov. | X2: Season
B3: CHINOOK | N3: COHO
A4: Crescent City
A5: 1976 | B5: -- | C5: -- | D5: 0 | E5: 0 | F5: 0 | G5: 1,154 | H5: 1,573 | I5: 264 | J5: 0 | K5: 0 | L5: =SUM(B5:K5) -> 2,991 | N5: -- | O5: -- | P5: 0 | Q5: 16 | R5: 3,045 | S5: 9,519 | T5: 3,706 | U5: 594 | V5: 0 | W5: 0 | X5: =SUM(N5:W5) -> 16,880
A6: 1977 | B6: -- | C6: -- | D6: 0 | E6: 0 | F6: 307 | G6: 4,966 | H6: 2,127 | I6: 0 | J6: 0 | K6: 0 | L6: 7,400 | N6: -- | O6: -- | P6: 0 | Q6: 0 | R6: 17 | S6: 4,142 | T6: 1,135 | U6: 33 | V6: 0 | W6: 0 | X6: 5,327
A7: 1978 | B7: -- | C7: -- | D7: 0 | E7: 7 | F7: 417 | G7: 701 | H7: 861 | I7: 0 | J7: 0 | K7: 0 | L7: 1,986 | N7: -- | O7: -- | P7: 1 | Q7: 22 | R7: 9,129 | S7: 8,577 | T7: 1,397 | U7: 33 | V7: 0 | W7: 0 | X7: 19,159
A8: 1979 | B8: -- | C8: -- | D8: 0 | E8: 3 | F8: 563 | G8: 1,124 | H8: 1,189 | I8: 0 | J8: 0 | K8: - | L8: 2,879 | N8: -- | O8: -- | P8: 0 | Q8: 6 | R8: 2,065 | S8: 5,825 | T8: 2,933 | U8: 0 | V8: 0 | W8: - | X8: 10,829
A9: 1980 | B9: -- | C9: -- | D9: 0 | E9: 1 | F9: 1,061 | G9: 834 | H9: 682 | I9: 140 | J9: 0 | K9: - | L9: 2,718 | N9: -- | O9: -- | P9: 0 | Q9: 1 | R9: 1,180 | S9: 4,874 | T9: 1,072 | U9: 122 | V9: 0 | W9: - | X9: 7,249
A10: 1981 | B10: -- | C10: -- | D10: 0 | E10: 7 | F10: 589 | G10: 1,178 | H10: 2,233 | I10: 0 | J10: 0 | K10: 0 | L10: 4,007 | N10: -- | O10: -- | P10: 0 | Q10: 0 | R10: 323 | S10: 1,171 | T10: 1,339 | U10: 0 | V10: 0 | W10: 0 | X10: 2,833
A11: 1982 | B11: -- | C11: -- | D11: 0 | E11: 4 | F11: 614 | G11: 2,258 | H11: 3,181 | I11: 139 | J11: 0 | K11: 0 | L11: 6,196 | N11: -- | O11: -- | P11: 0 | Q11: 0 | R11: 2,335 | S11: 4,644 | T11: 1,693 | U11: 75 | V11: 0 | W11: 0 | X11: 8,747
A12: 1983 | B12: -- | C12: -- | D12: 0 | E12: 0 | F12: 1,338 | G12: 1,400 | H12: 633 | I12: 74 | J12: 0 | K12: 0 | L12: 3,445 | N12: -- | O12: -- | P12: 0 | Q12: 0 | R12: 3,179 | S12: 5,125 | T12: 1,467 | U12: 70 | V12: 0 | W12: 0 | X12: 9,841
A13: 1984 | B13: -- | C13: -- | D13: 0 | E13: 11 | F13: 33 | G13: 1,841 | H13: 1,617 | I13: 21 | J13: 0 | K13: 0 | L13: 3,523 | N13: -- | O13: -- | P13: 0 | Q13: 0 | R13: 17 | S13: 7,025 | T13: 1,530 | U13: 24 | V13: 0 | W13: 0 | X13: 8,596
A14: 1985 | B14: -- | C14: -- | D14: 0 | E14: 2,462 | F14: 4,619 | G14: 8,857 | H14: 1,961 | I14: 90 | J14: 0 | K14: 0 | L14: 17,989 | N14: -- | O14: -- | P14: 0 | Q14: 115 | R14: 254 | S14: 4,052 | T14: 2,252 | U14: 190 | V14: 0 | W14: 0 | X14: 6,863
A15: 1986 | B15: -- | C15: -- | D15: - | E15: 270 | F15: 1,555 | G15: 2,624 | H15: 1,296 | I15: 15 | J15: - | K15: - | L15: 5,760 | N15: -- | O15: -- | P15: - | Q15: 291 | R15: 2,468 | S15: 3,625 | T15: 1,761 | U15: 0 | V15: - | W15: - | X15: 8,145
A16: 1987 | B16: - | C16: - | D16: - | E16: 259 | F16: 3,745 | G16: 4,294 | H16: 2,286 | I16: 1,476 | J16: - | K16: - | L16: 12,060 | N16: - | O16: - | P16: - | Q16: 0 | R16: 930 | S16: 10,663 | T16: 2,713 | U16: 598 | V16: - | W16: - | X16: 14,904
A17: 1988 | B17: - | C17: - | D17: - | E17: 1,006 | F17: 7,418 | G17: 7,560 | H17: 1,241 | I17: 11 | J17: - | K17: - | L17: 17,236 | N17: - | O17: - | P17: - | Q17: 8 | R17: 571 | S17: 10,267 | T17: 1,376 | U17: 16 | V17: - | W17: - | X17: 12,238
A18: 1989 | B18: - | C18: - | D18: - | E18: 417 | F18: 3,589 | G18: 17,990 | H18: 3,227 | I18: 52 | J18: - | K18: - | L18: 25,275 | N18: - | O18: - | P18: - | Q18: 43 | R18: 4,882 | S18: 11,662 | T18: 1,835 | U18: 69 | V18: - | W18: - | X18: 18,491
A19: 1990 | B19: - | C19: - | D19: - | E19: 118 | F19: 6,451 | G19: 5,975 | H19: 151 | I19: 22 | J19: - | K19: - | L19: 12,717 | N19: - | O19: - | P19: - | Q19: 11 | R19: 8,953 | S19: 5,933 | T19: 538 | U19: 22 | V19: - | W19: - | X19: 15,457
A20: 1991 | B20: - | C20: - | D20: - | E20: 7 | F20: 1,321 | G20: 1,943 | H20: 35 | I20: 61 | J20: - | K20: - | L20: 3,367 | N20: - | O20: - | P20: - | Q20: 0 | R20: 8,790 | S20: 9,234 | T20: 100 | U20: 194 | V20: - | W20: - | X20: 18,318
A21: 1992 | B21: - | C21: - | D21: - | E21: - | F21: - | G21: 842 | H21: - | I21: 47 | J21: - | K21: - | L21: 889 | N21: - | O21: - | P21: - | Q21: - | R21: - | S21: 2,642 | T21: - | U21: 198 | V21: - | W21: - | X21: 2,840
A22: 1993 | B22: - | C22: - | D22: - | E22: 125 | F22: 38 | G22: 519 | H22: 406 | I22: 184 | J22: - | K22: - | L22: 1,272 | N22: - | O22: - | P22: - | Q22: 10 | R22: 62 | S22: 3,638 | T22: 2,731 | U22: 257 | V22: - | W22: - | X22: 6,698
A23: 1994 | B23: - | C23: - | D23: - | E23: 4,474 | F23: 1,279 | G23: - | H23: 428 | I23: 140 | J23: - | K23: - | L23: 6,321 | N23: - | O23: - | P23: - | Q23: 3 | R23: 0 | S23: - | T23: 52 | U23: 2 | V23: - | W23: - | X23: 57
A24: 1995 | B24: - | C24: - | D24: - | E24: 656 | F24: 2,971 | G24: - | H24: 334 | I24: 1,595 | J24: - | K24: - | L24: 5,556 | N24: - | O24: - | P24: - | Q24: 7 | R24: 38 | S24: - | T24: 15 | U24: 13 | V24: - | W24: - | X24: 73
A25: 1996 | B25: - | C25: - | D25: - | E25: 315 | F25: 2,253 | G25: 757 | H25: 341 | I25: 162 | J25: - | K25: - | L25: 3,828 | N25: - | O25: - | P25: - | Q25: - | R25: 67 | S25: - | T25: 15 | U25: 19 | V25: - | W25: - | X25: 101
A26: 1997 | B26: - | C26: - | D26: - | E26: 288 | F26: 540 | G26: 840 | H26: 849 | I26: 10 | J26: - | K26: - | L26: 2,527 | N26: - | O26: - | P26: - | Q26: 4 | R26: - | S26: 60 | T26: 13 | U26: - | V26: - | W26: - | X26: 77
A27: 1998 | B27: - | C27: - | D27: - | E27: 215 | F27: 687 | G27: 142 | H27: 59 | I27: 20 | J27: - | K27: - | L27: 1,123 | N27: - | O27: - | P27: - | Q27: - | R27: 10 | S27: 3 | T27: 3 | U27: - | V27: - | W27: - | X27: 16
A28: 1999 | B28: - | C28: - | D28: - | E28: 0 | F28: 134 | G28: 218 | H28: 590 | I28: 74 | J28: - | K28: - | L28: 1,016 | N28: - | O28: - | P28: - | Q28: - | R28: 4 | S28: 18 | T28: 19 | U28: - | V28: - | W28: - | X28: 41
A29: 2000 | B29: - | C29: - | D29: - | E29: 12 | F29: 522 | G29: 1,443 | H29: 1,454 | I29: 140 | J29: - | K29: - | L29: 3,571 | N29: - | O29: - | P29: - | Q29: - | R29: - | S29: 12 | T29: 57 | U29: - | V29: - | W29: - | X29: 69
A30: 2001 | B30: - | C30: - | D30: - | E30: 484 | F30: 607 | G30: 533 | H30: 507 | I30: 105 | J30: - | K30: - | L30: 2,236 | N30: - | O30: - | P30: - | Q30: 3 | R30: 52 | S30: 24 | T30: 16 | U30: - | V30: - | W30: - | X30: 95
A31: 2002 | B31: - | C31: - | D31: - | E31: 283 | F31: 245 | G31: 31 | H31: 392 | I31: 156 | J31: - | K31: - | L31: 1,107 | N31: - | O31: - | P31: - | Q31: - | R31: 26 | S31: 3 | T31: 4 | U31: - | V31: - | W31: - | X31: 33
A32: 2003 | B32: - | C32: - | D32: - | E32: 62 | F32: 76 | G32: 60 | H32: 90 | I32: 103 | J32: - | K32: - | L32: 391 | N32: - | O32: - | P32: - | Q32: - | R32: 4 | S32: - | T32: 12 | U32: - | V32: - | W32: - | X32: 16
A33: 2004 | B33: - | C33: - | D33: - | E33: 487 | F33: 259 | G33: 172 | H33: 309 | I33: 63 | J33: - | K33: - | L33: 1,290 | N33: - | O33: - | P33: - | Q33: 8 | R33: 7 | S33: 40 | T33: 24 | U33: - | V33: - | W33: - | X33: 79
A34: 2005 | B34: - | C34: - | D34: - | E34: 11 | F34: 829 | G34: 389 | H34: 240 | I34: 29 | J34: - | K34: - | L34: 1,498 | N34: - | O34: - | P34: - | Q34: - | R34: 4 | S34: - | T34: 17 | U34: - | V34: - | W34: - | X34: 21
A35: 2006 | B35: - | C35: - | D35: - | E35: 252 | F35: 273 | G35: 216 | H35: - | I35: 15 | J35: - | K35: - | L35: 756 | N35: - | O35: - | P35: - | Q35: 3 | R35: 9 | S35: 8 | T35: - | U35: - | V35: - | W35: - | X35: 20
A36: 2007 | B36: - | C36: - | D36: - | E36: 30 | F36: 198 | G36: 589 | H36: 27 | I36: 27 | J36: - | K36: - | L36: 871 | N36: - | O36: - | P36: - | Q36: - | R36: 8 | S36: 43 | T36: - | U36: 5 | V36: - | W36: - | X36: 56
A37: 2008 | B37: - | C37: - | D37: - | E37: - | F37: - | G37: - | H37: - | I37: - | J37: - | K37: - | L37: - | N37: - | O37: - | P37: - | Q37: - | R37: - | S37: - | T37: - | U37: - | V37: - | W37: - | X37: -
A38: 2009 | B38: - | C38: - | D38: - | E38: - | F38: - | G38: - | H38: 36 | I38: 111 | J38: - | K38: - | L38: =SUM(B38:K38) -> 147 | N38: - | O38: - | P38: - | Q38: - | R38: - | S38: - | T38: - | U38: 3 | V38: - | W38: - | X38: =SUM(N38:W38) -> 3
A39: 2010 | B39: - | C39: - | D39: - | E39: 0 | F39: 0 | G39: 0 | H39: 0 | I39: 0 | J39: - | K39: - | L39: 0 | N39: - | O39: - | P39: - | Q39: - | R39: - | S39: - | T39: - | U39: - | V39: - | W39: - | X39: -
A40: 2011 | B40: - | C40: - | D40: - | E40: 36 | F40: 12 | G40: 42 | H40: 18 | I40: 5 | J40: - | K40: - | L40: 113 | N40: - | O40: - | P40: - | Q40: - | R40: - | S40: - | T40: - | U40: - | V40: - | W40: - | X40: -
A41: 2012 | B41: - | C41: - | D41: - | E41: 115 | F41: 761 | G41: 4,761 | H41: 1,469 | I41: 326 | J41: - | K41: - | L41: 7,432 | N41: - | O41: - | P41: - | Q41: - | R41: 23 | S41: 27 | T41: - | U41: - | V41: - | W41: - | X41: =SUM(N41:W41) -> 50
A42: 2013 | B42: - | C42: - | D42: - | E42: 140 | F42: 2,913 | G42: 2,726 | H42: 284 | I42: 0 | J42: - | K42: - | L42: 6,063 | N42: - | O42: - | P42: - | Q42: - | R42: 22 | S42: 19 | T42: - | U42: - | V42: - | W42: - | X42: =SUM(N42:W42) -> 41
A43: 2014 | B43: - | C43: - | D43: - | E43: 1,522 | F43: 402 | G43: 1,284 | H43: 25 | I43: 0 | J43: - | K43: - | L43: 3,233 | N43: - | O43: - | P43: - | Q43: - | R43: 16 | S43: 50 | T43: - | U43: - | V43: - | W43: - | X43: =SUM(N43:W43) -> 66
A44: 2015 | B44: - | C44: - | D44: - | E44: 23 | F44: 19 | G44: 0 | H44: 22 | I44: 0 | J44: - | K44: - | L44: 64 | N44: - | O44: - | P44: - | Q44: - | R44: - | S44: - | T44: - | U44: - | V44: - | W44: - | X44: -
A45: 2016 | B45: - | C45: - | D45: - | E45: 4 | F45: 9 | G45: 20 | H45: 0 | I45: 0 | J45: - | K45: - | L45: 33 | N45: - | O45: - | P45: - | Q45: - | R45: - | S45: - | T45: - | U45: - | V45: - | W45: - | X45: -
A46: 2017 | B46: - | C46: - | D46: - | E46: - | F46: - | G46: - | H46: - | I46: - | J46: - | K46: - | L46: - | N46: - | O46: - | P46: - | Q46: - | R46: - | S46: - | T46: - | U46: - | V46: - | W46: - | X46: -
A47: 2018 | B47: - | C47: - | D47: - | E47: - | F47: 124 | G47: 128 | H47: 76 | I47: 0 | J47: - | K47: - | L47: 328 | N47: - | O47: - | P47: - | Q47: - | R47: 8 | S47: 16 | T47: - | U47: - | V47: - | W47: - | X47: =SUM(N47:W47) -> 24
A48: 2019 | B48: - | C48: - | D48: - | E48: 1 | F48: 33 | G48: 10 | H48: 13 | I48: 4 | J48: - | K48: - | L48: =SUM(B48:K48) -> 61 | N48: - | O48: - | P48: - | Q48: - | R48: - | S48: 4 | T48: 4 | U48: - | V48: - | W48: - | X48: =SUM(N48:W48) -> 8
A49: 2020a | B49: - | C49: - | D49: - | E49: - | F49: -- | G49: 318 | H49: 65 | I49: - | J49: - | K49: - | L49: 383 | N49: - | O49: - | P49: - | Q49: - | R49: - | S49: 14 | T49: - | U49: - | V49: - | W49: - | X49: =SUM(N49:W49) -> 14
A50: 2021b/ | B50: - | C50: - | D50: - | E50: - | F50: 16 | G50: 73 | H50: 0 | I50: - | J50: - | K50: - | L50: 89 | N50: - | O50: - | P50: - | Q50: - | R50: - | S50: - | T50: - | U50: - | V50: - | W50: - | X50: =SUM(N50:W50) -> 0
A52: Eureka
A53: 1976 | B53: -- | C53: -- | D53: 0 | E53: 15 | F53: 3,698 | G53: 2,460 | H53: 819 | I53: 119 | J53: 0 | K53: 0 | L53: =SUM(B53:K53) -> 7,111 | N53: -- | O53: -- | P53: 0 | Q53: 173 | R53: 8,529 | S53: 7,622 | T53: 3,341 | U53: 180 | V53: 0 | W53: 0 | X53: =SUM(N53:W53) -> 19,845
A54: 1977 | B54: -- | C54: -- | D54: 0 | E54: 768 | F54: 309 | G54: 10,141 | H54: 1,991 | I54: 52 | J54: 0 | K54: 0 | L54: 13,261 | N54: -- | O54: -- | P54: 0 | Q54: 285 | R54: 30 | S54: 3,474 | T54: 2,013 | U54: 102 | V54: 1 | W54: 0 | X54: 5,905
A55: 1978 | B55: -- | C55: -- | D55: 0 | E55: 0 | F55: 713 | G55: 1,117 | H55: 478 | I55: 0 | J55: 0 | K55: 0 | L55: 2,308 | N55: -- | O55: -- | P55: 0 | Q55: 0 | R55: 7,854 | S55: 9,697 | T55: 1,390 | U55: 31 | V55: 0 | W55: 0 | X55: 18,972
A56: 1979 | B56: -- | C56: -- | D56: 1 | E56: 8 | F56: 721 | G56: 1,955 | H56: 891 | I56: 50 | J56: 21 | K56: - | L56: 3,647 | N56: -- | O56: -- | P56: 3 | Q56: 21 | R56: 2,062 | S56: 5,264 | T56: 1,177 | U56: 0 | V56: 0 | W56: - | X56: 8,527
A57: 1980 | B57: -- | C57: -- | D57: 0 | E57: 2 | F57: 795 | G57: 2,607 | H57: 584 | I57: 58 | J57: 0 | K57: - | L57: 4,046 | N57: -- | O57: -- | P57: 0 | Q57: 5 | R57: 2,200 | S57: 9,311 | T57: 748 | U57: 56 | V57: 0 | W57: - | X57: 12,320
A58: 1981 | B58: -- | C58: -- | D58: 0 | E58: 5 | F58: 268 | G58: 2,474 | H58: 1,653 | I58: 6 | J58: 0 | K58: 0 | L58: 4,406 | N58: -- | O58: -- | P58: 0 | Q58: 0 | R58: 390 | S58: 3,128 | T58: 1,948 | U58: 40 | V58: 0 | W58: 0 | X58: 5,506
A59: 1982 | B59: -- | C59: -- | D59: 0 | E59: 0 | F59: 3,802 | G59: 2,780 | H59: 483 | I59: 19 | J59: 0 | K59: 0 | L59: 7,084 | N59: -- | O59: -- | P59: 0 | Q59: 0 | R59: 6,410 | S59: 6,638 | T59: 1,333 | U59: 37 | V59: 0 | W59: 0 | X59: 14,418
A60: 1983 | B60: -- | C60: -- | D60: 0 | E60: 3 | F60: 2,059 | G60: 2,770 | H60: 510 | I60: 108 | J60: 34 | K60: 0 | L60: 5,484 | N60: -- | O60: -- | P60: 0 | Q60: 5 | R60: 5,914 | S60: 6,700 | T60: 2,244 | U60: 198 | V60: 0 | W60: 0 | X60: 15,061
A61: 1984 | B61: -- | C61: -- | D61: 0 | E61: 8 | F61: 95 | G61: 3,840 | H61: 588 | I61: 75 | J61: 5 | K61: 0 | L61: 4,611 | N61: -- | O61: -- | P61: 0 | Q61: 0 | R61: 42 | S61: 7,875 | T61: 1,002 | U61: 40 | V61: 0 | W61: 0 | X61: 8,959
A62: 1985 | B62: -- | C62: -- | D62: 5 | E62: 6,404 | F62: 4,905 | G62: 12,772 | H62: 2,142 | I62: 156 | J62: 0 | K62: 0 | L62: 26,384 | N62: -- | O62: -- | P62: 0 | Q62: 781 | R62: 168 | S62: 4,434 | T62: 2,064 | U62: 438 | V62: 0 | W62: 0 | X62: 7,885
A63: 1986 | B63: -- | C63: -- | D63: - | E63: 477 | F63: 2,590 | G63: 3,278 | H63: 4,090 | I63: 24 | J63: - | K63: - | L63: 10,459 | N63: -- | O63: -- | P63: - | Q63: 125 | R63: 2,696 | S63: 4,187 | T63: 1,591 | U63: 6 | V63: - | W63: - | X63: 8,605
A64: 1987 | B64: - | C64: - | D64: - | E64: 1,139 | F64: 3,706 | G64: 6,490 | H64: 6,500 | I64: 601 | J64: - | K64: - | L64: 18,436 | N64: - | O64: - | P64: - | Q64: 81 | R64: 3,455 | S64: 21,274 | T64: 4,326 | U64: 645 | V64: - | W64: - | X64: 29,781
A65: 1988 | B65: - | C65: - | D65: - | E65: 572 | F65: 5,689 | G65: 7,018 | H65: 904 | I65: 162 | J65: - | K65: - | L65: 14,345 | N65: - | O65: - | P65: - | Q65: 671 | R65: 3,491 | S65: 12,169 | T65: 2,190 | U65: 427 | V65: - | W65: - | X65: 18,948
A66: 1989 | B66: - | C66: - | D66: - | E66: 1,645 | F66: 7,503 | G66: 12,195 | H66: 3,200 | I66: 99 | J66: - | K66: - | L66: 24,642 | N66: - | O66: - | P66: - | Q66: 1,567 | R66: 7,512 | S66: 13,376 | T66: 3,859 | U66: 41 | V66: - | W66: - | X66: 26,355
A67: 1990 | B67: - | C67: - | D67: - | E67: 931 | F67: 5,140 | G67: 4,631 | H67: 374 | I67: 33 | J67: 0 | K67: - | L67: 11,109 | N67: - | O67: - | P67: - | Q67: 858 | R67: 10,603 | S67: 11,218 | T67: 1,662 | U67: 225 | V67: 0 | W67: - | X67: 24,566
A68: 1991 | B68: - | C68: - | D68: - | E68: 57 | F68: 6,382 | G68: 2,788 | H68: 13 | I68: 267 | J68: 1 | K68: - | L68: 9,508 | N68: - | O68: - | P68: - | Q68: 62 | R68: 12,570 | S68: 8,664 | T68: 194 | U68: 279 | V68: 2 | W68: - | X68: 21,771
A69: 1992 | B69: - | C69: - | D69: - | E69: - | F69: - | G69: 1,397 | H69: - | I69: 309 | J69: - | K69: - | L69: 1,706 | N69: - | O69: - | P69: - | Q69: - | R69: - | S69: 2,732 | T69: - | U69: 859 | V69: - | W69: - | X69: 3,591
A70: 1993 | B70: - | C70: - | D70: - | E70: 258 | F70: 230 | G70: 1,486 | H70: 1,194 | I70: 446 | J70: - | K70: - | L70: 3,614 | N70: - | O70: - | P70: - | Q70: 562 | R70: 797 | S70: 3,804 | T70: 1,798 | U70: 659 | V70: - | W70: - | X70: 7,620
A71: 1994 | B71: - | C71: - | D71: - | E71: 1,438 | F71: 1,773 | G71: - | H71: 372 | I71: 81 | J71: - | K71: - | L71: 3,664 | N71: - | O71: - | P71: - | Q71: - | R71: 3 | S71: - | T71: 28 | U71: 1 | V71: - | W71: - | X71: 32
A72: 1995 | B72: - | C72: - | D72: - | E72: 729 | F72: 4,001 | G72: - | H72: 1,322 | I72: 2,023 | J72: - | K72: - | L72: 8,075 | N72: - | O72: - | P72: - | Q72: 2 | R72: 86 | S72: - | T72: 2 | U72: 107 | V72: - | W72: - | X72: 197
A73: 1996 | B73: - | C73: - | D73: - | E73: 1,711 | F73: 3,584 | G73: 185 | H73: 939 | I73: 500 | J73: - | K73: - | L73: 6,919 | N73: - | O73: - | P73: - | Q73: - | R73: 98 | S73: 15 | T73: 17 | U73: 23 | V73: - | W73: - | X73: 153
A74: 1997 | B74: - | C74: - | D74: - | E74: 1,484 | F74: 1,738 | G74: 1,160 | H74: 2,000 | I74: 74 | J74: - | K74: - | L74: 6,456 | N74: - | O74: - | P74: - | Q74: 12 | R74: 40 | S74: 12 | T74: 55 | U74: 5 | V74: - | W74: - | X74: 124
A75: 1998 | B75: - | C75: - | D75: - | E75: 541 | F75: 470 | G75: 224 | H75: 471 | I75: 84 | J75: - | K75: - | L75: 1,790 | N75: - | O75: - | P75: - | Q75: - | R75: 5 | S75: 12 | T75: 30 | U75: - | V75: - | W75: - | X75: 47
A76: 1999 | B76: - | C76: - | D76: - | E76: 6 | F76: 2,150 | G76: 1,041 | H76: 1,902 | I76: 76 | J76: - | K76: - | L76: 5,175 | N76: - | O76: - | P76: - | Q76: - | R76: 30 | S76: 16 | T76: 44 | U76: - | V76: - | W76: - | X76: 90
A77: 2000 | B77: - | C77: - | D77: - | E77: 284 | F77: 1,800 | G77: 2,350 | H77: 5,010 | I77: 459 | J77: - | K77: - | L77: 9,903 | N77: - | O77: - | P77: - | Q77: - | R77: 19 | S77: 24 | T77: 76 | U77: 8 | V77: - | W77: - | X77: 127
A78: 2001 | B78: - | C78: - | D78: - | E78: 1,399 | F78: 3,622 | G78: 2,113 | H78: 2,025 | I78: 1,429 | J78: - | K78: - | L78: 10,588 | N78: - | O78: - | P78: - | Q78: 8 | R78: 50 | S78: 20 | T78: 13 | U78: - | V78: - | W78: - | X78: 91
A79: 2002 | B79: - | C79: - | D79: - | E79: 2,259 | F79: 4,991 | G79: 564 | H79: 5,487 | I79: 1,723 | J79: - | K79: - | L79: 15,024 | N79: - | O79: - | P79: - | Q79: 10 | R79: 196 | S79: 23 | T79: 24 | U79: 9 | V79: - | W79: - | X79: 262
A80: 2003 | B80: - | C80: - | D80: - | E80: 2,875 | F80: 1,764 | G80: 1,379 | H80: 1,686 | I80: 657 | J80: - | K80: - | L80: 8,361 | N80: - | O80: - | P80: - | Q80: 29 | R80: 50 | S80: 8 | T80: 34 | U80: - | V80: - | W80: - | X80: 121
A81: 2004 | B81: - | C81: - | D81: - | E81: 5,496 | F81: 1,946 | G81: 4,377 | H81: 7,153 | I81: 2,582 | J81: - | K81: - | L81: 21,554 | N81: - | O81: - | P81: - | Q81: 184 | R81: 76 | S81: 74 | T81: 123 | U81: 24 | V81: - | W81: - | X81: 481
A82: 2005 | B82: - | C82: - | D82: - | E82: 1,015 | F82: 6,485 | G82: 1,879 | H82: 4,020 | I82: 2,647 | J82: - | K82: - | L82: 16,046 | N82: - | O82: - | P82: - | Q82: 24 | R82: 44 | S82: 3 | T82: 11 | U82: 48 | V82: - | W82: - | X82: 130
A83: 2006 | B83: - | C83: - | D83: - | E83: 4,316 | F83: 5,413 | G83: 2,113 | H83: - | I83: 3,805 | J83: - | K83: - | L83: 15,647 | N83: - | O83: - | P83: - | Q83: 88 | R83: 20 | S83: 25 | T83: - | U83: 88 | V83: - | W83: - | X83: 221
A84: 2007 | B84: - | C84: - | D84: - | E84: 797 | F84: 5,050 | G84: 4,296 | H84: 6,037 | I84: 1,845 | J84: - | K84: - | L84: 18,025 | N84: - | O84: - | P84: - | Q84: - | R84: 105 | S84: 96 | T84: 108 | U84: 36 | V84: - | W84: - | X84: 345
A85: 2008 | B85: - | C85: - | D85: - | E85: - | F85: - | G85: - | H85: - | I85: - | J85: - | K85: - | L85: - | N85: - | O85: - | P85: - | Q85: - | R85: - | S85: - | T85: - | U85: - | V85: - | W85: - | X85: -
A86: 2009 | B86: - | C86: - | D86: - | E86: - | F86: - | G86: - | H86: 266 | I86: 259 | J86: - | K86: - | L86: =SUM(B86:K86) -> 525 | N86: - | O86: - | P86: - | Q86: - | R86: - | S86: - | T86: - | U86: 5 | V86: - | W86: - | X86: =SUM(N86:W86) -> 5
A87: 2010 | B87: - | C87: - | D87: - | E87: 17 | F87: 158 | G87: 37 | H87: 477 | I87: 31 | J87: - | K87: - | L87: 720 | N87: - | O87: - | P87: - | Q87: - | R87: - | S87: - | T87: 50 | U87: - | V87: - | W87: - | X87: 50
A88: 2011 | B88: - | C88: - | D88: - | E88: 630 | F88: 934 | G88: 4,342 | H88: 3,672 | I88: 296 | J88: - | K88: - | L88: 9,874 | N88: - | O88: - | P88: - | Q88: 5 | R88: 10 | S88: 50 | T88: 29 | U88: 4 | V88: - | W88: - | X88: 98
A89: 2012 | B89: - | C89: - | D89: - | E89: 3,462 | F89: 10,104 | G89: 7,049 | H89: 9,019 | I89: 2,378 | J89: - | K89: - | L89: 32,012 | N89: - | O89: - | P89: - | Q89: - | R89: 12 | S89: 5 | T89: - | U89: - | V89: - | W89: - | X89: 17
A90: 2013 | B90: - | C90: - | D90: - | E90: 2,423 | F90: 7,601 | G90: 8,579 | H90: 8,876 | I90: 439 | J90: - | K90: - | L90: 27,918 | N90: - | O90: - | P90: - | Q90: - | R90: 35 | S90: 39 | T90: 122 | U90: - | V90: - | W90: - | X90: 196
A91: 2014 | B91: - | C91: - | D91: - | E91: 2,074 | F91: 4,877 | G91: 3,159 | H91: 2,181 | I91: 303 | J91: - | K91: - | L91: 12,594 | N91: - | O91: - | P91: - | Q91: 19 | R91: 72 | S91: 118 | T91: 4 | U91: 3 | V91: - | W91: - | X91: 216
A92: 2015 | B92: - | C92: - | D92: - | E92: 877 | F92: 260 | G92: 1,088 | H92: 1,385 | I92: 16 | J92: - | K92: - | L92: 3,626 | N92: - | O92: - | P92: - | Q92: - | R92: 8 | S92: 4 | T92: - | U92: - | V92: - | W92: - | X92: 12
A93: 2016 | B93: - | C93: - | D93: - | E93: 1,450 | F93: 934 | G93: 1,414 | H93: 646 | I93: 523 | J93: - | K93: - | L93: 4,967 | N93: - | O93: - | P93: - | Q93: - | R93: 18 | S93: 9 | T93: - | U93: - | V93: - | W93: - | X93: 27
A94: 2017 | B94: - | C94: - | D94: - | E94: - | F94: - | G94: - | H94: - | I94: - | J94: - | K94: - | L94: - | N94: - | O94: - | P94: - | Q94: - | R94: - | S94: - | T94: - | U94: - | V94: - | W94: - | X94: -
A95: 2018 | B95: - | C95: - | D95: - | E95: - | F95: 1,590 | G95: 734 | H95: 1,059 | I95: 27 | J95: - | K95: - | L95: 3,410 | N95: - | O95: - | P95: - | Q95: - | R95: 41 | S95: 4 | T95: 33 | U95: - | V95: - | W95: - | X95: 78
A96: 2019 | B96: - | C96: - | D96: - | E96: 315 | F96: 2,273 | G96: 1,308 | H96: 941 | I96: 59 | J96: - | K96: - | L96: =SUM(B96:K96) -> 4,896 | N96: - | O96: - | P96: - | Q96: - | R96: 47 | S96: 61 | T96: 39 | U96: - | V96: - | W96: - | X96: =SUM(N96:W96) -> 147
A97: 2020a | B97: - | C97: - | D97: - | E97: - | F97: -- | G97: 1,244 | H97: 204 | I97: - | J97: - | K97: - | L97: 1,448 | N97: - | O97: - | P97: - | Q97: - | R97: - | S97: 4 | T97: - | U97: - | V97: - | W97: - | X97: 4
A98: 2021b/ | B98: - | C98: - | D98: - | E98: - | F98: 12 | G98: 540 | H98: 0 | I98: - | J98: - | K98: - | L98: 552 | N98: - | O98: - | P98: - | Q98: - | R98: - | S98: 9 | T98: - | U98: - | V98: - | W98: - | X98: 9
A100: Fort Bragg
A101: 1976 | B101: -- | C101: -- | D101: 0 | E101: 18 | F101: 287 | G101: 1,469 | H101: 543 | I101: 6 | J101: 1 | K101: 0 | L101: =SUM(B101:K101) -> 2,324 | N101: -- | O101: -- | P101: 0 | Q101: 234 | R101: 1,492 | S101: 4,071 | T101: 1,450 | U101: 5 | V101: 1 | W101: 0 | X101: =SUM(N101:W101) -> 7,253
A102: 1977 | B102: -- | C102: -- | D102: 0 | E102: 11 | F102: 41 | G102: 2,168 | H102: 3,698 | I102: 405 | J102: 0 | K102: 0 | L102: 6,323 | N102: -- | O102: -- | P102: 0 | Q102: 0 | R102: 0 | S102: 156 | T102: 176 | U102: 363 | V102: 0 | W102: 0 | X102: 695
A103: 1978 | B103: -- | C103: -- | D103: 1 | E103: 15 | F103: 616 | G103: 1,386 | H103: 516 | I103: 0 | J103: 0 | K103: 0 | L103: 2,534 | N103: -- | O103: -- | P103: 0 | Q103: 12 | R103: 1,043 | S103: 829 | T103: 106 | U103: 0 | V103: 0 | W103: 0 | X103: 1,990
A104: 1979 | B104: -- | C104: -- | D104: 0 | E104: 0 | F104: 564 | G104: 2,877 | H104: 1,110 | I104: 75 | J104: 0 | K104: 0 | L104: 4,626 | N104: -- | O104: -- | P104: 0 | Q104: 0 | R104: 315 | S104: 348 | T104: 116 | U104: 44 | V104: 0 | W104: - | X104: 823
A105: 1980 | B105: -- | C105: -- | D105: 1 | E105: 51 | F105: 328 | G105: 721 | H105: 194 | I105: 13 | J105: 0 | K105: 0 | L105: 1,308 | N105: -- | O105: -- | P105: 0 | Q105: 49 | R105: 320 | S105: 791 | T105: 107 | U105: 0 | V105: 0 | W105: - | X105: 1,267
A106: 1981 | B106: -- | C106: -- | D106: 5 | E106: 37 | F106: 434 | G106: 1,006 | H106: 290 | I106: 10 | J106: 5 | K106: 0 | L106: 1,787 | N106: -- | O106: -- | P106: 0 | Q106: 0 | R106: 0 | S106: 340 | T106: 181 | U106: 0 | V106: 0 | W106: 0 | X106: 521
A107: 1982 | B107: -- | C107: -- | D107: 0 | E107: 62 | F107: 843 | G107: 1,319 | H107: 709 | I107: 15 | J107: 0 | K107: 0 | L107: 2,948 | N107: -- | O107: -- | P107: 0 | Q107: 0 | R107: 193 | S107: 546 | T107: 167 | U107: 15 | V107: 0 | W107: 0 | X107: 921
A108: 1983 | B108: -- | C108: -- | D108: 0 | E108: 12 | F108: 747 | G108: 931 | H108: 232 | I108: 11 | J108: 0 | K108: 0 | L108: 1,933 | N108: -- | O108: -- | P108: 0 | Q108: 0 | R108: 347 | S108: 1,169 | T108: 215 | U108: 0 | V108: 0 | W108: 0 | X108: 1,731
A109: 1984 | B109: -- | C109: -- | D109: 1 | E109: 3 | F109: 251 | G109: 594 | H109: 143 | I109: 7 | J109: 0 | K109: 0 | L109: 999 | N109: -- | O109: -- | P109: 0 | Q109: 0 | R109: 104 | S109: 494 | T109: 116 | U109: 0 | V109: 0 | W109: 0 | X109: 714
A110: 1985 | B110: -- | C110: -- | D110: 1 | E110: 33 | F110: 806 | G110: 3,913 | H110: 221 | I110: 10 | J110: 1 | K110: 0 | L110: 4,985 | N110: -- | O110: -- | P110: 0 | Q110: 0 | R110: 474 | S110: 290 | T110: 8 | U110: 0 | V110: 0 | W110: 0 | X110: 772
A111: 1986 | B111: 0 | C111: 0 | D111: 8 | E111: 170 | F111: 3,227 | G111: 6,399 | H111: 780 | I111: 0 | J111: 0 | K111: 0 | L111: 10,584 | N111: 0 | O111: 0 | P111: 0 | Q111: 13 | R111: 189 | S111: 1,140 | T111: 249 | U111: 3 | V111: 0 | W111: 0 | X111: 1,594
A112: 1987 | B112: 0 | C112: 4 | D112: 45 | E112: 253 | F112: 2,359 | G112: 5,208 | H112: 1,115 | I112: 217 | J112: 0 | K112: 0 | L112: 9,201 | N112: 0 | O112: 0 | P112: 0 | Q112: 0 | R112: 671 | S112: 1,125 | T112: 471 | U112: 241 | V112: 0 | W112: 0 | X112: 2,508
A113: 1988 | B113: 0 | C113: 0 | D113: 311 | E113: 1,110 | F113: 3,431 | G113: 3,799 | H113: 707 | I113: 48 | J113: 0 | K113: 0 | L113: 9,406 | N113: 0 | O113: 0 | P113: 0 | Q113: 81 | R113: 163 | S113: 2,809 | T113: 95 | U113: 0 | V113: 0 | W113: 0 | X113: 3,148
A114: 1989 | B114: 0 | C114: 0 | D114: 58 | E114: 182 | F114: 2,527 | G114: 2,409 | H114: 579 | I114: 36 | J114: 12 | K114: 0 | L114: 5,803 | N114: 0 | O114: 0 | P114: 0 | Q114: 14 | R114: 1,084 | S114: 2,109 | T114: 397 | U114: 75 | V114: 0 | W114: 0 | X114: 3,679
A115: 1990 | B115: 0 | C115: 0 | D115: 1 | E115: 84 | F115: 1,588 | G115: 1,472 | H115: 191 | I115: 52 | J115: 0 | K115: 0 | L115: 3,388 | N115: 0 | O115: 0 | P115: 0 | Q115: 84 | R115: 2,193 | S115: 2,127 | T115: 107 | U115: 29 | V115: 0 | W115: 0 | X115: 4,540
A116: 1991 | B116: 0 | C116: 0 | D116: 6 | E116: 156 | F116: 1,629 | G116: 3,580 | H116: 467 | I116: 16 | J116: -- | K116: -- | L116: 5,854 | N116: 0 | O116: 0 | P116: 0 | Q116: 500 | R116: 7,894 | S116: 9,557 | T116: 627 | U116: 8 | V116: -- | W116: -- | X116: 18,586
A117: 1992 | B117: 0 | C117: 2 | D117: 80 | E117: 983 | F117: 54 | G117: 2,412 | H117: - | I117: 707 | J117: 24 | K117: 1 | L117: 4,263 | N117: 0 | O117: 0 | P117: 0 | Q117: 284 | R117: 151 | S117: 2,467 | T117: - | U117: 405 | V117: 25 | W117: 0 | X117: 3,332
A118: 1993 | B118: 2 | C118: 43 | D118: 210 | E118: 284 | F118: 491 | G118: 2,615 | H118: 1,929 | I118: 233 | J118: 14 | K118: 0 | L118: 5,821 | N118: 0 | O118: 5 | P118: 4 | Q118: 96 | R118: 712 | S118: 9,448 | T118: 1,936 | U118: 123 | V118: 3 | W118: 0 | X118: 12,327
A119: 1994 | B119: 27 | C119: 78 | D119: 872 | E119: 3,343 | F119: 7,060 | G119: - | H119: 2,320 | I119: 309 | J119: 9 | K119: -- | L119: 14,018 | N119: 0 | O119: 0 | P119: 13 | Q119: 0 | R119: 171 | S119: - | T119: 39 | U119: 0 | V119: 3 | W119: -- | X119: 226
A120: 1995 | B120: 229 | C120: 300 | D120: 976 | E120: 1,146 | F120: 20,464 | G120: - | H120: 4,795 | I120: 1,015 | J120: 123 | K120: -- | L120: 29,048 | N120: 0 | O120: 0 | P120: 5 | Q120: 3 | R120: 307 | S120: - | T120: 111 | U120: 20 | V120: 9 | W120: -- | X120: 455
A121: 1996 | B121: 11 | C121: 277 | D121: 1,368 | E121: 1,945 | F121: 13,727 | G121: 1,900 | H121: 3,213 | I121: 1,450 | J121: 111 | K121: -- | L121: 24,002 | N121: - | O121: - | P121: 3 | Q121: - | R121: 180 | S121: 23 | T121: 98 | U121: 30 | V121: - | W121: - | X121: 334
A122: 1997 | B122: -- | C122: 128 | D122: 475 | E122: 1,871 | F122: 4,168 | G122: 3,615 | H122: 1,259 | I122: 68 | J122: -- | K122: -- | L122: 11,584 | N122: - | O122: - | P122: - | Q122: 8 | R122: 21 | S122: 21 | T122: 9 | U122: - | V122: - | W122: - | X122: 59
A123: 1998 | B123: -- | C123: 40 | D123: -- | E123: 594 | F123: 520 | G123: 683 | H123: 2,197 | I123: 629 | J123: 0 | K123: -- | L123: 4,663 | N123: - | O123: - | P123: - | Q123: - | R123: - | S123: - | T123: 3 | U123: - | V123: - | W123: - | X123: 3
A124: 1999 | B124: 0 | C124: 1 | D124: 22 | E124: 32 | F124: 481 | G124: 2,020 | H124: 2,550 | I124: 157 | J124: -- | K124: -- | L124: 5,263 | N124: - | O124: - | P124: - | Q124: - | R124: 15 | S124: 27 | T124: 112 | U124: - | V124: - | W124: - | X124: 154
A125: 2000 | B125: -- | C125: -- | D125: 700 | E125: 2,725 | F125: 5,720 | G125: 8,120 | H125: 7,342 | I125: 1,335 | J125: 0 | K125: -- | L125: 25,942 | N125: - | O125: - | P125: - | Q125: - | R125: 46 | S125: 8 | T125: 9 | U125: 3 | V125: - | W125: - | X125: 66
A126: 2001 | B126: -- | C126: 464 | D126: 516 | E126: 2,663 | F126: 6,305 | G126: 10,402 | H126: 5,348 | I126: 358 | J126: 6 | K126: 2 | L126: 26,064 | N126: - | O126: - | P126: - | Q126: 57 | R126: 199 | S126: 145 | T126: 36 | U126: - | V126: - | W126: - | X126: 437
A127: 2002 | B127: 14 | C127: 200 | D127: 2,496 | E127: 3,960 | F127: 8,636 | G127: 11,582 | H127: 4,151 | I127: 163 | J127: 0 | K127: 0 | L127: 31,202 | N127: - | O127: - | P127: - | Q127: 3 | R127: 47 | S127: 127 | T127: 30 | U127: - | V127: - | W127: - | X127: 207
A128: 2003 | B128: 444 | C128: 845 | D128: 428 | E128: 1,222 | F128: 5,063 | G128: 6,353 | H128: 1,420 | I128: 400 | J128: 5 | K128: 0 | L128: 16,180 | N128: - | O128: - | P128: - | Q128: 3 | R128: 45 | S128: 45 | T128: 11 | U128: 5 | V128: - | W128: - | X128: 109
A129: 2004 | B129: 41 | C129: 510 | D129: 107 | E129: 1,657 | F129: 8,494 | G129: 10,211 | H129: 1,334 | I129: 729 | J129: 122 | K129: 0 | L129: 23,205 | N129: - | O129: - | P129: - | Q129: - | R129: 64 | S129: 230 | T129: 61 | U129: 21 | V129: - | W129: - | X129: 376
A130: 2005 | B130: 285 | C130: 111 | D130: 183 | E130: 1,142 | F130: 3,848 | G130: 6,632 | H130: 9,642 | I130: 335 | J130: 5 | K130: 0 | L130: 22,183 | N130: - | O130: - | P130: - | Q130: - | R130: - | S130: 48 | T130: 28 | U130: - | V130: - | W130: - | X130: 76
A131: 2006 | B131: 55 | C131: 109 | D131: 255 | E131: 1,418 | F131: 4,630 | G131: 4,672 | H131: 2,743 | I131: 111 | J131: 0 | K131: 0 | L131: 13,993 | N131: - | O131: - | P131: - | Q131: 19 | R131: 140 | S131: 176 | T131: 40 | U131: - | V131: - | W131: - | X131: 375
A132: 2007 | B132: 48 | C132: 200 | D132: 67 | E132: 1,425 | F132: 1,873 | G132: 1,980 | H132: 158 | I132: 0 | J132: 0 | K132: 0 | L132: 5,751 | N132: - | O132: - | P132: - | Q132: - | R132: 5 | S132: 12 | T132: 4 | U132: - | V132: - | W132: - | X132: 21
A133: 2008 | B133: 0 | C133: 6 | D133: - | E133: - | F133: - | G133: - | H133: - | I133: - | J133: - | K133: - | L133: 6 | N133: - | O133: - | P133: - | Q133: - | R133: - | S133: - | T133: - | U133: - | V133: - | W133: - | X133: -
A134: 2009 | B134: - | C134: - | D134: - | E134: - | F134: - | G134: - | H134: - | I134: - | J134: - | K134: - | L134: - | N134: - | O134: - | P134: - | Q134: - | R134: - | S134: - | T134: - | U134: - | V134: - | W134: - | X134: -
A135: 2010 | B135: - | C135: - | D135: 204 | E135: 264 | F135: 27 | G135: 417 | H135: 657 | I135: 109 | J135: - | K135: - | L135: =SUM(B135:K135) -> 1,678 | N135: - | O135: - | P135: - | Q135: 7 | R135: - | S135: 15 | T135: 19 | U135: - | V135: - | W135: - | X135: =SUM(N135:W135) -> 41
A136: 2011 | B136: - | C136: - | D136: 880 | E136: 705 | F136: 938 | G136: 4,043 | H136: 510 | I136: 204 | J136: 118 | K136: - | L136: =SUM(B136:K136) -> 7,398 | N136: - | O136: - | P136: - | Q136: - | R136: 18 | S136: 83 | T136: 4 | U136: - | V136: 5 | W136: - | X136: 110
A137: 2012 | B137: - | C137: - | D137: 414 | E137: 1,530 | F137: 1,951 | G137: 2,300 | H137: 1,185 | I137: 393 | J137: 84 | K137: 72 | L137: =SUM(B137:K137) -> 7,929 | N137: - | O137: - | P137: - | Q137: - | R137: 13 | S137: 9 | T137: - | U137: 3 | V137: - | W137: - | X137: 25
A138: 2013 | B138: - | C138: - | D138: 310 | E138: 695 | F138: 2,459 | G138: 5,145 | H138: 1,296 | I138: 258 | J138: 5 | K138: 0 | L138: 10,168 | N138: - | O138: - | P138: - | Q138: - | R138: 9 | S138: 20 | T138: 4 | U138: - | V138: - | W138: - | X138: 33
A139: 2014 | B139: - | C139: - | D139: 714 | E139: 630 | F139: 1,358 | G139: 9,035 | H139: 696 | I139: 103 | J139: 4 | K139: 0 | L139: 12,540 | N139: - | O139: - | P139: - | Q139: - | R139: 18 | S139: 123 | T139: - | U139: - | V139: - | W139: - | X139: 141
A140: 2015 | B140: - | C140: - | D140: 394 | E140: 331 | F140: 215 | G140: 3,071 | H140: 1,295 | I140: 183 | J140: 4 | K140: 0 | L140: 5,493 | N140: - | O140: - | P140: - | Q140: 5 | R140: - | S140: 13 | T140: 5 | U140: - | V140: - | W140: - | X140: =SUM(N140:W140) -> 23
A141: 2016 | B141: - | C141: - | D141: 108 | E141: 104 | F141: 222 | G141: 3,524 | H141: 990 | I141: 75 | J141: 8 | K141: 0 | L141: 5,031 | N141: - | O141: - | P141: - | Q141: - | R141: - | S141: 35 | T141: - | U141: - | V141: - | W141: - | X141: =SUM(N141:W141) -> 35
A142: 2017 | B142: - | C142: - | D142: 22 | E142: 650 | F142: - | G142: - | H142: 837 | I142: 370 | J142: 8 | K142: 0 | L142: 1,887 | N142: - | O142: - | P142: - | Q142: - | R142: - | S142: - | T142: 4 | U142: - | V142: - | W142: - | X142: =SUM(N142:W142) -> 4
A143: 2018 | B143: - | C143: - | D143: - | E143: - | F143: 540 | G143: 3,217 | H143: 1,846 | I143: 95 | J143: 0 | K143: - | L143: 5,698 | N143: - | O143: - | P143: - | Q143: - | R143: - | S143: 13 | T143: 4 | U143: 8 | V143: - | W143: - | X143: =SUM(N143:W143) -> 25
A144: 2019 | B144: - | C144: - | D144: 206 | E144: 81 | F144: 947 | G144: 1,697 | H144: 825 | I144: 101 | J144: 0 | K144: - | L144: 3,857 | N144: - | O144: - | P144: - | Q144: - | R144: 13 | S144: 22 | T144: 5 | U144: - | V144: - | W144: - | X144: =SUM(N144:W144) -> 40
A145: 2020a | B145: - | C145: - | D145: - | E145: -- | F145: -- | G145: 1,198 | H145: 565 | I145: 114 | J145: 0 | K145: 0 | L145: 1,877 | N145: - | O145: - | P145: - | Q145: - | R145: - | S145: 19 | T145: - | U145: 4 | V145: - | W145: - | X145: 23
A146: 2021b/ | B146: - | C146: - | D146: - | E146: - | F146: 153 | G146: 1,907 | H146: 827 | I146: 146 | J146: 661 | K146: - | L146: 3,694 | N146: - | O146: - | P146: - | Q146: - | R146: 12 | S146: 78 | T146: 14 | U146: - | V146: 4 | W146: - | X146: 108
A148: San Francisco
A149: 1976 | B149: 2,257 | C149: 929 | D149: 6,023 | E149: 12,021 | F149: 9,155 | G149: 5,594 | H149: 9,497 | I149: 5,232 | J149: 10,505 | K149: 2,547 | L149: =SUM(B149:K149) -> 63,760 | N149: 0 | O149: 0 | P149: 759 | Q149: 5,650 | R149: 2,974 | S149: 3,020 | T149: 680 | U149: 204 | V149: 0 | W149: 0 | X149: =SUM(N149:W149) -> 13,287
A150: 1977 | B150: 3,737 | C150: 4,389 | D150: 14,178 | E150: 3,541 | F150: 8,649 | G150: 17,802 | H150: 6,899 | I150: 7,866 | J150: 4,045 | K150: 1,488 | L150: 72,594 | N150: 12 | O150: 0 | P150: 348 | Q150: 861 | R150: 602 | S150: 260 | T150: 100 | U150: 20 | V150: 63 | W150: 6 | X150: 2,272
A151: 1978 | B151: 9,622 | C151: 8,336 | D151: 2,850 | E151: 2,638 | F151: 6,760 | G151: 11,626 | H151: 7,106 | I151: 4,916 | J151: 7,628 | K151: 2,603 | L151: 64,085 | N151: 0 | O151: 0 | P151: 0 | Q151: 0 | R151: 296 | S151: 600 | T151: 144 | U151: 30 | V151: 0 | W151: 0 | X151: 1,070
A152: 1979 | B152: 6,829 | C152: 13,752 | D152: 8,538 | E152: 5,095 | F152: 14,735 | G152: 22,273 | H152: 11,080 | I152: 13,300 | J152: 6,945 | K152: 0 | L152: 102,547 | N152: 10 | O152: 39 | P152: 20 | Q152: 169 | R152: 369 | S152: 438 | T152: 32 | U152: 13 | V152: 0 | W152: - | X152: 1,090
A153: 1980 | B153: 4,243 | C153: 11,530 | D153: 5,525 | E153: 5,521 | F153: 15,110 | G153: 14,685 | H153: 7,367 | I153: 5,146 | J153: 3,966 | K153: 0 | L153: 73,093 | N153: 0 | O153: 0 | P153: 17 | Q153: 23 | R153: 132 | S153: 96 | T153: 58 | U153: 0 | V153: 8 | W153: - | X153: 334
A154: 1981 | B154: 2,971 | C154: 2,507 | D154: 6,806 | E154: 3,239 | F154: 9,327 | G154: 18,593 | H154: 11,713 | I154: 8,882 | J154: 4,937 | K154: 1,109 | L154: 70,084 | N154: 0 | O154: 0 | P154: 0 | Q154: 0 | R154: 233 | S154: 669 | T154: 515 | U154: 157 | V154: 147 | W154: 0 | X154: 1,721
A155: 1982 | B155: 10,527 | C155: 10,123 | D155: 2,999 | E155: 7,056 | F155: 10,251 | G155: 17,480 | H155: 26,460 | I155: 14,871 | J155: 13,945 | K155: 3,198 | L155: 116,910 | N155: 0 | O155: 0 | P155: 0 | Q155: 525 | R155: 1,643 | S155: 301 | T155: 43 | U155: 12 | V155: 0 | W155: 0 | X155: 2,524
A156: 1983 | B156: 2,332 | C156: 3,000 | D156: 3,812 | E156: 10,325 | F156: 7,928 | G156: 9,571 | H156: 6,785 | I156: 4,347 | J156: 1,561 | K156: 56 | L156: 49,717 | N156: 0 | O156: 3 | P156: 8 | Q156: 44 | R156: 194 | S156: 240 | T156: 52 | U156: 0 | V156: 0 | W156: 0 | X156: 541
A157: 1984 | B157: 377 | C157: 683 | D157: 3,222 | E157: 6,766 | F157: 16,209 | G157: 19,227 | H157: 16,345 | I157: 7,352 | J157: 2,297 | K157: 755 | L157: 73,233 | N157: 0 | O157: 0 | P157: 0 | Q157: 41 | R157: 0 | S157: 393 | T157: 112 | U157: 0 | V157: 0 | W157: 0 | X157: 546
A158: 1985 | B158: 10,486 | C158: 12,784 | D158: 10,688 | E158: 8,519 | F158: 18,017 | G158: 19,475 | H158: 18,857 | I158: 7,033 | J158: 4,897 | K158: 1,719 | L158: 112,475 | N158: 0 | O158: 0 | P158: 48 | Q158: 80 | R158: 125 | S158: 12 | T158: 4 | U158: 14 | V158: 0 | W158: 0 | X158: 283
A159: 1986 | B159: 1,048 | C159: 12,251 | D159: 11,395 | E159: 7,296 | F159: 13,397 | G159: 19,747 | H159: 14,022 | I159: 4,874 | J159: 1,650 | K159: 575 | L159: 86,255 | N159: 0 | O159: 2 | P159: 0 | Q159: 66 | R159: 133 | S159: 135 | T159: 10 | U159: 6 | V159: 2 | W159: 0 | X159: 354
A160: 1987 | B160: 3,801 | C160: 7,390 | D160: 16,763 | E160: 9,307 | F160: 9,849 | G160: 22,360 | H160: 29,666 | I160: 12,261 | J160: 7,052 | K160: 1,077 | L160: 119,526 | N160: 0 | O160: 0 | P160: 0 | Q160: 4 | R160: 14 | S160: 18 | T160: 9 | U160: 6 | V160: 0 | W160: 0 | X160: 51
A161: 1988 | B161: 5,324 | C161: 13,696 | D161: 20,767 | E161: 15,896 | F161: 18,773 | G161: 21,659 | H161: 9,110 | I161: 3,806 | J161: 4,610 | K161: 814 | L161: 114,455 | N161: 0 | O161: 1 | P161: 21 | Q161: 109 | R161: 79 | S161: 101 | T161: 19 | U161: 2 | V161: 0 | W161: 0 | X161: 332
A162: 1989 | B162: 7,321 | C162: 8,234 | D162: 20,365 | E162: 4,803 | F162: 12,260 | G162: 11,424 | H162: 10,974 | I162: 12,158 | J162: 3,716 | K162: 2,404 | L162: 93,659 | N162: 0 | O162: 0 | P162: 115 | Q162: 198 | R162: 434 | S162: 44 | T162: 68 | U162: 4 | V162: 0 | W162: 0 | X162: 863
A163: 1990 | B163: 5,058 | C163: 13,309 | D163: 15,075 | E163: 4,273 | F163: 6,580 | G163: 10,646 | H163: 13,625 | I163: 4,883 | J163: 3,513 | K163: 600 | L163: 77,562 | N163: 0 | O163: 0 | P163: 56 | Q163: 417 | R163: 1,033 | S163: 1,595 | T163: 2,292 | U163: 397 | V163: 59 | W163: 0 | X163: 5,849
A164: 1991 | B164: 45 | C164: 3,175 | D164: 6,079 | E164: 3,733 | F164: 6,838 | G164: 9,962 | H164: 4,869 | I164: 1,523 | J164: 1,027 | K164: 23 | L164: 37,274 | N164: 0 | O164: 2 | P164: 11 | Q164: 70 | R164: 4,217 | S164: 2,781 | T164: 522 | U164: 62 | V164: 30 | W164: 0 | X164: 7,695
A165: 1992 | B165: 87 | C165: 759 | D165: 835 | E165: 3,929 | F165: 6,609 | G165: 13,815 | H165: 8,923 | I165: 9,049 | J165: 3,106 | K165: 81 | L165: 47,193 | N165: 1 | O165: 8 | P165: 10 | Q165: 104 | R165: 120 | S165: 1,092 | T165: 149 | U165: 55 | V165: 24 | W165: 0 | X165: 1,563
A166: 1993 | B166: 185 | C166: 4,718 | D166: 5,283 | E166: 6,241 | F166: 6,345 | G166: 33,079 | H166: 14,873 | I166: 4,483 | J166: 3,526 | K166: - | L166: 78,733 | N166: -- | O166: 32 | P166: 54 | Q166: 171 | R166: 749 | S166: 1,812 | T166: 104 | U166: 21 | V166: 8 | W166: - | X166: 2,951
A167: 1994 | B167: 678 | C167: 3,867 | D167: 8,902 | E167: 7,131 | F167: 25,083 | G167: 50,608 | H167: 22,594 | I167: 13,815 | J167: 8,299 | K167: - | L167: 140,977 | N167: -- | O167: 0 | P167: 7 | Q167: 7 | R167: 54 | S167: 107 | T167: 4 | U167: 11 | V167: 5 | W167: - | X167: 195
A168: 1995 | B168: - | C168: 12,730 | D168: 14,040 | E168: 13,573 | F168: 25,872 | G168: 59,555 | H168: 15,674 | I168: 12,237 | J168: 1,996 | K168: - | L168: 155,677 | N168: - | O168: 0 | P168: 5 | Q168: 3 | R168: 37 | S168: 126 | T168: 5 | U168: 6 | V168: 0 | W168: - | X168: 182
A169: 1996 | B169: - | C169: 21,395 | D169: 14,222 | E169: 6,057 | F169: 11,224 | G169: 22,630 | H169: 4,791 | I169: 2,921 | J169: 1,231 | K169: - | L169: 84,471 | N169: - | O169: - | P169: - | Q169: 2 | R169: 7 | S169: 21 | T169: 26 | U169: - | V169: - | W169: - | X169: 56
A170: 1997 | B170: - | C170: 3,021 | D170: 11,040 | E170: 19,706 | F170: 15,133 | G170: 48,956 | H170: 20,829 | I170: 2,847 | J170: 2,384 | K170: 58 | L170: 123,974 | N170: - | O170: - | P170: - | Q170: 10 | R170: - | S170: 161 | T170: 8 | U170: 17 | V170: - | W170: - | X170: 196
A171: 1998 | B171: - | C171: 80 | D171: 3,748 | E171: 4,414 | F171: 12,262 | G171: 27,369 | H171: 17,577 | I171: 3,730 | J171: 1,789 | K171: -- | L171: 70,969 | N171: - | O171: - | P171: - | Q171: - | R171: 8 | S171: 16 | T171: 4 | U171: - | V171: - | W171: - | X171: 28
A172: 1999 | B172: - | C172: 744 | D172: 6,260 | E172: 1,330 | F172: 10,686 | G172: 29,869 | H172: 11,570 | I172: 6,237 | J172: 2,555 | K172: - | L172: 69,251 | N172: - | O172: - | P172: - | Q172: 12 | R172: 175 | S172: 107 | T172: 11 | U172: 12 | V172: 6 | W172: - | X172: 323
A173: 2000 | B173: - | C173: - | D173: 5,684 | E173: 10,207 | F173: 16,317 | G173: 8,458 | H173: 7,207 | I173: 8,060 | J173: 6,815 | K173: 1,905 | L173: 64,653 | N173: - | O173: - | P173: - | Q173: - | R173: 50 | S173: 36 | T173: 12 | U173: - | V173: - | W173: - | X173: 98
A174: 2001 | B174: - | C174: - | D174: 3,314 | E174: 6,207 | F174: 1,613 | G174: 11,167 | H174: 6,717 | I174: 6,552 | J174: 3,065 | K174: 1,221 | L174: 39,856 | N174: - | O174: - | P174: - | Q174: 165 | R174: 8 | S174: 306 | T174: 10 | U174: - | V174: - | W174: - | X174: 489
A175: 2002 | B175: - | C175: - | D175: 4,953 | E175: 13,189 | F175: 17,955 | G175: 34,305 | H175: 13,097 | I175: 3,100 | J175: 348 | K175: 61 | L175: 87,008 | N175: - | O175: - | P175: 2 | Q175: 19 | R175: 72 | S175: 191 | T175: 16 | U175: - | V175: - | W175: - | X175: 300
A176: 2003 | B176: - | C176: - | D176: 4,707 | E176: 9,358 | F176: 13,179 | G176: 19,974 | H176: 5,067 | I176: 3,288 | J176: 1,043 | K176: 0 | L176: 56,616 | N176: - | O176: - | P176: - | Q176: 38 | R176: 71 | S176: 94 | T176: - | U176: 4 | V176: - | W176: - | X176: 207
A177: 2004 | B177: - | C177: - | D177: 6,847 | E177: 18,714 | F177: 23,692 | G177: 47,484 | H177: 22,562 | I177: 7,887 | J177: 2,696 | K177: 338 | L177: 130,220 | N177: - | O177: - | P177: - | Q177: 41 | R177: 40 | S177: 236 | T177: 140 | U177: 13 | V177: - | W177: - | X177: 470
A178: 2005 | B178: - | C178: - | D178: 7,878 | E178: 10,827 | F178: 12,593 | G178: 20,653 | H178: 5,959 | I178: 10,609 | J178: 3,950 | K178: 355 | L178: 72,824 | N178: - | O178: - | P178: - | Q178: 16 | R178: 147 | S178: 110 | T178: - | U178: - | V178: - | W178: - | X178: 273
A179: 2006 | B179: - | C179: - | D179: 1,803 | E179: 12,416 | F179: 18,151 | G179: 20,092 | H179: 1,280 | I179: 861 | J179: 256 | K179: 67 | L179: 54,926 | N179: - | O179: - | P179: - | Q179: 57 | R179: 296 | S179: 310 | T179: 9 | U179: - | V179: - | W179: - | X179: 672
A180: 2007 | B180: - | C180: - | D180: 796 | E180: 4,245 | F180: 4,642 | G180: 5,419 | H180: 650 | I180: 278 | J180: 441 | K180: 325 | L180: 16,796 | N180: - | O180: - | P180: - | Q180: 37 | R180: 30 | S180: 114 | T180: 9 | U180: 14 | V180: - | W180: - | X180: 204
A181: 2008 | B181: - | C181: - | D181: - | E181: - | F181: - | G181: - | H181: - | I181: - | J181: - | K181: - | L181: - | N181: - | O181: - | P181: - | Q181: - | R181: - | S181: - | T181: - | U181: - | V181: - | W181: - | X181: -
A182: 2009 | B182: - | C182: - | D182: - | E182: - | F182: - | G182: - | H182: - | I182: - | J182: - | K182: - | L182: - | N182: - | O182: - | P182: - | Q182: - | R182: - | S182: - | T182: - | U182: - | V182: - | W182: - | X182: -
A183: 2010 | B183: - | C183: - | D183: 1,004 | E183: 452 | F183: 598 | G183: 1,764 | H183: 2,012 | I183: 286 | J183: - | K183: - | L183: =SUM(B183:K183) -> 6,116 | N183: - | O183: - | P183: - | Q183: - | R183: 68 | S183: - | T183: - | U183: 8 | V183: - | W183: - | X183: =SUM(N183:W183) -> 76
A184: 2011 | B184: - | C184: - | D184: 432 | E184: 934 | F184: 326 | G184: 4,457 | H184: 6,531 | I184: 5,914 | J184: 1,140 | K184: - | L184: 19,734 | N184: - | O184: - | P184: - | Q184: - | R184: 17 | S184: 26 | T184: - | U184: - | V184: - | W184: - | X184: 43
A185: 2012 | B185: - | C185: - | D185: 3,837 | E185: 5,143 | F185: 10,700 | G185: 15,329 | H185: 5,340 | I185: 3,871 | J185: 1,881 | K185: 88 | L185: 46,189 | N185: - | O185: - | P185: - | Q185: 3 | R185: - | S185: 5 | T185: - | U185: - | V185: - | W185: - | X185: 8
A186: 2013 | B186: - | C186: - | D186: 8,121 | E186: 9,018 | F186: 12,204 | G186: 21,798 | H186: 6,818 | I186: 1,891 | J186: 1,354 | K186: 87 | L186: 61,291 | N186: - | O186: - | P186: - | Q186: - | R186: 24 | S186: 62 | T186: - | U186: - | V186: - | W186: - | X186: 86
A187: 2014 | B187: - | C187: - | D187: 1,854 | E187: 2,318 | F187: 559 | G187: 5,587 | H187: 12,679 | I187: 6,266 | J187: 3,065 | K187: 125 | L187: 32,453 | N187: - | O187: - | P187: - | Q187: 4 | R187: - | S187: 40 | T187: - | U187: - | V187: - | W187: - | X187: 44
A188: 2015 | B188: - | C188: - | D188: 933 | E188: 1,072 | F188: 2,396 | G188: 5,126 | H188: 6,113 | I188: 8,014 | J188: 1,573 | K188: - | L188: =SUM(B188:K188) -> 25,227 | N188: - | O188: - | P188: - | Q188: - | R188: 4 | S188: 2 | T188: - | U188: - | V188: - | W188: - | X188: =SUM(N188:W188) -> 6
A189: 2016 | B189: - | C189: - | D189: 1,206 | E189: 3,563 | F189: 1,253 | G189: 8,025 | H189: 6,111 | I189: 5,858 | J189: 630 | K189: - | L189: =SUM(B189:K189) -> 26,646 | N189: - | O189: - | P189: - | Q189: - | R189: - | S189: - | T189: 8 | U189: - | V189: - | W189: - | X189: =SUM(N189:W189) -> 8
A190: 2017 | B190: - | C190: - | D190: 398 | E190: 1,206 | F190: 5,241 | G190: 24,206 | H190: 17,972 | I190: 3,890 | J190: 843 | K190: - | L190: =SUM(B190:K190) -> 53,756 | N190: - | O190: - | P190: - | Q190: 3 | R190: - | S190: 322 | T190: 40 | U190: - | V190: - | W190: - | X190: =SUM(N190:W190) -> 365
A191: 2018 | B191: - | C191: - | D191: - | E191: - | F191: 11,361 | G191: 38,248 | H191: 11,717 | I191: 6,689 | J191: 4,172 | K191: - | L191: =SUM(B191:K191) -> 72,187 | N191: - | O191: - | P191: - | Q191: - | R191: 5 | S191: 63 | T191: - | U191: - | V191: - | W191: - | X191: =SUM(N191:W191) -> 68
A192: 2019 | B192: - | C192: - | D192: 2,982 | E192: 1,645 | F192: 15,459 | G192: 16,558 | H192: 15,861 | I192: 3,570 | J192: 468 | K192: - | L192: =SUM(B192:K192) -> 56,543 | N192: - | O192: - | P192: - | Q192: 2 | R192: 100 | S192: 4 | T192: 348 | U192: 14 | V192: 5 | W192: - | X192: =SUM(N192:W192) -> 473
A193: 2020a | B193: - | C193: - | D193: - | E193: -- | F193: -- | G193: 19,662 | H193: 9,140 | I193: 3,945 | J193: 2,364 | K193: 29 | L193: 35,140 | N193: - | O193: - | P193: - | Q193: - | R193: - | S193: 11 | T193: - | U193: - | V193: - | W193: - | X193: 11
A194: 2021b/ | B194: - | C194: - | D194: - | E194: - | F194: 3,864 | G194: 16,407 | H194: 9,065 | I194: 3,799 | J194: 861 | K194: - | L194: 33,996 | N194: - | O194: - | P194: - | Q194: - | R194: 18 | S194: 125 | T194: 4 | U194: - | V194: - | W194: - | X194: 147
A196: Monterey
A197: 1976 | B197: 429 | C197: 292 | D197: 611 | E197: 977 | F197: 985 | G197: 1,136 | H197: 187 | I197: 33 | J197: 110 | K197: 47 | L197: =SUM(B197:K197) -> 4,807 | N197: 29 | O197: 32 | P197: 46 | Q197: 196 | R197: 194 | S197: 137 | T197: 7 | U197: 0 | V197: 0 | W197: 0 | X197: =SUM(N197:W197) -> 641
A198: 1977 | B198: 359 | C198: 1,121 | D198: 1,347 | E198: 718 | F198: 144 | G198: 144 | H198: 68 | I198: 83 | J198: 18 | K198: 4 | L198: 4,006 | N198: 0 | O198: 0 | P198: 0 | Q198: 0 | R198: 0 | S198: 0 | T198: 0 | U198: 0 | V198: 0 | W198: 0 | X198: 0
A199: 1978 | B199: 168 | C199: 258 | D199: 298 | E199: 239 | F199: 560 | G199: 220 | H199: 40 | I199: 9 | J199: 14 | K199: 3 | L199: 1,809 | N199: 0 | O199: 0 | P199: 0 | Q199: 0 | R199: 12 | S199: 6 | T199: 26 | U199: 0 | V199: 0 | W199: 0 | X199: 44
A200: 1979 | B200: 1,047 | C200: 1,409 | D200: 3,058 | E200: 113 | F200: 34 | G200: 153 | H200: 83 | I200: 31 | J200: 1 | K200: 0 | L200: 5,929 | N200: 0 | O200: 0 | P200: 0 | Q200: 0 | R200: 7 | S200: 2 | T200: 0 | U200: 0 | V200: 0 | W200: - | X200: 9
A201: 1980 | B201: 460 | C201: 503 | D201: 1,145 | E201: 232 | F201: 935 | G201: 532 | H201: 84 | I201: 47 | J201: 82 | K201: 0 | L201: 4,020 | N201: 0 | O201: 0 | P201: 0 | Q201: 0 | R201: 1 | S201: 0 | T201: 0 | U201: 0 | V201: 0 | W201: - | X201: 1
A202: 1981 | B202: 422 | C202: 634 | D202: 1,660 | E202: 84 | F202: 31 | G202: 452 | H202: 185 | I202: 14 | J202: 51 | K202: 210 | L202: 3,743 | N202: 0 | O202: 0 | P202: 0 | Q202: 0 | R202: 0 | S202: 0 | T202: 0 | U202: 0 | V202: 0 | W202: 0 | X202: 0
A203: 1982 | B203: 660 | C203: 1,256 | D203: 2,053 | E203: 284 | F203: 401 | G203: 470 | H203: 387 | I203: 68 | J203: 7 | K203: 0 | L203: 5,586 | N203: 0 | O203: 0 | P203: 0 | Q203: 7 | R203: 67 | S203: 4 | T203: 6 | U203: 0 | V203: 0 | W203: 0 | X203: 84
A204: 1983 | B204: 295 | C204: 80 | D204: 978 | E204: 1,049 | F204: 355 | G204: 432 | H204: 29 | I204: 10 | J204: 15 | K204: 0 | L204: 3,243 | N204: 0 | O204: 0 | P204: 48 | Q204: 5 | R204: 6 | S204: 13 | T204: 0 | U204: 0 | V204: 0 | W204: 0 | X204: 72
... 200 more rows

Sheet A-6
A1: TABLE A-6. Summary of Oregon commercial troll salmon fishing effort in days fished and landings in numbers of fish by catch area.a/ (Page 1 of 2) | M1: linked to A-7 and A-8
A2: Year | G2: Oregon
A3: or Ave. | B3: Astoria | C3: Tillamook | D3: Newport | E3: Coos Bay | F3: Brookings | G3: Subtotal | H3: Alaska | I3: Washington | J3: California | K3: Total
A4: DAYS FISHED
A5: 1976-1980 | B5: =#REF! ->  | C5: =#REF! ->  | D5: =#REF! ->  | E5: =#REF! ->  | F5: =#REF! ->  | G5: =#REF! ->  | H5: 0 | I5: 1 | J5: 0 | K5: =SUM(G5:J5) -> 
A6: 1981-1985 | B6: ='A-7'!L394 -> 1,096 | C6: ='A-7'!L413 -> 3,409 | D6: ='A-7'!L435 -> 6,008 | E6: ='A-7'!L454 -> 9,960 | F6: ='A-7'!L476 -> 5,024 | G6: ='A-7'!L517 -> 25,496 | H6: 8 | I6: 295 | J6: 210 | K6: 26,009
A7: 1986-1990 | B7: ='A-7'!L395 -> 659 | C7: ='A-7'!L414 -> 6,887 | D7: ='A-7'!L436 -> 8,650 | E7: ='A-7'!L455 -> 20,307 | F7: ='A-7'!L477 -> 1,652 | G7: ='A-7'!L518 -> 38,154 | H7: 3 | I7: 74 | J7: 44 | K7: 38,275
A8: 1991-1995 | B8: ='A-7'!L396 -> 374 | C8: ='A-7'!L415 -> 1,941 | D8: ='A-7'!L437 -> 4,722 | E8: ='A-7'!L456 -> 2,011 | F8: ='A-7'!L478 -> 196 | G8: ='A-7'!L519 -> 9,016 | H8: 0 | I8: =AVERAGE(17,71,1,0) -> 22 | J8: =AVERAGE(13,3,5,8) -> 7 | K8: 9,046
A9: 1996-2000 | B9: ='A-7'!L397 -> 70 | C9: ='A-7'!L416 -> 947 | D9: ='A-7'!L438 -> 3,733 | E9: ='A-7'!L457 -> 2,135 | F9: ='A-7'!L479 -> 316 | G9: ='A-7'!L520 -> 7,187 | H9: 0 | I9: =AVERAGE(0,0,0,26,33) -> 12 | J9: =AVERAGE(94,5,17,8.5) -> 31 | K9: 7,230
A10: 2001-2005 | B10: ='A-7'!L398 -> 390 | C10: ='A-7'!L417 -> 1,591 | D10: ='A-7'!L439 -> 4,664 | E10: ='A-7'!L458 -> 4,935 | F10: ='A-7'!L480 -> 439 | G10: ='A-7'!L521 -> 12,019 | H10: 0 | I10: =AVERAGE(19,286,101,221,0) -> 125 | J10: =AVERAGE(26,7,9,0,0) -> 8 | K10: 12,153
A11: 2006-2010 | B11: ='A-7'!L399 -> 628 | C11: ='A-7'!L418 -> 435 | D11: ='A-7'!L440 -> 1,283 | E11: ='A-7'!L459 -> 945 | F11: ='A-7'!L481 -> 220 | G11: ='A-7'!L522 -> 3,210 | H11: 0 | I11: 0 | J11: 0 | K11: =SUM(G11:J11) -> 3,210
A12: 2011 | B12: ='A-7'!L400 -> 289 | C12: ='A-7'!L419 -> 220 | D12: ='A-7'!L441 -> 748 | E12: ='A-7'!L460 -> 2,206 | F12: ='A-7'!L482 -> 289 | G12: ='A-7'!L523 -> 3,752 | H12: 0 | I12: 0 | J12: - | K12: 3,752
A13: 2012 | B13: ='A-7'!L401 -> 416 | C13: ='A-7'!L420 -> 635 | D13: ='A-7'!L442 -> 2,112 | E13: ='A-7'!L461 -> 2,711 | F13: ='A-7'!L483 -> 382 | G13: ='A-7'!L524 -> 6,256 | H13: 0 | I13: 0 | J13: - | K13: 6,256
A14: 2013 | B14: ='A-7'!L402 -> 287 | C14: ='A-7'!L421 -> 830 | D14: ='A-7'!L443 -> 1,722 | E14: ='A-7'!L462 -> 5,440 | F14: ='A-7'!L484 -> 707 | G14: ='A-7'!L525 -> 8,986 | H14: 0 | I14: 0 | J14: - | K14: 8,986
A15: 2014 | B15: ='A-7'!L403 -> 816 | C15: ='A-7'!L422 -> 556 | D15: ='A-7'!L444 -> 3,697 | E15: ='A-7'!L463 -> 4,864 | F15: ='A-7'!L485 -> 770 | G15: ='A-7'!L526 -> 10,703 | H15: 0 | I15: 0 | J15: - | K15: 10,703
A16: 2015 | B16: ='A-7'!L404 -> 818 | C16: ='A-7'!L423 -> 866 | D16: ='A-7'!L445 -> 2,752 | E16: ='A-7'!L464 -> 3,773 | F16: ='A-7'!L486 -> 520 | G16: ='A-7'!L527 -> 8,729 | H16: 0 | I16: 0 | J16: - | K16: 8,729
A17: 2016 | B17: ='A-7'!L405 -> 225 | C17: ='A-7'!L424 -> 237 | D17: ='A-7'!L446 -> 2,756 | E17: ='A-7'!L465 -> 1,047 | F17: ='A-7'!L487 -> 127 | G17: ='A-7'!L528 -> 4,392 | H17: 0 | I17: 0 | J17: - | K17: 4,392
A18: 2017 | B18: ='A-7'!L406 -> 342 | C18: ='A-7'!L425 -> 182 | D18: ='A-7'!L447 -> 1,264 | E18: ='A-7'!L466 -> 155 | F18: ='A-7'!L488 -> 109 | G18: ='A-7'!L529 -> 2,052 | H18: 0 | I18: 0 | J18: - | K18: 2,052
A19: 2018 | B19: ='A-7'!L407 -> 98 | C19: ='A-7'!L426 -> 179 | D19: ='A-7'!L448 -> 1,043 | E19: ='A-7'!L467 -> 778 | F19: ='A-7'!L489 -> 475 | G19: ='A-7'!L530 -> 2,573 | H19: 0 | I19: 0 | J19: - | K19: 2,573
A20: 2019 | B20: ='A-7'!L408 -> 187 | C20: ='A-7'!L427 -> 137 | D20: ='A-7'!L449 -> 1,593 | E20: ='A-7'!L468 -> 387 | F20: ='A-7'!L490 -> 236 | G20: ='A-7'!L531 -> 2,540 | H20: 0 | I20: 0 | J20: - | K20: =SUM(G20:J20) -> 2,540
A21: 2020 | B21: ='A-7'!L409 -> 65 | C21: ='A-7'!L428 -> 134 | D21: ='A-7'!L450 -> 1,185 | E21: ='A-7'!L469 -> 461 | F21: ='A-7'!L491 -> 123 | G21: ='A-7'!L532 -> 1,968 | H21: 0 | I21: 0 | J21: - | K21: =SUM(G21:J21) -> 1,968
A22: 2021b/ | B22: ='A-7'!L410 -> 40 | C22: ='A-7'!L429 -> 224 | D22: ='A-7'!L451 -> 1,160 | E22: ='A-7'!L470 -> 427 | F22: ='A-7'!L492 -> 118 | G22: ='A-7'!L533 -> 1,969 | H22: 0 | I22: 0 | J22: - | K22: 1,969
A24: CHINOOK LANDINGS
A25: 1976-1980 | B25: ='A-8'!#REF! ->  | C25: ='A-8'!#REF! ->  | D25: ='A-8'!#REF! ->  | E25: ='A-8'!#REF! ->  | F25: ='A-8'!#REF! ->  | G25: ='A-8'!#REF! ->  | H25: 300 | I25: 2,800 | J25: 900 | K25: =SUM(G25:J25) -> 
A26: 1981-1985 | B26: ='A-8'!L538 -> 5,556 | C26: ='A-8'!L557 -> 5,901 | D26: ='A-8'!L579 -> 27,917 | E26: ='A-8'!L598 -> 63,507 | F26: ='A-8'!L620 -> 42,623 | G26: ='A-8'!L661 -> 145,503 | H26: 89 | I26: 2,982 | J26: 2,157 | K26: 150,731
A27: 1986-1990 | B27: ='A-8'!L539 -> 3,477 | C27: ='A-8'!L558 -> 26,242 | D27: ='A-8'!L580 -> 82,957 | E27: ='A-8'!L599 -> 253,426 | F27: ='A-8'!L621 -> 28,825 | G27: ='A-8'!L662 -> 394,927 | H27: 137 | I27: 1,179 | J27: 1,386 | K27: =SUM(G27:J27) -> 397,628
A28: 1991-1995 | B28: ='A-8'!L540 -> 937 | C28: ='A-8'!L559 -> 6,887 | D28: ='A-8'!L581 -> 76,934 | E28: ='A-8'!L600 -> 15,554 | F28: ='A-8'!L622 -> 1,679 | G28: ='A-8'!L663 -> 100,945 | H28: 0 | I28: =AVERAGE(33,813,0,0) -> 212 | J28: =AVERAGE(150,29,119,804) -> 276 | K28: =SUM(G28:J28) -> 101,432
A29: 1996-2000 | B29: ='A-8'!L541 -> 572 | C29: ='A-8'!L560 -> 8,191 | D29: ='A-8'!L582 -> 81,290 | E29: ='A-8'!L601 -> 36,042 | F29: ='A-8'!L623 -> 3,542 | G29: ='A-8'!L664 -> 129,523 | H29: 0 | I29: =AVERAGE(0,0,0,181,90) -> 54 | J29: =AVERAGE(1967,148,658,90,124) -> 597 | K29: =SUM(G29:J29) -> 130,175
A30: 2001-2005 | B30: ='A-8'!L542 -> 8,095 | C30: ='A-8'!L561 -> 25,572 | D30: ='A-8'!L583 -> 126,126 | E30: ='A-8'!L602 -> 117,529 | F30: ='A-8'!L624 -> 5,245 | G30: ='A-8'!L665 -> 282,567 | H30: 0 | I30: =AVERAGE(1194,14966,3188,8522,0) -> 5,574 | J30: =AVERAGE(539,182,833,0,0) -> 311 | K30: 288,452
A31: 2006-2010 | B31: ='A-8'!L543 -> 5,840 | C31: ='A-8'!L562 -> 2,160 | D31: ='A-8'!L584 -> 11,779 | E31: ='A-8'!L603 -> 7,121 | F31: ='A-8'!L625 -> 1,485 | G31: ='A-8'!L666 -> 23,376 | H31: 0 | I31: 0 | J31: 0 | K31: 23,376
A32: 2011 | B32: ='A-8'!L64 -> 2,836 | C32: ='A-8'!L136 -> 1,106 | D32: ='A-8'!L208 -> 4,980 | E32: ='A-8'!L280 -> 21,833 | F32: ='A-8'!L352 -> 1,326 | G32: ='A-8'!L496 -> 32,081 | H32: 0 | I32: 0 | J32: - | K32: =SUM(G32:J32) -> 32,081
A33: 2012 | B33: ='A-8'!L65 -> 8,444 | C33: ='A-8'!L137 -> 7,397 | D33: ='A-8'!L209 -> 26,612 | E33: ='A-8'!L281 -> 25,204 | F33: ='A-8'!L353 -> 5,444 | G33: ='A-8'!L497 -> 73,101 | H33: 0 | I33: 0 | J33: - | K33: 73,101
A34: 2013 | B34: ='A-8'!L66 -> 1,945 | C34: ='A-8'!L138 -> 8,880 | D34: ='A-8'!L210 -> 15,700 | E34: ='A-8'!L282 -> 79,416 | F34: ='A-8'!L354 -> 6,816 | G34: ='A-8'!L498 -> 112,757 | H34: 0 | I34: 0 | J34: - | K34: 112,757
A35: 2014 | B35: ='A-8'!L67 -> 16,182 | C35: ='A-8'!L139 -> 7,009 | D35: ='A-8'!L211 -> 83,122 | E35: ='A-8'!L283 -> 85,637 | F35: ='A-8'!L355 -> 16,146 | G35: ='A-8'!L499 -> 208,096 | H35: 0 | I35: 0 | J35: - | K35: 208,096
A36: 2015 | B36: ='A-8'!L68 -> 10,882 | C36: ='A-8'!L140 -> 8,845 | D36: ='A-8'!L212 -> 36,858 | E36: ='A-8'!L284 -> 43,451 | F36: ='A-8'!L356 -> 4,223 | G36: ='A-8'!L500 -> 104,259 | H36: 0 | I36: 0 | J36: - | K36: 104,259
A37: 2016 | B37: ='A-8'!L69 -> 2,058 | C37: ='A-8'!L141 -> 1,067 | D37: ='A-8'!L213 -> 31,281 | E37: ='A-8'!L285 -> 7,543 | F37: ='A-8'!L357 -> 398 | G37: ='A-8'!L501 -> 42,347 | H37: 0 | I37: 0 | J37: - | K37: 42,347
A38: 2017 | B38: ='A-8'!L70 -> 2,627 | C38: ='A-8'!L142 -> 717 | D38: ='A-8'!L214 -> 17,438 | E38: ='A-8'!L286 -> 734 | F38: ='A-8'!L358 -> 329 | G38: ='A-8'!L502 -> 21,845 | H38: 0 | I38: 0 | J38: - | K38: 21,845
A39: 2018 | B39: ='A-8'!L71 -> 333 | C39: ='A-8'!L143 -> 465 | D39: ='A-8'!L215 -> 14,487 | E39: ='A-8'!L287 -> 5,277 | F39: ='A-8'!L359 -> 3,899 | G39: ='A-8'!L503 -> 24,461 | H39: 0 | I39: 0 | J39: - | K39: 24,461
A40: 2019 | B40: ='A-8'!L72 -> 508 | C40: ='A-8'!L144 -> 567 | D40: ='A-8'!L216 -> 22,771 | E40: ='A-8'!L288 -> 3,171 | F40: ='A-8'!L360 -> 1,872 | G40: ='A-8'!L504 -> 28,889 | H40: 0 | I40: 0 | J40: - | K40: =SUM(G40:J40) -> 28,889
A41: 2020 | B41: ='A-8'!L73 -> 190 | C41: ='A-8'!L145 -> 678 | D41: ='A-8'!L217 -> 8,934 | E41: ='A-8'!L289 -> 2,183 | F41: ='A-8'!L361 -> 825 | G41: ='A-8'!L505 -> 12,810 | H41: 0 | I41: 0 | J41: - | K41: 12,810
A42: 2021b/ | B42: ='A-8'!L74 -> 178 | C42: ='A-8'!L146 -> 1,308 | D42: ='A-8'!L218 -> 12,667 | E42: ='A-8'!L290 -> 2,960 | F42: ='A-8'!L362 -> 424 | G42: ='A-8'!L506 -> 17,537 | H42: 0 | I42: 0 | J42: - | K42: 17,537
A44: TABLE A-6. Summary of Oregon commercial troll salmon fishing effort in days fished and landings in numbers of fish by catch area.a/ (Page 2 of 2)
A45: Year | G45: Oregon
A46: or Ave. | B46: Astoria | C46: Tillamook | D46: Newport | E46: Coos Bay | F46: Brookings | G46: Subtotal | H46: Alaska | I46: Washington | J46: California | K46: Total
A47: COHO LANDINGS
A48: 1976-1980 | B48: ='A-8'!#REF! ->  | C48: ='A-8'!#REF! ->  | D48: ='A-8'!#REF! ->  | E48: ='A-8'!#REF! ->  | F48: ='A-8'!#REF! ->  | G48: ='A-8'!#REF! ->  | H48: 1,800 | I48: 9,300 | J48: 300 | K48: =SUM(G48:J48) -> 
A49: 1981-1985 | B49: ='A-8'!S538 -> 21,305 | C49: ='A-8'!S557 -> 84,331 | D49: ='A-8'!S579 -> 109,715 | E49: ='A-8'!S598 -> 131,470 | F49: ='A-8'!S620 -> 24,728 | G49: ='A-8'!S661 -> 301,499 | H49: 0 | I49: 9,590 | J49: 621 | K49: 311,710
A50: 1986-1990 | B50: ='A-8'!S539 -> 21,364 | C50: ='A-8'!S558 -> 106,658 | D50: ='A-8'!S580 -> 135,872 | E50: ='A-8'!S599 -> 132,522 | F50: ='A-8'!S621 -> 6,375 | G50: ='A-8'!S662 -> 397,243 | H50: 7 | I50: 4,179 | J50: 279 | K50: =SUM(G50:J50) -> 401,708
A51: 1991-1995 | B51: ='A-8'!S540 -> 9,949 | C51: ='A-8'!S559 -> 48,905 | D51: ='A-8'!S581 -> 41,190 | E51: ='A-8'!S600 -> 35,625 | F51: ='A-8'!S622 -> - | G51: ='A-8'!S663 -> 119,367 | H51: 0 | I51: =AVERAGE(280,137,5,0) -> 106 | J51: =AVERAGE(55) -> 55 | K51: =SUM(G51:J51) -> 119,527
A52: 1996-2000 | B52: ='A-8'!S541 -> 12,258 | C52: ='A-8'!S560 -> - | D52: ='A-8'!S582 -> - | E52: ='A-8'!S601 -> 8 | F52: ='A-8'!S623 -> - | G52: ='A-8'!S664 -> 6,133 | H52: 0 | I52: =AVERAGE(0,172,0) -> 57 | J52: - | K52: =SUM(G52:J52) -> 6,190
A53: 2001-2005 | B53: ='A-8'!S542 -> 5,749 | C53: ='A-8'!S561 -> - | D53: ='A-8'!S583 -> - | E53: ='A-8'!S602 -> - | F53: ='A-8'!S624 -> - | G53: ='A-8'!S665 -> 5,749 | H53: 0 | I53: =AVERAGE(34,0,270,453) -> 189 | J53: - | K53: 5,938
A54: 2006-2010 | B54: ='A-8'!S543 -> 5,425 | C54: ='A-8'!S562 -> 2,385 | D54: ='A-8'!S584 -> 3,494 | E54: ='A-8'!S603 -> 1,538 | F54: ='A-8'!S625 -> - | G54: ='A-8'!S666 -> 8,392 | H54: 0 | I54: 0 | J54: - | K54: 8,392
A55: 2011 | B55: ='A-8'!S64 -> 464 | C55: ='A-8'!S136 -> - | D55: ='A-8'!S208 -> - | E55: ='A-8'!S280 -> - | F55: ='A-8'!S352 -> - | G55: ='A-8'!S496 -> 464 | H55: 0 | I55: 0 | J55: - | K55: =SUM(G55:J55) -> 464
A56: 2012 | B56: ='A-8'!S65 -> 624 | C56: ='A-8'!S137 -> - | D56: ='A-8'!S209 -> - | E56: ='A-8'!S281 -> - | F56: ='A-8'!S353 -> - | G56: ='A-8'!S497 -> 624 | H56: 0 | I56: 0 | J56: - | K56: 624
A57: 2013 | B57: ='A-8'!S66 -> 452 | C57: ='A-8'!S138 -> - | D57: ='A-8'!S210 -> - | E57: ='A-8'!S282 -> - | F57: ='A-8'!S354 -> - | G57: ='A-8'!S498 -> 452 | H57: 0 | I57: 0 | J57: - | K57: 452
A58: 2014 | B58: ='A-8'!S67 -> 7,702 | C58: ='A-8'!S139 -> 1,104 | D58: ='A-8'!S211 -> 1,222 | E58: ='A-8'!S283 -> 970 | F58: ='A-8'!S355 -> - | G58: ='A-8'!S499 -> 10,998 | H58: 0 | I58: 0 | J58: - | K58: 10,998
A59: 2015 | B59: ='A-8'!S68 -> 2,213 | C59: ='A-8'!S140 -> - | D59: ='A-8'!S212 -> - | E59: ='A-8'!S284 -> - | F59: ='A-8'!S356 -> - | G59: ='A-8'!S500 -> 2,213 | H59: 0 | I59: 0 | J59: - | K59: 2,213
A60: 2016 | B60: ='A-8'!S69 -> - | C60: ='A-8'!S141 -> - | D60: ='A-8'!S213 -> - | E60: ='A-8'!S285 -> - | F60: ='A-8'!S357 -> - | G60: ='A-8'!S501 -> - | H60: 0 | I60: 0 | J60: - | K60: 0
A61: 2017 | B61: ='A-8'!S70 -> 470 | C61: ='A-8'!S142 -> - | D61: ='A-8'!S214 -> - | E61: ='A-8'!S286 -> - | F61: ='A-8'!S358 -> - | G61: ='A-8'!S502 -> 470 | H61: 0 | I61: 0 | J61: - | K61: 470
A62: 2018 | B62: ='A-8'!S71 -> 92 | C62: ='A-8'!S143 -> - | D62: ='A-8'!S215 -> - | E62: ='A-8'!S287 -> - | F62: ='A-8'!S359 -> - | G62: ='A-8'!S503 -> 92 | H62: 0 | I62: 0 | J62: - | K62: 92
A63: 2019 | B63: ='A-8'!S72 -> 1,412 | C63: ='A-8'!S144 -> - | D63: ='A-8'!S216 -> - | E63: ='A-8'!S288 -> - | F63: ='A-8'!S360 -> - | G63: ='A-8'!S504 -> 1,412 | H63: 0 | I63: 0 | J63: - | K63: =SUM(G63:J63) -> 1,412
A64: 2020 | B64: ='A-8'!S73 -> 129 | C64: ='A-8'!S145 -> - | D64: ='A-8'!S217 -> - | E64: ='A-8'!S289 -> - | F64: ='A-8'!S361 -> - | G64: ='A-8'!S505 -> 129 | H64: 0 | I64: 0 | J64: - | K64: =SUM(G64:J64) -> 129
A65: 2021b/ | B65: ='A-8'!S74 -> 141 | C65: ='A-8'!S146 -> 117 | D65: ='A-8'!S218 -> 1,945 | E65: ='A-8'!S290 -> 26 | F65: ='A-8'!S362 -> - | G65: ='A-8'!S506 -> 2,229 | H65: 0 | I65: 0 | J65: - | K65: 2,229
A66: a/ Days fished and landings are reported by port of landing through 1978 and by area of catch beginning in 1979. Catch and landing areas include the following port areas: Astoria area includes Oregon ports from Astoria through Cannon Beach; Tillamook area includes Nehalem through Pacific City; Newport area includes Depoe Bay through Waldport; Coos Bay area prior to 1986 includes Florence through Bandon and after 1987 includes Florence through Port Orford; Brookings area prior to 1986 includes Port Orford through Brookings and after 1987 includes Gold Beach through Brookings. Values include state-waters only terminal area fisheries.
A67: b/ Preliminary.

Sheet A-7
A1: TABLE A-7. Oregon commercial troll salmon fishing effort in days fished by area and month.a/
A2: Year or Average
B3: Mar. | C3: Apr. | D3: May | E3: June | F3: July | G3: Aug. | H3: Sept. | I3: Oct. | J3: Nov. | K3: Dec. | L3: Season
A4: Astoria
A5: 1971 | B5: - | C5: 14 | D5: 184 | E5: 539 | F5: 597 | G5: 710 | H5: 499 | I5: 85 | J5: - | K5: - | L5: =SUM(B5:K5) -> 2,628
A6: 1972 | B6: - | C6: 3 | D6: 145 | E6: 329 | F6: 486 | G6: 587 | H6: 394 | I6: 11 | J6: - | K6: - | L6: 1,955
A7: 1973 | B7: - | C7: 49 | D7: 143 | E7: 347 | F7: 409 | G7: 336 | H7: 134 | I7: 52 | J7: - | K7: - | L7: 1,470
A8: 1974 | B8: - | C8: 36 | D8: 257 | E8: 164 | F8: 456 | G8: 426 | H8: 226 | I8: 18 | J8: - | K8: - | L8: 1,583
A9: 1975 | B9: - | C9: 14 | D9: 204 | E9: 379 | F9: 567 | G9: 333 | H9: 257 | I9: 20 | J9: - | K9: - | L9: 1,774
A10: 1976 | B10: - | C10: - | D10: 385 | E10: 856 | F10: 1,177 | G10: 893 | H10: 644 | I10: 121 | J10: - | K10: - | L10: 4,076
A11: 1977 | B11: - | C11: - | D11: 319 | E11: 412 | F11: 2,688 | G11: 552 | H11: 261 | I11: 90 | J11: - | K11: - | L11: 4,322
A12: 1978 | B12: - | C12: - | D12: 73 | E12: 213 | F12: 893 | G12: 547 | H12: 201 | I12: 58 | J12: - | K12: - | L12: 1,985
A13: 1979 | B13: - | C13: - | D13: 102 | E13: 3 | F13: 823 | G13: 1,459 | H13: 29 | I13: 1 | J13: - | K13: 1 | L13: 2,418
A14: 1980 | B14: - | C14: - | D14: 144 | E14: 13 | F14: 519 | G14: 768 | H14: 121 | I14: 8 | J14: - | K14: - | L14: 1,573
A15: 1981 | B15: - | C15: - | D15: 518 | E15: 0 | F15: 1,137 | G15: 764 | H15: 0 | I15: 1 | J15: - | K15: - | L15: 2,420
A16: 1982 | B16: - | C16: - | D16: 476 | E16: 0 | F16: 423 | G16: 0 | H16: 0 | I16: 0 | J16: - | K16: - | L16: 899
A17: 1983 | B17: - | C17: - | D17: 566 | E17: 0 | F17: 50 | G17: 241 | H17: 164 | I17: 0 | J17: - | K17: - | L17: 1,021
A18: 1984 | B18: - | C18: - | D18: 72 | E18: 0 | F18: 0 | G18: 416 | H18: 0 | I18: 0 | J18: - | K18: - | L18: 488
A19: 1985 | B19: - | C19: - | D19: 380 | E19: 0 | F19: 0 | G19: 270 | H19: 0 | I19: 1 | J19: - | K19: - | L19: 651
A20: 1986 | B20: - | C20: - | D20: 337 | E20: - | F20: - | G20: 814 | H20: - | I20: - | J20: - | K20: - | L20: 1,151
A21: 1987 | B21: - | C21: - | D21: 133 | E21: - | F21: 183 | G21: - | H21: - | I21: - | J21: - | K21: - | L21: 316
A22: 1988 | B22: - | C22: - | D22: 111 | E22: 52 | F22: - | G22: - | H22: - | I22: - | J22: - | K22: - | L22: 163
A23: 1989 | B23: - | C23: - | D23: 79 | E23: 19 | F23: - | G23: 616 | H23: 212 | I23: - | J23: - | K23: - | L23: 926
A24: 1990 | B24: - | C24: - | D24: 70 | E24: 8 | F24: - | G24: 306 | H24: 333 | I24: 22 | J24: - | K24: - | L24: 739
A25: 1991 | B25: - | C25: - | D25: 92 | E25: 9 | F25: - | G25: 407 | H25: 151 | I25: - | J25: - | K25: - | L25: 659
A26: 1992 | B26: - | C26: - | D26: 61 | E26: 114 | F26: 49 | G26: 35 | H26: - | I26: - | J26: - | K26: - | L26: 259
A27: 1993 | B27: - | C27: - | D27: 22 | E27: 6 | F27: 51 | G27: 55 | H27: 71 | I27: - | J27: - | K27: - | L27: 205
A28: 1994 | B28: - | C28: - | D28: - | E28: - | F28: - | G28: - | H28: - | I28: - | J28: - | K28: - | L28: -
A29: 1995 | B29: - | C29: - | D29: - | E29: - | F29: - | G29: - | H29: - | I29: - | J29: - | K29: - | L29: -
A30: 1996 | B30: - | C30: - | D30: - | E30: - | F30: - | G30: - | H30: - | I30: - | J30: - | K30: - | L30: -
A31: 1997 | B31: - | C31: - | D31: 6 | E31: 2 | F31: - | G31: - | H31: - | I31: - | J31: - | K31: - | L31: 8
A32: 1998 | B32: - | C32: - | D32: 0 | E32: 0 | F32: - | G32: - | H32: - | I32: - | J32: - | K32: - | L32: 0
A33: 1999 | B33: - | C33: - | D33: 0 | E33: 1 | F33: - | G33: - | H33: - | I33: - | J33: - | K33: - | L33: 1
A34: 2000 | B34: - | C34: - | D34: 1 | E34: 6 | F34: - | G34: 246 | H34: 18 | I34: - | J34: - | K34: - | L34: 271
A35: 2001 | B35: - | C35: - | D35: 5 | E35: 26 | F35: 84 | G35: 100 | H35: 27 | I35: - | J35: - | K35: - | L35: 242
A36: 2002 | B36: - | C36: - | D36: 24 | E36: 56 | F36: 156 | G36: 194 | H36: - | I36: - | J36: - | K36: - | L36: 430
A37: 2003 | B37: - | C37: - | D37: 95 | E37: 20 | F37: 111 | G37: 143 | H37: 44 | I37: - | J37: - | K37: - | L37: 413
A38: 2004 | B38: - | C38: - | D38: 48 | E38: 1 | F38: 66 | G38: 88 | H38: 144 | I38: - | J38: - | K38: - | L38: 347
A39: 2005 | B39: - | C39: - | D39: 216 | E39: 36 | F39: 30 | G39: 234 | H39: - | I39: - | J39: - | K39: - | L39: 516
A40: 2006 | B40: - | C40: - | D40: 516 | E40: 296 | F40: - | G40: 79 | H40: 93 | I40: - | J40: - | K40: - | L40: 984
A41: 2007 | B41: - | C41: - | D41: 77 | E41: 46 | F41: 40 | G41: 153 | H41: 14 | I41: - | J41: - | K41: - | L41: 330
A42: 2008 | B42: - | C42: - | D42: 272 | E42: 282 | F42: 33 | G42: 58 | H42: 10 | I42: - | J42: - | K42: - | L42: 655
A43: 2009 | B43: - | C43: - | D43: 72 | E43: 85 | F43: 239 | G43: 135 | H43: 9 | I43: - | J43: - | K43: - | L43: 540
A44: 2010 | B44: - | C44: - | D44: 68 | E44: =9+117+36+126 -> 288 | F44: =33+19+5+13+71 -> 141 | G44: 119 | H44: 16 | I44: - | J44: - | K44: - | L44: =SUM(B44:K44) -> 632
A45: 2011 | B45: - | C45: - | D45: 85 | E45: 124 | F45: 41 | G45: 24 | H45: 15 | I45: - | J45: - | K45: - | L45: =SUM(B45:K45) -> 289
A46: 2012 | B46: - | C46: - | D46: 58 | E46: 223 | F46: 37 | G46: 25 | H46: 73 | I46: - | J46: - | K46: - | L46: =SUM(B46:K46) -> 416
A47: 2013 | B47: - | C47: - | D47: 64 | E47: 119 | F47: 32 | G47: 46 | H47: 26 | I47: - | J47: - | K47: - | L47: 287
A48: 2014 | B48: - | C48: - | D48: 455 | E48: 79 | F48: 161 | G48: 65 | H48: 56 | I48: - | J48: - | K48: - | L48: 816
A49: 2015 | B49: - | C49: - | D49: 531 | E49: 88 | F49: 48 | G49: 61 | H49: 90 | I49: - | J49: - | K49: - | L49: 818
A50: 2016 | B50: - | C50: - | D50: 71 | E50: 82 | F50: 21 | G50: 51 | H50: - | I50: - | J50: - | K50: - | L50: 225
A51: 2017 | B51: - | C51: - | D51: 82 | E51: 92 | F51: 11 | G51: 104 | H51: 53 | I51: - | J51: - | K51: - | L51: 342
A52: 2018 | B52: - | C52: - | D52: 16 | E52: 50 | F52: 3 | G52: 29 | H52: 0 | I52: - | J52: - | K52: - | L52: =SUM(B52:K52) -> 98
A53: 2019 | B53: - | C53: - | D53: 9 | E53: 17 | F53: 97 | G53: 40 | H53: 24 | I53: - | J53: - | K53: - | L53: =SUM(B53:K53) -> 187
A54: 2020 | B54: - | C54: - | D54: 17 | E54: 12 | F54: 20 | G54: 13 | H54: 3 | I54: - | J54: - | K54: - | L54: 65
A55: 2021b/ | B55: - | C55: - | D55: 1 | E55: 3 | F55: 21 | G55: 9 | H55: 6 | I55: - | J55: - | K55: - | L55: 40
A57: Tillamook
A58: 1971 | B58: - | C58: 0 | D58: 6 | E58: 844 | F58: 2,901 | G58: 3,330 | H58: 583 | I58: 79 | J58: - | K58: - | L58: =SUM(B58:K58) -> 7,743
A59: 1972 | B59: - | C59: 1 | D59: 5 | E59: 745 | F59: 1,996 | G59: 2,811 | H59: 631 | I59: 29 | J59: - | K59: - | L59: 6,218
A60: 1973 | B60: - | C60: 3 | D60: 3 | E60: 674 | F60: 2,286 | G60: 2,428 | H60: 577 | I60: 99 | J60: - | K60: - | L60: 6,070
A61: 1974 | B61: - | C61: 0 | D61: 8 | E61: 593 | F61: 3,138 | G61: 2,919 | H61: 622 | I61: 41 | J61: - | K61: - | L61: 7,321
A62: 1975 | B62: - | C62: 0 | D62: 3 | E62: 1,218 | F62: 2,720 | G62: 2,652 | H62: 288 | I62: 4 | J62: - | K62: - | L62: 6,885
A63: 1976 | B63: - | C63: - | D63: 13 | E63: 2,282 | F63: 3,243 | G63: 3,693 | H63: 634 | I63: 99 | J63: - | K63: - | L63: 9,964
A64: 1977 | B64: - | C64: - | D64: 15 | E64: 1,405 | F64: 7,257 | G64: 1,914 | H64: 376 | I64: 62 | J64: - | K64: - | L64: 11,029
A65: 1978 | B65: - | C65: - | D65: 15 | E65: 1,994 | F65: 2,929 | G65: 1,650 | H65: 196 | I65: 99 | J65: - | K65: - | L65: 6,883
A66: 1979 | B66: - | C66: - | D66: 40 | E66: 3 | F66: 3,088 | G66: 2,773 | H66: 32 | I66: 18 | J66: - | K66: - | L66: 5,954
A67: 1980 | B67: - | C67: - | D67: 31 | E67: 76 | F67: 1,352 | G67: 3,250 | H67: 342 | I67: 31 | J67: - | K67: - | L67: 5,082
A68: 1981 | B68: - | C68: - | D68: 222 | E68: 0 | F68: 5,649 | G68: 2,681 | H68: 96 | I68: 53 | J68: 0 | K68: - | L68: 8,701
A69: 1982 | B69: - | C69: - | D69: 161 | E69: 105 | F69: 2,801 | G69: 272 | H69: 123 | I69: 105 | J69: 0 | K69: - | L69: 3,567
A70: 1983 | B70: - | C70: - | D70: 69 | E70: 42 | F70: 1,068 | G70: 1,260 | H70: 300 | I70: 186 | J70: 2 | K70: - | L70: 2,927
A71: 1984 | B71: - | C71: - | D71: 12 | E71: 11 | F71: 76 | G71: 294 | H71: 45 | I71: 39 | J71: 7 | K71: - | L71: 484
A72: 1985 | B72: - | C72: - | D72: 25 | E72: 77 | F72: 555 | G72: 488 | H72: 134 | I72: 86 | J72: 0 | K72: - | L72: 1,365
A73: 1986 | B73: - | C73: - | D73: 35 | E73: 28 | F73: 2,688 | G73: 326 | H73: 463 | I73: 148 | J73: 17 | K73: - | L73: 3,705
A74: 1987 | B74: - | C74: - | D74: 90 | E74: 289 | F74: 2,644 | G74: 2,147 | H74: 1,232 | I74: 903 | J74: - | K74: - | L74: 7,305
A75: 1988 | B75: - | C75: - | D75: 171 | E75: 564 | F75: 4,467 | G75: 2,876 | H75: 1,462 | I75: 919 | J75: - | K75: - | L75: 10,459
A76: 1989 | B76: - | C76: - | D76: 500 | E76: 661 | F76: 3,232 | G76: 1,531 | H76: 1,319 | I76: 588 | J76: - | K76: - | L76: 7,831
A77: 1990 | B77: - | C77: - | D77: 115 | E77: 97 | F77: 1,622 | G77: 2,276 | H77: 559 | I77: 464 | J77: - | K77: - | L77: 5,133
A78: 1991 | B78: - | C78: - | D78: 91 | E78: 87 | F78: 1,727 | G78: 362 | H78: 517 | I78: 678 | J78: - | K78: - | L78: 3,462
A79: 1992 | B79: - | C79: - | D79: 98 | E79: - | F79: 246 | G79: 839 | H79: 689 | I79: 744 | J79: - | K79: - | L79: 2,616
A80: 1993 | B80: - | C80: - | D80: 125 | E80: 65 | F80: 169 | G80: 155 | H80: 751 | I80: 502 | J80: - | K80: - | L80: 1,767
A81: 1994 | B81: - | C81: - | D81: 38 | E81: 81 | F81: - | G81: - | H81: - | I81: 428 | J81: 2 | K81: - | L81: 549
A82: 1995 | B82: - | C82: - | D82: 128 | E82: 145 | F82: - | G82: 549 | H82: 275 | I82: 213 | J82: - | K82: - | L82: 1,310
A83: 1996 | B83: - | C83: - | D83: 105 | E83: 341 | F83: - | G83: 206 | H83: 490 | I83: 257 | J83: - | K83: - | L83: 1,399
A84: 1997 | B84: - | C84: 5 | D84: 61 | E84: 123 | F84: - | G84: 108 | H84: 217 | I84: 178 | J84: 11 | K84: - | L84: 703
A85: 1998 | B85: - | C85: 23 | D85: 93 | E85: 119 | F85: - | G85: 233 | H85: 283 | I85: 259 | J85: 34 | K85: - | L85: 1,044
A86: 1999 | B86: - | C86: 1 | D86: 41 | E86: 105 | F86: 48 | G86: 177 | H86: 225 | I86: 95 | J86: 2 | K86: - | L86: 694
A87: 2000 | B87: - | C87: 1 | D87: 54 | E87: 252 | F87: 73 | G87: 204 | H87: 166 | I87: 139 | J87: 4 | K87: - | L87: 893
A88: 2001 | B88: - | C88: 46 | D88: 101 | E88: 227 | F88: 307 | G88: 302 | H88: 248 | I88: 117 | J88: 9 | K88: - | L88: 1,357
A89: 2002 | B89: 13 | C89: 19 | D89: 132 | E89: 242 | F89: 125 | G89: 323 | H89: 396 | I89: 394 | J89: 4 | K89: - | L89: 1,648
A90: 2003 | B90: 9 | C90: 15 | D90: 534 | E90: 453 | F90: 159 | G90: 148 | H90: 285 | I90: 264 | J90: 22 | K90: - | L90: 1,889
A91: 2004 | B91: 15 | C91: 201 | D91: 226 | E91: 136 | F91: 106 | G91: 126 | H91: 290 | I91: 227 | J91: 14 | K91: - | L91: 1,341
A92: 2005 | B92: 247 | C92: 40 | D92: 347 | E92: 710 | F92: - | G92: - | H92: 287 | I92: 90 | J92: 1 | K92: - | L92: 1,722
A93: 2006 | B93: - | C93: - | D93: - | E93: 179 | F93: 12 | G93: 34 | H93: 178 | I93: 317 | J93: 31 | K93: - | L93: 751
A94: 2007 | B94: - | C94: 8 | D94: 280 | E94: 100 | F94: 4 | G94: 86 | H94: 95 | I94: 95 | J94: 30 | K94: - | L94: 698
A95: 2008 | B95: - | C95: - | D95: - | E95: - | F95: - | G95: - | H95: 37 | I95: 12 | J95: -- | K95: - | L95: 49
A96: 2009 | B96: - | C96: - | D96: - | E96: - | F96: - | G96: - | H96: 247 | I96: 24 | J96: - | K96: - | L96: 271
A97: 2010 | B97: - | C97: - | D97: 33 | E97: 177 | F97: =78+18+3+6+4 -> 109 | G97: 39 | H97: 37 | I97: =1+6+2 -> 9 | J97: - | K97: - | L97: =SUM(B97:K97) -> 404
A98: 2011 | B98: - | C98: - | D98: 25 | E98: 96 | F98: 21 | G98: 23 | H98: 42 | I98: 13 | J98: - | K98: - | L98: =SUM(B98:K98) -> 220
A99: 2012 | B99: - | C99: 52 | D99: 175 | E99: 91 | F99: 36 | G99: 22 | H99: 102 | I99: 157 | J99: - | K99: - | L99: =SUM(B99:K99) -> 635
A100: 2013 | B100: - | C100: 189 | D100: 87 | E100: 52 | F100: 40 | G100: 196 | H100: 192 | I100: 74 | J100: - | K100: - | L100: 830
A101: 2014 | B101: - | C101: 10 | D101: 96 | E101: 159 | F101: 60 | G101: 40 | H101: 177 | I101: 14 | J101: - | K101: - | L101: 556
A102: 2015 | B102: - | C102: 50 | D102: 321 | E102: 249 | F102: 9 | G102: 26 | H102: 140 | I102: 71 | J102: - | K102: - | L102: 866
A103: 2016 | B103: - | C103: 44 | D103: 38 | E103: 66 | F103: 8 | G103: 12 | H103: 55 | I103: 14 | J103: - | K103: - | L103: 237
A104: 2017 | B104: - | C104: 7 | D104: 34 | E104: 46 | F104: 8 | G104: - | H104: 70 | I104: 17 | J104: - | K104: - | L104: 182
A105: 2018 | B105: - | C105: - | D105: 60 | E105: 44 | F105: 5 | G105: 36 | H105: 23 | I105: 11 | J105: - | K105: - | L105: =SUM(B105:K105) -> 179
A106: 2019 | B106: - | C106: 3 | D106: 45 | E106: 22 | F106: 16 | G106: 12 | H106: 15 | I106: 24 | J106: - | K106: - | L106: =SUM(B106:K106) -> 137
A107: 2020 | B107: - | C107: 2 | D107: 4 | E107: 48 | F107: 8 | G107: 12 | H107: 35 | I107: 25 | J107: - | K107: - | L107: 134
A108: 2021b/ | B108: - | C108: 53 | D108: 59 | E108: 40 | F108: 27 | G108: 15 | H108: 24 | I108: 6 | J108: - | K108: - | L108: 224
A110: Newport
A111: 1971 | B111: - | C111: 1 | D111: 152 | E111: 1,991 | F111: 3,597 | G111: 5,066 | H111: 944 | I111: 298 | J111: - | K111: - | L111: =SUM(B111:K111) -> 12,049
A112: 1972 | B112: - | C112: 0 | D112: 118 | E112: 2,277 | F112: 4,308 | G112: 4,054 | H112: 855 | I112: 185 | J112: - | K112: - | L112: 11,797
A113: 1973 | B113: - | C113: 16 | D113: 139 | E113: 1,356 | F113: 4,341 | G113: 7,605 | H113: 2,864 | I113: 1,628 | J113: - | K113: - | L113: 17,949
A114: 1974 | B114: - | C114: 30 | D114: 56 | E114: 1,445 | F114: 7,381 | G114: 6,345 | H114: 2,580 | I114: 106 | J114: - | K114: - | L114: 17,943
A115: 1975 | B115: - | C115: 7 | D115: 138 | E115: 2,927 | F115: 4,590 | G115: 4,753 | H115: 1,273 | I115: 166 | J115: - | K115: - | L115: 13,854
A116: 1976 | B116: - | C116: - | D116: 161 | E116: 3,647 | F116: 8,052 | G116: 8,383 | H116: 2,226 | I116: 910 | J116: - | K116: - | L116: 23,379
A117: 1977 | B117: - | C117: - | D117: 693 | E117: 1,887 | F117: 10,792 | G117: 5,462 | H117: 1,204 | I117: 190 | J117: - | K117: - | L117: 20,228
A118: 1978 | B118: - | C118: - | D118: 75 | E118: 2,466 | F118: 5,122 | G118: 3,907 | H118: 903 | I118: 263 | J118: 1 | K118: - | L118: 12,737
A119: 1979 | B119: - | C119: - | D119: 267 | E119: 4 | F119: 5,920 | G119: 5,372 | H119: 151 | I119: 65 | J119: 1 | K119: - | L119: 11,780
A120: 1980 | B120: - | C120: - | D120: 302 | E120: 305 | F120: 1,963 | G120: 3,744 | H120: 531 | I120: 177 | J120: - | K120: - | L120: 7,022
A121: 1981 | B121: - | C121: - | D121: 1,267 | E121: 0 | F121: 5,094 | G121: 4,747 | H121: 67 | I121: 65 | J121: 0 | K121: - | L121: 11,240
A122: 1982 | B122: - | C122: - | D122: 544 | E122: 688 | F122: 3,503 | G122: 345 | H122: 293 | I122: 398 | J122: 0 | K122: - | L122: 5,771
A123: 1983 | B123: - | C123: - | D123: 232 | E123: 228 | F123: 3,939 | G123: 1,848 | H123: 484 | I123: 255 | J123: 18 | K123: - | L123: 7,004
A124: 1984 | B124: - | C124: - | D124: 52 | E124: 159 | F124: 922 | G124: 776 | H124: 29 | I124: 0 | J124: 0 | K124: - | L124: 1,938
A125: 1985 | B125: - | C125: - | D125: 907 | E125: 426 | F125: 1,561 | G125: 922 | H125: 118 | I125: 153 | J125: 0 | K125: - | L125: 4,087
A126: 1986 | B126: - | C126: - | D126: 864 | E126: 826 | F126: 5,453 | G126: 414 | H126: 345 | I126: 739 | J126: - | K126: - | L126: 8,641
A127: 1987 | B127: - | C127: - | D127: 1,014 | E127: 945 | F127: 3,145 | G127: 1,584 | H127: 1,198 | I127: 821 | J127: - | K127: - | L127: 8,707
A128: 1988 | B128: - | C128: - | D128: 855 | E128: 1,053 | F128: 4,793 | G128: 4,021 | H128: 875 | I128: 815 | J128: - | K128: - | L128: 12,412
A129: 1989 | B129: - | C129: - | D129: 938 | E129: 1,652 | F129: 4,229 | G129: 1,405 | H129: 491 | I129: 473 | J129: - | K129: - | L129: 9,188
A130: 1990 | B130: - | C130: - | D130: 459 | E130: 1,423 | F130: 1,555 | G130: 560 | H130: 184 | I130: 120 | J130: - | K130: - | L130: 4,301
A131: 1991 | B131: - | C131: - | D131: 571 | E131: 2,044 | F131: 894 | G131: 587 | H131: 527 | I131: 439 | J131: - | K131: - | L131: 5,062
A132: 1992 | B132: - | C132: - | D132: 1,405 | E132: - | F132: 1,119 | G132: 1,684 | H132: 746 | I132: 884 | J132: - | K132: - | L132: 5,838
A133: 1993 | B133: - | C133: - | D133: 1,352 | E133: 1,083 | F133: 1,516 | G133: 770 | H133: 725 | I133: 462 | J133: - | K133: - | L133: 5,908
A134: 1994 | B134: - | C134: - | D134: 813 | E134: 831 | F134: - | G134: - | H134: 201 | I134: 289 | J134: - | K134: - | L134: 2,134
A135: 1995 | B135: - | C135: - | D135: 583 | E135: 987 | F135: - | G135: 1,596 | H135: 808 | I135: 694 | J135: - | K135: - | L135: 4,668
A136: 1996 | B136: - | C136: - | D136: 1,023 | E136: 1,125 | F136: - | G136: 1,308 | H136: 773 | I136: 529 | J136: - | K136: - | L136: 4,758
A137: 1997 | B137: - | C137: 226 | D137: 1,388 | E137: 1,331 | F137: - | G137: 1,296 | H137: 728 | I137: 202 | J137: - | K137: - | L137: 5,171
A138: 1998 | B138: - | C138: 667 | D138: 1,339 | E138: 1,175 | F138: - | G138: 950 | H138: 217 | I138: 148 | J138: - | K138: - | L138: 4,496
A139: 1999 | B139: - | C139: 148 | D139: 389 | E139: 456 | F139: 284 | G139: 135 | H139: 26 | I139: 104 | J139: - | K139: - | L139: 1,542
A140: 2000 | B140: - | C140: 81 | D140: 460 | E140: 486 | F140: 374 | G140: 551 | H140: 523 | I140: 222 | J140: - | K140: - | L140: 2,697
A141: 2001 | B141: - | C141: 446 | D141: 1,264 | E141: 1,033 | F141: 495 | G141: 1,081 | H141: 591 | I141: 338 | J141: - | K141: - | L141: 5,248
A142: 2002 | B142: 186 | C142: 345 | D142: 788 | E142: 471 | F142: 278 | G142: 411 | H142: 746 | I142: 1,166 | J142: - | K142: - | L142: 4,391
A143: 2003 | B143: 41 | C143: 265 | D143: 884 | E143: 528 | F143: 470 | G143: 626 | H143: 927 | I143: 821 | J143: - | K143: - | L143: 4,562
A144: 2004 | B144: 485 | C144: 1,060 | D144: 1,279 | E144: 628 | F144: 383 | G144: 405 | H144: 496 | I144: 103 | J144: - | K144: - | L144: =SUM(B144:K144) -> 4,839
A145: 2005 | B145: 296 | C145: 145 | D145: 554 | E145: 1,953 | F145: - | G145: - | H145: 1,005 | I145: 326 | J145: - | K145: - | L145: =SUM(B145:K145) -> 4,279
A146: 2006 | B146: - | C146: - | D146: - | E146: 838 | F146: 471 | G146: 151 | H146: 413 | I146: 250 | J146: 93 | K146: - | L146: =SUM(B146:K146) -> 2,216
A147: 2007 | B147: - | C147: 81 | D147: 347 | E147: 286 | F147: 94 | G147: 170 | H147: 91 | I147: 29 | J147: 6 | K147: - | L147: =SUM(B147:K147) -> 1,104
A148: 2008 | B148: - | C148: - | D148: - | E148: - | F148: - | G148: - | H148: - | I148: - | J148: - | K148: - | L148: -
A149: 2009 | B149: - | C149: - | D149: - | E149: - | F149: - | G149: - | H149: 286 | I149: - | J149: - | K149: - | L149: =SUM(B149:K149) -> 286
A150: 2010 | B150: - | C150: - | D150: 477 | E150: 411 | F150: 290 | G150: =185+96+46+19 -> 346 | H150: - | I150: - | J150: - | K150: - | L150: 1,524
A151: 2011 | B151: - | C151: 60 | D151: 325 | E151: 229 | F151: 22 | G151: 101 | H151: - | I151: 11 | J151: - | K151: - | L151: 748
A152: 2012 | B152: - | C152: 155 | D152: 475 | E152: 335 | F152: 114 | G152: 312 | H152: 465 | I152: 256 | J152: - | K152: - | L152: 2,112
A153: 2013 | B153: - | C153: 334 | D153: 484 | E153: 263 | F153: 141 | G153: 325 | H153: 98 | I153: 77 | J153: - | K153: - | L153: 1,722
A154: 2014 | B154: - | C154: 469 | D154: 1,076 | E154: 507 | F154: 354 | G154: 932 | H154: 255 | I154: 104 | J154: - | K154: - | L154: 3,697
A155: 2015 | B155: - | C155: 738 | D155: 317 | E155: 230 | F155: 782 | G155: 530 | H155: 155 | I155: - | J155: - | K155: - | L155: 2,752
A156: 2016 | B156: - | C156: 666 | D156: 625 | E156: 309 | F156: 388 | G156: 547 | H156: 217 | I156: 4 | J156: - | K156: - | L156: 2,756
A157: 2017 | B157: - | C157: 99 | D157: 149 | E157: 345 | F157: 647 | G157: - | H157: 18 | I157: 6 | J157: - | K157: - | L157: 1,264
A158: 2018 | B158: - | C158: - | D158: 161 | E158: 119 | F158: 191 | G158: 534 | H158: 36 | I158: 2 | J158: - | K158: - | L158: =SUM(B158:K158) -> 1,043
A159: 2019 | B159: - | C159: 30 | D159: 60 | E159: 235 | F159: 828 | G159: 356 | H159: 75 | I159: 9 | J159: - | K159: - | L159: =SUM(B159:K159) -> 1,593
A160: 2020 | B160: - | C160: 91 | D160: 77 | E160: 276 | F160: 401 | G160: 216 | H160: 111 | I160: 13 | J160: - | K160: - | L160: 1,185
A161: 2021b/ | B161: 32 | C161: 352 | D161: 163 | E161: 60 | F161: 290 | G161: 244 | H161: 15 | I161: 4 | J161: - | K161: - | L161: 1,160
A163: Coos Bay
A164: 1971 | B164: - | C164: 3 | D164: 81 | E164: 2,455 | F164: 5,867 | G164: 5,086 | H164: 1,379 | I164: 463 | J164: - | K164: - | L164: =SUM(B164:K164) -> 15,334
A165: 1972 | B165: - | C165: 1 | D165: 96 | E165: 2,518 | F165: 6,533 | G165: 2,610 | H165: 459 | I165: 47 | J165: - | K165: - | L165: =SUM(B165:K165) -> 12,264
A166: 1973 | B166: - | C166: 8 | D166: 69 | E166: 2,269 | F166: 6,865 | G166: 6,487 | H166: 2,345 | I166: 1,235 | J166: - | K166: - | L166: 19,278
A167: 1974 | B167: - | C167: 10 | D167: 82 | E167: 2,129 | F167: 7,951 | G167: 5,726 | H167: 2,241 | I167: 847 | J167: 8 | K167: 0 | L167: 18,994
A168: 1975 | B168: - | C168: 18 | D168: 95 | E168: 4,267 | F168: 5,794 | G168: 3,427 | H168: 2,202 | I168: 309 | J168: 0 | K168: 0 | L168: 16,112
A169: 1976 | B169: - | C169: - | D169: 367 | E169: 5,314 | F169: 11,265 | G169: 8,686 | H169: 2,639 | I169: 204 | J169: - | K169: - | L169: 28,475
A170: 1977 | B170: - | C170: - | D170: 1,033 | E170: 3,297 | F170: 20,823 | G170: 7,549 | H170: 1,898 | I170: 431 | J170: - | K170: - | L170: 35,031
A171: 1978 | B171: - | C171: - | D171: 247 | E171: 2,744 | F171: 5,104 | G171: 4,566 | H171: 1,864 | I171: 402 | J171: 24 | K171: - | L171: 14,951
A172: 1979 | B172: - | C172: - | D172: 666 | E172: 5 | F172: 8,236 | G172: 5,764 | H172: 308 | I172: 340 | J172: 0 | K172: - | L172: 15,319
A173: 1980 | B173: - | C173: - | D173: 307 | E173: 1,294 | F173: 2,793 | G173: 3,780 | H173: 748 | I173: 398 | J173: 3 | K173: - | L173: 9,323
A174: 1981 | B174: - | C174: - | D174: 570 | E174: 0 | F174: 7,367 | G174: 5,114 | H174: 160 | I174: 170 | J174: 0 | K174: - | L174: 13,381
A175: 1982 | B175: - | C175: - | D175: 762 | E175: 937 | F175: 8,413 | G175: 2,044 | H175: 1,085 | I175: 258 | J175: 3 | K175: - | L175: 13,502
A176: 1983 | B176: - | C176: - | D176: 463 | E176: 638 | F176: 5,432 | G176: 160 | H176: 118 | I176: 63 | J176: 2 | K176: - | L176: 6,876
A177: 1984 | B177: - | C177: - | D177: 80 | E177: 225 | F177: 666 | G177: 1,208 | H177: 141 | I177: 0 | J177: 0 | K177: - | L177: 2,320
A178: 1985 | B178: - | C178: - | D178: 1,697 | E178: 1,521 | F178: 3,918 | G178: 4,641 | H178: 1,514 | I178: 411 | J178: 18 | K178: - | L178: 13,720
A179: 1986 | B179: - | C179: - | D179: 2,144 | E179: 2,441 | F179: 5,601 | G179: 4,162 | H179: 1,157 | I179: 265 | J179: - | K179: - | L179: 15,770
A180: 1987 | B180: - | C180: - | D180: 1,742 | E180: 1,724 | F180: 10,258 | G180: 3,528 | H180: 3,053 | I180: 660 | J180: - | K180: - | L180: 20,965
A181: 1988 | B181: - | C181: - | D181: 3,156 | E181: 4,378 | F181: 7,651 | G181: 7,146 | H181: 1,913 | I181: 2,054 | J181: - | K181: - | L181: 26,298
A182: 1989 | B182: - | C182: - | D182: 4,484 | E182: 4,194 | F182: 6,408 | G182: 4,863 | H182: 1,079 | I182: 1,389 | J182: 497 | K182: - | L182: 22,914
A183: 1990 | B183: - | C183: - | D183: 2,160 | E183: 2,194 | F183: 6,417 | G183: 3,624 | H183: 739 | I183: 452 | J183: - | K183: - | L183: 15,586
A184: 1991 | B184: - | C184: - | D184: 33 | E184: 1,817 | F184: 1,481 | G184: 1,018 | H184: 815 | I184: 479 | J184: - | K184: - | L184: 5,643
A185: 1992 | B185: - | C185: - | D185: 51 | E185: - | F185: 131 | G185: 163 | H185: 39 | I185: 56 | J185: - | K185: - | L185: 440
A186: 1993 | B186: - | C186: - | D186: 574 | E186: 163 | F186: 49 | G186: 28 | H186: 346 | I186: 281 | J186: 146 | K186: - | L186: 1,587
A187: 1994 | B187: - | C187: - | D187: 81 | E187: 316 | F187: - | G187: - | H187: 67 | I187: 268 | J187: 63 | K187: - | L187: 795
A188: 1995 | B188: - | C188: - | D188: 228 | E188: 489 | F188: - | G188: 463 | H188: 168 | I188: 190 | J188: 54 | K188: - | L188: 1,592
A189: 1996 | B189: - | C189: - | D189: 250 | E189: 506 | F189: - | G189: 305 | H189: 356 | I189: 255 | J189: 86 | K189: - | L189: 1,758
A190: 1997 | B190: - | C190: 117 | D190: 491 | E190: 421 | F190: - | G190: 219 | H190: 88 | I190: 161 | J190: 56 | K190: - | L190: 1,553
A191: 1998 | B191: - | C191: 161 | D191: 350 | E191: 412 | F191: - | G191: 173 | H191: 57 | I191: 188 | J191: 82 | K191: - | L191: 1,423
A192: 1999 | B192: - | C192: 28 | D192: 174 | E192: 800 | F192: 401 | G192: 730 | H192: 166 | I192: 172 | J192: 119 | K192: 8 | L192: 2,598
A193: 2000 | B193: - | C193: 73 | D193: 192 | E193: 214 | F193: 739 | G193: 1,064 | H193: 549 | I193: 269 | J193: 176 | K193: 69 | L193: 3,345
A194: 2001 | B194: - | C194: 445 | D194: 646 | E194: 720 | F194: 556 | G194: 668 | H194: 375 | I194: 293 | J194: 126 | K194: 1 | L194: 3,830
A195: 2002 | B195: 168 | C195: 476 | D195: 792 | E195: 1,252 | F195: 279 | G195: 559 | H195: 465 | I195: 644 | J195: 154 | K195: 15 | L195: 4,804
A196: 2003 | B196: 125 | C196: 1,110 | D196: 1,439 | E196: 560 | F196: 273 | G196: 573 | H196: 453 | I196: 362 | J196: 117 | K196: 14 | L196: 5,026
A197: 2004 | B197: 406 | C197: 1,245 | D197: 632 | E197: 1,055 | F197: 336 | G197: 1,302 | H197: 573 | I197: 374 | J197: 215 | K197: 21 | L197: 6,159
A198: 2005 | B198: 755 | C198: 184 | D198: =1623+308 -> 1,931 | E198: - | F198: - | G198: - | H198: 1,227 | I198: 544 | J198: 141 | K198: 75 | L198: 4,857
A199: 2006 | B199: - | C199: - | D199: - | E199: - | F199: - | G199: - | H199: 30 | I199: 156 | J199: 155 | K199: 26 | L199: 367
A200: 2007 | B200: - | C200: 253 | D200: 554 | E200: 388 | F200: 167 | G200: 895 | H200: 117 | I200: 120 | J200: 126 | K200: - | L200: 2,620
A201: 2008 | B201: - | C201: - | D201: - | E201: - | F201: - | G201: - | H201: - | I201: - | J201: 48 | K201: - | L201: 48
A202: 2009 | B202: - | C202: - | D202: - | E202: - | F202: - | G202: - | H202: 101 | I202: 36 | J202: - | K202: - | L202: 137
A203: 2010 | B203: - | C203: - | D203: 505 | E203: 399 | F203: 169 | G203: 334 | H203: - | I203: =67+42+39 -> 148 | J203: - | K203: - | L203: =SUM(B203:K203) -> 1,555
... 309 more rows

Sheet A-8
A1: TABLE A-8. Oregon commercial troll Chinook and coho salmon landings in numbers of fish by catch area and month.a/
A2: Year or Avg. | B2: Mar. | C2: Apr. | D2: May | E2: June | F2: July | G2: Aug. | H2: Sept. | I2: Oct. | J2: Nov. | K2: Dec. | L2: Season | N2: June | O2: July | P2: Aug. | Q2: Sept. | R2: Oct. | S2: Season
B3: CHINOOK | N3: COHO
A4: Astoria
A5: 1952 | B5: 7,233 | C5: 19,870 | D5: 13,269 | E5: 11,397 | F5: 6,382 | G5: 7,438 | H5: 2,431 | I5: 4,945 | J5: - | K5: - | L5: =SUM(B5:K5) -> 72,965 | N5: 12,944 | O5: 24,399 | P5: 19,987 | Q5: 9,448 | R5: 5,730 | S5: =SUM(N5:R5) -> 72,508
A6: =1+A5 -> 1953 | B6: 2,329 | C6: 22,415 | D6: 4,375 | E6: 4,646 | F6: 4,430 | G6: 3,147 | H6: 829 | I6: 241 | J6: - | K6: - | L6: 42,412 | N6: 4,063 | O6: 14,761 | P6: 15,436 | Q6: 11,678 | R6: 2,901 | S6: 48,839
A7: =1+A6 -> 1954 | B7: 11,336 | C7: 13,409 | D7: 6,958 | E7: 1,240 | F7: 1,736 | G7: 6,538 | H7: 3,340 | I7: 628 | J7: - | K7: - | L7: 45,185 | N7: 848 | O7: 9,843 | P7: 9,352 | Q7: 5,995 | R7: 653 | S7: 26,691
A8: 1955 | B8: 3,817 | C8: 14,547 | D8: 6,848 | E8: 3,921 | F8: 4,444 | G8: 8,561 | H8: 2,736 | I8: 229 | J8: - | K8: - | L8: 45,103 | N8: 1,179 | O8: 13,020 | P8: 17,036 | Q8: 11,193 | R8: 2,659 | S8: 45,087
A9: 1956 | B9: - | C9: 23,162 | D9: 487 | E9: 997 | F9: 5,089 | G9: 6,988 | H9: 1,220 | I9: 231 | J9: - | K9: - | L9: 38,174 | N9: 4,054 | O9: 27,551 | P9: 23,143 | Q9: 10,131 | R9: 2,613 | S9: 67,492
A10: 1957 | B10: - | C10: 4,196 | D10: 2,392 | E10: 842 | F10: 5,171 | G10: 2,947 | H10: 1,256 | I10: 11 | J10: - | K10: - | L10: 16,815 | N10: 8,726 | O10: 26,941 | P10: 16,592 | Q10: 4,667 | R10: 531 | S10: 57,457
A11: 1958 | B11: - | C11: 928 | D11: 404 | E11: 1,441 | F11: 2,140 | G11: 2,691 | H11: 276 | I11: 81 | J11: - | K11: - | L11: 7,961 | N11: 10,285 | O11: 8,131 | P11: 5,051 | Q11: 6,427 | R11: 531 | S11: 30,425
A12: 1959 | B12: - | C12: 2,196 | D12: 414 | E12: 1,094 | F12: 1,222 | G12: 2,827 | H12: 259 | I12: 159 | J12: - | K12: - | L12: 8,171 | N12: 13,457 | O12: 18,148 | P12: 5,284 | Q12: 3,332 | R12: 1,113 | S12: 41,334
A13: 1960 | B13: - | C13: 1,748 | D13: 182 | E13: 1,420 | F13: 2,748 | G13: 1,686 | H13: 657 | I13: 113 | J13: - | K13: - | L13: 8,554 | N13: 5,753 | O13: 9,794 | P13: 9,808 | Q13: 3,957 | R13: 429 | S13: 29,741
A14: 1961 | B14: - | C14: 600 | D14: 310 | E14: 2,205 | F14: 1,711 | G14: 3,008 | H14: 1,535 | I14: 117 | J14: - | K14: - | L14: 9,486 | N14: 14,216 | O14: 16,577 | P14: 13,315 | Q14: 16,434 | R14: 1,017 | S14: 61,559
A15: 1962 | B15: - | C15: 102 | D15: 728 | E15: 2,909 | F15: 1,422 | G15: 1,088 | H15: 230 | I15: 55 | J15: - | K15: - | L15: 6,534 | N15: 16,837 | O15: 19,831 | P15: 17,289 | Q15: 2,771 | R15: 137 | S15: 56,865
A16: 1963 | B16: - | C16: 2,779 | D16: 4,886 | E16: 4,930 | F16: 1,033 | G16: 1,518 | H16: 494 | I16: 106 | J16: - | K16: - | L16: 15,746 | N16: 10,753 | O16: 37,431 | P16: 15,940 | Q16: 11,004 | R16: 1,297 | S16: 76,425
A17: 1964 | B17: - | C17: 1,035 | D17: 6,133 | E17: 1,371 | F17: 1,475 | G17: 526 | H17: 962 | I17: 47 | J17: - | K17: - | L17: 11,549 | N17: 4,525 | O17: 34,888 | P17: 20,887 | Q17: 23,296 | R17: 382 | S17: 83,978
A18: 1965 | B18: - | C18: 10 | D18: 960 | E18: 681 | F18: 575 | G18: 1,233 | H18: 769 | I18: 631 | J18: - | K18: - | L18: 4,859 | N18: 8,330 | O18: 45,726 | P18: 78,296 | Q18: 17,967 | R18: 5,145 | S18: 155,464
A19: 1966 | B19: - | C19: 561 | D19: 7,047 | E19: 6,687 | F19: 1,351 | G19: 821 | H19: 1,471 | I19: 266 | J19: - | K19: - | L19: 18,204 | N19: 13,660 | O19: 52,359 | P19: 8,277 | Q19: 52,127 | R19: 3,096 | S19: 129,519
A20: 1967 | B20: - | C20: 2,149 | D20: 3,541 | E20: 4,943 | F20: 1,479 | G20: 6,185 | H20: 1,465 | I20: 27 | J20: - | K20: - | L20: 19,789 | N20: 6,245 | O20: 39,570 | P20: 76,853 | Q20: 35,333 | R20: 374 | S20: 158,375
A21: 1968 | B21: - | C21: 4,238 | D21: 12,062 | E21: 3,448 | F21: 1,477 | G21: 923 | H21: 351 | I21: 8 | J21: - | K21: - | L21: 22,507 | N21: 42,720 | O21: 33,000 | P21: 15,272 | Q21: 6,763 | R21: 88 | S21: 97,843
A22: 1969 | B22: - | C22: 115 | D22: 925 | E22: 5,383 | F22: 1,834 | G22: 1,505 | H22: 865 | I22: 6 | J22: - | K22: - | L22: 10,633 | N22: 11,710 | O22: 15,952 | P22: 15,791 | Q22: 4,872 | R22: 48 | S22: 48,373
A23: 1970 | B23: - | C23: 1,301 | D23: 11,658 | E23: 7,425 | F23: 1,687 | G23: 1,481 | H23: 436 | I23: 22 | J23: - | K23: - | L23: 24,010 | N23: 27,419 | O23: 24,656 | P23: 30,092 | Q23: 12,066 | R23: 242 | S23: 94,475
A24: 1971 | B24: - | C24: 1,323 | D24: 7,820 | E24: 4,857 | F24: 773 | G24: 1,029 | H24: 219 | I24: 39 | J24: - | K24: - | L24: 16,060 | N24: 34,194 | O24: 38,078 | P24: 45,134 | Q24: 11,224 | R24: 505 | S24: 129,135
A25: 1972 | B25: - | C25: 15 | D25: 3,309 | E25: 3,818 | F25: 819 | G25: 525 | H25: 335 | I25: 27 | J25: - | K25: - | L25: 8,848 | N25: 25,057 | O25: 15,315 | P25: 15,042 | Q25: 8,145 | R25: 155 | S25: 63,714
A26: 1973 | B26: - | C26: 480 | D26: 3,741 | E26: 2,258 | F26: 950 | G26: 733 | H26: 291 | I26: 160 | J26: - | K26: - | L26: 8,613 | N26: 15,692 | O26: 11,801 | P26: 3,150 | Q26: 788 | R26: 289 | S26: 31,720
A27: 1974 | B27: - | C27: 370 | D27: 12,648 | E27: 1,169 | F27: 1,733 | G27: 1,017 | H27: 626 | I27: 118 | J27: - | K27: - | L27: 17,681 | N27: 4,115 | O27: 26,133 | P27: 9,218 | Q27: 4,485 | R27: 200 | S27: 44,151
A28: 1975 | B28: - | C28: 81 | D28: 4,426 | E28: 3,447 | F28: 1,934 | G28: 754 | H28: 287 | I28: 26 | J28: - | K28: - | L28: 10,955 | N28: 16,903 | O28: 18,154 | P28: 4,559 | Q28: 3,020 | R28: 172 | S28: 42,808
A29: 1976 | B29: - | C29: - | D29: 13,176 | E29: 8,445 | F29: 3,934 | G29: 1,523 | H29: 814 | I29: 210 | J29: - | K29: - | L29: 28,102 | N29: 70,109 | O29: 64,570 | P29: 23,000 | Q29: 17,247 | R29: 1,747 | S29: 176,673
A30: 1977 | B30: - | C30: - | D30: 5,754 | E30: 8,723 | F30: 4,231 | G30: 1,261 | H30: 1,218 | I30: 697 | J30: - | K30: - | L30: 21,884 | N30: 26,661 | O30: 38,385 | P30: 5,561 | Q30: 2,245 | R30: 374 | S30: 73,226
A31: 1978 | B31: - | C31: - | D31: 1,104 | E31: 5,932 | F31: 5,036 | G31: 1,041 | H31: 117 | I31: 1,966 | J31: - | K31: - | L31: 15,196 | N31: 17,840 | O31: 26,842 | P31: 8,149 | Q31: 2,235 | R31: 1,092 | S31: 56,158
A32: 1979 | B32: - | C32: - | D32: 772 | E32: 5 | F32: 1,867 | G32: 3,046 | H32: 200 | I32: 9 | J32: - | K32: - | L32: 5,899 | N32: 11 | O32: 27,831 | P32: 19,905 | Q32: 960 | R32: - | S32: 48,707
A33: 1980 | B33: - | C33: - | D33: 4,390 | E33: 15 | F33: 548 | G33: 529 | H33: 111 | I33: 5 | J33: - | K33: - | L33: 5,598 | N33: - | O33: 0 | P33: 5,388 | Q33: 5,156 | R33: 304 | S33: 10,848
A34: 1981 | B34: - | C34: - | D34: 6,607 | E34: 0 | F34: 1,037 | G34: 513 | H34: 0 | I34: 9 | J34: - | K34: - | L34: 8,166 | N34: - | O34: 32,583 | P34: 13,241 | Q34: - | R34: - | S34: 45,824
A35: 1982 | B35: - | C35: - | D35: 7,154 | E35: 0 | F35: 1,219 | G35: 0 | H35: 0 | I35: 0 | J35: - | K35: - | L35: 8,373 | N35: - | O35: 23,762 | P35: - | Q35: - | R35: - | S35: 23,762
A36: 1983 | B36: - | C36: - | D36: 4,361 | E36: 0 | F36: 238 | G36: 206 | H36: 116 | I36: 0 | J36: - | K36: - | L36: 4,921 | N36: - | O36: 140 | P36: 2,365 | Q36: 2,543 | R36: - | S36: 5,048
A37: 1984 | B37: - | C37: - | D37: 1,013 | E37: 0 | F37: 0 | G37: 257 | H37: 0 | I37: 0 | J37: - | K37: - | L37: 1,270 | N37: - | O37: - | P37: 13,649 | Q37: - | R37: - | S37: 13,649
A38: 1985 | B38: - | C38: - | D38: 4,556 | E38: 0 | F38: 0 | G38: 490 | H38: 0 | I38: 3 | J38: - | K38: - | L38: 5,049 | N38: - | O38: - | P38: 18,242 | Q38: - | R38: - | S38: 18,242
A39: 1986 | B39: - | C39: - | D39: 4,512 | E39: - | F39: - | G39: 1,585 | H39: - | I39: - | J39: - | K39: - | L39: 6,097 | N39: - | O39: - | P39: 46,063 | Q39: - | R39: - | S39: =SUM(N39:R39) -> 46,063
A40: 1987 | B40: - | C40: - | D40: 2,327 | E40: - | F40: 2,225 | G40: - | H40: - | I40: - | J40: - | K40: - | L40: 4,552 | N40: - | O40: 7,390 | P40: - | Q40: - | R40: - | S40: =SUM(N40:R40) -> 7,390
A41: 1988 | B41: - | C41: - | D41: 973 | E41: 648 | F41: - | G41: - | H41: - | I41: - | J41: - | K41: - | L41: 1,621 | N41: - | O41: - | P41: - | Q41: - | R41: - | S41: -
A42: 1989 | B42: - | C42: - | D42: 653 | E42: 375 | F42: - | G42: 1,483 | H42: 352 | I42: - | J42: - | K42: - | L42: 2,863 | N42: - | O42: - | P42: 15,591 | Q42: 5,527 | R42: - | S42: 21,118
A43: 1990 | B43: - | C43: - | D43: 489 | E43: 66 | F43: - | G43: 449 | H43: 1,178 | I43: 71 | J43: - | K43: - | L43: 2,253 | N43: - | O43: - | P43: 3,546 | Q43: 7,034 | R43: 304 | S43: 10,884
A44: 1991 | B44: - | C44: - | D44: 325 | E44: 27 | F44: - | G44: 451 | H44: 111 | I44: - | J44: - | K44: - | L44: 914 | N44: - | O44: - | P44: 21,618 | Q44: 5,160 | R44: - | S44: 26,778
A45: 1992 | B45: - | C45: - | D45: 376 | E45: 925 | F45: 118 | G45: 74 | H45: - | I45: - | J45: - | K45: - | L45: 1,493 | N45: - | O45: 662 | P45: 767 | Q45: - | R45: - | S45: 1,429
A46: 1993 | B46: - | C46: - | D46: 253 | E46: 13 | F46: 37 | G46: 37 | H46: 65 | I46: - | J46: - | K46: - | L46: 405 | N46: - | O46: 207 | P46: 580 | Q46: 853 | R46: - | S46: 1,640
A47: 1994 | B47: - | C47: - | D47: - | E47: - | F47: - | G47: - | H47: - | I47: - | J47: - | K47: - | L47: - | N47: - | O47: - | P47: - | Q47: - | R47: - | S47: -
A48: 1995 | B48: - | C48: - | D48: - | E48: - | F48: - | G48: - | H48: - | I48: - | J48: - | K48: - | L48: - | N48: - | O48: - | P48: - | Q48: - | R48: - | S48: -
A49: 1996 | B49: - | C49: - | D49: - | E49: - | F49: - | G49: - | H49: - | I49: - | J49: - | K49: - | L49: - | N49: - | O49: - | P49: - | Q49: - | R49: - | S49: -
A50: 1997 | B50: - | C50: - | D50: 25 | E50: 3 | F50: - | G50: - | H50: - | I50: - | J50: - | K50: - | L50: 28 | N50: - | O50: - | P50: - | Q50: - | R50: - | S50: -
A51: 1998 | B51: - | C51: - | D51: 0 | E51: 0 | F51: - | G51: - | H51: - | I51: - | J51: - | K51: - | L51: 0 | N51: - | O51: - | P51: - | Q51: - | R51: - | S51: -
A52: 1999 | B52: - | C52: - | D52: 0 | E52: 15 | F52: - | G52: - | H52: - | I52: - | J52: - | K52: - | L52: 15 | N52: - | O52: - | P52: - | Q52: - | R52: - | S52: -
A53: 2000 | B53: - | C53: - | D53: 9 | E53: 236 | F53: - | G53: 1,951 | H53: 49 | I53: - | J53: - | K53: - | L53: 2,245 | N53: - | O53: - | P53: 11,600 | Q53: 658 | R53: - | S53: 12,258
A54: 2001 | B54: - | C54: - | D54: 380 | E54: 1,704 | F54: 925 | G54: 753 | H54: 329 | I54: - | J54: - | K54: - | L54: 4,091 | N54: - | O54: 3,701 | P54: 3,376 | Q54: 2,256 | R54: - | S54: 9,333
A55: 2002 | B55: - | C55: - | D55: 855 | E55: 3,189 | F55: 4,241 | G55: 4,512 | H55: - | I55: - | J55: - | K55: - | L55: 12,797 | N55: - | O55: - | P55: 1,515 | Q55: - | R55: - | S55: 1,515
A56: 2003 | B56: - | C56: - | D56: 4,927 | E56: 1,171 | F56: 1,310 | G56: 2,377 | H56: 599 | I56: - | J56: - | K56: - | L56: 10,384 | N56: - | O56: 1,473 | P56: 3,657 | Q56: 1,311 | R56: - | S56: 6,441
A57: 2004 | B57: - | C57: - | D57: 1,884 | E57: 17 | F57: 381 | G57: 331 | H57: 505 | I57: - | J57: - | K57: - | L57: 3,118 | N57: - | O57: 718 | P57: 1,399 | Q57: 6,722 | R57: - | S57: 8,839
A58: 2005 | B58: - | C58: - | D58: 5,119 | E58: 927 | F58: 367 | G58: 3,672 | H58: - | I58: - | J58: - | K58: - | L58: 10,085 | N58: - | O58: 204 | P58: 2,414 | Q58: - | R58: - | S58: 2,618
A59: 2006 | B59: - | C59: - | D59: 7,167 | E59: 3,168 | F59: 1 | G59: 61 | H59: 92 | I59: - | J59: - | K59: - | L59: 10,489 | N59: - | O59: 10 | P59: 915 | Q59: 489 | R59: - | S59: 1,414
A60: 2007 | B60: - | C60: - | D60: 777 | E60: 374 | F60: 115 | G60: 163 | H60: 14 | I60: - | J60: - | K60: - | L60: 1,443 | N60: - | O60: 1,062 | P60: 10,335 | Q60: 157 | R60: - | S60: 11,554
A61: 2008 | B61: - | C61: - | D61: 2,616 | E61: 2,508 | F61: 129 | G61: 161 | H61: 20 | I61: - | J61: - | K61: - | L61: 5,434 | N61: - | O61: 49 | P61: 356 | Q61: 29 | R61: - | S61: 434
A62: 2009 | B62: - | C62: - | D62: 119 | E62: 232 | F62: 240 | G62: 117 | H62: =3+1 -> 4 | I62: - | J62: - | K62: - | L62: 712 | N62: - | O62: 9,061 | P62: 3,458 | Q62: 165 | R62: - | S62: 12,684
A63: 2010 | B63: - | C63: - | D63: =298+43+196+43 -> 580 | E63: =242+3252+746+2412 -> 6,652 | F63: =358+110+25+69+1559 -> 2,121 | G63: =1160+189+70+238 -> 1,657 | H63: 110 | I63: - | J63: - | K63: - | L63: =SUM(B63:K63) -> 11,120 | N63: - | O63: 637 | P63: 368 | Q63: =10+25 -> 35 | R63: - | S63: 1,040
A64: 2011 | B64: - | C64: - | D64: 1,057 | E64: 1,400 | F64: 114 | G64: 239 | H64: 26 | I64: - | J64: - | K64: - | L64: =SUM(B64:K64) -> 2,836 | N64: - | O64: 234 | P64: 147 | Q64: 83 | R64: - | S64: =SUM(N64:R64) -> 464
A65: 2012 | B65: - | C65: - | D65: 1,034 | E65: 5,366 | F65: 210 | G65: 149 | H65: 1,685 | I65: - | J65: - | K65: - | L65: =SUM(B65:K65) -> 8,444 | N65: - | O65: 38 | P65: 35 | Q65: 551 | R65: - | S65: =SUM(N65:R65) -> 624
A66: 2013 | B66: - | C66: - | D66: 432 | E66: 704 | F66: 136 | G66: 279 | H66: 394 | I66: - | J66: - | K66: - | L66: 1,945 | N66: - | O66: 39 | P66: 295 | Q66: 118 | R66: - | S66: =SUM(N66:R66) -> 452
A67: 2014 | B67: - | C67: - | D67: 12,804 | E67: 725 | F67: 2,282 | G67: 175 | H67: 196 | I67: - | J67: - | K67: - | L67: 16,182 | N67: - | O67: 2,428 | P67: 1,570 | Q67: 3,704 | R67: - | S67: =SUM(N67:R67) -> 7,702
A68: 2015 | B68: - | C68: - | D68: 6,806 | E68: 1,527 | F68: 1,293 | G68: 700 | H68: 556 | I68: - | J68: - | K68: - | L68: 10,882 | N68: - | O68: 328 | P68: 411 | Q68: 1,474 | R68: - | S68: =SUM(N68:R68) -> 2,213
A69: 2016 | B69: - | C69: - | D69: 519 | E69: 743 | F69: 169 | G69: 627 | H69: - | I69: - | J69: - | K69: - | L69: 2,058 | N69: - | O69: - | P69: - | Q69: - | R69: - | S69: -
A70: 2017 | B70: - | C70: - | D70: 1,080 | E70: 652 | F70: 50 | G70: 611 | H70: 234 | I70: - | J70: - | K70: - | L70: 2,627 | N70: - | O70: 16 | P70: 305 | Q70: 149 | R70: - | S70: =SUM(N70:R70) -> 470
A71: 2018 | B71: - | C71: - | D71: 16 | E71: 269 | F71: 10 | G71: 38 | H71: 0 | I71: - | J71: - | K71: - | L71: =SUM(B71:K71) -> 333 | N71: - | O71: 8 | P71: 84 | Q71: - | R71: - | S71: =SUM(N71:R71) -> 92
A72: 2019 | B72: - | C72: - | D72: 17 | E72: 36 | F72: 334 | G72: 93 | H72: 28 | I72: - | J72: - | K72: - | L72: =SUM(B72:K72) -> 508 | N72: - | O72: 1,029 | P72: 302 | Q72: 81 | R72: - | S72: =SUM(N72:R72) -> 1,412
A73: 2020 | B73: - | C73: - | D73: 84 | E73: 36 | F73: 57 | G73: 13 | H73: 0 | I73: - | J73: - | K73: - | L73: 190 | N73: - | O73: 63 | P73: 64 | Q73: 2 | R73: - | S73: =SUM(N73:R73) -> 129
A74: 2021b/ | B74: - | C74: - | D74: 15 | E74: 8 | F74: 126 | G74: 24 | H74: 5 | I74: - | J74: - | K74: - | L74: 178 | N74: - | O74: 75 | P74: 25 | Q74: 41 | R74: - | S74: =SUM(N74:R74) -> 141
A76: Tillamook
A77: 1952 | B77: - | C77: 0 | D77: 61 | E77: 349 | F77: 236 | G77: 91 | H77: 81 | I77: 5 | J77: - | K77: - | L77: =SUM(B77:K77) -> 823 | N77: 530 | O77: 432 | P77: 1,333 | Q77: 334 | R77: 6 | S77: =SUM(N77:R77) -> 2,635
A78: 1953 | B78: - | C78: 0 | D78: 53 | E78: 30 | F78: 125 | G78: 461 | H78: 81 | I78: 0 | J78: - | K78: - | L78: 750 | N78: 483 | O78: 1,450 | P78: 3,464 | Q78: 1,748 | R78: 698 | S78: 7,843
A79: 1954 | B79: - | C79: 9 | D79: 0 | E79: 37 | F79: 322 | G79: 2,748 | H79: 32 | I79: 0 | J79: - | K79: - | L79: 3,148 | N79: 240 | O79: 3,116 | P79: 4,232 | Q79: 607 | R79: 0 | S79: 8,195
A80: 1955 | B80: - | C80: 0 | D80: 356 | E80: 70 | F80: 716 | G80: 3,365 | H80: 471 | I80: 0 | J80: - | K80: - | L80: 4,978 | N80: 37 | O80: 4,758 | P80: 4,540 | Q80: 713 | R80: 55 | S80: 10,103
A81: 1956 | B81: - | C81: 0 | D81: 34 | E81: 35 | F81: 891 | G81: 1,642 | H81: 136 | I81: 1 | J81: - | K81: - | L81: 2,739 | N81: 47 | O81: 6,508 | P81: 6,660 | Q81: 2,319 | R81: 8 | S81: 15,542
A82: 1957 | B82: - | C82: 0 | D82: 0 | E82: 471 | F82: 1,379 | G82: 287 | H82: 252 | I82: 17 | J82: - | K82: - | L82: 2,406 | N82: 3,904 | O82: 8,277 | P82: 4,475 | Q82: 1,027 | R82: 204 | S82: 17,887
A83: 1958 | B83: - | C83: 0 | D83: 4 | E83: 740 | F83: 1,611 | G83: 765 | H83: 184 | I83: 2 | J83: - | K83: - | L83: 3,306 | N83: 1,165 | O83: 2,976 | P83: 1,710 | Q83: 415 | R83: 9 | S83: 6,275
A84: 1959 | B84: - | C84: 0 | D84: 23 | E84: 288 | F84: 378 | G84: 946 | H84: 80 | I84: 21 | J84: - | K84: - | L84: 1,736 | N84: 1,154 | O84: 3,864 | P84: 2,299 | Q84: 649 | R84: 2 | S84: 7,968
A85: 1960 | B85: - | C85: 10 | D85: 11 | E85: 172 | F85: 334 | G85: 336 | H85: 132 | I85: 0 | J85: - | K85: - | L85: 995 | N85: 150 | O85: 578 | P85: 3,571 | Q85: 1,171 | R85: 0 | S85: 5,470
A86: 1961 | B86: - | C86: 9 | D86: 1 | E86: 86 | F86: 189 | G86: 399 | H86: 117 | I86: 29 | J86: - | K86: - | L86: 830 | N86: 2,535 | O86: 3,742 | P86: 6,790 | Q86: 746 | R86: 79 | S86: 13,892
A87: 1962 | B87: - | C87: 0 | D87: 1 | E87: 86 | F87: 56 | G87: 108 | H87: 60 | I87: 1 | J87: - | K87: - | L87: 312 | N87: 1,156 | O87: 4,400 | P87: 5,082 | Q87: 181 | R87: 0 | S87: 10,819
A88: 1963 | B88: - | C88: 0 | D88: 0 | E88: 7 | F88: 72 | G88: 449 | H88: 240 | I88: 15 | J88: - | K88: - | L88: 783 | N88: 1,109 | O88: 3,023 | P88: 10,457 | Q88: 2,721 | R88: 71 | S88: 17,381
A89: 1964 | B89: - | C89: 0 | D89: 0 | E89: 48 | F89: 322 | G89: 722 | H89: 237 | I89: 6 | J89: - | K89: - | L89: 1,335 | N89: 1,312 | O89: 8,994 | P89: 12,247 | Q89: 2,000 | R89: 28 | S89: 24,581
A90: 1965 | B90: - | C90: 0 | D90: 0 | E90: 47 | F90: 112 | G90: 266 | H90: 766 | I90: 40 | J90: - | K90: - | L90: 1,231 | N90: 1,029 | O90: 21,670 | P90: 19,397 | Q90: 1,848 | R90: 28 | S90: 43,972
A91: 1966 | B91: - | C91: 0 | D91: 57 | E91: 51 | F91: 1,056 | G91: 523 | H91: 209 | I91: 0 | J91: - | K91: - | L91: 1,896 | N91: 2,503 | O91: 41,289 | P91: 11,615 | Q91: 9,294 | R91: 97 | S91: 64,798
A92: 1967 | B92: - | C92: 0 | D92: 16 | E92: 1,219 | F92: 876 | G92: 1,372 | H92: 134 | I92: 0 | J92: - | K92: - | L92: 3,617 | N92: 11,167 | O92: 88,277 | P92: 52,425 | Q92: 2,629 | R92: 0 | S92: 154,498
A93: 1968 | B93: - | C93: 0 | D93: 30 | E93: 347 | F93: 2,553 | G93: 1,704 | H93: 268 | I93: 296 | J93: - | K93: - | L93: 5,198 | N93: 10,145 | O93: 80,289 | P93: 38,419 | Q93: 3,783 | R93: 0 | S93: 132,636
A94: 1969 | B94: - | C94: 0 | D94: 227 | E94: 1,625 | F94: 712 | G94: 1,817 | H94: 497 | I94: 221 | J94: - | K94: - | L94: 5,099 | N94: 10,875 | O94: 26,224 | P94: 29,094 | Q94: 2,215 | R94: 494 | S94: 68,902
A95: 1970 | B95: - | C95: 34 | D95: 37 | E95: 1,663 | F95: 1,460 | G95: 747 | H95: 450 | I95: 85 | J95: - | K95: - | L95: 4,476 | N95: 13,911 | O95: 22,070 | P95: 40,276 | Q95: 5,102 | R95: 97 | S95: 81,456
A96: 1971 | B96: - | C96: 0 | D96: 13 | E96: 367 | F96: 464 | G96: 1,867 | H96: 281 | I96: 20 | J96: - | K96: - | L96: 3,012 | N96: 11,056 | O96: 61,288 | P96: 145,328 | Q96: 3,573 | R96: 178 | S96: 221,423
A97: 1972 | B97: - | C97: 0 | D97: 65 | E97: 674 | F97: 722 | G97: 2,393 | H97: 224 | I97: 24 | J97: - | K97: - | L97: 4,102 | N97: 26,783 | O97: 40,128 | P97: 45,301 | Q97: 4,603 | R97: 43 | S97: 116,858
A98: 1973 | B98: - | C98: 11 | D98: 75 | E98: 472 | F98: 1,422 | G98: 3,774 | H98: 1,512 | I98: 436 | J98: - | K98: - | L98: 7,702 | N98: 21,883 | O98: 31,941 | P98: 23,716 | Q98: 2,100 | R98: 229 | S98: 79,869
A99: 1974 | B99: - | C99: 0 | D99: 55 | E99: 680 | F99: 2,298 | G99: 3,385 | H99: 934 | I99: 187 | J99: - | K99: - | L99: 7,539 | N99: 7,739 | O99: 92,840 | P99: 46,587 | Q99: 6,424 | R99: 107 | S99: 153,697
A100: 1975 | B100: - | C100: 0 | D100: 7 | E100: 908 | F100: 2,177 | G100: 2,346 | H100: 406 | I100: 4 | J100: - | K100: - | L100: 5,848 | N100: 32,268 | O100: 40,863 | P100: 32,429 | Q100: 4,240 | R100: 15 | S100: 109,815
A101: 1976 | B101: - | C101: - | D101: 1,130 | E101: 3,546 | F101: 2,018 | G101: 1,895 | H101: 397 | I101: 90 | J101: - | K101: - | L101: 9,076 | N101: 87,485 | O101: 145,114 | P101: 67,530 | Q101: 7,122 | R101: 204 | S101: 307,455
A102: 1977 | B102: - | C102: - | D102: 150 | E102: 10,127 | F102: 10,969 | G102: 3,094 | H102: 1,382 | I102: 423 | J102: - | K102: - | L102: 26,145 | N102: 21,648 | O102: 60,470 | P102: 14,248 | Q102: 1,935 | R102: 96 | S102: 98,397
A103: 1978 | B103: - | C103: - | D103: 24 | E103: 2,318 | F103: 3,839 | G103: 1,549 | H103: 207 | I103: 201 | J103: - | K103: - | L103: 8,138 | N103: 40,676 | O103: 39,609 | P103: 11,964 | Q103: 1,078 | R103: 72 | S103: 93,399
A104: 1979 | B104: - | C104: - | D104: 127 | E104: 0 | F104: 2,124 | G104: 2,527 | H104: 14 | I104: 158 | J104: - | K104: - | L104: 4,950 | N104: - | O104: 56,202 | P104: 21,696 | Q104: 26 | R104: - | S104: 77,924
A105: 1980 | B105: - | C105: - | D105: 947 | E105: 288 | F105: 1,588 | G105: 4,375 | H105: 526 | I105: 75 | J105: - | K105: - | L105: 7,799 | N105: - | O105: 29,532 | P105: 23,709 | Q105: 8 | R105: - | S105: 53,249
A106: 1981 | B106: - | C106: - | D106: 4,251 | E106: 0 | F106: 5,304 | G106: 2,381 | H106: 200 | I106: 170 | J106: - | K106: - | L106: 12,306 | N106: - | O106: 117,054 | P106: 42,020 | Q106: - | R106: - | S106: 159,074
A107: 1982 | B107: - | C107: - | D107: 2,683 | E107: 864 | F107: 3,062 | G107: 703 | H107: 378 | I107: 190 | J107: - | K107: - | L107: 7,880 | N107: - | O107: 113,632 | P107: - | Q107: - | R107: - | S107: 113,632
A108: 1983 | B108: - | C108: - | D108: 430 | E108: 264 | F108: 1,545 | G108: 1,131 | H108: 395 | I108: 379 | J108: 2 | K108: - | L108: 4,146 | N108: - | O108: 43,161 | P108: 18,324 | Q108: 1,637 | R108: - | S108: 63,122
A109: 1984 | B109: - | C109: - | D109: 327 | E109: 55 | F109: 174 | G109: 1,143 | H109: 71 | I109: 85 | J109: 11 | K109: - | L109: 1,866 | N109: - | O109: - | P109: - | Q109: - | R109: - | S109: -
A110: 1985 | B110: - | C110: - | D110: 42 | E110: 231 | F110: 1,814 | G110: 690 | H110: 362 | I110: 170 | J110: - | K110: - | L110: 3,309 | N110: - | O110: 1,479 | P110: 15 | Q110: - | R110: - | S110: 1,494
A111: 1986 | B111: - | C111: - | D111: 220 | E111: 52 | F111: 2,750 | G111: 3,076 | H111: 6,462 | I111: 1,517 | J111: 11 | K111: - | L111: 14,088 | N111: - | O111: 96,733 | P111: - | Q111: - | R111: - | S111: 96,733
A112: 1987 | B112: - | C112: - | D112: 1,803 | E112: 1,611 | F112: 16,109 | G112: 11,700 | H112: 6,938 | I112: 3,221 | J112: - | K112: - | L112: 41,382 | N112: - | O112: 49,560 | P112: 19,757 | Q112: 5,397 | R112: - | S112: 74,714
A113: 1988 | B113: - | C113: - | D113: 899 | E113: 5,690 | F113: 9,513 | G113: 8,826 | H113: 5,049 | I113: 2,785 | J113: - | K113: - | L113: 32,762 | N113: - | O113: 124,175 | P113: 48,109 | Q113: - | R113: - | S113: 172,284
A114: 1989 | B114: - | C114: - | D114: 5,381 | E114: 7,832 | F114: 6,824 | G114: 4,345 | H114: 4,503 | I114: 1,544 | J114: - | K114: - | L114: 30,429 | N114: - | O114: 117,119 | P114: 19,151 | Q114: - | R114: - | S114: 136,270
A115: 1990 | B115: - | C115: - | D115: 422 | E115: 551 | F115: 5,451 | G115: 3,112 | H115: 1,777 | I115: 1,234 | J115: - | K115: - | L115: 12,547 | N115: - | O115: 23,162 | P115: 30,129 | Q115: - | R115: - | S115: 53,291
A116: 1991 | B116: - | C116: - | D116: 224 | E116: 175 | F116: 3,104 | G116: 1,923 | H116: 2,059 | I116: 1,989 | J116: - | K116: - | L116: 9,474 | N116: - | O116: 89,936 | P116: - | Q116: - | R116: - | S116: 89,936
A117: 1992 | B117: - | C117: - | D117: 377 | E117: - | F117: 422 | G117: 2,171 | H117: 1,859 | I117: 2,436 | J117: - | K117: - | L117: 7,265 | N117: - | O117: 797 | P117: 7,065 | Q117: - | R117: 12 | S117: 7,874
A118: 1993 | B118: - | C118: - | D118: 468 | E118: 199 | F118: 778 | G118: 642 | H118: 2,641 | I118: 1,616 | J118: - | K118: - | L118: 6,344 | N118: - | O118: - | P118: - | Q118: - | R118: - | S118: -
A119: 1994 | B119: - | C119: - | D119: 98 | E119: 282 | F119: - | G119: - | H119: - | I119: 1,266 | J119: 7 | K119: - | L119: 1,653 | N119: - | O119: - | P119: - | Q119: - | R119: - | S119: -
A120: 1995 | B120: - | C120: - | D120: 364 | E120: 842 | F120: - | G120: 6,636 | H120: 1,130 | I120: 726 | J120: - | K120: - | L120: 9,698 | N120: - | O120: - | P120: - | Q120: - | R120: - | S120: -
A121: 1996 | B121: - | C121: - | D121: 719 | E121: 8,565 | F121: - | G121: 1,088 | H121: 2,062 | I121: 702 | J121: 0 | K121: - | L121: 13,136 | N121: - | O121: - | P121: - | Q121: - | R121: - | S121: -
A122: 1997 | B122: - | C122: 41 | D122: 244 | E122: 567 | F122: - | G122: 292 | H122: 710 | I122: 440 | J122: 37 | K122: - | L122: 2,331 | N122: - | O122: - | P122: - | Q122: - | R122: - | S122: -
A123: 1998 | B123: - | C123: 165 | D123: 423 | E123: 809 | F123: - | G123: 2,181 | H123: 2,160 | I123: 784 | J123: 42 | K123: - | L123: 6,564 | N123: - | O123: - | P123: - | Q123: - | R123: - | S123: -
A124: 1999 | B124: - | C124: 1 | D124: 259 | E124: 555 | F124: 171 | G124: 963 | H124: 624 | I124: 219 | J124: 12 | K124: - | L124: 2,804 | N124: - | O124: - | P124: - | Q124: - | R124: - | S124: -
A125: 2000 | B125: - | C125: 1 | D125: 170 | E125: 3,817 | F125: 569 | G125: 5,887 | H125: 1,511 | I125: 4,151 | J125: 14 | K125: - | L125: 16,120 | N125: - | O125: - | P125: - | Q125: - | R125: - | S125: -
A126: 2001 | B126: - | C126: 791 | D126: 927 | E126: 4,799 | F126: 7,629 | G126: 6,776 | H126: 3,968 | I126: 1,425 | J126: 42 | K126: - | L126: 26,357 | N126: - | O126: - | P126: - | Q126: - | R126: - | S126: -
A127: 2002 | B127: 131 | C127: 98 | D127: 1,270 | E127: 4,684 | F127: 1,671 | G127: 5,361 | H127: 6,983 | I127: 10,128 | J127: 5 | K127: - | L127: 30,331 | N127: - | O127: - | P127: - | Q127: - | R127: - | S127: -
A128: 2003 | B128: 335 | C128: 84 | D128: 13,970 | E128: 11,718 | F128: 1,205 | G128: 1,451 | H128: 2,649 | I128: 2,071 | J128: 33 | K128: - | L128: 33,516 | N128: - | O128: - | P128: - | Q128: - | R128: - | S128: -
A129: 2004 | B129: 31 | C129: 2,967 | D129: 3,373 | E129: 562 | F129: 332 | G129: 457 | H129: 1,001 | I129: 882 | J129: 72 | K129: - | L129: 9,677 | N129: - | O129: - | P129: - | Q129: - | R129: - | S129: -
A130: 2005 | B130: 7,027 | C130: 498 | D130: 6,451 | E130: 10,655 | F130: - | G130: - | H130: 2,480 | I130: 866 | J130: 3 | K130: - | L130: 27,980 | N130: - | O130: - | P130: - | Q130: - | R130: - | S130: -
A131: 2006 | B131: - | C131: - | D131: - | E131: 1,153 | F131: 60 | G131: 39 | H131: 450 | I131: 959 | J131: 95 | K131: - | L131: 2,756 | N131: - | O131: - | P131: - | Q131: - | R131: - | S131: -
A132: 2007 | B132: - | C132: 14 | D132: 2,757 | E132: 922 | F132: 6 | G132: 59 | H132: 136 | I132: 237 | J132: 47 | K132: - | L132: 4,178 | N132: - | O132: - | P132: 1,195 | Q132: 84 | R132: - | S132: =SUM(N132:R132) -> 1,279
A133: 2008 | B133: - | C133: - | D133: - | E133: - | F133: - | G133: - | H133: 64 | I133: 12 | J133: -- | K133: - | L133: 76 | N133: - | O133: - | P133: - | Q133: - | R133: - | S133: -
A134: 2009 | B134: - | C134: - | D134: - | E134: - | F134: - | G134: - | H134: =18+28+17+42 -> 105 | I134: 39 | J134: - | K134: - | L134: 144 | N134: - | O134: - | P134: - | Q134: 3,490 | R134: - | S134: =SUM(N134:R134) -> 3,490
A135: 2010 | B135: - | C135: - | D135: =29+47+1+31 -> 108 | E135: =7+66+88+2305 -> 2,466 | F135: =827+85+5+9+5 -> 931 | G135: =37+10+17+8 -> 72 | H135: 56 | I135: =1+11+3 -> 15 | J135: - | K135: - | L135: =SUM(B135:K135) -> 3,648 | N135: - | O135: - | P135: - | Q135: - | R135: - | S135: -
A136: 2011 | B136: - | C136: 1 | D136: 130 | E136: 615 | F136: 174 | G136: 52 | H136: 114 | I136: 20 | J136: - | K136: - | L136: =SUM(B136:K136) -> 1,106 | N136: - | O136: - | P136: - | Q136: - | R136: - | S136: -
A137: 2012 | B137: - | C137: 440 | D137: 1,492 | E137: 441 | F137: 178 | G137: 55 | H137: 1,146 | I137: 3,645 | J137: - | K137: - | L137: =SUM(B137:K137) -> 7,397 | N137: - | O137: - | P137: - | Q137: - | R137: - | S137: -
A138: 2013 | B138: - | C138: 1,391 | D138: 349 | E138: 144 | F138: 380 | G138: 2,869 | H138: 3,461 | I138: 286 | J138: - | K138: - | L138: 8,880 | N138: - | O138: - | P138: - | Q138: - | R138: - | S138: -
A139: 2014 | B139: - | C139: 20 | D139: 1,133 | E139: 2,640 | F139: 593 | G139: 246 | H139: 2,355 | I139: 22 | J139: - | K139: - | L139: 7,009 | N139: - | O139: - | P139: - | Q139: 1,104 | R139: - | S139: =SUM(N139:R139) -> 1,104
A140: 2015 | B140: - | C140: 205 | D140: 4,114 | E140: 3,118 | F140: 96 | G140: 186 | H140: 807 | I140: 319 | J140: - | K140: - | L140: 8,845 | N140: - | O140: - | P140: - | Q140: - | R140: - | S140: -
A141: 2016 | B141: - | C141: 167 | D141: 185 | E141: 515 | F141: 16 | G141: 23 | H141: 135 | I141: 26 | J141: - | K141: - | L141: 1,067 | N141: - | O141: - | P141: - | Q141: - | R141: - | S141: -
A142: 2017 | B142: - | C142: 6 | D142: 325 | E142: 224 | F142: 17 | G142: - | H142: 112 | I142: 33 | J142: - | K142: - | L142: 717 | N142: - | O142: - | P142: - | Q142: - | R142: - | S142: -
A143: 2018 | B143: - | C143: - | D143: 180 | E143: 168 | F143: 19 | G143: 58 | H143: 26 | I143: 14 | J143: - | K143: - | L143: =SUM(B143:K143) -> 465 | N143: - | O143: - | P143: - | Q143: - | R143: - | S143: -
A144: 2019 | B144: - | C144: 3 | D144: 144 | E144: 68 | F144: 234 | G144: 42 | H144: 33 | I144: 43 | J144: - | K144: - | L144: =SUM(B144:K144) -> 567 | N144: - | O144: - | P144: - | Q144: - | R144: - | S144: -
A145: 2020 | B145: - | C145: 15 | D145: 9 | E145: 481 | F145: 38 | G145: 19 | H145: 73 | I145: 43 | J145: - | K145: - | L145: 678 | N145: - | O145: - | P145: - | Q145: - | R145: - | S145: -
A146: 2021b/ | B146: - | C146: 413 | D146: 355 | E146: 238 | F146: 105 | G146: 146 | H146: 47 | I146: 4 | J146: - | K146: - | L146: 1,308 | N146: - | O146: 61 | P146: 56 | Q146: - | R146: - | S146: 117
A148: Newport
A149: 1952 | B149: 0 | C149: 0 | D149: 98 | E149: 17,401 | F149: 34,945 | G149: 30,213 | H149: 20,490 | I149: 4,663 | J149: - | K149: - | L149: =SUM(B149:K149) -> 107,810 | N149: 12,737 | O149: 86,786 | P149: 90,811 | Q149: 23,494 | R149: 2,266 | S149: =SUM(N149:R149) -> 216,094
A150: 1953 | B150: 13 | C150: 135 | D150: 119 | E150: 2,590 | F150: 17,878 | G150: 32,671 | H150: 17,172 | I150: 94 | J150: - | K150: - | L150: 70,672 | N150: 12,377 | O150: 74,251 | P150: 74,399 | Q150: 17,752 | R150: 232 | S150: 179,011
A151: 1954 | B151: 62 | C151: 11 | D151: 1,354 | E151: 9,910 | F151: 23,330 | G151: 22,528 | H151: 10,283 | I151: 772 | J151: - | K151: - | L151: 68,250 | N151: 10,697 | O151: 62,206 | P151: 32,767 | Q151: 11,158 | R151: 150 | S151: 116,978
A152: 1955 | B152: 0 | C152: 292 | D152: 15,585 | E152: 25,383 | F152: 15,569 | G152: 35,634 | H152: 30,389 | I152: 1,789 | J152: - | K152: - | L152: 124,641 | N152: 10,598 | O152: 35,562 | P152: 56,434 | Q152: 15,456 | R152: 1,548 | S152: 119,598
A153: 1956 | B153: - | C153: 430 | D153: 4,709 | E153: 20,324 | F153: 37,219 | G153: 36,192 | H153: 11,500 | I153: 4,205 | J153: - | K153: - | L153: 114,579 | N153: 12,872 | O153: 92,547 | P153: 66,028 | Q153: 14,501 | R153: 2,520 | S153: 188,468
A154: 1957 | B154: - | C154: 152 | D154: 3,114 | E154: 19,030 | F154: 22,907 | G154: 10,585 | H154: 21,308 | I154: 80 | J154: - | K154: - | L154: 77,176 | N154: 48,445 | O154: 50,333 | P154: 44,866 | Q154: 50,849 | R154: 656 | S154: 195,149
A155: 1958 | B155: - | C155: 765 | D155: 3,109 | E155: 6,522 | F155: 22,794 | G155: 20,012 | H155: 5,766 | I155: 1,248 | J155: - | K155: - | L155: 60,216 | N155: 31,007 | O155: 30,649 | P155: 20,088 | Q155: 15,002 | R155: 1,064 | S155: 97,810
A156: 1959 | B156: - | C156: 92 | D156: 1,283 | E156: 4,020 | F156: 3,103 | G156: 9,079 | H156: 2,391 | I156: 259 | J156: - | K156: - | L156: 20,227 | N156: 7,039 | O156: 26,046 | P156: 28,393 | Q156: 4,888 | R156: 1,066 | S156: 67,432
A157: 1960 | B157: - | C157: 842 | D157: 7,186 | E157: 3,029 | F157: 6,249 | G157: 13,079 | H157: 1,875 | I157: 578 | J157: - | K157: - | L157: 32,838 | N157: 620 | O157: 9,138 | P157: 28,409 | Q157: 3,055 | R157: 625 | S157: 41,847
A158: 1961 | B158: - | C158: 254 | D158: 192 | E158: 3,033 | F158: 17,337 | G158: 5,186 | H158: 3,995 | I158: 1,174 | J158: - | K158: - | L158: 31,171 | N158: 15,552 | O158: 59,227 | P158: 41,776 | Q158: 8,411 | R158: 1,572 | S158: 126,538
A159: 1962 | B159: - | C159: 265 | D159: 189 | E159: 1,866 | F159: 2,300 | G159: 2,916 | H159: 1,482 | I159: 104 | J159: - | K159: - | L159: 9,122 | N159: 5,211 | O159: 47,191 | P159: 52,055 | Q159: 8,730 | R159: 402 | S159: 113,589
A160: 1963 | B160: - | C160: 6 | D160: 120 | E160: 3,208 | F160: 2,309 | G160: 3,774 | H160: 913 | I160: 50 | J160: - | K160: - | L160: 10,380 | N160: 13,668 | O160: 35,051 | P160: 29,959 | Q160: 7,862 | R160: 598 | S160: 87,138
A161: 1964 | B161: - | C161: 185 | D161: 739 | E161: 1,365 | F161: 1,107 | G161: 2,961 | H161: 712 | I161: 61 | J161: - | K161: - | L161: 7,130 | N161: 12,479 | O161: 42,302 | P161: 60,570 | Q161: 17,337 | R161: 1,482 | S161: 134,170
A162: 1965 | B162: - | C162: 0 | D162: 110 | E162: 2,914 | F162: 2,499 | G162: 3,368 | H162: 6,850 | I162: 312 | J162: - | K162: - | L162: 16,053 | N162: 9,553 | O162: 130,677 | P162: 93,970 | Q162: 17,496 | R162: 885 | S162: 252,581
A163: 1966 | B163: - | C163: 38 | D163: 182 | E163: 3,620 | F163: 3,683 | G163: 5,982 | H163: 2,026 | I163: 141 | J163: - | K163: - | L163: 15,672 | N163: 11,286 | O163: 48,063 | P163: 45,797 | Q163: 34,541 | R163: 970 | S163: 140,657
A164: 1967 | B164: - | C164: 198 | D164: 262 | E164: 6,248 | F164: 6,393 | G164: 3,246 | H164: 1,127 | I164: 27 | J164: - | K164: - | L164: 17,501 | N164: 13,370 | O164: 186,004 | P164: 37,201 | Q164: 17,938 | R164: 415 | S164: 254,928
A165: 1968 | B165: - | C165: 207 | D165: 1,570 | E165: 2,565 | F165: 2,056 | G165: 2,244 | H165: 271 | I165: 18 | J165: - | K165: - | L165: 8,931 | N165: 17,905 | O165: 48,459 | P165: 45,797 | Q165: 8,679 | R165: 599 | S165: 121,439
A166: 1969 | B166: - | C166: 305 | D166: 1,481 | E166: 6,403 | F166: 3,959 | G166: 2,101 | H166: 244 | I166: 20 | J166: - | K166: - | L166: 14,513 | N166: 38,483 | O166: 72,088 | P166: 26,974 | Q166: 2,377 | R166: 179 | S166: 140,101
A167: 1970 | B167: - | C167: 291 | D167: 688 | E167: 4,445 | F167: 3,138 | G167: 11,823 | H167: 3,844 | I167: 1,592 | J167: - | K167: - | L167: 25,821 | N167: 55,846 | O167: 22,792 | P167: 257,897 | Q167: 27,748 | R167: 7,502 | S167: 371,785
A168: 1971 | B168: - | C168: 34 | D168: 739 | E168: 1,636 | F168: 1,474 | G168: 4,130 | H168: 472 | I168: 60 | J168: - | K168: - | L168: 8,545 | N168: 33,110 | O168: 56,687 | P168: 243,622 | Q168: 5,631 | R168: 1,342 | S168: 340,392
A169: 1972 | B169: - | C169: 0 | D169: 425 | E169: 2,742 | F169: 3,653 | G169: 9,646 | H169: 1,430 | I169: 1,985 | J169: - | K169: - | L169: 19,881 | N169: 39,410 | O169: 111,362 | P169: 70,488 | Q169: 4,362 | R169: 281 | S169: 225,903
A170: 1973 | B170: - | C170: 38 | D170: 820 | E170: 5,240 | F170: 19,206 | G170: 40,795 | H170: 13,586 | I170: 16,998 | J170: - | K170: - | L170: 96,683 | N170: 49,768 | O170: 49,084 | P170: 136,541 | Q170: 17,846 | R170: 4,762 | S170: 258,001
A171: 1974 | B171: - | C171: 64 | D171: 264 | E171: 6,339 | F171: 19,075 | G171: 8,028 | H171: 3,652 | I171: 159 | J171: - | K171: - | L171: 37,581 | N171: 50,128 | O171: 224,202 | P171: 106,155 | Q171: 21,705 | R171: 200 | S171: 402,390
A172: 1975 | B172: - | C172: 9 | D172: 371 | E172: 6,888 | F172: 6,189 | G172: 8,910 | H172: 1,653 | I172: 189 | J172: - | K172: - | L172: 24,209 | N172: 59,412 | O172: 64,478 | P172: 48,335 | Q172: 4,082 | R172: 346 | S172: 176,653
A173: 1976 | B173: - | C173: - | D173: 582 | E173: 4,062 | F173: 10,202 | G173: 12,169 | H173: 1,238 | I173: 1,690 | J173: - | K173: - | L173: 29,943 | N173: 99,934 | O173: 175,600 | P173: 148,198 | Q173: 18,131 | R173: 3,721 | S173: 445,584
A174: 1977 | B174: - | C174: - | D174: 3,453 | E174: 11,123 | F174: 11,886 | G174: 31,577 | H174: 3,083 | I174: 497 | J174: - | K174: - | L174: 61,619 | N174: 8,582 | O174: 60,997 | P174: 30,399 | Q174: 2,601 | R174: 164 | S174: 102,743
A175: 1978 | B175: - | C175: - | D175: 259 | E175: 8,267 | F175: 16,294 | G175: 15,165 | H175: 11,464 | I175: 2,567 | J175: 106 | K175: - | L175: 54,122 | N175: 73,328 | O175: 68,623 | P175: 41,801 | Q175: 2,644 | R175: 132 | S175: 186,528
A176: 1979 | B176: - | C176: - | D176: 4,522 | E176: 1 | F176: 15,320 | G176: 10,618 | H176: 5,006 | I176: 3,178 | J176: - | K176: - | L176: 38,645 | N176: - | O176: 159,410 | P176: 51,832 | Q176: 544 | R176: - | S176: 211,786
A177: 1980 | B177: - | C177: - | D177: 9,429 | E177: 8,972 | F177: 8,645 | G177: 12,333 | H177: 3,148 | I177: 6,208 | J177: - | K177: - | L177: 48,735 | N177: - | O177: 13,964 | P177: 0 | Q177: 0 | R177: - | S177: 13,964
A178: 1981 | B178: - | C178: - | D178: 9,633 | E178: 0 | F178: 9,938 | G178: 7,157 | H178: 325 | I178: 369 | J178: - | K178: - | L178: 27,422 | N178: - | O178: 74,198 | P178: 119,174 | Q178: - | R178: - | S178: 193,372
A179: 1982 | B179: - | C179: - | D179: 5,044 | E179: 5,026 | F179: 10,908 | G179: 1,482 | H179: 2,279 | I179: 3,462 | J179: - | K179: - | L179: 28,201 | N179: - | O179: 116,125 | P179: - | Q179: - | R179: - | S179: 116,125
A180: 1983 | B180: - | C180: - | D180: 1,787 | E180: 1,050 | F180: 10,652 | G180: 6,014 | H180: 1,386 | I180: 2,312 | J180: 111 | K180: - | L180: 23,312 | N180: - | O180: 99,086 | P180: 14,174 | Q180: 4,161 | R180: - | S180: 117,421
A181: 1984 | B181: - | C181: - | D181: 138 | E181: 1,464 | F181: 10,572 | G181: 6,602 | H181: 72 | I181: 0 | J181: - | K181: - | L181: 18,848 | N181: - | O181: - | P181: - | Q181: - | R181: - | S181: -
A182: 1985 | B182: - | C182: - | D182: 14,858 | E182: 3,738 | F182: 16,615 | G182: 4,617 | H182: 735 | I182: 1,237 | J182: - | K182: - | L182: 41,800 | N182: - | O182: 11,940 | P182: - | Q182: - | R182: - | S182: 11,940
A183: 1986 | B183: - | C183: - | D183: 10,211 | E183: 11,936 | F183: 30,932 | G183: 5,516 | H183: 6,922 | I183: 22,469 | J183: - | K183: - | L183: 87,986 | N183: - | O183: 192,332 | P183: - | Q183: - | R183: - | S183: 192,332
A184: 1987 | B184: - | C184: - | D184: 10,514 | E184: 7,533 | F184: 24,226 | G184: 23,663 | H184: 13,659 | I184: 8,087 | J184: - | K184: - | L184: 87,682 | N184: - | O184: 59,307 | P184: 18,510 | Q184: 5,166 | R184: - | S184: 82,983
A185: 1988 | B185: - | C185: - | D185: 8,396 | E185: 15,218 | F185: 46,612 | G185: 32,518 | H185: 10,512 | I185: 15,879 | J185: - | K185: - | L185: 129,135 | N185: - | O185: 146,231 | P185: 106,259 | Q185: - | R185: - | S185: 252,490
A186: 1989 | B186: - | C186: - | D186: 12,361 | E186: 19,148 | F186: 20,614 | G186: 10,146 | H186: 2,950 | I186: 5,451 | J186: - | K186: - | L186: 70,670 | N186: - | O186: 129,827 | P186: 7,954 | Q186: - | R186: - | S186: 137,781
A187: 1990 | B187: - | C187: - | D187: 2,518 | E187: 16,502 | F187: 16,590 | G187: 2,334 | H187: 587 | I187: 780 | J187: - | K187: - | L187: 39,311 | N187: 56 | O187: 13,719 | P187: - | Q187: - | R187: - | S187: 13,775
A188: 1991 | B188: - | C188: - | D188: 2,944 | E188: 7,299 | F188: 3,393 | G188: 5,784 | H188: 7,030 | I188: 6,957 | J188: - | K188: - | L188: 33,407 | N188: 58,218 | O188: 30,362 | P188: - | Q188: - | R188: - | S188: 88,580
A189: 1992 | B189: - | C189: - | D189: 19,619 | E189: - | F189: 28,494 | G189: 21,880 | H189: 8,556 | I189: 16,228 | J189: - | K189: - | L189: 94,777 | N189: - | O189: 19,045 | P189: 15,942 | Q189: - | R189: - | S189: 34,987
A190: 1993 | B190: - | C190: - | D190: 17,103 | E190: 13,666 | F190: 11,953 | G190: 9,398 | H190: 8,561 | I190: 3,542 | J190: - | K190: - | L190: 64,223 | N190: - | O190: - | P190: 2 | Q190: - | R190: - | S190: 2
A191: 1994 | B191: - | C191: - | D191: 7,178 | E191: 7,047 | F191: - | G191: - | H191: 1,040 | I191: 2,803 | J191: - | K191: - | L191: 18,068 | N191: - | O191: - | P191: - | Q191: - | R191: - | S191: -
A192: 1995 | B192: - | C192: - | D192: 8,610 | E192: 27,986 | F192: - | G192: 79,387 | H192: 33,322 | I192: 24,891 | J192: - | K192: - | L192: 174,196 | N192: - | O192: - | P192: - | Q192: - | R192: - | S192: -
A193: 1996 | B193: - | C193: - | D193: 22,690 | E193: 20,565 | F193: - | G193: 53,636 | H193: 19,394 | I193: 11,534 | J193: - | K193: - | L193: 127,819 | N193: - | O193: - | P193: - | Q193: - | R193: - | S193: -
A194: 1997 | B194: - | C194: 2,369 | D194: 24,047 | E194: 26,925 | F194: - | G194: 38,819 | H194: 23,978 | I194: 2,828 | J194: - | K194: - | L194: 118,966 | N194: - | O194: - | P194: - | Q194: - | R194: - | S194: -
A195: 1998 | B195: - | C195: 16,486 | D195: 34,071 | E195: 25,029 | F195: - | G195: 15,983 | H195: 2,293 | I195: 930 | J195: - | K195: - | L195: 94,792 | N195: - | O195: - | P195: - | Q195: - | R195: - | S195: -
A196: 1999 | B196: - | C196: 612 | D196: 4,501 | E196: 5,721 | F196: 3,163 | G196: 1,028 | H196: 98 | I196: 741 | J196: - | K196: - | L196: 15,864 | N196: - | O196: - | P196: - | Q196: - | R196: - | S196: -
A197: 2000 | B197: - | C197: 595 | D197: 4,426 | E197: 5,762 | F197: 4,409 | G197: 14,178 | H197: 14,926 | I197: 4,715 | J197: - | K197: - | L197: 49,011 | N197: - | O197: - | P197: - | Q197: - | R197: - | S197: -
A198: 2001 | B198: - | C198: 8,536 | D198: 45,372 | E198: 28,016 | F198: 15,669 | G198: 40,694 | H198: 20,356 | I198: 10,001 | J198: - | K198: - | L198: 168,644 | N198: - | O198: - | P198: - | Q198: - | R198: - | S198: -
A199: 2002 | B199: 3,938 | C199: 4,321 | D199: 12,233 | E199: 7,372 | F199: 5,135 | G199: 7,648 | H199: 34,931 | I199: 56,506 | J199: - | K199: - | L199: 132,084 | N199: - | O199: - | P199: - | Q199: - | R199: - | S199: -
A200: 2003 | B200: 674 | C200: 8,915 | D200: 24,752 | E200: 12,180 | F200: 12,769 | G200: 22,804 | H200: 36,204 | I200: 30,252 | J200: - | K200: - | L200: 148,550 | N200: - | O200: - | P200: - | Q200: - | R200: - | S200: -
A201: 2004 | B201: 12,970 | C201: 12,286 | D201: 26,499 | E201: 7,350 | F201: 8,085 | G201: 11,018 | H201: 12,354 | I201: 726 | J201: - | K201: - | L201: 91,288 | N201: - | O201: - | P201: - | Q201: - | R201: - | S201: -
A202: 2005 | B202: 4,171 | C202: 2,209 | D202: 7,347 | E202: 39,240 | F202: - | G202: - | H202: 29,592 | I202: 7,505 | J202: - | K202: - | L202: =SUM(B202:K202) -> 90,064 | N202: - | O202: - | P202: - | Q202: - | R202: - | S202: -
... 442 more rows

Sheet A-9
A1: TABLE A-9. Oregon ocean recreational effort in salmon angler trips by catch area and month.a/
A2: Year or Average | B2: Mar. | C2: Apr. | D2: May | E2: June | F2: July | G2: Aug. | H2: Sept. | I2: Oct. | J2: Nov. | K2: Season
A5: Astoria
A6: 1976 | B6: - | C6: 0 | D6: 785 | E6: 9,916 | F6: 22,017 | G6: 44,997 | H6: 22,282 | I6: 528 | J6: 22 | K6: =SUM(B6:J6) -> 100,547
A7: 1977 | B7: - | C7: 0 | D7: 702 | E7: 7,064 | F7: 18,484 | G7: 21,570 | H7: 2,493 | I7: 203 | J7: - | K7: 50,516
A8: 1978 | B8: - | C8: 0 | D8: 867 | E8: 13,099 | F8: 18,162 | G8: 20,450 | H8: 10,107 | I8: 390 | J8: - | K8: 63,075
A9: 1979 | B9: - | C9: - | D9: 835 | E9: 5,032 | F9: 14,813 | G9: 19,699 | H9: 2,898 | I9: - | J9: - | K9: 43,277
A10: 1980 | B10: - | C10: - | D10: 1,262 | E10: 7,798 | F10: 13,704 | G10: 19,706 | H10: 3,845 | I10: - | J10: - | K10: 46,315
A11: 1981 | B11: - | C11: - | D11: 977 | E11: 4,886 | F11: 14,119 | G11: 20,088 | H11: 4,625 | I11: - | J11: - | K11: 44,695
A12: 1982 | B12: - | C12: - | D12: - | E12: 4,906 | F12: 22,330 | G12: 0 | H12: - | I12: - | J12: - | K12: 27,236
A13: 1983 | B13: - | C13: - | D13: - | E13: 2,678 | F13: 12,878 | G13: 11,536 | H13: 3,759 | I13: - | J13: - | K13: 30,851
A14: 1984 | B14: - | C14: - | D14: - | E14: - | F14: 2,018 | G14: 6,285 | H14: - | I14: - | J14: - | K14: 8,303
A15: 1985 | B15: - | C15: - | D15: - | E15: 605 | F15: 7,838 | G15: 11,578 | H15: - | I15: - | J15: - | K15: 20,021
A16: 1986 | B16: - | C16: - | D16: - | E16: 707 | F16: 12,115 | G16: 7,721 | H16: - | I16: - | J16: - | K16: 20,543
A17: 1987 | B17: - | C17: - | D17: - | E17: 578 | F17: 8,508 | G17: 8,044 | H17: - | I17: - | J17: - | K17: 17,130
A18: 1988 | B18: - | C18: - | D18: - | E18: - | F18: 5,668 | G18: - | H18: - | I18: - | J18: - | K18: 5,668
A19: 1989 | B19: - | C19: - | D19: 146 | E19: 1,223 | F19: 9,225 | G19: 9,243 | H19: - | I19: - | J19: - | K19: 19,837
A20: 1990 | B20: - | C20: - | D20: - | E20: 1,933 | F20: 8,936 | G20: 13,229 | H20: 1,423 | I20: - | J20: - | K20: 25,521
A21: 1991 | B21: - | C21: - | D21: - | E21: 1,496 | F21: 8,959 | G21: 9,422 | H21: 1,777 | I21: - | J21: - | K21: 21,654
A22: 1992 | B22: - | C22: - | D22: - | E22: - | F22: 9,812 | G22: 1,842 | H22: 1,271 | I22: - | J22: - | K22: 12,925
A23: 1993 | B23: - | C23: - | D23: - | E23: - | F23: 5,676 | G23: 7,861 | H23: 4,279 | I23: - | J23: - | K23: 17,816
A24: 1994 | B24: - | C24: - | D24: - | E24: - | F24: - | G24: - | H24: - | I24: - | J24: - | K24: -
A25: 1995 | B25: - | C25: - | D25: - | E25: - | F25: 2,275 | G25: 7,656 | H25: 1,007 | I25: - | J25: - | K25: 10,938
A26: 1996 | B26: - | C26: - | D26: - | E26: - | F26: 963 | G26: 3,782 | H26: 889 | I26: - | J26: - | K26: 5,634
A27: 1997 | B27: - | C27: - | D27: - | E27: - | F27: 2,772 | G27: 830 | H27: - | I27: - | J27: - | K27: 3,602
A28: 1998 | B28: - | C28: - | D28: - | E28: - | F28: - | G28: 1,830 | H28: 284 | I28: - | J28: - | K28: 2,114
A29: 1999 | B29: - | C29: - | D29: - | E29: - | F29: 2,098 | G29: 3,653 | H29: 1,666 | I29: - | J29: - | K29: 7,417
A30: 2000 | B30: - | C30: - | D30: - | E30: - | F30: 3,994 | G30: 4,449 | H30: - | I30: - | J30: - | K30: 8,443
A31: 2001 | B31: - | C31: - | D31: - | E31: - | F31: 7,990 | G31: 12,960 | H31: 2,291 | I31: - | J31: - | K31: 23,241
A32: 2002 | B32: - | C32: - | D32: 155 | E32: 372 | F32: 3,989 | G32: 6,373 | H32: 1,156 | I32: 6 | J32: - | K32: 12,051
A33: 2003 | B33: - | C33: - | D33: - | E33: 151 | F33: 5,275 | G33: 12,550 | H33: 1,250 | I33: - | J33: - | K33: 19,226
A34: 2004 | B34: - | C34: - | D34: - | E34: 256 | F34: 4,439 | G34: 11,290 | H34: 2,608 | I34: - | J34: - | K34: 18,593
A35: 2005 | B35: - | C35: - | D35: - | E35: - | F35: 2,246 | G35: 8,116 | H35: 2,900 | I35: - | J35: - | K35: 13,262
A36: 2006 | B36: - | C36: - | D36: - | E36: - | F36: 1,711 | G36: 5,769 | H36: 762 | I36: - | J36: - | K36: 8,242
A37: 2007 | B37: - | C37: - | D37: - | E37: - | F37: 2,548 | G37: 8,849 | H37: 989 | I37: - | J37: - | K37: 12,386
A38: 2008 | B38: - | C38: - | D38: 66 | E38: 498 | F38: 1,875 | G38: 1,215 | H38: - | I38: - | J38: - | K38: 3,654
A39: 2009 | B39: - | C39: - | D39: - | E39: 85 | F39: 5,698 | G39: 6,097 | H39: 370 | I39: - | J39: - | K39: 12,250
A40: 2010 | B40: - | C40: - | D40: - | E40: 306 | F40: 2,211 | G40: 6,996 | H40: 741 | I40: - | J40: - | K40: 10,254
A41: 2011 | B41: - | C41: - | D41: - | E41: 459 | F41: 1,402 | G41: 4,645 | H41: 877 | I41: - | J41: - | K41: 7,383
A42: 2012 | B42: - | C42: - | D42: - | E42: 681 | F42: 1,792 | G42: 1,954 | H42: 411 | I42: - | J42: - | K42: 4,838
A43: 2013 | B43: - | C43: - | D43: - | E43: 1,593 | F43: 1,329 | G43: 2,912 | H43: 302 | I43: - | J43: - | K43: 6,136
A44: 2014 | B44: - | C44: - | D44: 42 | E44: 708 | F44: 3,579 | G44: 6,279 | H44: 1,647 | I44: - | J44: - | K44: 12,255
A45: 2015 | B45: - | C45: - | D45: 62 | E45: 699 | F45: 2,723 | G45: 3,092 | H45: 2,053 | I45: - | J45: - | K45: 8,629
A46: 2016 | B46: - | C46: - | D46: - | E46: - | F46: 1,920 | G46: 2,412 | H46: - | I46: - | J46: - | K46: 4,332
A47: 2017 | B47: - | C47: - | D47: - | E47: 587 | F47: 2,697 | G47: 5,284 | H47: - | I47: - | J47: - | K47: 8,568
A48: 2018 | B48: - | C48: - | D48: - | E48: 380 | F48: 1,839 | G48: 5,332 | H48: 148 | I48: - | J48: - | K48: =SUM(B48:J48) -> 7,699
A49: 2019 | B49: - | C49: - | D49: - | E49: 1,334 | F49: 5,066 | G49: 7,930 | H49: 365 | I49: - | J49: - | K49: =SUM(B49:J49) -> 14,695
A50: 2020 | B50: - | C50: - | D50: - | E50: 86 | F50: 3,367 | G50: - | H50: - | I50: - | J50: - | K50: 3,453
A51: 2021b/ | B51: - | C51: - | D51: - | E51: 336 | F51: 4,676 | G51: 7,873 | H51: - | I51: - | J51: - | K51: 12,885
A53: Tillamook
A54: 1976 | B54: - | C54: 0 | D54: 922 | E54: 4,962 | F54: 14,642 | G54: 26,531 | H54: 8,557 | I54: 659 | J54: 61 | K54: =SUM(B54:J54) -> 56,334
A55: 1977 | B55: - | C55: 0 | D55: 1,638 | E55: 6,055 | F55: 19,520 | G55: 21,593 | H55: 3,407 | I55: 42 | J55: - | K55: 52,255
A56: 1978 | B56: - | C56: 0 | D56: 1,337 | E56: 4,609 | F56: 10,525 | G56: 11,936 | H56: 2,855 | I56: 478 | J56: - | K56: 31,740
A57: 1979 | B57: - | C57: - | D57: 937 | E57: 3,246 | F57: 11,822 | G57: 14,461 | H57: 557 | I57: - | J57: - | K57: 31,023
A58: 1980 | B58: - | C58: - | D58: 381 | E58: 8,509 | F58: 17,257 | G58: 18,105 | H58: 3,585 | I58: - | J58: - | K58: 47,837
A59: 1981 | B59: - | C59: - | D59: 1,275 | E59: 2,189 | F59: 11,501 | G59: 16,480 | H59: 6,566 | I59: - | J59: - | K59: 38,011
A60: 1982 | B60: - | C60: - | D60: 80 | E60: 2,744 | F60: 21,780 | G60: - | H60: - | I60: - | J60: - | K60: 24,604
A61: 1983 | B61: - | C61: - | D61: - | E61: 1,188 | F61: 12,649 | G61: 7,810 | H61: 3,660 | I61: - | J61: - | K61: 25,307
A62: 1984 | B62: - | C62: - | D62: - | E62: - | F62: 11,794 | G62: 12,001 | H62: 1,215 | I62: - | J62: - | K62: 25,010
A63: 1985 | B63: - | C63: - | D63: - | E63: - | F63: 13,027 | G63: 21,716 | H63: 2,210 | I63: 1,603 | J63: - | K63: 38,556
A64: 1986 | B64: - | C64: - | D64: - | E64: 1,874 | F64: 12,965 | G64: 3,092 | H64: -- | I64: -- | J64: -- | K64: 17,931
A65: 1987 | B65: - | C65: - | D65: - | E65: 1,834 | F65: 12,430 | G65: 10,946 | H65: 3,841 | I65: -- | J65: - | K65: 29,051
A66: 1988 | B66: - | C66: - | D66: 278 | E66: 2,107 | F66: 9,605 | G66: 13,839 | H66: 7,429 | I66: -- | J66: - | K66: 33,258
A67: 1989 | B67: - | C67: - | D67: 295 | E67: 3,026 | F67: 15,406 | G67: 12,253 | H67: 317 | I67: -- | J67: - | K67: 31,297
A68: 1990 | B68: - | C68: - | D68: 94 | E68: 1,186 | F68: 9,908 | G68: 16,327 | H68: 5,981 | I68: -- | J68: - | K68: 33,496
A69: 1991 | B69: - | C69: - | D69: 426 | E69: 3,990 | F69: 16,608 | G69: - | H69: - | I69: -- | J69: - | K69: 21,024
A70: 1992 | B70: - | C70: - | D70: 1,172 | E70: 3,418 | F70: 11,657 | G70: 7,053 | H70: 2,835 | I70: -- | J70: - | K70: 26,135
A71: 1993 | B71: - | C71: - | D71: 797 | E71: 195 | F71: 3,091 | G71: 1,488 | H71: -- | I71: -- | J71: - | K71: 5,571
A72: 1994 | B72: - | C72: - | D72: 603 | E72: 931 | F72: - | G72: - | H72: - | I72: 8,749 | J72: 3 | K72: 10,286
A73: 1995 | B73: - | C73: - | D73: 644 | E73: 76 | F73: - | G73: - | H73: 1,314 | I73: 1,008 | J73: 788 | K73: 3,830
A74: 1996 | B74: - | C74: - | D74: 762 | E74: 118 | F74: 44 | G74: 464 | H74: 3,655 | I74: 3,255 | J74: - | K74: 8,298
A75: 1997 | B75: - | C75: 0 | D75: 36 | E75: 94 | F75: 8 | G75: 366 | H75: 1,418 | I75: 1,673 | J75: -- | K75: 3,595
A76: 1998 | B76: - | C76: 0 | D76: 609 | E76: 59 | F76: 11 | G76: 258 | H76: 2,256 | I76: 2,900 | J76: -- | K76: 6,093
A77: 1999 | B77: - | C77: 6 | D77: 643 | E77: 129 | F77: 3,427 | G77: 253 | H77: 3,126 | I77: 3,469 | J77: 104 | K77: 11,157
A78: 2000 | B78: - | C78: 14 | D78: 397 | E78: 108 | F78: 3,763 | G78: 388 | H78: 3,405 | I78: 3,176 | J78: 235 | K78: 11,486
A79: 2001 | B79: - | C79: 0 | D79: 526 | E79: 2,827 | F79: 7,278 | G79: 895 | H79: 2,747 | I79: 2,051 | J79: 162 | K79: 16,486
A80: 2002 | B80: - | C80: 11 | D80: 386 | E80: 360 | F80: 7,005 | G80: 4,787 | H80: 5,041 | I80: 6,767 | J80: 50 | K80: 24,407
A81: 2003 | B81: 21 | C81: 5 | D81: 435 | E81: 1,860 | F81: 11,990 | G81: 5,450 | H81: 4,819 | I81: 3,019 | J81: 395 | K81: 27,994
A82: 2004 | B82: 8 | C82: 94 | D82: 397 | E82: 2,849 | F82: 11,855 | G82: 6,729 | H82: 4,442 | I82: 2,647 | J82: 291 | K82: 29,312
A83: 2005 | B83: 28 | C83: 66 | D83: 463 | E83: 2,318 | F83: 3,216 | G83: 1,622 | H83: 3,799 | I83: 599 | J83: 12 | K83: 12,123
A84: 2006 | B84: 2 | C84: 16 | D84: 385 | E84: 1,334 | F84: 3,299 | G84: 497 | H84: 5,292 | I84: 4,988 | J84: 98 | K84: 15,911
A85: 2007 | B85: - | C85: 16 | D85: 828 | E85: 1,753 | F85: 4,612 | G85: 8,074 | H85: 3,459 | I85: 2,286 | J85: -- | K85: 21,028
A86: 2008 | B86: - | C86: - | D86: - | E86: 643 | F86: 1,269 | G86: 1,226 | H86: 3,635 | I86: 2,348 | J86: -- | K86: 9,121
A87: 2009 | B87: - | C87: - | D87: - | E87: =176+798 -> 974 | F87: 10,482 | G87: 7,131 | H87: 1,772 | I87: 2,009 | J87: - | K87: 22,368
A88: 2010 | B88: - | C88: - | D88: 126 | E88: 1,158 | F88: 3,833 | G88: 3,620 | H88: 3,718 | I88: 1,048 | J88: - | K88: 13,503
A89: 2011 | B89: 0 | C89: 50 | D89: 143 | E89: 936 | F89: 3,771 | G89: 2,968 | H89: 3,730 | I89: 1,240 | J89: - | K89: 12,838
A90: 2012 | B90: 0 | C90: 38 | D90: 567 | E90: 830 | F90: 2,372 | G90: 2,933 | H90: 4,126 | I90: 1,521 | J90: - | K90: 12,387
A91: 2013 | B91: 2 | C91: 78 | D91: 369 | E91: 647 | F91: 3,166 | G91: 2,605 | H91: 3,326 | I91: 3,942 | J91: - | K91: 14,135
A92: 2014 | B92: 0 | C92: 7 | D92: 1,052 | E92: 1,110 | F92: 9,027 | G92: 4,657 | H92: 8,066 | I92: 1,305 | J92: - | K92: 25,224
A93: 2015 | B93: 0 | C93: 42 | D93: 919 | E93: 485 | F93: 3,259 | G93: 2,097 | H93: 6,463 | I93: 2,217 | J93: - | K93: 15,482
A94: 2016 | B94: 14 | C94: 4 | D94: 838 | E94: 1,578 | F94: 1,657 | G94: 855 | H94: 5,505 | I94: 530 | J94: - | K94: 10,981
A95: 2017 | B95: 0 | C95: 12 | D95: 335 | E95: 692 | F95: 2,161 | G95: 2,039 | H95: 3,100 | I95: 292 | J95: - | K95: 8,631
A96: 2018 | B96: 0 | C96: 0 | D96: 354 | E96: 332 | F96: 1,533 | G96: 4,541 | H96: 3,670 | I96: 829 | J96: - | K96: =SUM(B96:J96) -> 11,259
A97: 2019 | B97: 0 | C97: 0 | D97: 293 | E97: 2,061 | F97: 8,113 | G97: 6,440 | H97: 2,725 | I97: 1,470 | J97: - | K97: =SUM(B97:J97) -> 21,102
A98: 2020 | B98: 8 | C98: 0 | D98: 111 | E98: 234 | F98: 4,133 | G98: 3,072 | H98: 4,243 | I98: 1,404 | J98: - | K98: 13,205
A99: 2021b/ | B99: 0 | C99: 25 | D99: 567 | E99: 942 | F99: 8,109 | G99: 4,893 | H99: 3,945 | I99: 172 | J99: - | K99: 18,653
A101: Newport
A102: 1976 | B102: - | C102: 0 | D102: 3,673 | E102: 22,309 | F102: 34,620 | G102: 56,329 | H102: 14,172 | I102: 633 | J102: 46 | K102: =SUM(B102:J102) -> 131,782
A103: 1977 | B103: - | C103: 0 | D103: 1,809 | E103: 9,270 | F103: 35,513 | G103: 29,909 | H103: 7,903 | I103: 339 | J103: - | K103: 84,743
A104: 1978 | B104: - | C104: 0 | D104: 4,142 | E104: 17,391 | F104: 46,868 | G104: 36,531 | H104: 7,980 | I104: 2,644 | J104: - | K104: 115,556
A105: 1979 | B105: - | C105: - | D105: 2,042 | E105: 8,170 | F105: 33,235 | G105: 28,746 | H105: 238 | I105: - | J105: - | K105: 72,431
A106: 1980 | B106: - | C106: - | D106: 1,763 | E106: 16,743 | F106: 38,971 | G106: 22,614 | H106: 3,774 | I106: -- | J106: - | K106: 83,865
A107: 1981 | B107: - | C107: - | D107: 2,282 | E107: 8,244 | F107: 27,630 | G107: 31,722 | H107: 7,464 | I107: -- | J107: - | K107: 77,342
A108: 1982 | B108: - | C108: - | D108: 191 | E108: 7,310 | F108: 45,979 | G108: - | H108: - | I108: - | J108: - | K108: 53,480
A109: 1983 | B109: - | C109: - | D109: - | E109: 3,594 | F109: 22,844 | G109: 10,934 | H109: 5,187 | I109: - | J109: - | K109: 42,559
A110: 1984 | B110: - | C110: - | D110: - | E110: - | F110: 23,994 | G110: 16,767 | H110: 775 | I110: - | J110: - | K110: 41,536
A111: 1985 | B111: - | C111: - | D111: - | E111: - | F111: 24,310 | G111: 44,421 | H111: 1,823 | I111: - | J111: - | K111: 70,554
A112: 1986 | B112: - | C112: - | D112: 1,388 | E112: 3,936 | F112: 38,854 | G112: 7,972 | H112: - | I112: - | J112: - | K112: 52,150
A113: 1987 | B113: - | C113: - | D113: - | E113: 5,155 | F113: 39,988 | G113: 23,219 | H113: 8,590 | I113: - | J113: - | K113: 76,952
A114: 1988 | B114: - | C114: - | D114: 972 | E114: 7,134 | F114: 37,919 | G114: 34,166 | H114: 9,412 | I114: - | J114: - | K114: 89,603
A115: 1989 | B115: - | C115: - | D115: 945 | E115: 17,235 | F115: 37,469 | G115: 26,306 | H115: 814 | I115: - | J115: - | K115: 82,769
A116: 1990 | B116: - | C116: - | D116: 683 | E116: 5,484 | F116: 32,790 | G116: 28,335 | H116: 4,105 | I116: - | J116: - | K116: 71,397
A117: 1991 | B117: - | C117: - | D117: 848 | E117: 11,837 | F117: 40,566 | G117: - | H117: - | I117: - | J117: - | K117: 53,251
A118: 1992 | B118: - | C118: - | D118: 1,124 | E118: 7,072 | F118: 27,891 | G118: 14,611 | H118: 2,351 | I118: - | J118: - | K118: 53,049
A119: 1993 | B119: - | C119: - | D119: 233 | E119: 229 | F119: 11,588 | G119: 5,062 | H119: - | I119: - | J119: - | K119: 17,112
A120: 1994 | B120: - | C120: - | D120: 77 | E120: 9 | F120: - | G120: - | H120: - | I120: - | J120: - | K120: 86
A121: 1995 | B121: - | C121: - | D121: 139 | E121: 260 | F121: - | G121: - | H121: 427 | I121: 117 | J121: - | K121: 943
A122: 1996 | B122: - | C122: - | D122: 312 | E122: 188 | F122: 22 | G122: 1,789 | H122: 460 | I122: - | J122: - | K122: 2,771
A123: 1997 | B123: - | C123: 25 | D123: 130 | E123: 169 | F123: 112 | G123: 1,686 | H123: 313 | I123: - | J123: - | K123: 2,435
A124: 1998 | B124: - | C124: 0 | D124: 32 | E124: 88 | F124: 109 | G124: 922 | H124: 152 | I124: 12 | J124: - | K124: 1,315
A125: 1999 | B125: - | C125: 6 | D125: 16 | E125: 67 | F125: 7,127 | G125: 139 | H125: 46 | I125: 26 | J125: - | K125: 7,427
A126: 2000 | B126: - | C126: 4 | D126: 15 | E126: 56 | F126: 11,723 | G126: 913 | H126: 272 | I126: 50 | J126: - | K126: 13,033
A127: 2001 | B127: - | C127: 0 | D127: 175 | E127: 6,648 | F127: 13,301 | G127: 2,432 | H127: 872 | I127: 143 | J127: - | K127: 23,571
A128: 2002 | B128: - | C128: 34 | D128: 123 | E128: 502 | F128: 12,360 | G128: 2,837 | H128: 1,469 | I128: 738 | J128: - | K128: 18,063
A129: 2003 | B129: 24 | C129: 28 | D129: 310 | E129: 3,761 | F129: 20,799 | G129: 12,739 | H129: 1,371 | I129: 526 | J129: - | K129: 39,558
A130: 2004 | B130: 36 | C130: 57 | D130: 139 | E130: 4,642 | F130: 17,640 | G130: 12,676 | H130: 3,423 | I130: 413 | J130: - | K130: 39,026
A131: 2005 | B131: 0 | C131: 264 | D131: 429 | E131: 3,927 | F131: 3,562 | G131: 1,863 | H131: 3,187 | I131: 167 | J131: - | K131: 13,399
A132: 2006 | B132: 8 | C132: 43 | D132: 139 | E132: 1,593 | F132: 5,785 | G132: 584 | H132: 1,919 | I132: 299 | J132: - | K132: 10,370
A133: 2007 | B133: 19 | C133: 26 | D133: 87 | E133: 3,472 | F133: 8,013 | G133: 8,284 | H133: 778 | I133: 46 | J133: 40 | K133: 20,765
A134: 2008 | B134: - | C134: - | D134: - | E134: 1,128 | F134: 2,301 | G134: 2,020 | H134: - | I134: - | J134: - | K134: 5,449
A135: 2009 | B135: - | C135: - | D135: - | E135: 2,126 | F135: 13,786 | G135: 12,307 | H135: 1,388 | I135: - | J135: - | K135: 29,607
A136: 2010 | B136: - | C136: - | D136: 349 | E136: 1,093 | F136: 2,933 | G136: 8,491 | H136: 2,127 | I136: - | J136: - | K136: 14,993
A137: 2011 | B137: 20 | C137: 2 | D137: 103 | E137: 847 | F137: 4,550 | G137: 2,518 | H137: 3,913 | I137: - | J137: - | K137: 11,953
A138: 2012 | B138: 23 | C138: 290 | D138: 325 | E138: 658 | F138: 3,425 | G138: 4,030 | H138: 5,947 | I138: 107 | J138: - | K138: 14,805
A139: 2013 | B139: 354 | C139: 441 | D139: 204 | E139: 425 | F139: 5,037 | G139: 4,073 | H139: 4,606 | I139: 188 | J139: - | K139: 15,328
A140: 2014 | B140: 87 | C140: 83 | D140: 492 | E140: 2,235 | F140: 15,116 | G140: 9,307 | H140: 9,804 | I140: 63 | J140: - | K140: 37,187
A141: 2015 | B141: 48 | C141: 76 | D141: 136 | E141: 716 | F141: 9,102 | G141: 2,369 | H141: 5,680 | I141: 75 | J141: - | K141: 18,202
A142: 2016 | B142: 50 | C142: 9 | D142: 41 | E142: 647 | F142: 2,448 | G142: 1,037 | H142: 3,886 | I142: 75 | J142: - | K142: 8,193
A143: 2017 | B143: 0 | C143: 0 | D143: 12 | E143: 299 | F143: 4,528 | G143: 2,751 | H143: 2,603 | I143: 89 | J143: - | K143: 10,282
A144: 2018 | B144: 39 | C144: 0 | D144: 125 | E144: 538 | F144: 5,623 | G144: 11,666 | H144: 5,502 | I144: 70 | J144: - | K144: =SUM(B144:J144) -> 23,563
A145: 2019 | B145: 37 | C145: 0 | D145: 65 | E145: 2,864 | F145: 16,935 | G145: 11,609 | H145: 3,507 | I145: 96 | J145: - | K145: =SUM(B145:J145) -> 35,113
A146: 2020 | B146: 0 | C146: 47 | D146: 93 | E146: 251 | F146: 9,735 | G146: 4,938 | H146: 3,368 | I146: 176 | J146: - | K146: 18,608
A147: 2021b/ | B147: 23 | C147: 276 | D147: 92 | E147: 2,418 | F147: 18,560 | G147: 14,883 | H147: 5,588 | I147: 21 | J147: - | K147: 41,861
A149: Coos Bay
A150: 1976 | B150: - | C150: 0 | D150: 5,605 | E150: 25,857 | F150: 55,125 | G150: 54,107 | H150: 12,866 | I150: 395 | J150: 63 | K150: =SUM(B150:J150) -> 154,018
A151: 1977 | B151: - | C151: 0 | D151: 9,927 | E151: 16,612 | F151: 38,995 | G151: 27,856 | H151: 10,854 | I151: 391 | J151: 132 | K151: 104,767
A152: 1978 | B152: - | C152: 0 | D152: 3,958 | E152: 24,509 | F152: 39,967 | G152: 26,859 | H152: 8,261 | I152: 1,169 | J152: -- | K152: 104,723
A153: 1979 | B153: - | C153: - | D153: 4,776 | E153: 21,465 | F153: 42,883 | G153: 25,240 | H153: 301 | I153: - | J153: -- | K153: 94,665
A154: 1980 | B154: - | C154: - | D154: 2,214 | E154: 32,083 | F154: 46,195 | G154: 14,325 | H154: 2,588 | I154: -- | J154: -- | K154: 97,405
A155: 1981 | B155: - | C155: - | D155: 6,638 | E155: 13,894 | F155: 35,213 | G155: 22,698 | H155: 5,457 | I155: -- | J155: -- | K155: 83,900
A156: 1982 | B156: - | C156: - | D156: 92 | E156: 11,983 | F156: 47,280 | G156: - | H156: - | I156: -- | J156: -- | K156: 59,355
A157: 1983 | B157: - | C157: - | D157: - | E157: 14,223 | F157: 36,921 | G157: 13,634 | H157: 6,850 | I157: -- | J157: -- | K157: 71,628
A158: 1984 | B158: - | C158: - | D158: - | E158: - | F158: 22,036 | G158: 17,872 | H158: 328 | I158: -- | J158: -- | K158: 40,236
A159: 1985 | B159: - | C159: - | D159: - | E159: - | F159: 33,136 | G159: 29,192 | H159: 1,173 | I159: -- | J159: -- | K159: 63,501
A160: 1986 | B160: - | C160: - | D160: 780 | E160: 4,931 | F160: 33,625 | G160: 4,269 | H160: - | I160: -- | J160: -- | K160: 43,605
A161: 1987 | B161: - | C161: - | D161: - | E161: 3,936 | F161: 40,589 | G161: 12,812 | H161: 5,190 | I161: -- | J161: -- | K161: 62,527
A162: 1988 | B162: - | C162: - | D162: 1,390 | E162: 9,792 | F162: 33,103 | G162: 21,035 | H162: 3,651 | I162: -- | J162: -- | K162: 68,971
A163: 1989 | B163: - | C163: - | D163: 807 | E163: 16,238 | F163: 33,882 | G163: 15,605 | H163: 80 | I163: -- | J163: -- | K163: 66,612
A164: 1990 | B164: - | C164: - | D164: 585 | E164: 8,823 | F164: 24,288 | G164: 24,886 | H164: 6,447 | I164: - | J164: - | K164: 65,029
A165: 1991 | B165: - | C165: - | D165: 1,014 | E165: 17,280 | F165: 39,388 | G165: - | H165: - | I165: - | J165: - | K165: 57,682
A166: 1992 | B166: - | C166: - | D166: 1,396 | E166: 9,431 | F166: 28,632 | G166: 12,782 | H166: 3,317 | I166: -- | J166: - | K166: 55,558
A167: 1993 | B167: - | C167: - | D167: 339 | E167: 867 | F167: 10,066 | G167: 4,050 | H167: - | I167: -- | J167: -- | K167: 15,322
A168: 1994 | B168: - | C168: - | D168: 211 | E168: 156 | F168: - | G168: - | H168: - | I168: -- | J168: -- | K168: 367
A169: 1995 | B169: - | C169: - | D169: 64 | E169: 494 | F169: - | G169: - | H169: 138 | I169: 21 | J169: -- | K169: 717
A170: 1996 | B170: - | C170: - | D170: 197 | E170: 611 | F170: 577 | G170: 1,881 | H170: 651 | I170: -- | J170: -- | K170: 3,917
A171: 1997 | B171: - | C171: 4 | D171: 273 | E171: 499 | F171: 753 | G171: 1,992 | H171: 411 | I171: -- | J171: -- | K171: 3,932
A172: 1998 | B172: - | C172: 0 | D172: 36 | E172: 19 | F172: 255 | G172: 1,902 | H172: 123 | I172: -- | J172: -- | K172: 2,335
A173: 1999 | B173: - | C173: 0 | D173: 4 | E173: 612 | F173: 5,034 | G173: 1,775 | H173: 208 | I173: 0 | J173: -- | K173: 7,633
A174: 2000 | B174: - | C174: 8 | D174: 78 | E174: 164 | F174: 14,885 | G174: 7,213 | H174: 1,140 | I174: 106 | J174: -- | K174: 23,594
A175: 2001 | B175: - | C175: 0 | D175: 648 | E175: 8,073 | F175: 15,394 | G175: 6,122 | H175: 765 | I175: 60 | J175: -- | K175: 31,062
A176: 2002 | B176: - | C176: 230 | D176: 786 | E176: 5,319 | F176: 17,293 | G176: 6,570 | H176: 2,812 | I176: 388 | J176: -- | K176: 33,398
A177: 2003 | B177: 36 | C177: 106 | D177: 950 | E177: 5,263 | F177: 21,326 | G177: 12,880 | H177: 2,247 | I177: 90 | J177: -- | K177: 42,898
A178: 2004 | B178: 34 | C178: 87 | D178: 954 | E178: 7,376 | F178: 19,875 | G178: 9,368 | H178: 2,734 | I178: 34 | J178: -- | K178: 40,462
A179: 2005 | B179: 2 | C179: 76 | D179: 578 | E179: 6,353 | F179: 7,042 | G179: 6,312 | H179: 4,262 | I179: 12 | J179: -- | K179: 24,637
A180: 2006 | B180: 14 | C180: 33 | D180: 279 | E180: 1,991 | F180: 9,250 | G180: 2,736 | H180: 2,784 | I180: 81 | J180: -- | K180: 17,168
A181: 2007 | B181: 17 | C181: 33 | D181: 329 | E181: 2,603 | F181: 9,442 | G181: 9,550 | H181: 990 | I181: 9 | J181: -- | K181: 22,973
A182: 2008 | B182: - | C182: - | D182: - | E182: 1,482 | F182: 4,111 | G182: 1,806 | H182: - | I182: - | J182: -- | K182: 7,399
A183: 2009 | B183: - | C183: - | D183: - | E183: 1,044 | F183: 8,744 | G183: 3,991 | H183: 583 | I183: -- | J183: -- | K183: 14,362
A184: 2010 | B184: - | C184: - | D184: 388 | E184: 709 | F184: 2,350 | G184: 4,683 | H184: 489 | I184: -- | J184: -- | K184: 8,619
A185: 2011 | B185: 2 | C185: 23 | D185: 187 | E185: 1,182 | F185: 2,514 | G185: 4,687 | H185: 1,711 | I185: - | J185: 16 | K185: 10,322
A186: 2012 | B186: 0 | C186: 52 | D186: 730 | E186: 2,290 | F186: 4,075 | G186: 5,568 | H186: 3,647 | I186: 77 | J186: 18 | K186: 16,457
A187: 2013 | B187: 123 | C187: 174 | D187: 338 | E187: 2,898 | F187: 3,011 | G187: 19,299 | H187: 3,901 | I187: 84 | J187: -- | K187: 29,828
A188: 2014 | B188: 0 | C188: 46 | D188: 691 | E188: 1,906 | F188: 8,659 | G188: 11,899 | H188: 6,518 | I188: 53 | J188: -- | K188: 29,772
A189: 2015 | B189: 12 | C189: 34 | D189: 327 | E189: 1,149 | F189: 5,664 | G189: 3,060 | H189: 4,443 | I189: 82 | J189: -- | K189: 14,771
A190: 2016 | B190: 18 | C190: 5 | D190: 158 | E190: 574 | F190: 2,277 | G190: 2,943 | H190: 5,188 | I190: 7 | J190: -- | K190: 11,170
A191: 2017 | B191: 17 | C191: 48 | D191: 153 | E191: 925 | F191: 3,368 | G191: 4,593 | H191: 3,640 | I191: 72 | J191: -- | K191: 12,816
A192: 2018 | B192: 15 | C192: 19 | D192: 178 | E192: 252 | F192: 2,410 | G192: 6,012 | H192: 5,424 | I192: 0 | J192: -- | K192: =SUM(B192:J192) -> 14,310
A193: 2019 | B193: 6 | C193: 8 | D193: 52 | E193: 1,348 | F193: 7,337 | G193: 6,775 | H193: 3,428 | I193: 15 | J193: - | K193: =SUM(B193:J193) -> 18,969
A194: 2020 | B194: 3 | C194: 65 | D194: 88 | E194: 164 | F194: 7,339 | G194: 3,959 | H194: 3,735 | I194: 134 | J194: - | K194: 15,487
A195: 2021b/ | B195: 0 | C195: 270 | D195: 186 | E195: 1,337 | F195: 7,494 | G195: 6,181 | H195: 3,941 | I195: 9 | J195: - | K195: 19,418
A197: Brookings
A198: 1976 | B198: - | C198: 0 | D198: 2,087 | E198: 12,478 | F198: 35,298 | G198: 31,980 | H198: 7,810 | I198: 3,519 | J198: 694 | K198: =SUM(B198:J198) -> 93,866
A199: 1977 | B199: - | C199: 0 | D199: 1,680 | E199: 9,542 | F199: 24,046 | G199: 20,356 | H199: 9,108 | I199: 7,965 | J199: 997 | K199: 73,694
A200: 1978 | B200: - | C200: 0 | D200: 1,947 | E200: 19,010 | F200: 28,908 | G200: 19,937 | H200: 8,369 | I200: 8,613 | J200: 1,528 | K200: 88,312
A201: 1979 | B201: - | C201: - | D201: 301 | E201: 4,877 | F201: 26,977 | G201: 18,542 | H201: 3,290 | I201: 5,025 | J201: 935 | K201: 59,947
A202: 1980 | B202: - | C202: - | D202: 237 | E202: 13,299 | F202: 23,913 | G202: 9,996 | H202: 5,264 | I202: 2,900 | J202: 412 | K202: 56,021
A203: 1981 | B203: - | C203: - | D203: 2,675 | E203: 16,457 | F203: 23,727 | G203: 19,330 | H203: 2,253 | I203: 2,324 | J203: 313 | K203: 67,079
A204: 1982 | B204: - | C204: - | D204: 370 | E204: 5,175 | F204: 39,710 | G204: 10,239 | H204: 2,976 | I204: 2,606 | J204: 278 | K204: 61,354
A205: 1983 | B205: - | C205: - | D205: 835 | E205: 9,801 | F205: 22,670 | G205: 11,198 | H205: 6,051 | I205: 5,024 | J205: 98 | K205: 55,677
A206: 1984 | B206: - | C206: - | D206: - | E206: - | F206: 15,101 | G206: 16,834 | H206: 2,948 | I206: 3,089 | J206: - | K206: 37,972
... 269 more rows

Sheet A-10
A1: TABLE A-10. Oregon ocean recreational salmon landings in numbers of fish by catch area and month.a/
A2: Year or Average | B2: Mar. | C2: Apr. | D2: May | E2: June | F2: July | G2: Aug. | H2: Sept. | I2: Oct. | J2: Nov. | K2: Season | M2: May | N2: June | O2: July | P2: Aug. | Q2: Sept. | R2: Oct.b/ | S2: Seasonb/
B3: CHINOOK | M3: COHO
A5: Astoria
A6: 1976 | B6: - | C6: 0 | D6: 368 | E6: 7,938 | F6: 11,447 | G6: 19,120 | H6: 5,666 | I6: 35 | J6: 4 | K6: =SUM(B6:J6) -> 44,578 | M6: 810 | N6: 14,939 | O6: 34,545 | P6: 41,427 | Q6: 24,170 | R6: 786 | S6: =SUM(M6:R6) -> 116,677
A7: 1977 | B7: - | C7: 0 | D7: 372 | E7: 3,733 | F7: 4,124 | G7: 10,996 | H7: 740 | I7: 184 | J7: - | K7: 20,149 | M7: 569 | N7: 5,732 | O7: 20,645 | P7: 17,901 | Q7: 2,600 | R7: 88 | S7: =SUM(M7:R7) -> 47,535
A8: 1978 | B8: - | C8: 0 | D8: 209 | E8: 1,635 | F8: 1,334 | G8: 4,153 | H8: 524 | I8: 35 | J8: - | K8: 7,890 | M8: 901 | N8: 20,175 | O8: 15,193 | P8: 17,172 | Q8: 6,197 | R8: 96 | S8: 59,734
A9: 1979 | B9: - | C9: - | D9: 619 | E9: 1,593 | F9: 2,084 | G9: 3,127 | H9: 119 | I9: - | J9: - | K9: 7,542 | M9: 403 | N9: 6,475 | O9: 13,275 | P9: 16,336 | Q9: 1,545 | R9: - | S9: 38,034
A10: 1980 | B10: - | C10: - | D10: 98 | E10: 1,153 | F10: 1,374 | G10: 2,479 | H10: 399 | I10: - | J10: - | K10: 5,503 | M10: 1,801 | N10: 17,259 | O10: 19,839 | P10: 15,550 | Q10: 1,198 | R10: - | S10: 55,647
A11: 1981 | B11: - | C11: - | D11: 29 | E11: 390 | F11: 3,161 | G11: 6,706 | H11: 1,230 | I11: - | J11: - | K11: 11,516 | M11: 1,699 | N11: 8,289 | O11: 18,106 | P11: 20,239 | Q11: 5,961 | R11: - | S11: 54,294
A12: 1982 | B12: - | C12: - | D12: - | E12: 2,237 | F12: 5,998 | G12: 0 | H12: - | I12: - | J12: - | K12: 8,235 | M12: - | N12: 5,307 | O12: 30,169 | P12: 0 | Q12: - | R12: - | S12: 35,476
A13: 1983 | B13: - | C13: - | D13: - | E13: 1,034 | F13: 1,645 | G13: 533 | H13: 228 | I13: - | J13: - | K13: 3,440 | M13: - | N13: 3,569 | O13: 18,878 | P13: 9,742 | Q13: 5,056 | R13: - | S13: 37,245
A14: 1984 | B14: - | C14: - | D14: - | E14: - | F14: 1 | G14: 60 | H14: - | I14: - | J14: - | K14: 61 | M14: - | N14: - | O14: 3,571 | P14: 7,303 | Q14: - | R14: - | S14: 10,874
A15: 1985 | B15: - | C15: - | D15: - | E15: 27 | F15: 1,330 | G15: 2,210 | H15: - | I15: - | J15: - | K15: 3,567 | M15: - | N15: 687 | O15: 11,551 | P15: 18,771 | Q15: - | R15: - | S15: 31,009
A16: 1986 | B16: - | C16: - | D16: - | E16: 63 | F16: 1,143 | G16: 699 | H16: - | I16: - | J16: - | K16: 1,905 | M16: - | N16: 1,272 | O16: 21,595 | P16: 13,757 | Q16: - | R16: - | S16: 36,624
A17: 1987 | B17: - | C17: - | D17: - | E17: 191 | F17: 2,008 | G17: 1,864 | H17: - | I17: - | J17: - | K17: 4,063 | M17: - | N17: 866 | O17: 12,488 | P17: 12,293 | Q17: - | R17: - | S17: 25,647
A18: 1988 | B18: - | C18: - | D18: - | E18: - | F18: 481 | G18: - | H18: - | I18: - | J18: - | K18: 481 | M18: - | N18: - | O18: 9,845 | P18: - | Q18: - | R18: - | S18: 9,845
A19: 1989 | B19: - | C19: - | D19: 29 | E19: 155 | F19: 206 | G19: 1,071 | H19: - | I19: - | J19: - | K19: 1,461 | M19: - | N19: 1,646 | O19: 17,485 | P19: 15,173 | Q19: - | R19: - | S19: 34,304
A20: 1990 | B20: - | C20: - | D20: - | E20: 100 | F20: 931 | G20: 2,201 | H20: 87 | I20: - | J20: - | K20: 3,319 | M20: - | N20: 3,516 | O20: 14,685 | P20: 16,602 | Q20: 1,307 | R20: - | S20: 36,110
A21: 1991 | B21: - | C21: - | D21: - | E21: 81 | F21: 335 | G21: 550 | H21: 17 | I21: - | J21: - | K21: 983 | M21: - | N21: 2,409 | O21: 16,368 | P21: 17,222 | Q21: 3,397 | R21: - | S21: 39,396
A22: 1992 | B22: - | C22: - | D22: - | E22: - | F22: 307 | G22: 161 | H22: 40 | I22: - | J22: - | K22: 508 | M22: - | N22: - | O22: 17,882 | P22: 3,005 | Q22: 1,393 | R22: - | S22: 22,280
A23: 1993 | B23: - | C23: - | D23: - | E23: - | F23: 239 | G23: 405 | H23: 192 | I23: - | J23: - | K23: 836 | M23: - | N23: - | O23: 7,098 | P23: 10,314 | Q23: 3,764 | R23: - | S23: 21,176
A24: 1994 | B24: - | C24: - | D24: - | E24: - | F24: - | G24: - | H24: - | I24: - | J24: - | K24: - | M24: - | N24: - | O24: - | P24: - | Q24: - | R24: - | S24: -
A25: 1995 | B25: - | C25: - | D25: - | E25: - | F25: 16 | G25: 90 | H25: 3 | I25: - | J25: - | K25: 109 | M25: - | N25: - | O25: 1,976 | P25: 9,028 | Q25: 773 | R25: - | S25: 11,777
A26: 1996 | B26: - | C26: - | D26: - | E26: - | F26: 5 | G26: 13 | H26: 10 | I26: - | J26: - | K26: 28 | M26: - | N26: - | O26: 1,429 | P26: 4,670 | Q26: 936 | R26: - | S26: 7,035
A27: 1997 | B27: - | C27: - | D27: - | E27: - | F27: 128 | G27: 55 | H27: - | I27: - | J27: - | K27: 183 | M27: - | N27: - | O27: 4,455 | P27: 1,352 | Q27: - | R27: - | S27: 5,807
A28: 1998 | B28: - | C28: - | D28: - | E28: - | F28: - | G28: 94 | H28: 11 | I28: - | J28: - | K28: 105 | M28: - | N28: - | O28: - | P28: 2,021 | Q28: 150 | R28: - | S28: 2,171
A29: 1999 | B29: - | C29: - | D29: - | E29: - | F29: 219 | G29: 622 | H29: 93 | I29: - | J29: - | K29: 934 | M29: - | N29: - | O29: 2,465 | P29: 3,359 | Q29: 1,720 | R29: - | S29: 7,544
A30: 2000 | B30: - | C30: - | D30: - | E30: - | F30: 435 | G30: 329 | H30: - | I30: - | J30: - | K30: 764 | M30: - | N30: - | O30: 6,751 | P30: 6,975 | Q30: - | R30: - | S30: 13,726
A31: 2001 | B31: - | C31: - | D31: - | E31: - | F31: 1,000 | G31: 1,478 | H31: 140 | I31: - | J31: - | K31: 2,618 | M31: - | N31: - | O31: 13,537 | P31: 21,990 | Q31: 3,662 | R31: - | S31: 39,189
A32: 2002 | B32: - | C32: - | D32: 33 | E32: 347 | F32: 1,540 | G32: 827 | H32: 4 | I32: 3 | J32: - | K32: 2,754 | M32: - | N32: - | O32: 4,432 | P32: 8,530 | Q32: 1,441 | R32: - | S32: 14,403
A33: 2003 | B33: - | C33: - | D33: - | E33: 8 | F33: 546 | G33: 1,659 | H33: 117 | I33: - | J33: - | K33: 2,330 | M33: - | N33: 55 | O33: 8,237 | P33: 19,891 | Q33: 1,588 | R33: - | S33: 29,771
A34: 2004 | B34: - | C34: - | D34: - | E34: 25 | F34: 303 | G34: 1,426 | H34: 429 | I34: - | J34: - | K34: 2,183 | M34: - | N34: 368 | O34: 6,583 | P34: 13,601 | Q34: 1,946 | R34: - | S34: 22,498
A35: 2005 | B35: - | C35: - | D35: - | E35: - | F35: 481 | G35: 2,637 | H35: 517 | I35: - | J35: - | K35: 3,635 | M35: - | N35: - | O35: 2,165 | P35: 6,337 | Q35: 1,464 | R35: - | S35: 9,966
A36: 2006 | B36: - | C36: - | D36: - | E36: - | F36: 81 | G36: 370 | H36: 58 | I36: - | J36: - | K36: 509 | M36: - | N36: - | O36: 1,616 | P36: 3,560 | Q36: 235 | R36: - | S36: 5,411
A37: 2007 | B37: - | C37: - | D37: - | E37: - | F37: 81 | G37: 457 | H37: 56 | I37: - | J37: - | K37: 594 | M37: - | N37: - | O37: 3,812 | P37: 13,807 | Q37: 778 | R37: - | S37: 18,397
A38: 2008 | B38: - | C38: - | D38: 17 | E38: 152 | F38: 343 | G38: 305 | H38: - | I38: - | J38: - | K38: 817 | M38: - | N38: 101 | O38: 1,108 | P38: 982 | Q38: - | R38: - | S38: 2,191
A39: 2009 | B39: - | C39: - | D39: - | E39: 4 | F39: 422 | G39: 543 | H39: 11 | I39: - | J39: - | K39: 980 | M39: - | N39: 138 | O39: 9,593 | P39: 9,330 | Q39: 358 | R39: - | S39: 19,419
A40: 2010 | B40: - | C40: - | D40: - | E40: 37 | F40: 388 | G40: 1,321 | H40: 66 | I40: - | J40: - | K40: 1,812 | M40: - | N40: 12 | O40: 1,479 | P40: 4,404 | Q40: 213 | R40: - | S40: 6,108
A41: 2011 | B41: - | C41: - | D41: - | E41: 129 | F41: 147 | G41: 1,264 | H41: 79 | I41: - | J41: - | K41: 1,619 | M41: - | N41: 178 | O41: 981 | P41: 4,132 | Q41: 755 | R41: - | S41: 6,046
A42: 2012 | B42: - | C42: - | D42: - | E42: 578 | F42: 650 | G42: 431 | H42: 45 | I42: - | J42: - | K42: 1,704 | M42: - | N42: 86 | O42: 615 | P42: 740 | Q42: 231 | R42: - | S42: 1,672
A43: 2013 | B43: - | C43: - | D43: - | E43: 731 | F43: 323 | G43: 792 | H43: 72 | I43: - | J43: - | K43: 1,918 | M43: - | N43: 1,143 | O43: 991 | P43: 1,706 | Q43: 173 | R43: - | S43: 4,013
A44: 2014 | B44: - | C44: - | D44: 21 | E44: 150 | F44: 628 | G44: 1,402 | H44: 105 | I44: - | J44: - | K44: 2,306 | M44: - | N44: 391 | O44: 5,030 | P44: 8,503 | Q44: 2,816 | R44: - | S44: 16,740
A45: 2015 | B45: - | C45: - | D45: 28 | E45: 259 | F45: 434 | G45: 1,030 | H45: 1,006 | I45: - | J45: - | K45: 2,757 | M45: - | N45: 732 | O45: 3,764 | P45: 2,872 | Q45: 1,472 | R45: - | S45: 8,840
A46: 2016 | B46: - | C46: - | D46: - | E46: - | F46: 653 | G46: 387 | H46: - | I46: - | J46: - | K46: 1,040 | M46: - | N46: - | O46: 915 | P46: 1,739 | Q46: - | R46: - | S46: 2,654
A47: 2017 | B47: - | C47: - | D47: - | E47: 330 | F47: 567 | G47: 1,011 | H47: - | I47: - | J47: - | K47: 1,908 | M47: - | N47: 13 | O47: 2,249 | P47: 4,308 | Q47: - | R47: - | S47: 6,570
A48: 2018 | B48: - | C48: - | D48: - | E48: 120 | F48: 150 | G48: 417 | H48: 2 | I48: - | J48: - | K48: =SUM(B48:J48) -> 689 | M48: - | N48: 36 | O48: 1,393 | P48: 5,694 | Q48: 5 | R48: - | S48: =SUM(M48:R48) -> 7,128
A49: 2019 | B49: - | C49: - | D49: - | E49: 104 | F49: 668 | G49: 485 | H49: 38 | I49: - | J49: - | K49: =SUM(B49:J49) -> 1,295 | M49: - | N49: 1,852 | O49: 6,548 | P49: 8,543 | Q49: 281 | R49: - | S49: =SUM(M49:R49) -> 17,224
A50: 2020 | B50: - | C50: - | D50: - | E50: 11 | F50: 142 | G50: - | H50: - | I50: - | J50: - | K50: 153 | M50: - | N50: 0 | O50: 3,721 | P50: - | Q50: - | R50: - | S50: 3,721
A51: 2021b/ | B51: - | C51: - | D51: - | E51: 62 | F51: 349 | G51: 1,427 | H51: - | I51: - | J51: - | K51: 1,838 | M51: - | N51: 112 | O51: 4,656 | P51: 9,640 | Q51: - | R51: - | S51: 14,408
A53: Tillamook
A54: 1976 | B54: - | C54: 0 | D54: 257 | E54: 229 | F54: 412 | G54: 1,203 | H54: 125 | I54: 28 | J54: 29 | K54: =SUM(B54:J54) -> 2,283 | M54: 802 | N54: 4,963 | O54: 10,572 | P54: 30,017 | Q54: 2,827 | R54: 517 | S54: =SUM(M54:R54) -> 49,698
A55: 1977 | B55: - | C55: 0 | D55: 50 | E55: 220 | F55: 505 | G55: 635 | H55: 90 | I55: 10 | J55: - | K55: 1,510 | M55: 644 | N55: 1,658 | O55: 5,553 | P55: 5,922 | Q55: 966 | R55: 3 | S55: 14,746
A56: 1978 | B56: - | C56: 0 | D56: 169 | E56: 46 | F56: 233 | G56: 293 | H56: 73 | I56: 19 | J56: - | K56: 833 | M56: 54 | N56: 899 | O56: 1,898 | P56: 5,194 | Q56: 402 | R56: 63 | S56: 8,510
A57: 1979 | B57: - | C57: - | D57: 5 | E57: 18 | F57: 578 | G57: 334 | H57: 46 | I57: - | J57: - | K57: 981 | M57: 78 | N57: 1,124 | O57: 2,606 | P57: 5,563 | Q57: 47 | R57: - | S57: 9,418
A58: 1980 | B58: - | C58: - | D58: 39 | E58: 247 | F58: 318 | G58: 811 | H58: 159 | I58: -- | J58: - | K58: 1,574 | M58: 131 | N58: 7,131 | O58: 10,790 | P58: 10,314 | Q58: 556 | R58: - | S58: 28,922
A59: 1981 | B59: - | C59: - | D59: 36 | E59: 46 | F59: 551 | G59: 900 | H59: 362 | I59: - | J59: - | K59: 1,895 | M59: 266 | N59: 1,015 | O59: 5,586 | P59: 9,563 | Q59: 1,263 | R59: - | S59: 17,693
A60: 1982 | B60: - | C60: - | D60: 0 | E60: 90 | F60: 1,270 | G60: 0 | H60: 0 | I60: - | J60: - | K60: 1,360 | M60: 0 | N60: 1,332 | O60: 21,760 | P60: 0 | Q60: - | R60: - | S60: 23,092
A61: 1983 | B61: - | C61: - | D61: - | E61: 6 | F61: 403 | G61: 194 | H61: 89 | I61: - | J61: - | K61: 692 | M61: - | N61: 218 | O61: 6,094 | P61: 1,591 | Q61: 905 | R61: - | S61: 8,808
A62: 1984 | B62: - | C62: - | D62: - | E62: 0 | F62: 587 | G62: 455 | H62: 68 | I62: - | J62: - | K62: 1,110 | M62: - | N62: - | O62: 9,266 | P62: 10,552 | Q62: 459 | R62: - | S62: 20,277
A63: 1985 | B63: - | C63: - | D63: - | E63: 0 | F63: 1,141 | G63: 1,362 | H63: 65 | I63: 42 | J63: - | K63: 2,610 | M63: 0 | N63: - | O63: 8,900 | P63: 21,648 | Q63: 435 | R63: - | S63: 30,983
A64: 1986 | B64: - | C64: - | D64: 0 | E64: 46 | F64: 245 | G64: 177 | H64: -- | I64: -- | J64: -- | K64: 468 | M64: 0 | N64: 3,244 | O64: 15,239 | P64: 5,062 | Q64: - | R64: - | S64: 23,545
A65: 1987 | B65: - | C65: - | D65: - | E65: 72 | F65: 826 | G65: 2,015 | H65: 631 | I65: -- | J65: - | K65: 3,544 | M65: - | N65: 577 | O65: 10,241 | P65: 4,944 | Q65: 666 | R65: - | S65: 16,428
A66: 1988 | B66: - | C66: - | D66: 16 | E66: 76 | F66: 313 | G66: 1,295 | H66: 1,019 | I66: -- | J66: - | K66: 2,719 | M66: 51 | N66: 1,811 | O66: 8,160 | P66: 14,172 | Q66: 5,701 | R66: - | S66: 29,895
A67: 1989 | B67: - | C67: - | D67: 13 | E67: 85 | F67: 327 | G67: 431 | H67: 14 | I67: -- | J67: - | K67: 870 | M67: 36 | N67: 3,443 | O67: 19,722 | P67: 7,008 | Q67: 114 | R67: - | S67: 30,323
A68: 1990 | B68: - | C68: - | D68: - | E68: 56 | F68: 496 | G68: 400 | H68: 279 | I68: -- | J68: - | K68: 1,231 | M68: - | N68: 890 | O68: 8,753 | P68: 12,442 | Q68: 827 | R68: - | S68: 22,912
A69: 1991 | B69: - | C69: - | D69: 25 | E69: 285 | F69: 376 | G69: - | H69: - | I69: -- | J69: - | K69: 686 | M69: 13 | N69: 2,521 | O69: 23,116 | P69: - | Q69: - | R69: - | S69: 25,650
A70: 1992 | B70: - | C70: - | D70: 96 | E70: 272 | F70: 588 | G70: 323 | H70: 224 | I70: -- | J70: - | K70: 1,503 | M70: 60 | N70: 1,848 | O70: 11,347 | P70: 6,072 | Q70: 1,431 | R70: - | S70: 20,758
A71: 1993 | B71: - | C71: - | D71: 65 | E71: 8 | F71: 176 | G71: 48 | H71: - | I71: -- | J71: - | K71: 297 | M71: 4 | N71: 1 | O71: 926 | P71: 1,392 | Q71: - | R71: - | S71: 2,323
A72: 1994 | B72: - | C72: - | D72: 59 | E72: 135 | F72: - | G72: - | H72: - | I72: 2,204 | J72: - | K72: 2,398 | M72: - | N72: - | O72: - | P72: - | Q72: - | R72: - | S72: -
A73: 1995 | B73: - | C73: - | D73: 67 | E73: 1 | F73: - | G73: - | H73: 114 | I73: 269 | J73: 84 | K73: 535 | M73: - | N73: - | O73: - | P73: - | Q73: 3 | R73: - | S73: 3
A74: 1996 | B74: - | C74: - | D74: 115 | E74: 5 | F74: 11 | G74: 56 | H74: 670 | I74: 733 | J74: - | K74: 1,590 | M74: - | N74: - | O74: - | P74: 2 | Q74: 4 | R74: 1 | S74: 7
A75: 1997 | B75: - | C75: 0 | D75: 0 | E75: 4 | F75: 2 | G75: 15 | H75: 154 | I75: 287 | J75: -- | K75: 462 | M75: - | N75: - | O75: 1 | P75: - | Q75: 6 | R75: - | S75: 7
A76: 1998 | B76: - | C76: 0 | D76: 73 | E76: 4 | F76: 0 | G76: 25 | H76: 496 | I76: 526 | J76: -- | K76: 1,124 | M76: - | N76: - | O76: - | P76: 19 | Q76: 11 | R76: 2 | S76: 32
A77: 1999 | B77: - | C77: 0 | D77: 119 | E77: 13 | F77: 184 | G77: 32 | H77: 683 | I77: 524 | J77: 8 | K77: 1,563 | M77: - | N77: - | O77: 1,007 | P77: 2 | Q77: 11 | R77: 2 | S77: 1,022
A78: 2000 | B78: - | C78: 2 | D78: 45 | E78: 23 | F78: 130 | G78: 29 | H78: 506 | I78: 402 | J78: 63 | K78: 1,200 | M78: - | N78: - | O78: 1,920 | P78: 2 | Q78: 11 | R78: 8 | S78: 1,941
A79: 2001 | B79: - | C79: 0 | D79: 70 | E79: 235 | F79: 727 | G79: 234 | H79: 826 | I79: 431 | J79: 23 | K79: 2,546 | M79: - | N79: 3,398 | O79: 8,771 | P79: 37 | Q79: 69 | R79: 22 | S79: 12,297
A80: 2002 | B80: - | C80: 1 | D80: 56 | E80: 108 | F80: 3,170 | G80: 2,182 | H80: 1,531 | I80: 1,735 | J80: 0 | K80: 8,783 | M80: - | N80: - | O80: 4,753 | P80: 1,096 | Q80: 41 | R80: 22 | S80: 5,912
A81: 2003 | B81: -- | C81: - | D81: 54 | E81: 439 | F81: 1,724 | G81: 737 | H81: 1,468 | I81: 936 | J81: 64 | K81: 5,422 | M81: 2 | N81: 1,407 | O81: 14,049 | P81: 5,705 | Q81: 42 | R81: 14 | S81: 21,219
A82: 2004 | B82: -- | C82: 5 | D82: 40 | E82: 501 | F82: 3,146 | G82: 2,755 | H82: 940 | I82: 1,409 | J82: 69 | K82: 8,865 | M82: - | N82: 1,305 | O82: 8,693 | P82: 4,212 | Q82: 175 | R82: 23 | S82: 14,408
A83: 2005 | B83: 6 | C83: 10 | D83: 36 | E83: 371 | F83: 684 | G83: 291 | H83: 1,142 | I83: 186 | J83: 0 | K83: 2,726 | M83: - | N83: 543 | O83: 502 | P83: 11 | Q83: 2 | R83: - | S83: 1,058
A84: 2006 | B84: 0 | C84: 0 | D84: 40 | E84: 75 | F84: 204 | G84: 14 | H84: 1,079 | I84: 1,944 | J84: 49 | K84: 3,405 | M84: - | N84: 184 | O84: 1,055 | P84: - | Q84: 119 | R84: - | S84: 1,358
A85: 2007 | B85: - | C85: 0 | D85: 41 | E85: 58 | F85: 109 | G85: 241 | H85: 507 | I85: 474 | J85: -- | K85: 1,430 | M85: 2 | N85: 1,206 | O85: 4,305 | P85: 6,926 | Q85: 124 | R85: - | S85: 12,563
A86: 2008 | B86: - | C86: - | D86: - | E86: 2 | F86: - | G86: 3 | H86: 262 | I86: 201 | J86: -- | K86: 468 | M86: - | N86: 43 | O86: 220 | P86: 930 | Q86: 45 | R86: 3 | S86: 1,241
A87: 2009 | B87: - | C87: - | D87: - | E87: 4 | F87: 23 | G87: 20 | H87: 92 | I87: 226 | J87: - | K87: 365 | M87: - | N87: 1,141 | O87: 12,672 | P87: 9,456 | Q87: 310 | R87: 6 | S87: 23,585
A88: 2010 | B88: - | C88: - | D88: 12 | E88: 72 | F88: 112 | G88: 190 | H88: 323 | I88: 122 | J88: - | K88: 831 | M88: - | N88: 323 | O88: 1,392 | P88: 1,390 | Q88: 268 | R88: - | S88: 3,373
A89: 2011 | B89: 0 | C89: 0 | D89: 4 | E89: 29 | F89: 128 | G89: 182 | H89: 574 | I89: 207 | J89: - | K89: 1,124 | M89: - | N89: 366 | O89: 1,535 | P89: 1,288 | Q89: 2,532 | R89: - | S89: 5,721
A90: 2012 | B90: 0 | C90: 1 | D90: 79 | E90: 102 | F90: 133 | G90: 429 | H90: 1,008 | I90: 419 | J90: - | K90: 2,171 | M90: - | N90: 13 | O90: 423 | P90: 1,302 | Q90: 1,424 | R90: - | S90: 3,162
A91: 2013 | B91: 0 | C91: 21 | D91: 28 | E91: 82 | F91: 189 | G91: 156 | H91: 709 | I91: 712 | J91: - | K91: 1,897 | M91: - | N91: - | O91: 2,034 | P91: 777 | Q91: 812 | R91: 12 | S91: 3,635
A92: 2014 | B92: 0 | C92: 0 | D92: 84 | E92: 16 | F92: 385 | G92: 236 | H92: 703 | I92: 111 | J92: - | K92: 1,535 | M92: - | N92: 641 | O92: 10,479 | P92: 5,817 | Q92: 9,692 | R92: 49 | S92: 26,678
A93: 2015 | B93: 0 | C93: 2 | D93: 88 | E93: 26 | F93: 63 | G93: 140 | H93: 1,677 | I93: 1,437 | J93: - | K93: 3,433 | M93: - | N93: 37 | O93: 2,453 | P93: 1,465 | Q93: 1,000 | R93: 19 | S93: 4,974
A94: 2016 | B94: 0 | C94: 0 | D94: 124 | E94: 179 | F94: 30 | G94: 131 | H94: 687 | I94: 70 | J94: - | K94: 1,221 | M94: - | N94: 158 | O94: 188 | P94: 2 | Q94: 1,426 | R94: 22 | S94: 1,796
A95: 2017 | B95: 0 | C95: 0 | D95: 76 | E95: 80 | F95: 89 | G95: 141 | H95: 424 | I95: 35 | J95: - | K95: 845 | M95: - | N95: 86 | O95: 901 | P95: 1,440 | Q95: 1,252 | R95: - | S95: 3,679
A96: 2018 | B96: 0 | C96: 4 | D96: 19 | E96: 28 | F96: 66 | G96: 366 | H96: 160 | I96: 63 | J96: - | K96: =SUM(B96:J96) -> 706 | M96: - | N96: 25 | O96: 274 | P96: 1,652 | Q96: 858 | R96: - | S96: =SUM(M96:R96) -> 2,809
A97: 2019 | B97: 8 | C97: 0 | D97: 37 | E97: 95 | F97: 422 | G97: 212 | H97: 293 | I97: 239 | J97: - | K97: =SUM(B97:J97) -> 1,306 | M97: - | N97: 609 | O97: 6,201 | P97: 2,749 | Q97: 1,156 | R97: 5 | S97: =SUM(M97:R97) -> 10,720
A98: 2020 | B98: 0 | C98: 0 | D98: 12 | E98: 52 | F98: 231 | G98: 213 | H98: 767 | I98: 184 | J98: - | K98: 1,459 | M98: - | N98: 0 | O98: 1,059 | P98: 1,020 | Q98: 634 | R98: - | S98: 2,713
A99: 2021b/ | B99: 0 | C99: 0 | D99: 145 | E99: 86 | F99: 216 | G99: 246 | H99: 636 | I99: 9 | J99: - | K99: 1,338 | M99: - | N99: 99 | O99: 7,353 | P99: 3,590 | Q99: 2,268 | R99: 4 | S99: 13,314
A101: Newport
A102: 1976 | B102: - | C102: 0 | D102: 140 | E102: 859 | F102: 1,051 | G102: 1,939 | H102: 497 | I102: 13 | J102: 1 | K102: =SUM(B102:J102) -> 4,500 | M102: 4,139 | N102: 25,777 | O102: 30,655 | P102: 51,810 | Q102: 4,912 | R102: 455 | S102: =SUM(M102:R102) -> 117,748
A103: 1977 | B103: - | C103: 0 | D103: 69 | E103: 629 | F103: 1,129 | G103: 463 | H103: 223 | I103: 59 | J103: - | K103: 2,572 | M103: 651 | N103: 1,840 | O103: 14,220 | P103: 13,867 | Q103: 1,533 | R103: 82 | S103: 32,193
A104: 1978 | B104: - | C104: 0 | D104: 72 | E104: 213 | F104: 915 | G104: 835 | H104: 11 | I104: 22 | J104: - | K104: 2,068 | M104: 1,092 | N104: 13,915 | O104: 21,187 | P104: 23,677 | Q104: 1,242 | R104: 97 | S104: 61,210
A105: 1979 | B105: - | C105: - | D105: 170 | E105: 334 | F105: 500 | G105: 413 | H105: 14 | I105: - | J105: - | K105: 1,431 | M105: 248 | N105: 3,688 | O105: 18,736 | P105: 13,593 | Q105: 10 | R105: - | S105: 36,275
A106: 1980 | B106: - | C106: - | D106: 110 | E106: 564 | F106: 599 | G106: 381 | H106: 175 | I106: -- | J106: - | K106: 1,829 | M106: 233 | N106: 18,467 | O106: 41,485 | P106: 10,833 | Q106: 1,366 | R106: - | S106: 72,384
A107: 1981 | B107: - | C107: - | D107: 36 | E107: 85 | F107: 1,106 | G107: 965 | H107: 220 | I107: - | J107: - | K107: 2,412 | M107: 378 | N107: 6,261 | O107: 20,670 | P107: 30,547 | Q107: 3,997 | R107: - | S107: 61,853
A108: 1982 | B108: - | C108: - | D108: 0 | E108: 590 | F108: 2,905 | G108: 0 | H108: 0 | I108: - | J108: - | K108: 3,495 | M108: 0 | N108: 3,578 | O108: 40,469 | P108: 0 | Q108: - | R108: - | S108: 44,047
A109: 1983 | B109: - | C109: - | D109: - | E109: 356 | F109: 784 | G109: 304 | H109: 164 | I109: - | J109: - | K109: 1,608 | M109: - | N109: 612 | O109: 13,489 | P109: 4,273 | Q109: 3,474 | R109: - | S109: 21,848
A110: 1984 | B110: - | C110: - | D110: - | E110: - | F110: 1,086 | G110: 823 | H110: 13 | I110: - | J110: - | K110: 1,922 | M110: - | N110: - | O110: 24,744 | P110: 15,672 | Q110: 137 | R110: - | S110: 40,553
A111: 1985 | B111: - | C111: - | D111: - | E111: - | F111: 1,427 | G111: 2,617 | H111: 48 | I111: - | J111: - | K111: 4,092 | M111: 0 | N111: - | O111: 14,874 | P111: 45,667 | Q111: 1,356 | R111: - | S111: 61,897
A112: 1986 | B112: - | C112: - | D112: 111 | E112: 141 | F112: 1,858 | G112: 98 | H112: - | I112: - | J112: - | K112: 2,208 | M112: 1,519 | N112: 7,316 | O112: 56,169 | P112: 13,648 | Q112: - | R112: - | S112: 78,652
A113: 1987 | B113: - | C113: - | D113: - | F113: 2,390 | G113: 2,125 | H113: 1,701 | I113: - | J113: - | K113: 6,216 | M113: - | N113: 1,319 | O113: 43,148 | P113: 14,479 | Q113: 6,320 | R113: - | S113: 65,266
A114: 1988 | B114: - | C114: - | D114: 68 | E114: 789 | F114: 2,249 | G114: 1,712 | H114: 511 | I114: - | J114: - | K114: 5,329 | M114: 187 | N114: 6,388 | O114: 45,780 | P114: 42,938 | Q114: 5,575 | R114: - | S114: 100,868
A115: 1989 | B115: - | C115: - | D115: 76 | E115: 738 | F115: 541 | G115: 441 | H115: 37 | I115: - | J115: - | K115: 1,833 | M115: 769 | N115: 24,192 | O115: 47,407 | P115: 29,560 | Q115: 579 | R115: - | S115: 102,507
A116: 1990 | B116: - | C116: - | D116: 16 | E116: 320 | F116: 1,398 | G116: 771 | H116: 153 | I116: - | J116: - | K116: 2,658 | M116: 171 | N116: 5,848 | O116: 37,891 | P116: 18,959 | Q116: 1,241 | R116: - | S116: 64,110
A117: 1991 | B117: - | C117: - | D117: 81 | E117: 405 | F117: 394 | G117: - | H117: - | I117: - | J117: - | K117: 880 | M117: 59 | N117: 15,216 | O117: 65,792 | P117: - | Q117: - | R117: - | S117: 81,067
A118: 1992 | B118: - | C118: - | D118: 82 | E118: 282 | F118: 2,791 | G118: 890 | H118: 92 | I118: - | J118: - | K118: 4,137 | M118: 30 | N118: 9,726 | O118: 34,661 | P118: 16,899 | Q118: 2,230 | R118: - | S118: 63,546
A119: 1993 | B119: - | C119: - | D119: 34 | E119: 0 | F119: 279 | G119: 123 | H119: - | I119: - | J119: - | K119: 436 | M119: 5 | N119: 4 | O119: 9,425 | P119: 6,950 | Q119: - | R119: - | S119: 16,384
A120: 1994 | B120: - | C120: - | D120: 5 | E120: 0 | F120: - | G120: - | H120: - | I120: - | J120: - | K120: 5 | M120: - | N120: - | O120: - | P120: - | Q120: - | R120: - | S120: -
A121: 1995 | B121: - | C121: - | D121: 17 | E121: 26 | F121: - | G121: - | H121: 37 | I121: 28 | J121: - | K121: 108 | M121: - | N121: - | O121: - | P121: - | Q121: 7 | R121: - | S121: 7
A122: 1996 | B122: - | C122: - | D122: 41 | E122: 37 | F122: 7 | G122: 396 | H122: 73 | I122: - | J122: - | K122: 554 | M122: - | N122: - | O122: - | P122: 31 | Q122: 4 | R122: - | S122: 35
A123: 1997 | B123: - | C123: 0 | D123: 45 | E123: 92 | F123: 66 | G123: 999 | H123: 98 | I123: - | J123: - | K123: 1,300 | M123: - | N123: - | O123: - | P123: 14 | Q123: - | R123: - | S123: 14
A124: 1998 | B124: - | C124: 0 | D124: 28 | E124: 75 | F124: 118 | G124: 166 | H124: 15 | I124: 5 | J124: - | K124: 407 | M124: - | N124: - | O124: - | P124: 61 | Q124: - | R124: - | S124: 61
A125: 1999 | B125: - | C125: 0 | D125: 7 | E125: 9 | F125: 276 | G125: 29 | H125: 9 | I125: 3 | J125: - | K125: 333 | M125: - | N125: - | O125: 3,960 | P125: - | Q125: - | R125: - | S125: 3,960
A126: 2000 | B126: - | C126: 0 | D126: 9 | E126: 5 | F126: 842 | G126: 452 | H126: 279 | I126: 2 | J126: - | K126: 1,589 | M126: - | N126: - | O126: 12,341 | P126: 12 | Q126: 9 | R126: - | S126: 12,362
A127: 2001 | B127: - | C127: 0 | D127: 70 | E127: 362 | F127: 1,541 | G127: 2,324 | H127: 858 | I127: 160 | J127: - | K127: 5,315 | M127: 2 | N127: 7,803 | O127: 15,631 | P127: 16 | Q127: 3 | R127: - | S127: 23,455
A128: 2002 | B128: - | C128: 14 | D128: 37 | E128: 196 | F128: 3,269 | G128: 1,031 | H128: 1,179 | I128: 804 | J128: - | K128: 6,530 | M128: - | N128: - | O128: 9,819 | P128: 933 | Q128: 22 | R128: 2 | S128: 10,776
A129: 2003 | B129: -- | C129: 1 | D129: 95 | E129: 871 | F129: 6,939 | G129: 3,049 | H129: 1,126 | I129: 334 | J129: - | K129: 12,415 | M129: - | N129: 2,694 | O129: 21,419 | P129: 14,419 | Q129: - | R129: - | S129: 38,532
A130: 2004 | B130: -- | C130: 17 | D130: 83 | E130: 554 | F130: 6,931 | G130: 8,225 | H130: 1,507 | I130: 485 | J130: - | K130: 17,802 | M130: - | N130: 2,707 | O130: 13,981 | P130: 6,625 | Q130: 207 | R130: - | S130: 23,520
A131: 2005 | B131: 0 | C131: 94 | D131: 109 | E131: 392 | F131: 463 | G131: 1,000 | H131: 2,556 | I131: 92 | J131: - | K131: 4,706 | M131: - | N131: 659 | O131: 376 | P131: 18 | Q131: 84 | R131: - | S131: 1,137
A132: 2006 | B132: 2 | C132: 1 | D132: 17 | E132: 77 | F132: 326 | G132: 41 | H132: 128 | I132: 80 | J132: - | K132: 672 | M132: - | N132: 101 | O132: 3,970 | P132: 10 | Q132: 473 | R132: - | S132: 4,554
A133: 2007 | B133: 1 | C133: 0 | D133: 13 | E133: 82 | F133: 150 | G133: 163 | H133: 28 | I133: 0 | J133: 16 | K133: 453 | M133: - | N133: 2,715 | O133: 6,516 | P133: 5,982 | Q133: 175 | R133: - | S133: 15,388
A134: 2008 | B134: - | C134: - | D134: - | E134: - | F134: 3 | G134: - | H134: - | I134: - | J134: - | K134: 3 | M134: - | N134: 106 | O134: 865 | P134: 1,820 | Q134: - | R134: - | S134: 2,791
A135: 2009 | B135: - | C135: - | D135: - | E135: 2 | F135: 6 | G135: 25 | H135: - | I135: - | J135: - | K135: 33 | M135: - | N135: 2,564 | O135: 17,733 | P135: 14,694 | Q135: 447 | R135: - | S135: 35,438
A136: 2010 | B136: - | C136: - | D136: 55 | E136: 52 | F136: 135 | G136: 474 | H136: 88 | I136: - | J136: - | K136: 804 | M136: - | N136: 27 | O136: 551 | P136: 6,283 | Q136: 966 | R136: - | S136: 7,827
A137: 2011 | B137: 0 | C137: 6 | D137: 21 | E137: 44 | F137: 111 | G137: 52 | H137: 234 | I137: - | J137: - | K137: 468 | M137: - | N137: 179 | O137: 1,703 | P137: 385 | Q137: 3,680 | R137: - | S137: 5,947
A138: 2012 | B138: 21 | C138: 95 | D138: 60 | E138: 56 | F138: 223 | G138: 481 | H138: 1,034 | I138: 27 | J138: - | K138: 1,997 | M138: - | N138: 11 | O138: 1,046 | P138: 2,796 | Q138: 4,727 | R138: - | S138: 8,580
A139: 2013 | B139: 231 | C139: 123 | D139: 28 | E139: 126 | F139: 498 | G139: 251 | H139: 305 | I139: 76 | J139: - | K139: 1,638 | M139: - | N139: - | O139: 2,648 | P139: 1,779 | Q139: 1,517 | R139: 7 | S139: 5,951
A140: 2014 | B140: 10 | C140: 23 | D140: 113 | E140: 43 | F140: 723 | G140: 606 | H140: 431 | I140: 20 | J140: - | K140: 1,969 | M140: - | N140: 2,269 | O140: 18,001 | P140: 11,786 | Q140: 13,547 | R140: - | S140: 45,603
A141: 2015 | B141: 30 | C141: 3 | D141: 45 | E141: 32 | F141: 151 | G141: 39 | H141: 393 | I141: 14 | J141: - | K141: 707 | M141: - | N141: 213 | O141: 6,755 | P141: 1,011 | Q141: 1,695 | R141: 3 | S141: 9,677
A142: 2016 | B142: 28 | C142: 5 | D142: 2 | E142: 14 | F142: 117 | G142: 348 | H142: 135 | I142: 6 | J142: - | K142: 655 | M142: - | N142: 29 | O142: 582 | P142: 18 | Q142: 1,793 | R142: - | S142: 2,422
A143: 2017 | B143: 0 | C143: 0 | D143: 6 | E143: 31 | F143: 207 | G143: 467 | H143: 47 | I143: 4 | J143: - | K143: 762 | M143: - | N143: 36 | O143: 3,419 | P143: 1,943 | Q143: 2,192 | R143: - | S143: 7,590
A144: 2018 | B144: 0 | C144: 0 | D144: 23 | E144: 59 | F144: 409 | G144: 490 | H144: 217 | I144: 11 | J144: - | K144: =SUM(B144:J144) -> 1,209 | M144: - | N144: 2 | O144: 2,125 | P144: 6,042 | Q144: 3,095 | R144: - | S144: =SUM(M144:R144) -> 11,264
A145: 2019 | B145: 2 | C145: 3 | D145: 66 | E145: 348 | F145: 1,405 | G145: 277 | H145: 84 | I145: 17 | J145: - | K145: =SUM(B145:J145) -> 2,202 | M145: - | N145: 1,931 | O145: 16,778 | P145: 7,594 | Q145: 1,934 | R145: - | S145: =SUM(M145:R145) -> 28,237
A146: 2020 | B146: 0 | C146: 4 | D146: 19 | E146: 37 | F146: 1,460 | G146: 231 | H146: 217 | I146: 24 | J146: - | K146: 1,992 | M146: - | N146: 0 | O146: 4,050 | P146: 3,302 | Q146: 3,152 | R146: - | S146: 10,504
A147: 2021b/ | B147: 12 | C147: 54 | D147: 16 | E147: 369 | F147: 1,833 | G147: 544 | H147: 90 | I147: 0 | J147: - | K147: 2,918 | M147: - | N147: 539 | O147: 23,433 | P147: 20,767 | Q147: 6,807 | R147: - | S147: 51,546
A149: Coos Bay
A150: 1976 | B150: - | C150: 0 | D150: 1,171 | E150: 2,318 | F150: 3,020 | G150: 6,307 | H150: 1,676 | I150: 45 | J150: 6 | K150: =SUM(B150:J150) -> 14,543 | M150: 12,175 | N150: 27,882 | O150: 65,552 | P150: 52,658 | Q150: 5,702 | R150: 471 | S150: =SUM(M150:R150) -> 164,440
A151: 1977 | B151: - | C151: 0 | D151: 581 | E151: 3,539 | F151: 5,804 | G151: 8,630 | H151: 3,633 | I151: 173 | J151: 41 | K151: 22,401 | M151: 13,498 | N151: 15,860 | O151: 28,030 | P151: 11,726 | Q151: 2,985 | R151: 204 | S151: 72,303
A152: 1978 | B152: - | C152: 0 | D152: 468 | E152: 866 | F152: 1,051 | G152: 1,990 | H152: 387 | I152: 64 | J152: -- | K152: 4,826 | M152: 3,062 | N152: 35,103 | O152: 22,336 | P152: 17,565 | Q152: 4,726 | R152: 120 | S152: 82,912
A153: 1979 | B153: - | C153: - | D153: 176 | E153: 2,385 | F153: 1,509 | G153: 461 | H153: 6 | I153: - | J153: -- | K153: 4,537 | M153: 4,912 | N153: 22,695 | O153: 36,677 | P153: 14,644 | Q153: 28 | R153: - | S153: 78,956
A154: 1980 | B154: - | C154: - | D154: 24 | E154: 1,434 | F154: 2,946 | G154: 702 | H154: 201 | I154: -- | J154: -- | K154: 5,307 | M154: 3,774 | N154: 53,596 | O154: 70,636 | P154: 7,088 | Q154: 783 | R154: - | S154: 135,877
A155: 1981 | B155: - | C155: - | D155: 142 | E155: 422 | F155: 2,305 | G155: 1,270 | H155: 316 | I155: -- | J155: -- | K155: 4,455 | M155: 6,318 | N155: 8,117 | O155: 25,054 | P155: 16,482 | Q155: 1,677 | R155: - | S155: 57,648
A156: 1982 | B156: - | C156: - | D156: 5 | E156: 1,024 | F156: 9,059 | G156: 0 | H156: 0 | I156: -- | J156: -- | K156: 10,088 | M156: 0 | N156: 12,219 | O156: 43,383 | P156: 0 | Q156: - | R156: - | S156: 55,602
A157: 1983 | B157: - | C157: - | D157: 0 | E157: 1,316 | F157: 2,382 | G157: 1,144 | H157: 1,741 | I157: -- | J157: -- | K157: 6,583 | M157: - | N157: 20,677 | O157: 28,308 | P157: 9,210 | Q157: 4,459 | R157: - | S157: 62,654
A158: 1984 | B158: - | C158: - | D158: - | E158: - | F158: 2,204 | G158: 2,625 | H158: 25 | I158: -- | J158: -- | K158: 4,854 | M158: - | N158: - | O158: 19,606 | P158: 19,685 | Q158: 147 | R158: - | S158: 39,438
A159: 1985 | B159: - | C159: - | D159: 0 | E159: - | F159: 4,426 | G159: 4,931 | H159: 99 | I159: -- | J159: -- | K159: 9,456 | M159: 0 | N159: - | O159: 30,926 | P159: 19,722 | Q159: 514 | R159: - | S159: 51,162
A160: 1986 | B160: - | C160: - | D160: 17 | E160: 1,015 | F160: 4,377 | G160: 499 | H160: - | I160: -- | J160: -- | K160: 5,908 | M160: 1,040 | N160: 7,747 | O160: 46,241 | P160: 6,101 | Q160: - | R160: - | S160: 61,129
A161: 1987 | B161: - | C161: - | D161: - | E161: 942 | F161: 10,689 | G161: 4,559 | H161: 2,778 | I161: -- | J161: -- | K161: 18,968 | M161: - | N161: 1,040 | O161: 44,582 | P161: 6,387 | Q161: 2,140 | R161: - | S161: 54,149
A162: 1988 | B162: - | C162: - | D162: 171 | E162: 1,722 | F162: 2,848 | G162: 3,092 | H162: 246 | I162: -- | J162: -- | K162: 8,079 | M162: 80 | N162: 10,730 | O162: 42,248 | P162: 17,203 | Q162: 989 | R162: - | S162: 71,250
A163: 1989 | B163: - | C163: - | D163: 100 | E163: 1,755 | F163: 4,269 | G163: 555 | H163: 2 | I163: -- | J163: -- | K163: 6,681 | M163: 669 | N163: 22,348 | O163: 38,486 | P163: 11,587 | Q163: 19 | R163: - | S163: 73,109
A164: 1990 | B164: - | C164: - | D164: 13 | E164: 633 | F164: 2,813 | G164: 2,324 | H164: 824 | I164: - | J164: - | K164: 6,607 | M164: 23 | N164: 12,431 | O164: 23,456 | P164: 23,162 | Q164: 3,123 | R164: - | S164: 62,195
A165: 1991 | B165: - | C165: - | D165: 49 | E165: 2,125 | F165: 2,882 | G165: - | H165: - | I165: - | J165: - | K165: 5,056 | M165: 794 | N165: 23,443 | O165: 66,543 | P165: - | Q165: - | R165: - | S165: 90,780
A166: 1992 | B166: - | C166: - | D166: 70 | E166: 1,977 | F166: 1,006 | G166: 293 | H166: 417 | I166: -- | J166: - | K166: 3,763 | M166: 525 | N166: 13,111 | O166: 43,850 | P166: 15,766 | Q166: 2,713 | R166: - | S166: 75,965
A167: 1993 | B167: - | C167: - | D167: 70 | E167: 7 | F167: 597 | G167: 410 | H167: - | I167: -- | J167: -- | K167: 1,084 | M167: 76 | N167: 85 | O167: 7,642 | P167: 4,388 | Q167: - | R167: - | S167: 12,191
A168: 1994 | B168: - | C168: - | D168: 6 | E168: 12 | F168: - | G168: - | H168: - | I168: -- | J168: -- | K168: 18 | M168: - | N168: - | O168: - | P168: - | Q168: - | R168: - | S168: -
A169: 1995 | B169: - | C169: - | D169: 4 | E169: 187 | F169: - | G169: - | H169: 45 | I169: 7 | J169: -- | K169: 243 | M169: - | N169: - | O169: - | P169: - | Q169: - | R169: - | S169: -
A170: 1996 | B170: - | C170: - | D170: 7 | E170: 147 | F170: 289 | G170: 250 | H170: 148 | I170: -- | J170: -- | K170: 841 | M170: - | N170: - | O170: - | P170: 14 | Q170: 3 | R170: - | S170: 17
A171: 1997 | B171: - | C171: 2 | D171: 35 | E171: 70 | F171: 94 | G171: 388 | H171: 57 | I171: -- | J171: -- | K171: 646 | M171: - | N171: - | O171: 7 | P171: 10 | Q171: - | R171: - | S171: 17
A172: 1998 | B172: - | C172: 0 | D172: 0 | E172: 2 | F172: 55 | G172: 418 | H172: 13 | I172: -- | J172: -- | K172: 488 | M172: - | N172: - | O172: - | P172: - | Q172: - | R172: - | S172: -
A173: 1999 | B173: - | C173: 0 | D173: 3 | E173: 211 | F173: 867 | G173: 351 | H173: 12 | I173: 0 | J173: -- | K173: 1,444 | M173: - | N173: - | O173: 1,064 | P173: - | Q173: - | R173: - | S173: 1,064
A174: 2000 | B174: - | C174: 2 | D174: 9 | E174: 15 | F174: 6,994 | G174: 2,559 | H174: 479 | I174: 31 | J174: -- | K174: 10,089 | M174: - | N174: - | O174: 5,055 | P174: 43 | Q174: - | R174: - | S174: 5,098
A175: 2001 | B175: - | C175: 0 | D175: 77 | E175: 1,441 | F175: 5,548 | G175: 2,163 | H175: 281 | I175: 3 | J175: -- | K175: 9,513 | M175: 19 | N175: 6,470 | O175: 12,691 | P175: 152 | Q175: 4 | R175: - | S175: 19,336
A176: 2002 | B176: - | C176: 140 | D176: 237 | E176: 4,840 | F176: 10,170 | G176: 2,782 | H176: 1,213 | I176: 97 | J176: -- | K176: 19,479 | M176: - | N176: 35 | O176: 5,129 | P176: 134 | Q176: 40 | R176: - | S176: 5,338
A177: 2003 | B177: 2 | C177: 21 | D177: 119 | E177: 1,626 | F177: 6,453 | G177: 5,449 | H177: 1,366 | I177: 3 | J177: -- | K177: 15,039 | M177: - | N177: 3,477 | O177: 15,393 | P177: 5,194 | Q177: 22 | R177: - | S177: 24,086
A178: 2004 | B178: 2 | C178: 2 | D178: 192 | E178: 2,849 | F178: 11,416 | G178: 3,666 | H178: 2,606 | I178: 13 | J178: -- | K178: 20,746 | M178: 2 | N178: 943 | O178: 8,275 | P178: 830 | Q178: 84 | R178: - | S178: 10,134
A179: 2005 | B179: 0 | C179: 0 | D179: 56 | E179: 2,933 | F179: 3,081 | G179: 3,273 | H179: 1,826 | I179: 2 | J179: -- | K179: 11,171 | M179: - | N179: 862 | O179: 544 | P179: 8 | Q179: 21 | R179: - | S179: 1,435
A180: 2006 | B180: 0 | C180: 3 | D180: 11 | E180: 388 | F180: 3,225 | G180: 927 | H180: 656 | I180: 0 | J180: -- | K180: 5,210 | M180: - | N180: 184 | O180: 3,321 | P180: 26 | Q180: 42 | R180: - | S180: 3,573
A181: 2007 | B181: 2 | C181: 0 | D181: 18 | E181: 115 | F181: 545 | G181: 672 | H181: 62 | I181: 0 | J181: -- | K181: 1,414 | M181: - | N181: 813 | O181: 8,402 | P181: 3,509 | Q181: 12 | R181: - | S181: 12,736
A182: 2008 | B182: - | C182: - | D182: - | E182: 7 | F182: 3 | G182: - | H182: - | I182: - | J182: -- | K182: 10 | M182: - | N182: 621 | O182: 1,726 | P182: 1,381 | Q182: - | R182: - | S182: 3,728
A183: 2009 | B183: - | C183: - | D183: - | E183: 3 | F183: 7 | G183: 2 | H183: - | I183: -- | J183: -- | K183: 12 | M183: - | N183: 1,154 | O183: 7,596 | P183: 1,175 | Q183: 42 | R183: - | S183: 9,967
A184: 2010 | B184: - | C184: - | D184: 8 | E184: 83 | F184: 133 | G184: 444 | H184: 28 | I184: -- | J184: -- | K184: 696 | M184: - | N184: 18 | O184: 238 | P184: 663 | Q184: 8 | R184: - | S184: 927
A185: 2011 | B185: 0 | C185: 1 | D185: 31 | E185: 88 | F185: 254 | G185: 389 | H185: 248 | I185: - | J185: 6 | K185: 1,017 | M185: - | N185: 11 | O185: 330 | P185: 338 | Q185: 411 | R185: - | S185: 1,090
A186: 2012 | B186: 0 | C186: 12 | D186: 391 | E186: 529 | F186: 502 | G186: 1,348 | H186: 749 | I186: 60 | J186: 8 | K186: 3,599 | M186: - | N186: 31 | O186: 782 | P186: 829 | Q186: 814 | R186: - | S186: 2,456
A187: 2013 | B187: 26 | C187: 52 | D187: 135 | E187: 1,189 | F187: 790 | G187: 11,479 | H187: 657 | I187: 4 | J187: -- | K187: 14,332 | M187: - | N187: 9 | O187: 66 | P187: 94 | Q187: 329 | R187: - | S187: 498
A188: 2014 | B188: 0 | C188: 9 | D188: 69 | E188: 767 | F188: 1,865 | G188: 2,399 | H188: 736 | I188: 6 | J188: -- | K188: 5,851 | M188: 1 | N188: 620 | O188: 4,371 | P188: 1,672 | Q188: 3,255 | R188: - | S188: 9,919
A189: 2015 | B189: 0 | C189: 3 | D189: 18 | E189: 209 | F189: 187 | G189: 197 | H189: 744 | I189: 3 | J189: -- | K189: 1,361 | M189: - | N189: 208 | O189: 2,633 | P189: 81 | Q189: 1,731 | R189: - | S189: 4,653
A190: 2016 | B190: 4 | C190: 4 | D190: 2 | E190: 44 | F190: 91 | G190: 213 | H190: 318 | I190: 0 | J190: -- | K190: 676 | M190: - | N190: 58 | O190: 410 | P190: 59 | Q190: 959 | R190: - | S190: 1,486
A191: 2017 | B191: 0 | C191: 6 | D191: 7 | E191: 28 | F191: 212 | G191: 199 | H191: 121 | I191: 0 | J191: -- | K191: 573 | M191: - | N191: 241 | O191: 1,452 | P191: 557 | Q191: 1,146 | R191: - | S191: 3,396
A192: 2018 | B192: 0 | C192: 0 | D192: 6 | E192: 52 | F192: 180 | G192: 311 | H192: 244 | I192: 0 | J192: -- | K192: =SUM(B192:J192) -> 793 | M192: - | N192: 4 | O192: 579 | P192: 887 | Q192: 2,983 | R192: - | S192: =SUM(M192:R192) -> 4,453
A193: 2019 | B193: 0 | C193: 0 | D193: 0 | E193: 87 | F193: 603 | G193: 236 | H193: 305 | I193: - | J193: - | K193: =SUM(B193:J193) -> 1,231 | M193: - | N193: 1,265 | O193: 4,322 | P193: 2,023 | Q193: 1,980 | R193: - | S193: =SUM(M193:R193) -> 9,590
A194: 2020 | B194: 0 | C194: 0 | D194: 7 | E194: 0 | F194: 1,151 | G194: 419 | H194: 361 | I194: 11 | J194: - | K194: 1,949 | M194: - | N194: 0 | O194: 2,605 | P194: 804 | Q194: 453 | R194: - | S194: 3,862
A195: 2021b/ | B195: 0 | C195: 82 | D195: 13 | E195: 149 | F195: 616 | G195: 263 | H195: 137 | I195: 0 | J195: - | K195: 1,260 | M195: - | N195: 1,149 | O195: 7,028 | P195: 3,554 | Q195: 1,691 | R195: - | S195: 13,422
A197: Brookings
A198: 1976 | B198: - | C198: 0 | D198: 51 | E198: 1,177 | F198: 3,684 | G198: 6,744 | H198: 671 | I198: 723 | J198: 112 | K198: =SUM(B198:J198) -> 13,162 | M198: 1,291 | N198: 2,000 | O198: 28,761 | P198: 16,165 | Q198: 1,160 | R198: 2,072 | S198: =SUM(M198:R198) -> 51,449
A199: 1977 | B199: - | C199: 0 | D199: 285 | E199: 271 | F199: 5,165 | G199: 3,373 | H199: 1,132 | I199: 1,175 | J199: 59 | K199: 11,460 | M199: 311 | N199: 192 | O199: 9,848 | P199: 2,588 | Q199: 132 | R199: 58 | S199: 13,129
A200: 1978 | B200: - | C200: 0 | D200: 76 | E200: 1,942 | F200: 1,422 | G200: 2,273 | H200: 615 | I200: 771 | J200: 79 | K200: 7,178 | M200: 174 | N200: 31,352 | O200: 10,722 | P200: 4,082 | Q200: 635 | R200: 18 | S200: 46,983
A201: 1979 | B201: - | C201: - | D201: 3 | E201: 263 | F201: 2,067 | G201: 3,406 | H201: 15 | I201: 597 | J201: 60 | K201: 6,411 | M201: 26 | N201: 1,577 | O201: 14,474 | P201: 2,074 | Q201: 0 | R201: - | S201: 18,151
A202: 1980 | B202: - | C202: - | D202: 42 | E202: 1,256 | F202: 1,675 | G202: 1,031 | H202: 415 | I202: 319 | J202: 63 | K202: 4,801 | M202: 86 | N202: 17,723 | O202: 13,364 | P202: 1,351 | Q202: 489 | R202: - | S202: 33,013
A203: 1981 | B203: - | C203: - | D203: 457 | E203: 2,205 | F203: 3,186 | G203: 2,630 | H203: 120 | I203: 289 | J203: 10 | K203: 8,897 | M203: 520 | N203: 2,649 | O203: 1,362 | P203: 3,785 | Q203: 8 | R203: - | S203: 8,324
A204: 1982 | B204: - | C204: - | D204: 2 | E204: 800 | F204: 12,713 | G204: 1,544 | H204: 227 | I204: 236 | J204: 16 | K204: 15,538 | M204: 5 | N204: 1,711 | O204: 15,195 | P204: - | Q204: - | R204: - | S204: 16,911
A205: 1983 | B205: - | C205: - | D205: 504 | E205: 3,416 | F205: 4,927 | G205: 1,457 | H205: 1,034 | I205: 999 | J205: 17 | K205: 12,354 | M205: 453 | N205: 4,946 | O205: 8,874 | P205: 1,584 | Q205: 492 | R205: - | S205: 16,349
... 275 more rows

Sheet A-11
A1: TABLE A-11. Summary of Washington non-Indian commercial troll salmon fishing effort in days fished and landings in numbers of fish by catch area. (Page 1 of 2)
L2: linked to A-12 and A-13
A3: Year | F3: Washington
A4: or Avga/. | B4: Neah Baya/ | C4: La Push | D4: Westport | E4: Ilwaco | F4: Subtotal | G4: Oregon | H4: California | I4: Alaska | J4: Total
A5: DAYS FISHED
A6: 1981-1985 | B6: ='A-12'!H265 -> 3,111 | C6: ='A-12'!H284 -> 1,553 | D6: ='A-12'!H303 -> 5,194 | E6: ='A-12'!H326 -> 1,961 | F6: ='A-12'!H345 -> 11,819 | G6: 244 | H6: 18 | I6: 25 | J6: =SUM(F6:I6) -> 12,106
A7: 1986-1990 | B7: ='A-12'!H266 -> 928 | C7: ='A-12'!H285 -> 300 | D7: ='A-12'!H304 -> 2,619 | E7: ='A-12'!H327 -> 871 | F7: ='A-12'!H346 -> 4,718 | G7: 100 | H7: 0 | I7: 3 | J7: =SUM(F7:I7) -> 4,821
A8: 1991-1995 | B8: ='A-12'!H267 -> 1,421 | C8: ='A-12'!H286 -> 243 | D8: ='A-12'!H305 -> 2,079 | E8: ='A-12'!H328 -> 335 | F8: ='A-12'!H347 -> 3,475 | G8: 100 | H8: 0 | I8: 3 | J8: 3,578
A9: 1996-2000 | B9: ='A-12'!H268 -> 235 | C9: ='A-12'!H287 -> 55 | D9: ='A-12'!H306 -> 128 | E9: ='A-12'!H329 -> 20 | F9: ='A-12'!H348 -> 431 | G9: =AVERAGE(67,46,0,6,30) -> 30 | H9: 0 | I9: 0 | J9: 460
A10: 2001-2005 | B10: ='A-12'!H269 -> 454 | C10: ='A-12'!H288 -> 195 | D10: ='A-12'!H307 -> 593 | E10: ='A-12'!H330 -> 82 | F10: ='A-12'!H349 -> 1,324 | G10: =AVERAGE(67,46,0,6,30) -> 30 | H10: 0 | I10: 0 | J10: 1,354
